Workbook

Sheet Rozcestí
C1: Ověřovací nástroj kvality PENB

Sheet 1. PENB
A1: Krok 1. | C1: Krok 2. | D1: Krok 3. | F1: Krok 4. | H1: Krok 5. | J1: Krok 6.
A2: ZDE
C3: Základní parametry z PENB | H3: Zpět | I3: Pokračovat | J3: Nápověda
C5: Účel zpracování průkazu
C10: Základní informace o hodnocené budově
C11: Geometrické charakteristiky budovy
C12: Parametr | H12: jednotky | I12: hodnota
C13: Objem budovy V (objem částí budovy s upravovaným vnitřním prostředím vymezený vnějšími povrchy konstrukcí obálky budovy) | H13: [m3]
C16: Celková plocha obálky budovy A (součet vnějších ploch konstrukcí ohraničujících objem budovy V) | H16: [m2] | I16: =D63 -> 0
C19: Objemový faktor tvaru budovy A/V | H19: [m2/m3] | I19: =I16/I13 -> 
C20: Celková energeticky vztažná plocha budovy Ac | H20: [m2]
C22: A) stavební prvky a konstrukce
C23: a.1) požadavky na součinitel prostupu tepla
C24: Konstrukce obálky budovy | D24: Plocha | E24: Součinitel prostupu tepla | H24: Činitel tepl. redukce bj | I24: Měrná ztráta prostupem tepla
E25: Vypočtená hodnota | F25: Referenční hodnota | G25: Splněno
D26: Aj | E26: Uj | F26: UN,rc,j | H26: bj | I26: HT,j
D27: [m2] | E27: [W/(m2.K)] | F27: [W/(m2.K)] | G27: [ano/ne] | H27: [-] | I27: [W/K]
C63: Celkem | D63: =SUM(D28:D62) -> 0 | E63: x | F63: x | G63: x | H63: x | I63: =SUM(I28:I62) -> 0

Sheet 2. Bytové jednotky
A1: Krok 1. | D1: Krok 2. | G1: Krok 3. | H1: Krok 4. | I1: Krok 5. | J1: Krok 6. | K1: Krok 7. | L1: Krok 8. | M1: Krok 9. | N1: Krok 10.
A2: =IF(SUM('1. PENB'!I13:I15)>0,IF(SUM('1. PENB'!I20)>0,IF(SUM('1. PENB'!D63)>0,IF(SUM('1. PENB'!I63)>0,"Zadáno","Nezadáno"),"Nezadáno"),"Nezadáno"),"Nezadáno") -> Nezadáno | D2: ZDE
C3: Popis stavebních konstrukcí | K3: Zpět | L3: Pokračovat | M3: Nápověda
C5: Obvodové stěny mezi vytápěnou částí a venkovním prostředím | D5: Výška (m) | E5: Délka (m) | F5: Hrubá plocha včetně oken (m2) | G5: Materiál stěny | H5: Existující zateplení (cm) | I5: Uvažované U (W/m2.K) | J5: Okna a dveře - 1. typ (celková plocha) (m2) | K5: Typ oken nebo dveří | L5: Okna a dveře - 2. typ (celková plocha) (m2) | M5: Typ oken nebo dveří | N5: Čistá plocha stěny (m2)
C6: Severní stěna 1 | F6: =D6*E6 -> 0 | I6: =IF(F6>0,Vypocet!I4,"") ->  | N6: =F6-J6-L6 -> 0
C7: Severní stěna 2 | F7: =D7*E7 -> 0 | I7: =IF(F7>0,Vypocet!I5,"") ->  | N7: =F7-J7-L7 -> 0
C8: Severní stěna 3 | F8: =D8*E8 -> 0 | I8: =IF(F8>0,Vypocet!I6,"") ->  | N8: =F8-J8-L8 -> 0
C9: Severní stěna 4 | F9: =D9*E9 -> 0 | I9: =IF(F9>0,Vypocet!I7,"") ->  | N9: =F9-J9-L9 -> 0
C11: Jižní stěna 1 | F11: =D11*E11 -> 0 | I11: =IF(F11>0,Vypocet!I9,"") ->  | N11: =F11-J11-L11 -> 0
C12: Jižní stěna 2 | F12: 0 | I12: =IF(F12>0,Vypocet!I10,"") ->  | N12: =F12-J12-L12 -> 0
C13: Jižní stěna 3 | F13: 0 | I13: =IF(F13>0,Vypocet!I11,"") ->  | N13: =F13-J13-L13 -> 0
C14: Jižní stěna 4 | F14: 0 | I14: =IF(F14>0,Vypocet!I12,"") ->  | N14: =F14-J14-L14 -> 0
C16: Východní stěna 1 | F16: 0 | I16: =IF(F16>0,Vypocet!I14,"") ->  | N16: =F16-J16-L16 -> 0
C17: Východní stěna 2 | F17: 0 | I17: =IF(F17>0,Vypocet!I15,"") ->  | N17: =F17-J17-L17 -> 0
C18: Východní stěna 3 | F18: 0 | I18: =IF(F18>0,Vypocet!I16,"") ->  | N18: =F18-J18-L18 -> 0
C19: Východní stěna 4 | F19: 0 | I19: =IF(F19>0,Vypocet!I17,"") ->  | N19: =F19-J19-L19 -> 0
C21: Západní stěna 1 | F21: 0 | I21: =IF(F21>0,Vypocet!I19,"") ->  | N21: =F21-J21-L21 -> 0
C22: Západní stěna 2 | F22: 0 | I22: =IF(F22>0,Vypocet!I20,"") ->  | N22: =F22-J22-L22 -> 0
C23: Západní stěna 3 | F23: 0 | I23: =IF(F23>0,Vypocet!I21,"") ->  | N23: =F23-J23-L23 -> 0
C24: Západní stěna 4 | F24: 0 | I24: =IF(F24>0,Vypocet!I22,"") ->  | N24: =F24-J24-L24 -> 0
C26: Podlahy | D26: Výška (m) | E26: Délka (m) | F26: Celková plocha (m2) | G26: Materiál | H26: Tloušťka izolace v podlaze (cm) | I26: Uvažované U (W/m2.K)
C27: Podlaha na zemině 1 | F27: =D27*E27 -> 0 | I27: =IF(F27>0,Vypocet!I25,"") -> 
C28: Podlaha na zemině 2 | F28: =D28*E28 -> 0 | I28: =IF(F28>0,Vypocet!I26,"") -> 
C30: Podlaha nad nevytápěným sklepem 1 | F30: =D30*E30 -> 0 | I30: =IF(F30>0,Vypocet!I28,"") -> 
C31: Podlaha nad nevytápěným sklepem 2 | F31: =D31*E31 -> 0 | I31: =IF(F31>0,Vypocet!I29,"") -> 
C33: Střechy a stropy | D33: Výška (m) | E33: Délka (m) | F33: Celková plocha (m2) | G33: Materiál | H33: Existující dodatečná tepelná izolace (cm) | I33: Uvažované U (W/m2.K) | J33: Střešní okno (m2) | K33: Typ | L33: Plocha po odečtení oken (m2)
C34: Střecha plochá nebo do 45 ° 1 | F34: =D34*E34 -> 0 | I34: =IF(F34>0,Vypocet!I32,"") ->  | L34: =F34-J34 -> 0
C35: Střecha plochá nebo do 45 ° 2 | F35: 0 | I35: =IF(F35>0,Vypocet!I33,"") ->  | L35: =F35-J35 -> 0
C37: Střecha šikmá nad 45 ° 1 | F37: 0 | I37: =IF(F37>0,Vypocet!I35,"") ->  | L37: =F37-J37 -> 0
C38: Střecha šikmá nad 45 ° 2 | F38: 0 | I38: =IF(F38>0,Vypocet!I36,"") ->  | L38: =F38-J38 -> 0
C40: Strop pod půdou 1 | F40: 0 | I40: =IF(F40>0,Vypocet!I38,"") -> 
C41: Strop pod půdou 2 | F41: 0 | I41: =IF(F41>0,Vypocet!I39,"") -> 
C43: Ostatní | D43: Výška (m) | E43: Délka (m) | F43: Celková plocha (m2) | G43: Materiál | H43: Existující dodatečná tepelná izolace (cm) | I43: Uvažované U (W/m2.K) | J43: Dveře k nevytápěnému prostoru (m2) | K43: Typ | L43: Plocha po odečtení dveří (m2)
C44: Stěna k nevytápěnému prostoru 1 | F44: =D44*E44 -> 0 | I44: =IF(F44>0,Vypocet!I42,"") ->  | L44: =F44-J44 -> 0
C45: Stěna k nevytápěnému prostoru 2 | F45: =D45*E45 -> 0 | I45: =IF(F45>0,Vypocet!I43,"") ->  | L45: =F45-J45 -> 0
C46: Stěna ke stejně vytápěnému prostoru 1 | F46: =D46*E46 -> 0 | I46: =IF(F46>0,Vypocet!I44,"") ->  | L46: =F46 -> 0
C47: Stěna ke stejně vytápěnému prostoru 2 | F47: =D47*E47 -> 0 | I47: =IF(F47>0,Vypocet!I45,"") ->  | L47: =F47 -> 0

Sheet 3. Schodišťový prostor
A1: Krok 1. | D1: Krok 2. | G1: Krok 3. | H1: Krok 4. | I1: Krok 5. | J1: Krok 6. | K1: Krok 7. | L1: Krok 8. | M1: Krok 9. | N1: Krok 10.
A2: =IF(SUM('1. PENB'!I13:I15)>0,IF(SUM('1. PENB'!I20)>0,IF(SUM('1. PENB'!D63)>0,IF(SUM('1. PENB'!I63)>0,"Zadáno","Nezadáno"),"Nezadáno"),"Nezadáno"),"Nezadáno") -> Nezadáno | D2: =IF(SUM('2. Bytové jednotky'!F6:F9,'2. Bytové jednotky'!F11:F14,'2. Bytové jednotky'!F16:F19,'2. Bytové jednotky'!F21:F24)>0,IF(SUM('2. Bytové jednotky'!J6:J9,'2. Bytové jednotky'!J11:J14,'2. Bytové jednotky'!J16:J19,'2. Bytové jednotky'!J21:J24,'2. Bytové jednotky'!L6:L9,'2. Bytové jednotky'!L11:L14,'2. Bytové jednotky'!L16:L19,'2. Bytové jednotky'!L21:L24)>0,IF(SUM('2. Bytové jednotky'!F27:F28,'2. Bytové jednotky'!F30:F31)>0,IF(SUM('2. Bytové jednotky'!F34:F35,'2. Bytové jednotky'!F37:F38,'2. Bytové jednotky'!F40:F41)>0,"Zadáno","Nezadáno"),"Nezadáno"),"Nezadáno"),"Nezadáno") -> Nezadáno | G2: ZDE
C3: Popis stavebních konstrukcí | K3: Zpět | L3: Pokračovat | M3: Nápověda
C5: Obvodové stěny mezi vytápěnou částí a venkovním prostředím | D5: Výška (m) | E5: Délka (m) | F5: Hrubá plocha včetně oken (m2) | G5: Materiál stěny | H5: Existující zateplení (cm) | I5: Uvažované U (W/m2.K) | J5: Okna a dveře - 1. typ (celková plocha) (m2) | K5: Typ oken nebo dveří | L5: Okna a dveře - 2. typ (celková plocha) (m2) | M5: Typ oken nebo dveří | N5: Čistá plocha stěny (m2)
C6: Severní stěna 1 | F6: =D6*E6 -> 0 | I6: =IF(F6>0,Vypocet!AC4,"") ->  | N6: =F6-J6-L6 -> 0
C7: Severní stěna 2 | F7: =D7*E7 -> 0 | I7: =IF(F7>0,Vypocet!AC5,"") ->  | N7: =F7-J7-L7 -> 0
C8: Severní stěna 3 | F8: =D8*E8 -> 0 | I8: =IF(F8>0,Vypocet!AC6,"") ->  | N8: =F8-J8-L8 -> 0
C9: Severní stěna 4 | F9: =D9*E9 -> 0 | I9: =IF(F9>0,Vypocet!AC7,"") ->  | N9: =F9-J9-L9 -> 0
C11: Jižní stěna 1 | F11: =D11*E11 -> 0 | I11: =IF(F11>0,Vypocet!AC9,"") ->  | N11: =F11-J11-L11 -> 0
C12: Jižní stěna 2 | F12: 0 | I12: =IF(F12>0,Vypocet!AC10,"") ->  | N12: =F12-J12-L12 -> 0
C13: Jižní stěna 3 | F13: 0 | I13: =IF(F13>0,Vypocet!AC11,"") ->  | N13: =F13-J13-L13 -> 0
C14: Jižní stěna 4 | F14: 0 | I14: =IF(F14>0,Vypocet!AC12,"") ->  | N14: =F14-J14-L14 -> 0
C16: Východní stěna 1 | F16: 0 | I16: =IF(F16>0,Vypocet!AC14,"") ->  | N16: =F16-J16-L16 -> 0
C17: Východní stěna 2 | F17: 0 | I17: =IF(F17>0,Vypocet!AC15,"") ->  | N17: =F17-J17-L17 -> 0
C18: Východní stěna 3 | F18: 0 | I18: =IF(F18>0,Vypocet!AC16,"") ->  | N18: =F18-J18-L18 -> 0
C19: Východní stěna 4 | F19: 0 | I19: =IF(F19>0,Vypocet!AC17,"") ->  | N19: =F19-J19-L19 -> 0
C21: Západní stěna 1 | F21: 0 | I21: =IF(F21>0,Vypocet!AC19,"") ->  | N21: =F21-J21-L21 -> 0
C22: Západní stěna 2 | F22: 0 | I22: =IF(F22>0,Vypocet!AC20,"") ->  | N22: =F22-J22-L22 -> 0
C23: Západní stěna 3 | F23: 0 | I23: =IF(F23>0,Vypocet!AC21,"") ->  | N23: =F23-J23-L23 -> 0
C24: Západní stěna 4 | F24: 0 | I24: =IF(F24>0,Vypocet!AC22,"") ->  | N24: =F24-J24-L24 -> 0
C26: Podlahy | D26: Délka (m) | E26: Šířka (m) | F26: Celková plocha (m2) | G26: Materiál | H26: Tloušťka izolace v podlaze (cm) | I26: Uvažované U (W/m2.K)
C27: Podlaha na zemině 1 | F27: =D27*E27 -> 0 | I27: =IF(F27>0,Vypocet!AC25,"") -> 
C28: Podlaha na zemině 2 | F28: =D28*E28 -> 0 | I28: =IF(F28>0,Vypocet!AC26,"") -> 
C30: Podlaha nad nevytápěným sklepem 1 | F30: =D30*E30 -> 0 | I30: =IF(F30>0,Vypocet!AC28,"") -> 
C31: Podlaha nad nevytápěným sklepem 2 | F31: =D31*E31 -> 0 | I31: =IF(F31>0,Vypocet!AC29,"") -> 
C33: Střechy a stropy | D33: Délka (m) | E33: Šířka (m) | F33: Celková plocha (m2) | G33: Materiál | H33: Existující dodatečná tepelná izolace (cm) | I33: Uvažované U (W/m2.K) | J33: Střešní okno (m2) | K33: Typ | L33: Plocha po odečtení oken (m2)
C34: Střecha plochá nebo do 45 ° 1 | F34: =D34*E34 -> 0 | I34: =IF(F34>0,Vypocet!AC32,"") ->  | L34: =F34-J34 -> 0
C35: Střecha plochá nebo do 45 ° 2 | F35: 0 | I35: =IF(F35>0,Vypocet!AC33,"") ->  | L35: =F35-J35 -> 0
C37: Střecha šikmá nad 45 ° 1 | F37: 0 | I37: =IF(F37>0,Vypocet!AC35,"") ->  | L37: =F37-J37 -> 0
C38: Střecha šikmá nad 45 ° 2 | F38: 0 | I38: =IF(F38>0,Vypocet!AC36,"") ->  | L38: =F38-J38 -> 0
C40: Strop pod půdou 1 | F40: 0 | I40: =IF(F40>0,Vypocet!AC38,"") -> 
C41: Strop pod půdou 2 | F41: 0 | I41: =IF(F41>0,Vypocet!AC39,"") -> 
C43: Ostatní | D43: Výška (m) | E43: Šířka (m) | F43: Celková plocha (m2) | G43: Materiál | H43: Existující dodatečná tepelná izolace (cm) | I43: Uvažované U (W/m2.K) | J43: Dveře k nevytápěnému prostoru (m2) | K43: Typ | L43: Plocha po odečtení dveří (m2)
C44: Stěna k nevytápěnému prostoru 1 | F44: =D44*E44 -> 0 | I44: =IF(F44>0,Vypocet!AC42,"") ->  | L44: =F44-J44 -> 0
C45: Stěna k nevytápěnému prostoru 2 | F45: =D45*E45 -> 0 | I45: =IF(F45>0,Vypocet!AC43,"") ->  | L45: =F45-J45 -> 0
C46: Stěna ke stejně vytápěnému prostoru 1 | F46: =D46*E46 -> 0 | I46: =IF(F46>0,Vypocet!AC44,"") ->  | L46: =F46 -> 0
C47: Stěna ke stejně vytápěnému prostoru 2 | F47: =D47*E47 -> 0 | I47: =IF(F47>0,Vypocet!AC45,"") ->  | L47: =F47 -> 0

Sheet 4. Technické podlaží-garáže
A1: Krok 1. | D1: Krok 2. | G1: Krok 3. | H1: Krok 4. | I1: Krok 5. | J1: Krok 6. | K1: Krok 7. | L1: Krok 8. | M1: Krok 9. | N1: Krok 10.
A2: =IF(SUM('1. PENB'!I13:I15)>0,IF(SUM('1. PENB'!I20)>0,IF(SUM('1. PENB'!D63)>0,IF(SUM('1. PENB'!I63)>0,"Zadáno","Nezadáno"),"Nezadáno"),"Nezadáno"),"Nezadáno") -> Nezadáno | D2: =IF(SUM('2. Bytové jednotky'!F6:F9,'2. Bytové jednotky'!F11:F14,'2. Bytové jednotky'!F16:F19,'2. Bytové jednotky'!F21:F24)>0,IF(SUM('2. Bytové jednotky'!J6:J9,'2. Bytové jednotky'!J11:J14,'2. Bytové jednotky'!J16:J19,'2. Bytové jednotky'!J21:J24,'2. Bytové jednotky'!L6:L9,'2. Bytové jednotky'!L11:L14,'2. Bytové jednotky'!L16:L19,'2. Bytové jednotky'!L21:L24)>0,IF(SUM('2. Bytové jednotky'!F27:F28,'2. Bytové jednotky'!F30:F31)>0,IF(SUM('2. Bytové jednotky'!F34:F35,'2. Bytové jednotky'!F37:F38,'2. Bytové jednotky'!F40:F41)>0,"Zadáno","Nezadáno"),"Nezadáno"),"Nezadáno"),"Nezadáno") -> Nezadáno | G2: =IF(SUM('3. Schodišťový prostor'!F6:F9,'3. Schodišťový prostor'!F11:F14,'3. Schodišťový prostor'!F16:F19,'3. Schodišťový prostor'!F21:F24)>0,IF(SUM('3. Schodišťový prostor'!J6:J9,'3. Schodišťový prostor'!J11:J14,'3. Schodišťový prostor'!J16:J19,'3. Schodišťový prostor'!J21:J24,'3. Schodišťový prostor'!L6:L9,'3. Schodišťový prostor'!L11:L14,'3. Schodišťový prostor'!L16:L19,'3. Schodišťový prostor'!L21:L24)>0,IF(SUM('3. Schodišťový prostor'!F27:F28,'3. Schodišťový prostor'!F30:F31)>0,IF(SUM('3. Schodišťový prostor'!F34:F35,'3. Schodišťový prostor'!F37:F38,'3. Schodišťový prostor'!F40:F41)>0,"Zadáno","Nezadáno"),"Nezadáno"),"Nezadáno"),"Nezadáno") -> Nezadáno | H2: ZDE
C3: Popis stavebních konstrukcí | K3: Zpět | L3: Pokračovat | M3: Nápověda
C5: Obvodové stěny mezi vytápěnou částí a venkovním prostředím | D5: Výška (m) | E5: Délka (m) | F5: Hrubá plocha včetně oken (m2) | G5: Materiál stěny | H5: Existující zateplení (cm) | I5: Uvažované U (W/m2.K) | J5: Okna a dveře - 1. typ (celková plocha) (m2) | K5: Typ oken nebo dveří | L5: Okna a dveře - 2. typ (celková plocha) (m2) | M5: Typ oken nebo dveří | N5: Čistá plocha stěny (m2)
C6: Severní stěna 1 | F6: =D6*E6 -> 0 | I6: =IF(F6>0,Vypocet!AW4,"") ->  | N6: =F6-J6-L6 -> 0
C7: Severní stěna 2 | F7: =D7*E7 -> 0 | I7: =IF(F7>0,Vypocet!AW5,"") ->  | N7: =F7-J7-L7 -> 0
C8: Severní stěna 3 | F8: =D8*E8 -> 0 | I8: =IF(F8>0,Vypocet!AW6,"") ->  | N8: =F8-J8-L8 -> 0
C9: Severní stěna 4 | F9: =D9*E9 -> 0 | I9: =IF(F9>0,Vypocet!AW7,"") ->  | N9: =F9-J9-L9 -> 0
C11: Jižní stěna 1 | F11: =D11*E11 -> 0 | I11: =IF(F11>0,Vypocet!AW9,"") ->  | N11: =F11-J11-L11 -> 0
C12: Jižní stěna 2 | F12: 0 | I12: =IF(F12>0,Vypocet!AW10,"") ->  | N12: =F12-J12-L12 -> 0
C13: Jižní stěna 3 | F13: 0 | I13: =IF(F13>0,Vypocet!AW11,"") ->  | N13: =F13-J13-L13 -> 0
C14: Jižní stěna 4 | F14: 0 | I14: =IF(F14>0,Vypocet!AW12,"") ->  | N14: =F14-J14-L14 -> 0
C16: Východní stěna 1 | F16: 0 | I16: =IF(F16>0,Vypocet!AW14,"") ->  | N16: =F16-J16-L16 -> 0
C17: Východní stěna 2 | F17: 0 | I17: =IF(F17>0,Vypocet!AW15,"") ->  | N17: =F17-J17-L17 -> 0
C18: Východní stěna 3 | F18: 0 | I18: =IF(F18>0,Vypocet!AW16,"") ->  | N18: =F18-J18-L18 -> 0
C19: Východní stěna 4 | F19: 0 | I19: =IF(F19>0,Vypocet!AW17,"") ->  | N19: =F19-J19-L19 -> 0
C21: Západní stěna 1 | F21: 0 | I21: =IF(F21>0,Vypocet!AW19,"") ->  | N21: =F21-J21-L21 -> 0
C22: Západní stěna 2 | F22: 0 | I22: =IF(F22>0,Vypocet!AW20,"") ->  | N22: =F22-J22-L22 -> 0
C23: Západní stěna 3 | F23: 0 | I23: =IF(F23>0,Vypocet!AW21,"") ->  | N23: =F23-J23-L23 -> 0
C24: Západní stěna 4 | F24: 0 | I24: =IF(F24>0,Vypocet!AW22,"") ->  | N24: =F24-J24-L24 -> 0
C26: Podlahy | D26: Délka (m) | E26: Šířka (m) | F26: Celková plocha (m2) | G26: Materiál | H26: Tloušťka izolace v podlaze (cm) | I26: Uvažované U (W/m2.K)
C27: Podlaha na zemině 1 | F27: =D27*E27 -> 0 | I27: =IF(F27>0,Vypocet!AW25,"") -> 
C28: Podlaha na zemině 2 | F28: =D28*E28 -> 0 | I28: =IF(F28>0,Vypocet!AW26,"") -> 
C30: Podlaha nad nevytápěným sklepem 1 | F30: =D30*E30 -> 0 | I30: =IF(F30>0,Vypocet!AW28,"") -> 
C31: Podlaha nad nevytápěným sklepem 2 | F31: =D31*E31 -> 0 | I31: =IF(F31>0,Vypocet!AW29,"") -> 
C33: Střechy a stropy | D33: Délka (m) | E33: Šířka (m) | F33: Celková plocha (m2) | G33: Materiál | H33: Existující dodatečná tepelná izolace (cm) | I33: Uvažované U (W/m2.K) | J33: Střešní okno (m2) | K33: Typ | L33: Plocha po odečtení oken (m2)
C34: Střecha plochá nebo do 45 ° 1 | F34: =D34*E34 -> 0 | I34: =IF(F34>0,Vypocet!AW32,"") ->  | L34: =F34-J34 -> 0
C35: Střecha plochá nebo do 45 ° 2 | F35: 0 | I35: =IF(F35>0,Vypocet!AW33,"") ->  | L35: =F35-J35 -> 0
C37: Střecha šikmá nad 45 ° 1 | F37: 0 | I37: =IF(F37>0,Vypocet!AW35,"") ->  | L37: =F37-J37 -> 0
C38: Střecha šikmá nad 45 ° 2 | F38: 0 | I38: =IF(F38>0,Vypocet!AW36,"") ->  | L38: =F38-J38 -> 0
C40: Strop pod půdou 1 | F40: 0 | I40: =IF(F40>0,Vypocet!AW38,"") -> 
C41: Strop pod půdou 2 | F41: 0 | I41: =IF(F41>0,Vypocet!AW39,"") -> 
C43: Ostatní | D43: Výška (m) | E43: Šířka (m) | F43: Celková plocha (m2) | G43: Materiál | H43: Existující dodatečná tepelná izolace (cm) | I43: Uvažované U (W/m2.K) | J43: Dveře k nevytápěnému prostoru (m2) | K43: Typ | L43: Plocha po odečtení dveří (m2)
C44: Stěna k nevytápěnému prostoru 1 | F44: =D44*E44 -> 0 | I44: =IF(F44>0,Vypocet!AW42,"") ->  | L44: =F44-J44 -> 0
C45: Stěna k nevytápěnému prostoru 2 | F45: =D45*E45 -> 0 | I45: =IF(F45>0,Vypocet!AW43,"") ->  | L45: =F45-J45 -> 0
C46: Stěna ke stejně vytápěnému prostoru 1 | F46: =D46*E46 -> 0 | I46: =IF(F46>0,Vypocet!AW44,"") ->  | L46: =F46 -> 0
C47: Stěna ke stejně vytápěnému prostoru 2 | F47: =D47*E47 -> 0 | I47: =IF(F47>0,Vypocet!AW45,"") ->  | L47: =F47 -> 0

Sheet 5. Geometrie - Byty
A1: Krok 1. | D1: Krok 2. | E1: Krok 3. | F1: Krok 4. | G1: Krok 5. | I1: Krok 6. | K1: Krok 7. | L1: Krok 8. | M1: Krok 9. | N1: Krok 10.
A2: =IF(SUM('1. PENB'!I13:I15)>0,IF(SUM('1. PENB'!I20)>0,IF(SUM('1. PENB'!D63)>0,IF(SUM('1. PENB'!I63)>0,"Zadáno","Nezadáno"),"Nezadáno"),"Nezadáno"),"Nezadáno") -> Nezadáno | D2: =IF(SUM('2. Bytové jednotky'!F6:F9,'2. Bytové jednotky'!F11:F14,'2. Bytové jednotky'!F16:F19,'2. Bytové jednotky'!F21:F24)>0,IF(SUM('2. Bytové jednotky'!J6:J9,'2. Bytové jednotky'!J11:J14,'2. Bytové jednotky'!J16:J19,'2. Bytové jednotky'!J21:J24,'2. Bytové jednotky'!L6:L9,'2. Bytové jednotky'!L11:L14,'2. Bytové jednotky'!L16:L19,'2. Bytové jednotky'!L21:L24)>0,IF(SUM('2. Bytové jednotky'!F27:F28,'2. Bytové jednotky'!F30:F31)>0,IF(SUM('2. Bytové jednotky'!F34:F35,'2. Bytové jednotky'!F37:F38,'2. Bytové jednotky'!F40:F41)>0,"Zadáno","Nezadáno"),"Nezadáno"),"Nezadáno"),"Nezadáno") -> Nezadáno | E2: =IF(SUM('3. Schodišťový prostor'!F6:F9,'3. Schodišťový prostor'!F11:F14,'3. Schodišťový prostor'!F16:F19,'3. Schodišťový prostor'!F21:F24)>0,IF(SUM('3. Schodišťový prostor'!J6:J9,'3. Schodišťový prostor'!J11:J14,'3. Schodišťový prostor'!J16:J19,'3. Schodišťový prostor'!J21:J24,'3. Schodišťový prostor'!L6:L9,'3. Schodišťový prostor'!L11:L14,'3. Schodišťový prostor'!L16:L19,'3. Schodišťový prostor'!L21:L24)>0,IF(SUM('3. Schodišťový prostor'!F27:F28,'3. Schodišťový prostor'!F30:F31)>0,IF(SUM('3. Schodišťový prostor'!F34:F35,'3. Schodišťový prostor'!F37:F38,'3. Schodišťový prostor'!F40:F41)>0,"Zadáno","Nezadáno"),"Nezadáno"),"Nezadáno"),"Nezadáno") -> Nezadáno | F2: =IF(SUM('4. Technické podlaží-garáže'!F6:F9,'4. Technické podlaží-garáže'!F11:F14,'4. Technické podlaží-garáže'!F16:F19,'4. Technické podlaží-garáže'!F21:F24)>0,IF(SUM('4. Technické podlaží-garáže'!J6:J9,'4. Technické podlaží-garáže'!J11:J14,'4. Technické podlaží-garáže'!J16:J19,'4. Technické podlaží-garáže'!J21:J24,'4. Technické podlaží-garáže'!L6:L9,'4. Technické podlaží-garáže'!L11:L14,'4. Technické podlaží-garáže'!L16:L19,'4. Technické podlaží-garáže'!L21:L24)>0,IF(SUM('4. Technické podlaží-garáže'!F27:F28,'4. Technické podlaží-garáže'!F30:F31)>0,IF(SUM('4. Technické podlaží-garáže'!F34:F35,'4. Technické podlaží-garáže'!F37:F38,'4. Technické podlaží-garáže'!F40:F41)>0,"Zadáno","Nezadáno"),"Nezadáno"),"Nezadáno"),"Nezadáno") -> Nezadáno | G2: ZDE
K3: Zpět | L3: Pokračovat | M3: Nápověda
D5: Objem z vnějších rozměrů | G5: m3
D7: Počet vytápěných podlaží
D9: Pomocná kalkulačka pro základní tvar
D10: základní rozměry kontrolované zóny určené z vnějších rozměrů je nutné zadat vždy! | E10: a
E11: b
E12: c
E13: d
E14: e
D15: Má nejvyšší podlaží jiné rozměry ?
E16: =IF(Vypocet!B194<=1,"","a2") -> 
D17: pozn. zadávají se vnější rozměry | E17: =IF(Vypocet!B194<=1,"","c2") -> 
E19: Výsledek | F19: =IF(Vypocet!B194=1,Vypocet!F214,Vypocet!G215) -> 0 | G19: m3

Sheet 6. Geometrie - Sch
A1: Krok 1. | D1: Krok 2. | E1: Krok 3. | F1: Krok 4. | G1: Krok 5. | I1: Krok 6. | K1: Krok 7. | L1: Krok 8. | M1: Krok 9. | N1: Krok 10.
A2: =IF(SUM('1. PENB'!I13:I15)>0,IF(SUM('1. PENB'!I20)>0,IF(SUM('1. PENB'!D63)>0,IF(SUM('1. PENB'!I63)>0,"Zadáno","Nezadáno"),"Nezadáno"),"Nezadáno"),"Nezadáno") -> Nezadáno | D2: =IF(SUM('2. Bytové jednotky'!F6:F9,'2. Bytové jednotky'!F11:F14,'2. Bytové jednotky'!F16:F19,'2. Bytové jednotky'!F21:F24)>0,IF(SUM('2. Bytové jednotky'!J6:J9,'2. Bytové jednotky'!J11:J14,'2. Bytové jednotky'!J16:J19,'2. Bytové jednotky'!J21:J24,'2. Bytové jednotky'!L6:L9,'2. Bytové jednotky'!L11:L14,'2. Bytové jednotky'!L16:L19,'2. Bytové jednotky'!L21:L24)>0,IF(SUM('2. Bytové jednotky'!F27:F28,'2. Bytové jednotky'!F30:F31)>0,IF(SUM('2. Bytové jednotky'!F34:F35,'2. Bytové jednotky'!F37:F38,'2. Bytové jednotky'!F40:F41)>0,"Zadáno","Nezadáno"),"Nezadáno"),"Nezadáno"),"Nezadáno") -> Nezadáno | E2: =IF(SUM('3. Schodišťový prostor'!F6:F9,'3. Schodišťový prostor'!F11:F14,'3. Schodišťový prostor'!F16:F19,'3. Schodišťový prostor'!F21:F24)>0,IF(SUM('3. Schodišťový prostor'!J6:J9,'3. Schodišťový prostor'!J11:J14,'3. Schodišťový prostor'!J16:J19,'3. Schodišťový prostor'!J21:J24,'3. Schodišťový prostor'!L6:L9,'3. Schodišťový prostor'!L11:L14,'3. Schodišťový prostor'!L16:L19,'3. Schodišťový prostor'!L21:L24)>0,IF(SUM('3. Schodišťový prostor'!F27:F28,'3. Schodišťový prostor'!F30:F31)>0,IF(SUM('3. Schodišťový prostor'!F34:F35,'3. Schodišťový prostor'!F37:F38,'3. Schodišťový prostor'!F40:F41)>0,"Zadáno","Nezadáno"),"Nezadáno"),"Nezadáno"),"Nezadáno") -> Nezadáno | F2: =IF(SUM('4. Technické podlaží-garáže'!F6:F9,'4. Technické podlaží-garáže'!F11:F14,'4. Technické podlaží-garáže'!F16:F19,'4. Technické podlaží-garáže'!F21:F24)>0,IF(SUM('4. Technické podlaží-garáže'!J6:J9,'4. Technické podlaží-garáže'!J11:J14,'4. Technické podlaží-garáže'!J16:J19,'4. Technické podlaží-garáže'!J21:J24,'4. Technické podlaží-garáže'!L6:L9,'4. Technické podlaží-garáže'!L11:L14,'4. Technické podlaží-garáže'!L16:L19,'4. Technické podlaží-garáže'!L21:L24)>0,IF(SUM('4. Technické podlaží-garáže'!F27:F28,'4. Technické podlaží-garáže'!F30:F31)>0,IF(SUM('4. Technické podlaží-garáže'!F34:F35,'4. Technické podlaží-garáže'!F37:F38,'4. Technické podlaží-garáže'!F40:F41)>0,"Zadáno","Nezadáno"),"Nezadáno"),"Nezadáno"),"Nezadáno") -> Nezadáno | G2: =IF('5. Geometrie - Byty'!F5>0,IF('5. Geometrie - Byty'!F7>0,IF('5. Geometrie - Byty'!F10>0,IF('5. Geometrie - Byty'!F11>0,IF('5. Geometrie - Byty'!F12>0,"Zadáno","Nezadáno"),"Nezadáno"),"Nezadáno"),"Nezadáno"),"Nezadáno") -> Nezadáno | I2: ZDE
K3: Zpět | L3: Pokračovat | M3: Nápověda
D5: Objem z vnějších rozměrů | G5: m3
D7: Počet vytápěných podlaží
D9: Pomocná kalkulačka pro základní tvar
D10: základní rozměry kontrolované zóny určené z vnějších rozměrů je nutné zadat vždy! | E10: a
E11: b
E12: c
E15: Výsledek | F15: =F10*F11*F12+F13*F14*F10+(F12-F13)*F10*F14 -> 0 | G15: m3
D17: pozn. zadávají se vnější rozměry

Sheet 7. Geometrie - Tech
A1: Krok 1. | D1: Krok 2. | E1: Krok 3. | F1: Krok 4. | G1: Krok 5. | I1: Krok 6. | K1: Krok 7. | L1: Krok 8. | M1: Krok 9. | N1: Krok 10.
A2: =IF(SUM('1. PENB'!I13:I15)>0,IF(SUM('1. PENB'!I20)>0,IF(SUM('1. PENB'!D63)>0,IF(SUM('1. PENB'!I63)>0,"Zadáno","Nezadáno"),"Nezadáno"),"Nezadáno"),"Nezadáno") -> Nezadáno | D2: =IF(SUM('2. Bytové jednotky'!F6:F9,'2. Bytové jednotky'!F11:F14,'2. Bytové jednotky'!F16:F19,'2. Bytové jednotky'!F21:F24)>0,IF(SUM('2. Bytové jednotky'!J6:J9,'2. Bytové jednotky'!J11:J14,'2. Bytové jednotky'!J16:J19,'2. Bytové jednotky'!J21:J24,'2. Bytové jednotky'!L6:L9,'2. Bytové jednotky'!L11:L14,'2. Bytové jednotky'!L16:L19,'2. Bytové jednotky'!L21:L24)>0,IF(SUM('2. Bytové jednotky'!F27:F28,'2. Bytové jednotky'!F30:F31)>0,IF(SUM('2. Bytové jednotky'!F34:F35,'2. Bytové jednotky'!F37:F38,'2. Bytové jednotky'!F40:F41)>0,"Zadáno","Nezadáno"),"Nezadáno"),"Nezadáno"),"Nezadáno") -> Nezadáno | E2: =IF(SUM('3. Schodišťový prostor'!F6:F9,'3. Schodišťový prostor'!F11:F14,'3. Schodišťový prostor'!F16:F19,'3. Schodišťový prostor'!F21:F24)>0,IF(SUM('3. Schodišťový prostor'!J6:J9,'3. Schodišťový prostor'!J11:J14,'3. Schodišťový prostor'!J16:J19,'3. Schodišťový prostor'!J21:J24,'3. Schodišťový prostor'!L6:L9,'3. Schodišťový prostor'!L11:L14,'3. Schodišťový prostor'!L16:L19,'3. Schodišťový prostor'!L21:L24)>0,IF(SUM('3. Schodišťový prostor'!F27:F28,'3. Schodišťový prostor'!F30:F31)>0,IF(SUM('3. Schodišťový prostor'!F34:F35,'3. Schodišťový prostor'!F37:F38,'3. Schodišťový prostor'!F40:F41)>0,"Zadáno","Nezadáno"),"Nezadáno"),"Nezadáno"),"Nezadáno") -> Nezadáno | F2: =IF(SUM('4. Technické podlaží-garáže'!F6:F9,'4. Technické podlaží-garáže'!F11:F14,'4. Technické podlaží-garáže'!F16:F19,'4. Technické podlaží-garáže'!F21:F24)>0,IF(SUM('4. Technické podlaží-garáže'!J6:J9,'4. Technické podlaží-garáže'!J11:J14,'4. Technické podlaží-garáže'!J16:J19,'4. Technické podlaží-garáže'!J21:J24,'4. Technické podlaží-garáže'!L6:L9,'4. Technické podlaží-garáže'!L11:L14,'4. Technické podlaží-garáže'!L16:L19,'4. Technické podlaží-garáže'!L21:L24)>0,IF(SUM('4. Technické podlaží-garáže'!F27:F28,'4. Technické podlaží-garáže'!F30:F31)>0,IF(SUM('4. Technické podlaží-garáže'!F34:F35,'4. Technické podlaží-garáže'!F37:F38,'4. Technické podlaží-garáže'!F40:F41)>0,"Zadáno","Nezadáno"),"Nezadáno"),"Nezadáno"),"Nezadáno") -> Nezadáno | G2: =IF('5. Geometrie - Byty'!F5>0,IF('5. Geometrie - Byty'!F7>0,IF('5. Geometrie - Byty'!F10>0,IF('5. Geometrie - Byty'!F11>0,IF('5. Geometrie - Byty'!F12>0,"Zadáno","Nezadáno"),"Nezadáno"),"Nezadáno"),"Nezadáno"),"Nezadáno") -> Nezadáno | I2: =IF('6. Geometrie - Sch'!F5>0,IF('6. Geometrie - Sch'!F7>0,IF('6. Geometrie - Sch'!F10>0,IF('6. Geometrie - Sch'!F11>0,IF('6. Geometrie - Sch'!F12>0,"Zadáno","Nezadáno"),"Nezadáno"),"Nezadáno"),"Nezadáno"),"Nezadáno") -> Nezadáno | K2: ZDE
D3: Ostatní vstupy | K3: Zpět | L3: Pokračovat | M3: Nápověda
D5: Objem z vnějších rozměrů | G5: m3
D7: Počet vytápěných podlaží
D9: Pomocná kalkulačka pro základní tvar
D10: základní rozměry kontrolované zóny určené z vnějších rozměrů je nutné zadat vždy! | E10: a
E11: b
E12: c
E15: Výsledek | F15: =F10*F11*F12+F13*F14*F10+(F12-F13)*F10*F14 -> 0 | G15: m3
D17: pozn. zadávají se vnější rozměry

Sheet 8. Tepelně tech. parametry
A1: Krok 1. | C1: Krok 2. | E1: Krok 3. | G1: Krok 4. | I1: Krok 5. | N1: Krok 6. | O1: Krok 7. | Q1: Krok 8. | S1: Krok 9. | T1: Krok 10.
A2: =IF(SUM('1. PENB'!I13:I15)>0,IF(SUM('1. PENB'!I20)>0,IF(SUM('1. PENB'!D63)>0,IF(SUM('1. PENB'!I63)>0,"Zadáno","Nezadáno"),"Nezadáno"),"Nezadáno"),"Nezadáno") -> Nezadáno | C2: =IF(SUM('2. Bytové jednotky'!F6:F9,'2. Bytové jednotky'!F11:F14,'2. Bytové jednotky'!F16:F19,'2. Bytové jednotky'!F21:F24)>0,IF(SUM('2. Bytové jednotky'!J6:J9,'2. Bytové jednotky'!J11:J14,'2. Bytové jednotky'!J16:J19,'2. Bytové jednotky'!J21:J24,'2. Bytové jednotky'!L6:L9,'2. Bytové jednotky'!L11:L14,'2. Bytové jednotky'!L16:L19,'2. Bytové jednotky'!L21:L24)>0,IF(SUM('2. Bytové jednotky'!F27:F28,'2. Bytové jednotky'!F30:F31)>0,IF(SUM('2. Bytové jednotky'!F34:F35,'2. Bytové jednotky'!F37:F38,'2. Bytové jednotky'!F40:F41)>0,"Zadáno","Nezadáno"),"Nezadáno"),"Nezadáno"),"Nezadáno") -> Nezadáno | E2: =IF(SUM('3. Schodišťový prostor'!F6:F9,'3. Schodišťový prostor'!F11:F14,'3. Schodišťový prostor'!F16:F19,'3. Schodišťový prostor'!F21:F24)>0,IF(SUM('3. Schodišťový prostor'!J6:J9,'3. Schodišťový prostor'!J11:J14,'3. Schodišťový prostor'!J16:J19,'3. Schodišťový prostor'!J21:J24,'3. Schodišťový prostor'!L6:L9,'3. Schodišťový prostor'!L11:L14,'3. Schodišťový prostor'!L16:L19,'3. Schodišťový prostor'!L21:L24)>0,IF(SUM('3. Schodišťový prostor'!F27:F28,'3. Schodišťový prostor'!F30:F31)>0,IF(SUM('3. Schodišťový prostor'!F34:F35,'3. Schodišťový prostor'!F37:F38,'3. Schodišťový prostor'!F40:F41)>0,"Zadáno","Nezadáno"),"Nezadáno"),"Nezadáno"),"Nezadáno") -> Nezadáno | G2: =IF(SUM('4. Technické podlaží-garáže'!F6:F9,'4. Technické podlaží-garáže'!F11:F14,'4. Technické podlaží-garáže'!F16:F19,'4. Technické podlaží-garáže'!F21:F24)>0,IF(SUM('4. Technické podlaží-garáže'!J6:J9,'4. Technické podlaží-garáže'!J11:J14,'4. Technické podlaží-garáže'!J16:J19,'4. Technické podlaží-garáže'!J21:J24,'4. Technické podlaží-garáže'!L6:L9,'4. Technické podlaží-garáže'!L11:L14,'4. Technické podlaží-garáže'!L16:L19,'4. Technické podlaží-garáže'!L21:L24)>0,IF(SUM('4. Technické podlaží-garáže'!F27:F28,'4. Technické podlaží-garáže'!F30:F31)>0,IF(SUM('4. Technické podlaží-garáže'!F34:F35,'4. Technické podlaží-garáže'!F37:F38,'4. Technické podlaží-garáže'!F40:F41)>0,"Zadáno","Nezadáno"),"Nezadáno"),"Nezadáno"),"Nezadáno") -> Nezadáno | I2: =IF('5. Geometrie - Byty'!F5>0,IF('5. Geometrie - Byty'!F7>0,IF('5. Geometrie - Byty'!F10>0,IF('5. Geometrie - Byty'!F11>0,IF('5. Geometrie - Byty'!F12>0,"Zadáno","Nezadáno"),"Nezadáno"),"Nezadáno"),"Nezadáno"),"Nezadáno") -> Nezadáno | N2: =IF('6. Geometrie - Sch'!F5>0,IF('6. Geometrie - Sch'!F7>0,IF('6. Geometrie - Sch'!F10>0,IF('6. Geometrie - Sch'!F11>0,IF('6. Geometrie - Sch'!F12>0,"Zadáno","Nezadáno"),"Nezadáno"),"Nezadáno"),"Nezadáno"),"Nezadáno") -> Nezadáno | O2: =IF('7. Geometrie - Tech'!F5>0,IF('7. Geometrie - Tech'!F7>0,IF('7. Geometrie - Tech'!F10>0,IF('7. Geometrie - Tech'!F11>0,IF('7. Geometrie - Tech'!F12>0,"Zadáno","Nezadáno"),"Nezadáno"),"Nezadáno"),"Nezadáno"),"Nezadáno") -> Nezadáno | Q2: ZDE
B3: Základní parametry z PENB | F3: Zpět | G3: Pokračovat | I3: Nápověda | N3: Kontrolní hodnoty
B5: Základní informace o hodnocené budově | N5: Základní informace o kontrolní budově
B6: Geometrické charakteristiky budovy | N6: Geometrické charakteristiky budovy
B7: Parametr | G7: jednotky | H7: hodnota | N7: Parametr | S7: jednotky | T7: hodnota
B8: Objem budovy V (objem částí budovy s upravovaným vnitřním prostředím vymezený vnějšími povrchy konstrukcí obálky budovy) | G8: [m3] | H8: =SUM('1. PENB'!I13:I15) -> 0 | N8: Objem budovy V (objem částí budovy s upravovaným vnitřním prostředím vymezený vnějšími povrchy konstrukcí obálky budovy) | S8: [m3] | T8: =('5. Geometrie - Byty'!F5+'7. Geometrie - Tech'!F5) -> 0
B11: Celková plocha obálky budovy A (součet vnějších ploch konstrukcí ohraničujících objem budovy V) | G11: [m2] | H11: =C59 -> 0 | N11: Celková plocha obálky budovy A (součet vnějších ploch konstrukcí ohraničujících objem budovy V) | S11: [m2] | T11: =Vypocet!J89+Vypocet!AD89+Vypocet!AX89 -> 0
B14: Objemový faktor tvaru budovy A/V | G14: [m2/m3] | H14: =H11/H8 ->  | N14: Objemový faktor tvaru budovy A/V | S14: [m2/m3] | T14: =T11/T8 -> 
B15: Celková energeticky vztažná plocha budovy Ac | G15: [m2] | H15: ='1. PENB'!I20 -> 0 | N15: Celková energeticky vztažná plocha budovy Ac | S15: [m2] | T15: =(Vypocet!G184*Vypocet!G185)+(Vypocet!X184*Vypocet!X185)+(Vypocet!AR184*Vypocet!AR185) -> 0
B17: A) stavební prvky a konstrukce | N17: A) stavební prvky a konstrukce kontrolní budovy
B18: a.1) požadavky na součinitel prostupu tepla | N18: a.1) požadavky na součinitel prostupu tepla
B19: Konstrukce obálky budovy | C19: Plocha | D19: Součinitel prostupu tepla | G19: Činitel tepl. redukce bj | H19: Měrná ztráta prostupem tepla | N19: Konstrukce obálky budovy | O19: Plocha | P19: Součinitel prostupu tepla | S19: Činitel tepl. redukce bj | T19: Měrná ztráta prostupem tepla
D20: Vypočtená hodnota | E20: Referenční hodnota | F20: Splněno | P20: Vypočtená hodnota | Q20: Referenční hodnota | R20: Splněno
C21: Aj | D21: Uj | E21: UN,rc,j | G21: bj | H21: HT,j | O21: Aj | P21: Uj | Q21: UN,rc,j | S21: bj | T21: HT,j
G22: bj | H22: HT,j | S22: bj | T22: HT,j
C23: [m2] | D23: [W/(m2.K)] | E23: [W/(m2.K)] | F23: [ano/ne] | G23: [-] | H23: [W/K] | O23: [m2] | P23: [W/(m2.K)] | Q23: [W/(m2.K)] | R23: [ano/ne] | S23: [-] | T23: [W/K]
B24: =CONCATENATE('1. PENB'!C28) ->  | C24: ='1. PENB'!D28 -> 0 | H24: ='1. PENB'!I28 -> 0 | N24: Bytové jednotky
B25: =CONCATENATE('1. PENB'!C29) ->  | C25: ='1. PENB'!D29 -> 0 | H25: ='1. PENB'!I29 -> 0 | N25: Obvodové zdivo | O25: =SUM(Vypocet!J4:J22) -> 0 | P25: -- | Q25: -- | R25: -- | S25: -- | T25: =SUM(Vypocet!L4:L22) -> 0
B26: =CONCATENATE('1. PENB'!C30) ->  | C26: ='1. PENB'!D30 -> 0 | H26: ='1. PENB'!I30 -> 0 | N26: Podlahy | O26: =SUM(Vypocet!J25:J29) -> 0 | P26: -- | Q26: -- | R26: -- | S26: -- | T26: =SUM(Vypocet!L25:L29) -> 0
B27: =CONCATENATE('1. PENB'!C31) ->  | C27: ='1. PENB'!D31 -> 0 | H27: ='1. PENB'!I31 -> 0 | N27: Střechy a stropy | O27: =SUM(Vypocet!J32:J39) -> 0 | P27: -- | Q27: -- | R27: -- | S27: -- | T27: =SUM(Vypocet!L32:L39) -> 0
B28: =CONCATENATE('1. PENB'!C32) ->  | C28: ='1. PENB'!D32 -> 0 | H28: ='1. PENB'!I32 -> 0 | N28: Stěny k nevyt. prostoru | O28: =SUM(Vypocet!J42:J45) -> 0 | P28: -- | Q28: -- | R28: -- | S28: -- | T28: =SUM(Vypocet!L42:L45) -> 0
B29: =CONCATENATE('1. PENB'!C33) ->  | C29: ='1. PENB'!D33 -> 0 | H29: ='1. PENB'!I33 -> 0 | N29: Otvorová výplň | O29: =SUM(Vypocet!J47:J88) -> 0 | P29: -- | Q29: -- | R29: -- | S29: -- | T29: =SUM(Vypocet!L47:L88) -> 0
B30: =CONCATENATE('1. PENB'!C34) ->  | C30: ='1. PENB'!D34 -> 0 | H30: ='1. PENB'!I34 -> 0 | N30: Tepelné mosty | O30: -- | P30: -- | Q30: -- | R30: -- | S30: -- | T30: =Vypocet!L90 -> 0
B31: =CONCATENATE('1. PENB'!C35) ->  | C31: ='1. PENB'!D35 -> 0 | H31: ='1. PENB'!I35 -> 0 | N31: Schodišťový prostor
B32: =CONCATENATE('1. PENB'!C36) ->  | C32: ='1. PENB'!D36 -> 0 | H32: ='1. PENB'!I36 -> 0 | N32: Obvodové zdivo | O32: =SUM(Vypocet!AD4:AD22) -> 0 | P32: -- | Q32: -- | R32: -- | S32: -- | T32: =SUM(Vypocet!AF4:AF22) -> 0
B33: =CONCATENATE('1. PENB'!C37) ->  | C33: ='1. PENB'!D37 -> 0 | H33: ='1. PENB'!I37 -> 0 | N33: Podlahy | O33: =SUM(Vypocet!AD25:AD29) -> 0 | P33: -- | Q33: -- | R33: -- | S33: -- | T33: =SUM(Vypocet!AF25:AF29) -> 0
B34: =CONCATENATE('1. PENB'!C38) ->  | C34: ='1. PENB'!D38 -> 0 | H34: ='1. PENB'!I38 -> 0 | N34: Střechy a stropy | O34: =SUM(Vypocet!AD32:AD39) -> 0 | P34: -- | Q34: -- | R34: -- | S34: -- | T34: =SUM(Vypocet!AF32:AF39) -> 0
B35: =CONCATENATE('1. PENB'!C39) ->  | C35: ='1. PENB'!D39 -> 0 | H35: ='1. PENB'!I39 -> 0 | N35: Stěny k nevyt. prostoru | O35: =SUM(Vypocet!AD42:AD45) -> 0 | P35: -- | Q35: -- | R35: -- | S35: -- | T35: =SUM(Vypocet!AF42:AF45) -> 0
B36: =CONCATENATE('1. PENB'!C40) ->  | C36: ='1. PENB'!D40 -> 0 | H36: ='1. PENB'!I40 -> 0 | N36: Otvorová výplň | O36: =SUM(Vypocet!AD47:AD88) -> 0 | P36: -- | Q36: -- | R36: -- | S36: -- | T36: =SUM(Vypocet!AF47:AF88) -> 0
B37: =CONCATENATE('1. PENB'!C41) ->  | C37: ='1. PENB'!D41 -> 0 | H37: ='1. PENB'!I41 -> 0 | N37: Tepelné mosty | O37: -- | P37: -- | Q37: -- | R37: -- | S37: -- | T37: =Vypocet!AF90 -> 0
B38: =CONCATENATE('1. PENB'!C42) ->  | C38: ='1. PENB'!D42 -> 0 | H38: ='1. PENB'!I42 -> 0 | N38: Technické podlaží/ Garáže
B39: =CONCATENATE('1. PENB'!C43) ->  | C39: ='1. PENB'!D43 -> 0 | H39: ='1. PENB'!I43 -> 0 | N39: Obvodové zdivo | O39: =SUM(Vypocet!AX4:AX22) -> 0 | P39: -- | Q39: -- | R39: -- | S39: -- | T39: =SUM(Vypocet!AZ4:AZ22) -> 0
B40: =CONCATENATE('1. PENB'!C44) ->  | C40: ='1. PENB'!D44 -> 0 | H40: ='1. PENB'!I44 -> 0 | N40: Podlahy | O40: =SUM(Vypocet!AX25:AX29) -> 0 | P40: -- | Q40: -- | R40: -- | S40: -- | T40: =SUM(Vypocet!AZ25:AZ29) -> 0
B41: =CONCATENATE('1. PENB'!C45) ->  | C41: ='1. PENB'!D45 -> 0 | H41: ='1. PENB'!I45 -> 0 | N41: Střechy a stropy | O41: =SUM(Vypocet!AX32:AX39) -> 0 | P41: -- | Q41: -- | R41: -- | S41: -- | T41: =SUM(Vypocet!AZ32:AZ39) -> 0
B42: =CONCATENATE('1. PENB'!C46) ->  | C42: ='1. PENB'!D46 -> 0 | H42: ='1. PENB'!I46 -> 0 | N42: Stěny k nevyt. prostoru | O42: =SUM(Vypocet!AX42:AX45) -> 0 | P42: -- | Q42: -- | R42: -- | S42: -- | T42: =SUM(Vypocet!AZ42:AZ45) -> 0
B43: =CONCATENATE('1. PENB'!C47) ->  | C43: ='1. PENB'!D47 -> 0 | H43: ='1. PENB'!I47 -> 0 | N43: Otvorová výplň | O43: =SUM(Vypocet!AX47:AX88) -> 0 | P43: -- | Q43: -- | R43: -- | S43: -- | T43: =SUM(Vypocet!AZ47:AZ88) -> 0
B44: =CONCATENATE('1. PENB'!C48) ->  | C44: ='1. PENB'!D48 -> 0 | H44: ='1. PENB'!I48 -> 0 | N44: Tepelné mosty | O44: -- | P44: -- | Q44: -- | R44: -- | S44: -- | T44: =Vypocet!AZ90 -> 0
B45: =CONCATENATE('1. PENB'!C49) ->  | C45: ='1. PENB'!D49 -> 0 | H45: ='1. PENB'!I49 -> 0
B46: =CONCATENATE('1. PENB'!C50) ->  | C46: ='1. PENB'!D50 -> 0 | H46: ='1. PENB'!I50 -> 0
B47: =CONCATENATE('1. PENB'!C51) ->  | C47: ='1. PENB'!D51 -> 0 | H47: ='1. PENB'!I51 -> 0
B48: =CONCATENATE('1. PENB'!C52) ->  | C48: ='1. PENB'!D52 -> 0 | H48: ='1. PENB'!I52 -> 0
B49: =CONCATENATE('1. PENB'!C53) ->  | C49: ='1. PENB'!D53 -> 0 | H49: ='1. PENB'!I53 -> 0
B50: =CONCATENATE('1. PENB'!C54) ->  | C50: ='1. PENB'!D54 -> 0 | H50: ='1. PENB'!I54 -> 0
B51: =CONCATENATE('1. PENB'!C55) ->  | C51: ='1. PENB'!D55 -> 0 | H51: ='1. PENB'!I55 -> 0
B52: =CONCATENATE('1. PENB'!C56) ->  | C52: ='1. PENB'!D56 -> 0 | H52: ='1. PENB'!I56 -> 0
B53: =CONCATENATE('1. PENB'!C57) ->  | C53: ='1. PENB'!D57 -> 0 | H53: ='1. PENB'!I57 -> 0
B54: =CONCATENATE('1. PENB'!C58) ->  | C54: ='1. PENB'!D58 -> 0 | H54: ='1. PENB'!I58 -> 0
B55: =CONCATENATE('1. PENB'!C59) ->  | C55: ='1. PENB'!D59 -> 0 | H55: ='1. PENB'!I59 -> 0
B56: =CONCATENATE('1. PENB'!C60) ->  | C56: ='1. PENB'!D60 -> 0 | H56: ='1. PENB'!I60 -> 0
B57: =CONCATENATE('1. PENB'!C61) ->  | C57: ='1. PENB'!D61 -> 0 | H57: ='1. PENB'!I61 -> 0
B58: =CONCATENATE('1. PENB'!C62) ->  | C58: ='1. PENB'!D62 -> 0 | H58: ='1. PENB'!I62 -> 0
B59: Celkem | C59: =SUM(C24:C58) -> 0 | D59: x | E59: x | F59: x | G59: x | H59: =SUM(H24:H58) -> 0 | N59: Celkem | O59: =SUM(O30:O58) -> 0 | P59: x | Q59: x | R59: x | S59: x | T59: =SUM(T25:T58) -> 0
B62: Průměrný součinitel prostupu tepla budovy, Uem | G62: =IF(H11=0,"",H59/H11) ->  | H62: [W/(m2K)] | N62: Průměrný součinitel prostupu tepla budovy, Uem | S62: =T59/T11 ->  | T62: [W/(m2K)]
B64: pozn: spočteno z výše zadaných hodnot

Sheet 9. Technické systémy
A1: Krok 1. | D1: Krok 2. | F1: Krok 3. | G1: Krok 4. | I1: Krok 5. | J1: Krok 6. | M1: Krok 7. | P1: Krok 8. | S1: Krok 9. | V1: Krok 10.
A2: =IF(SUM('1. PENB'!I13:I15)>0,IF(SUM('1. PENB'!I20)>0,IF(SUM('1. PENB'!D63)>0,IF(SUM('1. PENB'!I63)>0,"Zadáno","Nezadáno"),"Nezadáno"),"Nezadáno"),"Nezadáno") -> Nezadáno | D2: =IF(SUM('2. Bytové jednotky'!F6:F9,'2. Bytové jednotky'!F11:F14,'2. Bytové jednotky'!F16:F19,'2. Bytové jednotky'!F21:F24)>0,IF(SUM('2. Bytové jednotky'!J6:J9,'2. Bytové jednotky'!J11:J14,'2. Bytové jednotky'!J16:J19,'2. Bytové jednotky'!J21:J24,'2. Bytové jednotky'!L6:L9,'2. Bytové jednotky'!L11:L14,'2. Bytové jednotky'!L16:L19,'2. Bytové jednotky'!L21:L24)>0,IF(SUM('2. Bytové jednotky'!F27:F28,'2. Bytové jednotky'!F30:F31)>0,IF(SUM('2. Bytové jednotky'!F34:F35,'2. Bytové jednotky'!F37:F38,'2. Bytové jednotky'!F40:F41)>0,"Zadáno","Nezadáno"),"Nezadáno"),"Nezadáno"),"Nezadáno") -> Nezadáno | F2: =IF(SUM('3. Schodišťový prostor'!F6:F9,'3. Schodišťový prostor'!F11:F14,'3. Schodišťový prostor'!F16:F19,'3. Schodišťový prostor'!F21:F24)>0,IF(SUM('3. Schodišťový prostor'!J6:J9,'3. Schodišťový prostor'!J11:J14,'3. Schodišťový prostor'!J16:J19,'3. Schodišťový prostor'!J21:J24,'3. Schodišťový prostor'!L6:L9,'3. Schodišťový prostor'!L11:L14,'3. Schodišťový prostor'!L16:L19,'3. Schodišťový prostor'!L21:L24)>0,IF(SUM('3. Schodišťový prostor'!F27:F28,'3. Schodišťový prostor'!F30:F31)>0,IF(SUM('3. Schodišťový prostor'!F34:F35,'3. Schodišťový prostor'!F37:F38,'3. Schodišťový prostor'!F40:F41)>0,"Zadáno","Nezadáno"),"Nezadáno"),"Nezadáno"),"Nezadáno") -> Nezadáno | G2: =IF(SUM('4. Technické podlaží-garáže'!F6:F9,'4. Technické podlaží-garáže'!F11:F14,'4. Technické podlaží-garáže'!F16:F19,'4. Technické podlaží-garáže'!F21:F24)>0,IF(SUM('4. Technické podlaží-garáže'!J6:J9,'4. Technické podlaží-garáže'!J11:J14,'4. Technické podlaží-garáže'!J16:J19,'4. Technické podlaží-garáže'!J21:J24,'4. Technické podlaží-garáže'!L6:L9,'4. Technické podlaží-garáže'!L11:L14,'4. Technické podlaží-garáže'!L16:L19,'4. Technické podlaží-garáže'!L21:L24)>0,IF(SUM('4. Technické podlaží-garáže'!F27:F28,'4. Technické podlaží-garáže'!F30:F31)>0,IF(SUM('4. Technické podlaží-garáže'!F34:F35,'4. Technické podlaží-garáže'!F37:F38,'4. Technické podlaží-garáže'!F40:F41)>0,"Zadáno","Nezadáno"),"Nezadáno"),"Nezadáno"),"Nezadáno") -> Nezadáno | I2: =IF('5. Geometrie - Byty'!F5>0,IF('5. Geometrie - Byty'!F7>0,IF('5. Geometrie - Byty'!F10>0,IF('5. Geometrie - Byty'!F11>0,IF('5. Geometrie - Byty'!F12>0,"Zadáno","Nezadáno"),"Nezadáno"),"Nezadáno"),"Nezadáno"),"Nezadáno") -> Nezadáno | J2: =IF('6. Geometrie - Sch'!F5>0,IF('6. Geometrie - Sch'!F7>0,IF('6. Geometrie - Sch'!F10>0,IF('6. Geometrie - Sch'!F11>0,IF('6. Geometrie - Sch'!F12>0,"Zadáno","Nezadáno"),"Nezadáno"),"Nezadáno"),"Nezadáno"),"Nezadáno") -> Nezadáno | M2: =IF('7. Geometrie - Tech'!F5>0,IF('7. Geometrie - Tech'!F7>0,IF('7. Geometrie - Tech'!F10>0,IF('7. Geometrie - Tech'!F11>0,IF('7. Geometrie - Tech'!F12>0,"Zadáno","Nezadáno"),"Nezadáno"),"Nezadáno"),"Nezadáno"),"Nezadáno") -> Nezadáno | P2: =IF(SUM('8. Tepelně tech. parametry'!T8:T10)>0,IF(SUM('8. Tepelně tech. parametry'!T11:T13)>0,IF(SUM('8. Tepelně tech. parametry'!T15)>0,IF(SUM('8. Tepelně tech. parametry'!T59)>0,"Zadáno","Nezadáno"),"Nezadáno"),"Nezadáno"),"Nezadáno") -> Nezadáno | S2: ZDE
C3: Hodnoty pro technické systémy z PENB | M3: Zpět | Q3: Pokračovat | U3: Nápověda
C5: B) technické systémy
C6: b.1.a) vytápění
C7: Hodnocená budova/zóna | F7: Typ zdroje | I7: Energo- nositel | J7: Pokrytí dílčí potřeby energie na vytápění | N7: Jmenovitý tepelný výkon | P7: Účinnost výroby energie zdrojem tepla | S7: Účinnost distribuce energie na vytápění | U7: Účinnost sdílení energie na vytápění
P8: ηH,gen | R8: COP | S8: ηH,dis | U8: ηH,em
F9: [-] | I9: [-] | J9: [%] | N9: [kW] | P9: [%] | R9: [-] | S9: [%] | U9: [%]
C10: Referenční budova | F10: x | I10: x | J10: x | N10: x | P10: =IF(E14="*",80,IF(E19="*",80,IF(E24="*",80,""))) ->  | R10: -- | S10: =IF(E14="*",85,IF(E19="*",85,IF(E24="*",85,""))) ->  | U10: =IF(E14="*",80,IF(E19="*",80,IF(E24="*",80,""))) -> 
C11: Hodnocená budova/zóna:
C12: 1. | D12: Bytové jednotky | F12: Zdroj | G12: Rozvody | I12: Energonositel
E13: * | G13: =IF(Data!B186=0,"","*") -> 
E14: =IF(Data!B186=0,"","*") ->  | G14: =IF(Data!B186=0,"","*") -> 
E15: =IF(Data!O177="-","","*") ->  | G15: Koncové prvky
G16: =IF(Data!B186=0,"","*") -> 
C17: 2. | D17: Bytové jednotky | F17: Zdroj | G17: Rozvody | I17: Energonositel
E18: * | G18: =IF(Data!X186=0,"","*") ->  | H18: =IF(Data!B186=0,"","*") -> 
E19: =IF(Data!X186=0,"","*") ->  | G19: =IF(Data!X186=0,"","*") -> 
E20: =IF(Data!AF177="-","","*") ->  | G20: Koncové prvky
G21: =IF(Data!X186=0,"","*") -> 
C22: 3. | D22: Bytové jednotky | F22: Zdroj | G22: Rozvody | I22: Energonositel
E23: * | G23: =IF(Data!AN186=0,"","*") -> 
E24: =IF(Data!AN186=0,"","*") ->  | G24: =IF(Data!AN186=0,"","*") -> 
E25: =IF(Data!AV177="-","","*") ->  | G25: Koncové prvky
G26: =IF(Data!AN186=0,"","*") -> 
C27: 4. | D27: Bytové jednotky | F27: Zdroj | G27: Rozvody | I27: Energonositel
E28: * | G28: =IF(Data!BD186=0,"","*") -> 
E29: =IF(Data!BD186=0,"","*") ->  | G29: =IF(Data!BD186=0,"","*") -> 
E30: =IF(Data!BL177="-","","*") ->  | G30: Koncové prvky
G31: =IF(Data!BD186=0,"","*") -> 
C32: 5. | D32: Bytové jednotky | F32: Zdroj | G32: Rozvody | I32: Energonositel
E33: * | G33: =IF(Data!BT186=0,"","*") -> 
E34: =IF(Data!BT186=0,"","*") ->  | G34: =IF(Data!BT186=0,"","*") -> 
E35: =IF(Data!CB177="-","","*") ->  | G35: Koncové prvky
G36: =IF(Data!BT186=0,"","*") -> 
C37: Solární kolektory | F37: Typ kolektoru | H37: Účel | I37: Energonositel | N37: Plocha apertury (účinná plocha solárního kolektoru) | S37: =IF(Data!I677=3,S88,"") ->  | U37: m2
F38: =IF(Data!I677=3,Data!B679,"") ->  | H38: =IF(Data!I677=3,Data!J677,"") ->  | I38: Energie okolního prostředí (Slunce)
C39: Schodišťový prostor | F39: V modelu je uvažováno, že výše uvedené zdroje pro vytápění budou zároveň sloužit k pokrytí tepelných ztrát ostatních zón (schodište, technické podlaží).
C40: Technické podlaží/ Garáže | F40: V modelu je uvažováno, že výše uvedené zdroje pro vytápění budou zároveň sloužit k pokrytí tepelných ztrát ostatních zón (schodište, technické podlaží).
J41: =IF(SUM(J12+J17+J22+J27+J32+J37)=1,"V pořádku",IF(SUM(J12+J17+J22+J27+J32+J37)=0,"","Nesprávně zadáno")) -> 
C42: b.2.a) chlazení
C43: Hodnocená budova/zóna | F43: Typ zdroje chlazení | I43: Energo- nositel | J43: Pokrytí dílčí potřeby energie na chlazení | N43: Jmenovitý chladící výkon | P43: Chladicí faktor zdroje chladu | S43: Účinnost distribuce energie na chlazení | U43: Účinnost sdílení energie na chlazení
P44: EERC,gen | S44: ηC,dis | U44: ηC,em
F45: [-] | I45: [-] | J45: [%] | N45: [kW] | P45: [-] | S45: [%] | U45: [%]
C46: Referenční budova | F46: x | I46: x | J46: x | N46: x | P46: =IF(Data!K299=0,"",2.7) ->  | S46: =IF(Data!K299=0,"",85) ->  | U46: =IF(Data!K299=0,"",85) -> 
C47: Hodnocená budova/zóna:
C48: Rodinny dům | F48: Zdroj | I48: Energonositel
E49: *
J50: =IF(SUM(J48)=1,"V pořádku",IF(SUM(J48)=0,"","Nesprávně zadáno")) -> 
C51: b.3) větrání
C52: Hodnocená budova/zóna | F52: Typ větracího systému | I52: Energo- nositel | J52: Tepelný výkon | M52: Chladící výkon | O52: Pokrytí dílčí potřeby energie na větrání | Q52: Jmen. elektr. příkon systému větrání | S52: Jmen. objem. průtok větracího vzduchu | U52: Měrný příkon ventilátoru nuceného větrání
U53: SFPahu
F54: [-] | I54: [-] | J54: [kW] | M54: [kW] | O54: [%] | Q54: [kW] | S54: [m3/hod] | U54: [W.s/m3]
C55: Referenční budova | F55: x | I55: x | J55: x | M55: x | O55: x | Q55: x | S55: x | U55: =IF('9. Technické systémy'!E59="*",1750,"") -> 
C56: Hodnocená budova/zóna:
C57: Bytové jednotky | F57: Zdroj | H57: Měrný příkonu ventilátorů | I57: Energonositel
E58: * | G58: =IF(Data!J361="-","","*") -> 
E59: =IF(Data!J361="-","","*") ->  | G59: =IF(Data!J361="-","","*") -> 
O60: =IF(SUM(O57)=1,"V pořádku",IF(SUM(O57)=0,"","Nesprávně zadáno")) -> 
C61: b.4) úprava vlhkosti vzduchu
C62: Hodnocená budova/zóna | F62: Typ systému vlhčení | J62: Energo- nositel | M62: Jmenovitý elektrický příkon | P62: Jmenovitý tepelný výkon | S62: Pokrytí dílčí dodané energie na úpravu vlhkosti | U62: Účinnost zdroje úpravy vlhkosti systému vlhčení
U63: ηRH+,gen
F64: [-] | J64: [-] | M64: [kW] | P64: [kW] | S64: [%] | U64: [%]
C65: Referenční budova | F65: x | J65: x | M65: x | P65: x | S65: x | U65: 70
C66: Hodnocená budova/zóna:
C67: Rodinny dům
C70: b.5.a) příprava teplé vody (TV)
C71: Hodnocená budova/zóna | F71: Systém přípravy TV v budově | I71: Energo- nositel | J71: Pokrytí dílčí potřeby energie na přípravu teplé vody | L71: Jmen. příkon pro ohřev TV | N71: Objem zásobníku TV | P71: Účinnost zdroje tepla pro přípravu teplé vody | S71: Měrná tepelná ztráta zásobníku teplé vody | U71: Měrná tepelná ztráta rozvodů teplé vody
P72: ηW,gen | R72: COP | S72: QW,st | U72: QW,dis
F73: [-] | I73: [-] | J73: [%] | L73: [kW] | N73: [litry] | P73: [%] | R73: [-] | S73: [Wh/l.d] | U73: [Wh/m.d]
C74: Referenční budova | F74: x | I74: x | J74: x | L74: x | N74: x | P74: =IF(Data!H445>10,85,IF(E82="*",85,IF(E86="*",85,""))) ->  | R74: -- | S74: =IF(Data!H445>10,7,IF(E82="*",7,IF(E86="*",7,""))) ->  | U74: =IF(Data!H445>10,150,IF(E82="*",150,IF(E86="*",150,""))) -> 
C75: Hodnocená budova/zóna:
C76: 1. | D76: Bytové jednotky | F76: Zdroj | G76: Zásobník teplé vody
E77: * | G77: * | I77: Energonositel
E78: =IF(Data!J437="-","","*") ->  | G78: =IF(Data!J556="-","","*") -> 
E79: =IF(Data!O437="-","","*") ->  | G79: =IF(Data!O556="-","","*") -> 
C80: 2. | D80: Bytové jednotky | F80: Zdroj | G80: Zásobník teplé vody
E81: * | G81: * | I81: Energonositel
E82: =IF(Data!AA437="-","","*") ->  | G82: =IF(Data!AA556="-","","*") -> 
E83: =IF(Data!AF437="-","","*") ->  | G83: =IF(Data!AF556="-","","*") -> 
C84: 3. | D84: Bytové jednotky | F84: Zdroj | G84: Zásobník teplé vody
E85: * | G85: * | I85: Energonositel
E86: =IF(Data!AQ437="-","","*") ->  | G86: =IF(Data!AQ556="-","","*") -> 
E87: =IF(Data!AV437="-","","*") ->  | G87: =IF(Data!AV556="-","","*") -> 
C88: Solární kolektory | F88: Typ kolektoru | H88: Účel | I88: Energonositel | L88: Plocha apertury (účinná plocha solárního kolektoru) | U88: m2
I89: Energie okolního prostředí (Slunce)
J90: =IF(SUM(J76+J80+J84+J88)=1,"V pořádku",IF(SUM(J76+J80+J84+J88)=0,"","Nesprávně zadáno")) -> 
C91: b) dílčí dodané energie
C92: ř. | K92: Vytápění | M92: Chlazení | O92: Větrání | Q92: Úprava vlhkosti vzduchu | S92: Příprava teplé vody | U92: Osvětlení
K93: Ref. budova | L93: Hod. budova | M93: Ref. budova | N93: Hod. budova | O93: Ref. budova | P93: Hod. budova | Q93: Ref. budova | R93: Hod. budova | S93: Ref. budova | T93: Hod. budova | U93: Ref. budova | V93: Hod. budova
C94: (1) | E94: Potřeba energie | J94: [MWh/rok] | O94: x | P94: x | U94: x | V94: x
C95: (2) | E95: Vypočtená spotřeba energie | J95: [MWh/rok]
C96: (3) | E96: Pomocná energie | J96: [MWh/rok]
C97: (4) | E97: Dílčí dodaná energie (ř.4)=(ř.2)+(ř.3) | J97: [MWh/rok] | L97: =IF((L95+L96)=0,"",(L95+L96)) ->  | N97: =IF((N95+N96)=0,"",(N95+N96)) ->  | P97: =IF((P95+P96)=0,"",(P95+P96)) ->  | R97: =IF((R95+R96)=0,"",(R95+R96)) ->  | T97: =IF((T95+T96)=0,"",(T95+T96)) ->  | V97: =IF((V95+V96)=0,"",(V95+V96)) -> 
C98: (5) | E98: Měrná dílčí dodaná energie na celkovou energeticky vztažnou plochu (ř.4) / m2 | J98: [kWh/(m2.rok)] | L98: =IF(L97="","",((L97/'1. PENB'!I20)*1000)) ->  | N98: =IF(N97="","",((N97/'1. PENB'!I20)*1000)) ->  | P98: =IF(P97="","",((P97/'1. PENB'!I20)*1000)) ->  | R98: =IF(R97="","",((R97/'1. PENB'!I20)*1000)) ->  | T98: =IF(T97="","",((T97/'1. PENB'!I20)*1000)) ->  | V98: =IF(V97="","",((V97/'1. PENB'!I20)*1000)) -> 
C100: d) rozdělení dílčích dodaných energií, celkové primární energie a neobnovitelné primární energie podle energonositelů
C101: Energonositel | F101: Dílčí vypočtená spotřeba energie / Pomocná energie | H101: Faktor celkové primární energie | I101: Faktor neobnovitelné primární energie | J101: Celková primární energie | Q101: Neobnovitelná primární energie
F102: [MWh/rok] | H102: [-] | I102: [-] | J102: [MWh/rok] | Q102: [MWh/rok]
C105: Celkem | F105: =IF(SUM(L97,N97,P97,R97,T97,V97)=0,"",SUM(L97,N97,P97,R97,T97,V97)) ->  | H105: x | I105: x

Sheet 10. Vyhodnocení
A1: Krok 1. | F1: Krok 2. | J1: Krok 3. | O1: Krok 4. | T1: Krok 5. | AA1: Krok 6. | AD1: Krok 7. | AH1: Krok 8. | AL1: Krok 9. | AP1: Krok 10.
A2: =IF(SUM('1. PENB'!I13:I15)>0,IF(SUM('1. PENB'!I20)>0,IF(SUM('1. PENB'!D63)>0,IF(SUM('1. PENB'!I63)>0,"Zadáno","Nezadáno"),"Nezadáno"),"Nezadáno"),"Nezadáno") -> Nezadáno | F2: =IF(SUM('2. Bytové jednotky'!F6:F9,'2. Bytové jednotky'!F11:F14,'2. Bytové jednotky'!F16:F19,'2. Bytové jednotky'!F21:F24)>0,IF(SUM('2. Bytové jednotky'!J6:J9,'2. Bytové jednotky'!J11:J14,'2. Bytové jednotky'!J16:J19,'2. Bytové jednotky'!J21:J24,'2. Bytové jednotky'!L6:L9,'2. Bytové jednotky'!L11:L14,'2. Bytové jednotky'!L16:L19,'2. Bytové jednotky'!L21:L24)>0,IF(SUM('2. Bytové jednotky'!F27:F28,'2. Bytové jednotky'!F30:F31)>0,IF(SUM('2. Bytové jednotky'!F34:F35,'2. Bytové jednotky'!F37:F38,'2. Bytové jednotky'!F40:F41)>0,"Zadáno","Nezadáno"),"Nezadáno"),"Nezadáno"),"Nezadáno") -> Nezadáno | J2: =IF(SUM('3. Schodišťový prostor'!F6:F9,'3. Schodišťový prostor'!F11:F14,'3. Schodišťový prostor'!F16:F19,'3. Schodišťový prostor'!F21:F24)>0,IF(SUM('3. Schodišťový prostor'!J6:J9,'3. Schodišťový prostor'!J11:J14,'3. Schodišťový prostor'!J16:J19,'3. Schodišťový prostor'!J21:J24,'3. Schodišťový prostor'!L6:L9,'3. Schodišťový prostor'!L11:L14,'3. Schodišťový prostor'!L16:L19,'3. Schodišťový prostor'!L21:L24)>0,IF(SUM('3. Schodišťový prostor'!F27:F28,'3. Schodišťový prostor'!F30:F31)>0,IF(SUM('3. Schodišťový prostor'!F34:F35,'3. Schodišťový prostor'!F37:F38,'3. Schodišťový prostor'!F40:F41)>0,"Zadáno","Nezadáno"),"Nezadáno"),"Nezadáno"),"Nezadáno") -> Nezadáno | O2: =IF(SUM('4. Technické podlaží-garáže'!F6:F9,'4. Technické podlaží-garáže'!F11:F14,'4. Technické podlaží-garáže'!F16:F19,'4. Technické podlaží-garáže'!F21:F24)>0,IF(SUM('4. Technické podlaží-garáže'!J6:J9,'4. Technické podlaží-garáže'!J11:J14,'4. Technické podlaží-garáže'!J16:J19,'4. Technické podlaží-garáže'!J21:J24,'4. Technické podlaží-garáže'!L6:L9,'4. Technické podlaží-garáže'!L11:L14,'4. Technické podlaží-garáže'!L16:L19,'4. Technické podlaží-garáže'!L21:L24)>0,IF(SUM('4. Technické podlaží-garáže'!F27:F28,'4. Technické podlaží-garáže'!F30:F31)>0,IF(SUM('4. Technické podlaží-garáže'!F34:F35,'4. Technické podlaží-garáže'!F37:F38,'4. Technické podlaží-garáže'!F40:F41)>0,"Zadáno","Nezadáno"),"Nezadáno"),"Nezadáno"),"Nezadáno") -> Nezadáno | T2: =IF('5. Geometrie - Byty'!F5>0,IF('5. Geometrie - Byty'!F7>0,IF('5. Geometrie - Byty'!F10>0,IF('5. Geometrie - Byty'!F11>0,IF('5. Geometrie - Byty'!F12>0,"Zadáno","Nezadáno"),"Nezadáno"),"Nezadáno"),"Nezadáno"),"Nezadáno") -> Nezadáno | AA2: =IF('6. Geometrie - Sch'!F5>0,IF('6. Geometrie - Sch'!F7>0,IF('6. Geometrie - Sch'!F10>0,IF('6. Geometrie - Sch'!F11>0,IF('6. Geometrie - Sch'!F12>0,"Zadáno","Nezadáno"),"Nezadáno"),"Nezadáno"),"Nezadáno"),"Nezadáno") -> Nezadáno | AD2: =IF('7. Geometrie - Tech'!F5>0,IF('7. Geometrie - Tech'!F7>0,IF('7. Geometrie - Tech'!F10>0,IF('7. Geometrie - Tech'!F11>0,IF('7. Geometrie - Tech'!F12>0,"Zadáno","Nezadáno"),"Nezadáno"),"Nezadáno"),"Nezadáno"),"Nezadáno") -> Nezadáno | AH2: =IF(SUM('8. Tepelně tech. parametry'!T8:T10)>0,IF(SUM('8. Tepelně tech. parametry'!T11:T13)>0,IF(SUM('8. Tepelně tech. parametry'!T15)>0,IF(SUM('8. Tepelně tech. parametry'!T59)>0,"Zadáno","Nezadáno"),"Nezadáno"),"Nezadáno"),"Nezadáno") -> Nezadáno | AL2: =IF(SUM('9. Technické systémy'!J12:M38)>0,IF(SUM('9. Technické systémy'!J76:K89)>0,IF(SUM('9. Technické systémy'!F105:G105)>0,IF(SUM('9. Technické systémy'!J105:P105)>0,IF(SUM('9. Technické systémy'!Q105:V105)>0,"Zadáno","Nezadáno"),"Nezadáno"),"Nezadáno"),"Nezadáno"),"Nezadáno") -> Nezadáno | AP2: ZDE
C3: Hodnoty pro technické systémy z PENB | M3: Zpět | P3: Pokračovat | T3: Nápověda | Z3: Hodnoty pro technické systémy z PENB
C5: B) technické systémy | Z5: B) technické systémy
C6: b.1.a) vytápění | Z6: b.1.a) vytápění
C7: Hodnocená budova/zóna | F7: Typ zdroje | G7: Energo- nositel | J7: Pokrytí dílčí potřeby energie na vytápění | L7: Jmenovitý tepelný výkon | N7: Účinnost výroby energie zdrojem tepla | Q7: Účinnost distribuce energie na vytápění | S7: Účinnost sdílení energie na vytápění | Z7: Hodnocená budova/zóna | AC7: Typ zdroje | AD7: Energo- nositel | AG7: Pokrytí dílčí potřeby energie na vytápění | AI7: Jmenovitý tepelný výkon | AK7: Účinnost výroby energie zdrojem tepla | AN7: Účinnost distribuce energie na vytápění | AP7: Účinnost sdílení energie na vytápění
N8: ηH,gen | P8: COP | Q8: ηH,dis | S8: ηH,em | AK8: ηH,gen | AM8: COP | AN8: ηH,dis | AP8: ηH,em
F9: [-] | G9: [-] | J9: [%] | L9: [kW] | N9: [%] | P9: [-] | Q9: [%] | S9: [%] | AC9: [-] | AD9: [-] | AG9: [%] | AI9: [kW] | AK9: [%] | AM9: [-] | AN9: [%] | AP9: [%]
C10: Referenční budova | F10: x | G10: x | J10: x | L10: x | N10: =IF(SUM('9. Technické systémy'!P10:Q10)=0,"",(SUM('9. Technické systémy'!P10:Q10))) ->  | P10: -- | Q10: =IF(SUM('9. Technické systémy'!S10:T10)=0,"",(SUM('9. Technické systémy'!S10:T10))) ->  | S10: =IF(SUM('9. Technické systémy'!U10:V10)=0,"",(SUM('9. Technické systémy'!U10:V10))) ->  | Z10: Referenční budova | AC10: x | AD10: x | AG10: x | AI10: x | AK10: =N10 ->  | AM10: -- | AN10: =Q10 ->  | AP10: =S10 -> 
C11: Hodnocená budova/zóna: | Z11: Hodnocená budova/zóna:
C12: 1. | D12: Rodinny dům | F12: =IF(Data!B186=0,"",Data!B186) ->  | G12: =IF(Data!AN207=0,"",Data!AN207) ->  | J12: =IF(SUM('9. Technické systémy'!J12:M16)=0,"",(SUM('9. Technické systémy'!J12:M16))) ->  | L12: =IF(SUM('9. Technické systémy'!N12:O16)=0,"",(SUM('9. Technické systémy'!N12:O16))) ->  | N12: =IF(SUM('9. Technické systémy'!P12:Q16)=0,"",(SUM('9. Technické systémy'!P12:Q16))) ->  | P12: =IF(SUM('9. Technické systémy'!R12:R16)=0,"",(SUM('9. Technické systémy'!R12:R16))) ->  | Q12: =IF(SUM('9. Technické systémy'!S12:T16)=0,"",(SUM('9. Technické systémy'!S12:T16))) ->  | S12: =IF(SUM('9. Technické systémy'!U12:V16)=0,"",(SUM('9. Technické systémy'!U12:V16))) ->  | Z12: 1. | AA12: Rodinny dům | AC12: =F12 ->  | AG12: =J12 ->  | AI12: =L12 ->  | AK12: =Data!R188 ->  | AM12: =Data!S188 ->  | AN12: =IF(Data!K271=0,"",Data!K271) ->  | AP12: =IF(Data!K284=0,"",Data!K284) -> 
C13: 2. | D13: Rodinny dům | F13: =IF(Data!X186=0,"",Data!X186) ->  | G13: =IF(Data!AN208=0,"",Data!AN208) ->  | J13: =IF(SUM('9. Technické systémy'!J17:M21)=0,"",(SUM('9. Technické systémy'!J17:M21))) ->  | L13: =IF(SUM('9. Technické systémy'!N17:O21)=0,"",(SUM('9. Technické systémy'!N17:O21))) ->  | N13: =IF(SUM('9. Technické systémy'!P17:Q21)=0,"",(SUM('9. Technické systémy'!P17:Q21))) ->  | P13: =IF(SUM('9. Technické systémy'!R17:R21)=0,"",(SUM('9. Technické systémy'!R17:R21))) ->  | Q13: =IF(SUM('9. Technické systémy'!S17:T21)=0,"",(SUM('9. Technické systémy'!S17:T21))) ->  | S13: =IF(SUM('9. Technické systémy'!U17:V21)=0,"",(SUM('9. Technické systémy'!U17:V21))) ->  | Z13: 2. | AA13: Rodinny dům | AI13: =L13 ->  | AK13: =Data!AI188 ->  | AM13: =Data!AJ188 ->  | AN13: =IF(Data!Q271=0,"",Data!Q271) ->  | AP13: =IF(Data!Q284=0,"",Data!Q284) -> 
C14: 3. | D14: Rodinny dům | F14: =IF(Data!AN186=0,"",Data!AN186) ->  | G14: =IF(Data!AN209=0,"",Data!AN209) ->  | J14: =IF(SUM('9. Technické systémy'!J22:M26)=0,"",(SUM('9. Technické systémy'!J22:M26))) ->  | L14: =IF(SUM('9. Technické systémy'!N22:O26)=0,"",(SUM('9. Technické systémy'!N22:O26))) ->  | N14: =IF(SUM('9. Technické systémy'!P22:Q26)=0,"",(SUM('9. Technické systémy'!P22:Q26))) ->  | P14: =IF(SUM('9. Technické systémy'!R22:R26)=0,"",(SUM('9. Technické systémy'!R22:R26))) ->  | Q14: =IF(SUM('9. Technické systémy'!S22:T26)=0,"",(SUM('9. Technické systémy'!S22:T26))) ->  | S14: =IF(SUM('9. Technické systémy'!U22:V26)=0,"",(SUM('9. Technické systémy'!U22:V26))) ->  | Z14: 3. | AA14: Rodinny dům | AI14: =L14 ->  | AK14: =Data!AY188 ->  | AM14: =Data!AZ188 ->  | AN14: =IF(Data!W271=0,"",Data!W271) ->  | AP14: =IF(Data!W284=0,"",Data!W284) -> 
C15: 4. | D15: Rodinny dům | F15: =IF(Data!BD186=0,"",Data!BD186) ->  | G15: =IF(Data!AN210=0,"",Data!AN210) ->  | J15: =IF(SUM('9. Technické systémy'!J27:M31)=0,"",(SUM('9. Technické systémy'!J27:M31))) ->  | L15: =IF(SUM('9. Technické systémy'!N27:O31)=0,"",(SUM('9. Technické systémy'!N27:O31))) ->  | N15: =IF(SUM('9. Technické systémy'!P27:Q31)=0,"",(SUM('9. Technické systémy'!P27:Q31))) ->  | P15: =IF(SUM('9. Technické systémy'!R27:R31)=0,"",(SUM('9. Technické systémy'!R27:R31))) ->  | Q15: =IF(SUM('9. Technické systémy'!S27:T31)=0,"",(SUM('9. Technické systémy'!S27:T31))) ->  | S15: =IF(SUM('9. Technické systémy'!U27:V31)=0,"",(SUM('9. Technické systémy'!U27:V31))) ->  | Z15: 4. | AA15: Rodinny dům | AC15: =F15 ->  | AD15: =G15 ->  | AI15: =L15 ->  | AK15: =Data!BO188 ->  | AM15: =Data!BP188 ->  | AN15: =IF(Data!AB271=0,"",Data!AB271) ->  | AP15: =IF(Data!AB284=0,"",Data!AB284) -> 
C16: 5. | D16: Rodinny dům | F16: =IF(Data!BT186=0,"",Data!BT186) ->  | G16: =IF(Data!AN211=0,"",Data!AN211) ->  | J16: =IF(SUM('9. Technické systémy'!J32:M36)=0,"",(SUM('9. Technické systémy'!J32:M36))) ->  | L16: =IF(SUM('9. Technické systémy'!N24:O27)=0,"",(SUM('9. Technické systémy'!N24:O27))) ->  | N16: =IF(SUM('9. Technické systémy'!P24:Q27)=0,"",(SUM('9. Technické systémy'!P24:Q27))) ->  | P16: =IF(SUM('9. Technické systémy'!R32:R36)=0,"",(SUM('9. Technické systémy'!R32:R36))) ->  | Q16: =IF(SUM('9. Technické systémy'!S24:T27)=0,"",(SUM('9. Technické systémy'!S24:T27))) ->  | S16: =IF(SUM('9. Technické systémy'!U24:V27)=0,"",(SUM('9. Technické systémy'!U24:V27))) ->  | Z16: 5. | AA16: Rodinny dům | AI16: =L16 ->  | AK16: =Data!CE188 ->  | AM16: =Data!CF188 ->  | AN16: =IF(Data!AG271=0,"",Data!AG271) ->  | AP16: =IF(Data!AG284=0,"",Data!AG284) -> 
C17: Solární kolektory | F17: =IF(Data!B679=0,"",IF(Data!I677=3,Data!B679,"")) ->  | G17: =IF(F17="","",Data!AN213) ->  | J17: =IF(SUM('9. Technické systémy'!J37:M38)=0,"",(SUM('9. Technické systémy'!J37:M38))) ->  | L17: =IF(SUM('9. Technické systémy'!P84:Q87)=0,"",(SUM('9. Technické systémy'!P84:Q87))) ->  | Z17: =C17 -> Solární kolektory | AC17: =F17 ->  | AD17: =G17 -> 
C18: Schodišťový prostor | F18: V modelu je uvažováno, že výše uvedené zdroje pro vytápění budou zároveň sloužit k pokrytí tepelných ztrát ostatních zón (schodište, technické podlaží). | Z18: =C18 -> Schodišťový prostor | AC18: =F18 -> V modelu je uvažováno, že výše uvedené zdroje pro vytápění budou zároveň sloužit k pokrytí tepelných ztrát ostatních zón (schodište, technické podlaží).
C19: Technické podlaží/ Garáže | F19: V modelu je uvažováno, že výše uvedené zdroje pro vytápění budou zároveň sloužit k pokrytí tepelných ztrát ostatních zón (schodište, technické podlaží). | Z19: =C19 -> Technické podlaží/ Garáže | AC19: =F19 -> V modelu je uvažováno, že výše uvedené zdroje pro vytápění budou zároveň sloužit k pokrytí tepelných ztrát ostatních zón (schodište, technické podlaží).
C20: Závěrečná tabulka | Z20: Závěrečná tabulka
C21: Potřeba energie na vytápění hodnocené budovy | L21: =IF(Q21="","",('9. Technické systémy'!L94/'1. PENB'!I20*1000)) ->  | N21: [kWh/(m2.rok)] | Q21: =IF('9. Technické systémy'!L94="","",'9. Technické systémy'!L94) ->  | S21: [MWh/rok] | Z21: =C21 -> Potřeba energie na vytápění hodnocené budovy | AI21: =IF(AN21="","",(AN21/'1. PENB'!I20)*1000) ->  | AK21: [kWh/(m2.rok)] | AN21: =IF(Q21="","",(Vypocet!G383+Vypocet!AA383+Vypocet!AU383)) ->  | AP21: =S21 -> [MWh/rok]
C23: Vypočtená spotřeba energie na vytápění hodnocené budovy | L23: =IF(Q23="","",('9. Technické systémy'!L95/'1. PENB'!I20*1000)) ->  | N23: [kWh/(m2.rok)] | Q23: =IF('9. Technické systémy'!L95="","",'9. Technické systémy'!L95) ->  | S23: [MWh/rok] | Z23: =C23 -> Vypočtená spotřeba energie na vytápění hodnocené budovy | AI23: =IF(AN23="","",(AN23/'1. PENB'!I20)*1000) ->  | AK23: [kWh/(m2.rok)] | AN23: =IF(Q23="","",(Vypocet!G436+Vypocet!AA436+Vypocet!AU436)) ->  | AP23: [MWh/rok]
C25: b.2.a) chlazení | Z25: b.2.a) chlazení
C26: Hodnocená budova/zóna | F26: Typ zdroje chlazení | G26: Energo- nositel | J26: Pokrytí dílčí potřeby energie na chlazení | L26: Jmenovitý chladící výkon | N26: Chladicí faktor zdroje chladu | Q26: Účinnost distribuce energie na chlazení | S26: Účinnost sdílení energie na chlazení | Z26: Hodnocená budova/zóna | AC26: Typ zdroje chlazení | AD26: Energo- nositel | AG26: Pokrytí dílčí potřeby energie na chlazení | AI26: Jmenovitý chladící výkon | AK26: Chladicí faktor zdroje chladu | AN26: Účinnost distribuce energie na chlazení | AP26: Účinnost sdílení energie na chlazení
N27: EERC,gen | Q27: ηC,dis | S27: ηC,em | AK27: EERC,gen | AN27: ηC,dis | AP27: ηC,em
F28: [-] | G28: [-] | J28: [%] | L28: [kW] | N28: [-] | Q28: [%] | S28: [%] | AC28: [-] | AD28: [-] | AG28: [%] | AI28: [kW] | AK28: [-] | AN28: [%] | AP28: [%]
C29: Referenční budova | F29: x | G29: x | J29: x | L29: x | N29: =IF(SUM('9. Technické systémy'!P46:R46)=0,"",(SUM('9. Technické systémy'!P46:R46))) ->  | Q29: =IF(SUM('9. Technické systémy'!S46:T46)=0,"",(SUM('9. Technické systémy'!S46:T46))) ->  | S29: =IF(SUM('9. Technické systémy'!U46:V46)=0,"",(SUM('9. Technické systémy'!U46:V46))) ->  | Z29: Referenční budova | AC29: x | AD29: x | AG29: x | AI29: x | AK29: =N29 ->  | AN29: =Q29 ->  | AP29: =S29 -> 
C30: Hodnocená budova/zóna: | Z30: Hodnocená budova/zóna:
C31: Rodinny dům | F31: =IF(Data!J299=0,"",Data!J299) ->  | G31: =IF(Data!AN314=0,"",Data!AN314) ->  | J31: =IF(SUM('9. Technické systémy'!L48:M49)=0,"",(SUM('9. Technické systémy'!L48:M49))) ->  | L31: =IF(SUM('9. Technické systémy'!N48:O49)=0,"",(SUM('9. Technické systémy'!N48:O49))) ->  | N31: =IF(SUM('9. Technické systémy'!P48:R49)=0,"",(SUM('9. Technické systémy'!P48:R49))) ->  | Q31: =IF(SUM('9. Technické systémy'!S48:T49)=0,"",(SUM('9. Technické systémy'!S48:T49))) ->  | S31: =IF(SUM('9. Technické systémy'!U48:V49)=0,"",(SUM('9. Technické systémy'!U48:V49))) ->  | Z31: Rodinny dům | AC31: =F31 ->  | AD31: =G31 ->  | AG31: =J31 ->  | AI31: =L31 ->  | AK31: =IF(Data!K299=0,"",Data!K299) -> 
C32: Závěrečná tabulka | Z32: Závěrečná tabulka
C33: Potřeba energie na chlazení hodnocené budovy | L33: =IF(Q33="","",('9. Technické systémy'!N94/'1. PENB'!I20)*1000) ->  | N33: [kWh/(m2.rok)] | Q33: =IF('9. Technické systémy'!N94="","",'9. Technické systémy'!N94) ->  | S33: [MWh/rok] | Z33: =C33 -> Potřeba energie na chlazení hodnocené budovy | AI33: =IF(AN33="","",(AN33/'1. PENB'!I20)*1000) ->  | AK33: [kWh/(m2.rok)] | AN33: =IF(Q33="","",Vypocet!G466) ->  | AP33: =S33 -> [MWh/rok]
C35: Vypočtená spotřeba energie na chlazení hodnocené budovy | L35: =IF(Q35="","",('9. Technické systémy'!N95/'1. PENB'!I20)*1000) ->  | N35: [kWh/(m2.rok)] | Q35: =IF('9. Technické systémy'!N95="","",'9. Technické systémy'!N95) ->  | S35: [MWh/rok] | Z35: =C35 -> Vypočtená spotřeba energie na chlazení hodnocené budovy | AI35: =IF(AN35="","",(AN35/'1. PENB'!I20)*1000) ->  | AK35: [kWh/(m2.rok)] | AN35: =IF(Q35="","",Vypocet!G473) ->  | AP35: [MWh/rok]
C37: b.3) větrání | Z37: b.3) větrání
C38: Hodnocená budova/zóna | F38: Typ větracího systému | G38: Energo- nositel | I38: Tepelný výkon | K38: Chladící výkon | M38: Pokrytí dílčí potřeby energie na větrání | O38: Jmen. elektr. příkon systému větrání | Q38: Jmen. objem. průtok větracího vzduchu | S38: Měrný příkon ventilátoru nuceného větrání | Z38: Hodnocená budova/zóna | AC38: Typ větracího systému | AD38: Energo- nositel | AF38: Tepelný výkon | AH38: Chladící výkon | AJ38: Pokrytí dílčí potřeby energie na větrání | AL38: Jmen. elektr. příkon systému větrání | AN38: Jmen. objem. průtok větracího vzduchu | AP38: Měrný příkon ventilátoru nuceného větrání
S39: SFPahu | AP39: SFPahu
F40: [-] | G40: [-] | I40: [kW] | K40: [kW] | M40: [%] | O40: [kW] | Q40: [m3/hod] | S40: [W.s/m3] | AC40: [-] | AD40: [-] | AF40: [kW] | AH40: [kW] | AJ40: [%] | AL40: [kW] | AN40: [m3/hod] | AP40: [W.s/m3]
C41: Referenční budova | F41: x | G41: x | I41: x | K41: x | M41: x | O41: x | Q41: x | S41: =IF(SUM('9. Technické systémy'!U55:V55)=0,"",(SUM('9. Technické systémy'!U55:V55))) ->  | Z41: Referenční budova | AC41: x | AD41: x | AF41: x | AH41: x | AJ41: x | AL41: x | AN41: x | AP41: =S41 -> 
C42: Hodnocená budova/zóna: | Z42: Hodnocená budova/zóna:
C43: Rodinny dům | F43: =IF(Data!B364=0,"Přirozené větrání",Data!B364) -> Přirozené větrání | G43: =IF(Data!AN378=0,"",Data!AN378) ->  | I43: =IF(SUM('9. Technické systémy'!K57:L59)=0,"",(SUM('9. Technické systémy'!K57:L59))) ->  | K43: =IF(SUM('9. Technické systémy'!M57:N59)=0,"",(SUM('9. Technické systémy'!M57:N59))) ->  | M43: =IF(SUM('9. Technické systémy'!O57:P59)=0,"",(SUM('9. Technické systémy'!O57:P59))) ->  | O43: =IF(SUM('9. Technické systémy'!Q57:R59)=0,"",(SUM('9. Technické systémy'!Q57:R59))) ->  | Q43: =IF(SUM('9. Technické systémy'!S57:T59)=0,"",(SUM('9. Technické systémy'!S57:T59))) ->  | S43: =IF(SUM('9. Technické systémy'!U57:V59)=0,"",(SUM('9. Technické systémy'!U57:V59))) ->  | Z43: Rodinny dům | AC43: =F43 -> Přirozené větrání | AD43: =G43 ->  | AF43: =I43 ->  | AH43: =K43 ->  | AJ43: =M43 ->  | AL43: =O43 ->  | AN43: =Q43 ->  | AP43: =IF(Data!K387=0,"",Data!K387) -> 
C44: Závěrečná tabulka | Z44: Závěrečná tabulka
C45: Vypočtená spotřeba energie na nucené větrání | L45: =IF(Q45="","",('9. Technické systémy'!P95/'1. PENB'!I20)*1000) ->  | N45: [kWh/(m2.rok)] | Q45: =IF('9. Technické systémy'!P95="","",'9. Technické systémy'!P95) ->  | S45: [MWh/rok] | Z45: =C45 -> Vypočtená spotřeba energie na nucené větrání | AI45: =IF(AN45="","",(AN45/'1. PENB'!I20)*1000) ->  | AK45: [kWh/(m2.rok)] | AN45: =IF(Q45="","",Vypocet!G588) ->  | AP45: [MWh/rok]
C47: b.4) úprava vlhkosti vzduchu | Z47: b.4) úprava vlhkosti vzduchu
C48: Hodnocená budova/zóna | F48: Typ systému vlhčení | H48: Energo- nositel | K48: Jmenovitý elektrický příkon | N48: Jmenovitý tepelný výkon | Q48: Pokrytí dílčí dodané energie na úpravu vlhkosti | S48: Účinnost zdroje úpravy vlhkosti systému vlhčení | Z48: Hodnocená budova/zóna | AC48: Typ systému vlhčení | AE48: Energo- nositel | AH48: Jmenovitý elektrický příkon | AK48: Jmenovitý tepelný výkon | AN48: Pokrytí dílčí dodané energie na úpravu vlhkosti | AP48: Účinnost zdroje úpravy vlhkosti systému vlhčení
S49: ηRH+,gen | AP49: ηRH+,gen
F50: [-] | H50: [-] | K50: [kW] | N50: [kW] | Q50: [%] | S50: [%] | AC50: [-] | AE50: [-] | AH50: [kW] | AK50: [kW] | AN50: [%] | AP50: [%]
C51: Referenční budova | F51: x | H51: x | K51: x | N51: x | Q51: x | Z51: Referenční budova | AC51: x | AE51: x | AH51: x | AK51: x | AN51: x
C52: Hodnocená budova/zóna: | Z52: Hodnocená budova/zóna:
C53: Rodinny dům | Z53: Rodinny dům
C54: Závěrečná tabulka | Z54: Závěrečná tabulka
C58: b.5.a) příprava teplé vody (TV) | Z58: b.5.a) příprava teplé vody (TV)
C59: Hodnocená budova/zóna | F59: Systém přípravy TV v budově | G59: Energo- nositel | H59: Pokrytí dílčí potřeby energie na přípravu teplé vody | J59: Jmen. příkon pro ohřev TV | L59: Objem zásobníku TV | N59: Účinnost zdroje tepla pro přípravu teplé vody | Q59: Měrná tepelná ztráta zásobníku teplé vody | S59: Měrná tepelná ztráta rozvodů teplé vody | Z59: Hodnocená budova/zóna | AC59: Systém přípravy TV v budově | AD59: Energo- nositel | AE59: Pokrytí dílčí potřeby energie na přípravu teplé vody | AG59: Jmen. příkon pro ohřev TV | AI59: Objem zásobníku TV | AK59: Účinnost zdroje tepla pro přípravu teplé vody | AN59: Měrná tepelná ztráta zásobníku teplé vody | AP59: Měrná tepelná ztráta rozvodů teplé vody
N60: ηW,gen | P60: COP | Q60: QW,st | S60: QW,dis | AK60: ηW,gen | AM60: COP | AN60: QW,st | AP60: QW,dis
F61: [-] | G61: [-] | H61: [%] | J61: [kW] | L61: [litry] | N61: [%] | P61: [-] | Q61: [Wh/l.d] | S61: [Wh/m.d] | AC61: [-] | AD61: [-] | AE61: [%] | AG61: [kW] | AI61: [litry] | AK61: [%] | AM61: [-] | AN61: [Wh/l.d] | AP61: [Wh/m.d]
C62: Referenční budova | F62: x | G62: x | H62: x | J62: x | L62: x | N62: =IF(SUM('9. Technické systémy'!P74:Q74)=0,"",(SUM('9. Technické systémy'!P74:Q74))) ->  | P62: -- | Q62: =IF(SUM('9. Technické systémy'!S74:T74)=0,"",(SUM('9. Technické systémy'!S74:T74))) ->  | S62: =IF(SUM('9. Technické systémy'!U74:V74)=0,"",(SUM('9. Technické systémy'!U74:V74))) ->  | Z62: Referenční budova | AC62: x | AD62: x | AE62: x | AG62: x | AI62: x | AK62: =N62 ->  | AM62: -- | AN62: =Q62 ->  | AP62: =S62 -> 
C63: Hodnocená budova/zóna: | Z63: Hodnocená budova/zóna:
C64: 1. | D64: Rodinny dům | F64: =IF(Data!B447=0,"",Data!B447) ->  | G64: =IF(Data!AN469=0,"",Data!AN469) ->  | H64: =IF(SUM('9. Technické systémy'!J76:K79)=0,"",(SUM('9. Technické systémy'!J76:K79))) ->  | J64: =IF(SUM('9. Technické systémy'!L76:M79)=0,"",(SUM('9. Technické systémy'!L76:M79))) ->  | L64: =IF(SUM('9. Technické systémy'!N76:O79)=0,"",(SUM('9. Technické systémy'!N76:O79))) ->  | N64: =IF(SUM('9. Technické systémy'!P76:Q79)=0,"",(SUM('9. Technické systémy'!P76:Q79))) ->  | P64: =IF(SUM('9. Technické systémy'!R76:R79)=0,"",(SUM('9. Technické systémy'!R76:R79))) ->  | Q64: =IF(SUM('9. Technické systémy'!S76:T79)=0,"",(SUM('9. Technické systémy'!S76:T79))) ->  | S64: =IF(SUM('9. Technické systémy'!U76:V79)=0,"",(SUM('9. Technické systémy'!U76:V79))) ->  | Z64: 1. | AA64: Rodinny dům | AC64: =F64 ->  | AG64: =J64 ->  | AI64: =L64 ->  | AK64: =IF(Data!Q449=0,"",Data!Q449) ->  | AM64: =IF(Data!R449="","",Data!R449) ->  | AN64: =IF(Data!P567=0,"",Data!P567) ->  | AP64: =S64 -> 
C65: 2. | D65: Rodinny dům | F65: =IF(Data!X446=0,"",Data!X446) ->  | G65: =IF(Data!AN470=0,"",Data!AN470) ->  | H65: =IF(SUM('9. Technické systémy'!J80:K83)=0,"",(SUM('9. Technické systémy'!J80:K83))) ->  | J65: =IF(SUM('9. Technické systémy'!L80:M83)=0,"",(SUM('9. Technické systémy'!L80:M83))) ->  | L65: =IF(SUM('9. Technické systémy'!N80:O83)=0,"",(SUM('9. Technické systémy'!N80:O83))) ->  | N65: =IF(SUM('9. Technické systémy'!P80:Q83)=0,"",(SUM('9. Technické systémy'!P80:Q83))) ->  | P65: =IF(SUM('9. Technické systémy'!R80:R83)=0,"",(SUM('9. Technické systémy'!R80:R83))) ->  | Q65: =IF(SUM('9. Technické systémy'!S80:T83)=0,"",(SUM('9. Technické systémy'!S80:T83))) ->  | S65: =IF(SUM('9. Technické systémy'!U80:V83)=0,"",(SUM('9. Technické systémy'!U80:V83))) ->  | Z65: 2. | AA65: Rodinny dům | AG65: =J65 ->  | AI65: =L65 ->  | AK65: =IF(Data!AI448=0,"",Data!AI448) ->  | AM65: =IF(Data!AJ448="","",Data!AJ448) ->  | AN65: =IF(Data!AG567=0,"",Data!AG567) ->  | AP65: =S65 -> 
C66: 3. | D66: Rodinny dům | F66: =IF(Data!AN446=0,"",Data!AN446) ->  | G66: =IF(Data!AN471=0,"",Data!AN471) ->  | H66: =IF(SUM('9. Technické systémy'!J84:K87)=0,"",(SUM('9. Technické systémy'!J84:K87))) ->  | J66: =IF(SUM('9. Technické systémy'!L84:M87)=0,"",(SUM('9. Technické systémy'!L84:M87))) ->  | L66: =IF(SUM('9. Technické systémy'!N84:O87)=0,"",(SUM('9. Technické systémy'!N84:O87))) ->  | N66: =IF(SUM('9. Technické systémy'!P84:Q87)=0,"",(SUM('9. Technické systémy'!P84:Q87))) ->  | P66: =IF(SUM('9. Technické systémy'!R84:R87)=0,"",(SUM('9. Technické systémy'!R84:R87))) ->  | Q66: =IF(SUM('9. Technické systémy'!S84:T87)=0,"",(SUM('9. Technické systémy'!S84:T87))) ->  | S66: =IF(SUM('9. Technické systémy'!U84:V87)=0,"",(SUM('9. Technické systémy'!U84:V87))) ->  | Z66: 3. | AA66: Rodinny dům | AG66: =J66 ->  | AI66: =L66 ->  | AK66: =IF(Data!AY448=0,"",Data!AY448) ->  | AM66: =IF(Data!AZ448="","",Data!AZ448) ->  | AN66: =IF(Data!AW567=0,"",Data!AW567) ->  | AP66: =S66 -> 
C67: Solární kolektory | F67: =IF(Data!B679=0,"",IF(Data!I677>1,Data!B679,"")) ->  | G67: =IF(F67="","",Data!AN213) ->  | H67: =IF(SUM('9. Technické systémy'!J88:K89)=0,"",(SUM('9. Technické systémy'!J88:K89))) ->  | Z67: Solární kolektory | AC67: =F67 ->  | AD67: =G67 ->  | AE67: =H67 -> 
C68: Závěrečná tabulka | Z68: Závěrečná tabulka
C69: Potřeba energie na přípravu teplé vody | L69: =IF(Q69="","",('9. Technické systémy'!T94/'1. PENB'!I20)*1000) ->  | N69: [kWh/(m2.rok)] | Q69: =IF('9. Technické systémy'!T94="","",'9. Technické systémy'!T94) ->  | S69: [MWh/rok] | Z69: =C69 -> Potřeba energie na přípravu teplé vody | AI69: =IF(AN69="","",(AN69/'1. PENB'!I20)*1000) ->  | AK69: [kWh/(m2.rok)] | AN69: =IF(Q69="","",Vypocet!G477) ->  | AP69: [MWh/rok]
C71: Vypočtená spotřeba energie na přípravu teplé vody | L71: =IF(Q71="","",('9. Technické systémy'!T95/'1. PENB'!I20)*1000) ->  | N71: [kWh/(m2.rok)] | Q71: =IF('9. Technické systémy'!T95="","",'9. Technické systémy'!T95) ->  | S71: [MWh/rok] | Z71: =C71 -> Vypočtená spotřeba energie na přípravu teplé vody | AI71: =IF(AN71="","",(AN71/'1. PENB'!I20)*1000) ->  | AK71: [kWh/(m2.rok)] | AN71: =IF(Q71="","",Vypocet!G572) ->  | AP71: [MWh/rok]
C73: d) rozdělení dílčích dodaných energií, celkové primární energie a neobnovitelné primární energie podle energonositelů | Z73: d) rozdělení dílčích dodaných energií, celkové primární energie a neobnovitelné primární energie podle energonositelů
C74: Celková dodaná energie hodnocené budovy | L74: =IF(Q74="","",(Q74/'1. PENB'!I20)*1000) ->  | N74: [kWh/(m2.rok)] | Q74: =IF(SUM('9. Technické systémy'!F105:G105)=0,"",SUM('9. Technické systémy'!F105:G105)) ->  | S74: [MWh/rok] | Z74: Celková dodaná energie hodnocené budovy | AI74: =IF(AN74="","",(AN74/'1. PENB'!I20)*1000) ->  | AK74: [kWh/(m2.rok)] | AN74: =IF(Q74="","",Vypocet!B650) ->  | AP74: [MWh/rok]
C75: Celková primární energie | L75: =IF(Q75="","",(Q75/'1. PENB'!I20)*1000) ->  | N75: [kWh/(m2.rok)] | Q75: =IF(SUM('9. Technické systémy'!J105:P105)=0,"",SUM('9. Technické systémy'!J105:P105)) ->  | S75: [MWh/rok] | Z75: Celková primární energie | AI75: =IF(AN75="","",(AN75/'1. PENB'!I20)*1000) ->  | AK75: [kWh/(m2.rok)] | AN75: =IF(Q75="","",Vypocet!F650) ->  | AP75: [MWh/rok]
C76: Neobnovitelná primární energie | L76: =IF(Q76="","",(Q76/'1. PENB'!I20)*1000) ->  | N76: [kWh/(m2.rok)] | Q76: =IF(SUM('9. Technické systémy'!Q105:V105)=0,"",SUM('9. Technické systémy'!Q105:V105)) ->  | S76: [MWh/rok] | Z76: Neobnovitelná primární energie | AI76: =IF(AN76="","",(AN76/'1. PENB'!I20)*1000) ->  | AK76: [kWh/(m2.rok)] | AN76: =IF(Q76="","",Vypocet!G650) ->  | AP76: [MWh/rok]
C77: Využití obnovitelných zdrojů energie z hlediska primární energie | Q77: =IF(Q75="","",1-(Q76/Q75)) ->  | S77: [%] | Z77: Využití obnovitelných zdrojů energie z hlediska primární energie | AN77: =IF(Q77="","",1-(AN76/AN75)) ->  | AP77: [%]

Sheet Kalkulačka na U
C1: Pomocný výpočet U konstrukcí | H1: Zpět | J1: Nápověda
C3: Původní stav | H3: Nový stav
C5: Název konstrukce: | H5: Název konstrukce:
C7: Skladba od interiéru: | D7: Tloušťka konstrukce | E7: Součinitel tepelné vodivosti | F7: Poznámka | H7: Skladba od interiéru: | I7: Tloušťka konstrukce | J7: Součinitel tepelné vodivosti | K7: Poznámka
D8: d [mm] | E8: λ [W/(m.K)] | I8: d [mm] | J8: λ [W/(m.K)]
C9: Tepelný odpor při přestupu tepla v interiéru Rsi | E9: =Data!AG7 -> 0.13 | F9: (m2W)/K | H9: Tepelný odpor při přestupu tepla v interiéru Rsi | J9: =Data!AK36 -> 0.13 | K9: (m2W)/K
C20: Tepelný odpor při přestupu tepla v exteriéru Rse | E20: =Data!AH7 -> 0.04 | F20: (m2.W)/K | H20: Tepelný odpor při přestupu tepla v exteriéru Rse | J20: =Data!AL36 -> 0.04 | K20: (m2.W)/K
C21: Vypočtený součinitel prostupu tepla U | E21: =IF(SUM(Data!AH12:AH21)=0,"",Data!AI23) ->  | F21: W/(m2K) | H21: Vypočtený součinitel prostupu tepla U | J21: =IF(SUM(Data!AH36:AH50)=0,"",Data!AI52) ->  | K21: W/(m2K)
C28: Původní stav | H28: Nový stav
C30: Název konstrukce: | H30: Název konstrukce:
C32: Skladba od interiéru: | D32: Tloušťka konstrukce | E32: Součinitel tepelné vodivosti | F32: Poznámka | H32: Skladba od interiéru: | I32: Tloušťka konstrukce | J32: Součinitel tepelné vodivosti | K32: Poznámka
D33: d [mm] | E33: λ [W/(m.K)] | I33: d [mm] | J33: λ [W/(m.K)]
C34: Tepelný odpor při přestupu tepla v interiéru Rsi | E34: =Data!AK64 -> 0.17 | F34: (m2W)/K | H34: Tepelný odpor při přestupu tepla v interiéru Rsi | J34: =Data!AK91 -> 0.1 | K34: (m2W)/K
C45: Tepelný odpor při přestupu tepla v exteriéru Rse | E45: =Data!AL64 -> 0.04 | F45: (m2.W)/K | H45: Tepelný odpor při přestupu tepla v exteriéru Rse | J45: =Data!AL91 -> 0.04 | K45: (m2.W)/K
C46: Vypočtený součinitel prostupu tepla U | E46: =IF(SUM(Data!AH64:AH76)=0,"",Data!AI78) ->  | F46: W/(m2K) | H46: Vypočtený součinitel prostupu tepla U | J46: =IF(SUM(Data!AH91:AH100)=0,"",Data!AI102) ->  | K46: W/(m2K)

Sheet Help
C1: Nápověda
C3: Stavební konstrukce
B5: 1. | C5: Plocha konstrukce se zadává pomocí rozměrů v metrech. Výsledek je v m2. Okna zadaná k dané konstrukci jsou od celkové plochy odečtena. Výpočet dále pracuje s hodnotou získanou po odečtení oken. | D5: zpět
B7: 2. | C7: V každé stěně se zadávají příslušná okna nebo dveře. | D7: zpět
B9: 3. | C9: V případě zadávání plochy podlah nebo střech, kde není snadné zadat plochu pomocí násobení dvou rozměrů. Lze plochu zadat tak, že se do jednoho z rozměrů vloží vypočtená celková plocha a do druhého číslice 1. | D9: zpět
C10: ! Toto zjednodušení nelze provést u zadávání stěn (jejich výška a délka je dále použita ve výpočtu)!
B12: 4. | C12: Zadávají se pouze konstrukce mezi vytápěnou částí a venkovním prostředím nebo mezi vytápěnou a nevytápěnou částí budovy. | D12: zpět
B14: 5. | C14: Kontrukce pod vytápěným prostorem mohou být buď podlaha na zemině nebo podlaha nad nevytápěným sklepem. | D14: zpět
B16: 6. | C16: U konstrukcí nad vytápěným prostorem se uvádějí tyto části: střecha nebo strop k nevytápěné půdě. Pokud je střecha bez zateplení, zadává se pouze strop pod půdou. | D16: zpět
B18: 7. | C18: Existující zateplení předpokládá jako izolant polystyren nebo minerální vatu. Pro termoizolační omítku zadejte poloviční hodnotu. | D18: zpět
B20: 8. | C20: Do objemu budovy se vkládá vypočtený objem vytápěné části budovy včetně všech vnitřních konstrukcí. Pro jednoduchý tvar je možné použít kalkulačku. | D20: zpět
C22: Technické systémy
B24: 1. | C24: V případech kdy ve vybraných možnostech není přesný typ (kotle, zásobníku, atd.), je nutné zvolit tak, aby se volba co nejvíce blížila skutečnému stavu. | D24: zpět
B26: 2. | C26: V případě, že v odstavci "b.3) větrání" nebude zvolen způsob výměny vzduchu, model bude vždy počítat s přirozeným způsobem větrání. | D26: zpět
B28: 3. | C28: V případech kdy je využíván zdroj jak na vytápění tak pro přípravu teplé vody. Lze v nabídce při zadávání 1. zdroje pro přípravu TV vybrat parametry zdrojů zadaných v části "b.1.a) vytápění". | D28: zpět
B30: 4. | C30: Při zadávání solárních kolektorů je lze zohlednit pouze ve výpočtu dodané energie pro přípravu teplé vody nebo zároveň i do výpočtu dodané energie na vytápění. Přednost má přitom vždy využití pro přípravu teplé vody. | D30: zpět
B32: 5. | C32: Plocha apertury - plocha otvoru, kterým vstupuje do kolektoru nesoustředěné sluneční záření. Hodnota je ve většině případů udávána jednotlivými výrobci fotovoltaických článků/solárních kolektorů. Hodnota je vždy menší než plocha celého kolektoru! | D32: zpět

Sheet Data (hidden)
B1: stěna | C1: U | D1: U norm pož | E1: U Norm dop | F1: U pas min | G1: U pas max | H1: Tloušťka (m) | K1: klima | AG1: Rsi | AH1: Rse
B2: konstrukce | K2: měsíc | O2: leden | P2: únor | Q2: březen | R2: duben | S2: květen | T2: červen | U2: červenec | V2: srpen | W2: září | X2: říjen | Y2: listopad | Z2: prosinec | AD2: 1 | AE2: 1 | AF2: Stěna (tepelný tok vodorovně) | AG2: 0.13 | AH2: 0.04
A3: 1 | B3: Cihly plné 30 cm | C3: 1.67 | D3: 0.3 | E3: 0.25 | F3: 0.18 | G3: 0.12 | H3: 0.3 | K3: průměrná venkovní teplota | M3: qe | N3: [°C] | O3: -1.3 | P3: -0.1 | Q3: 3.7 | R3: 8.1 | S3: 13.3 | T3: 16.1 | U3: 18 | V3: 17.9 | W3: 13.5 | X3: 8.3 | Y3: 3.2 | Z3: 0.5 | AE3: 2 | AF3: Stěna přilehlá k zemině (tepelný tok vodorovně) | AG3: 0.13 | AH3: 0
A4: 2 | B4: Cihly plné 45 cm | C4: 1.27 | D4: 0.3 | E4: 0.25 | F4: 0.18 | G4: 0.12 | H4: 0.45 | K4: intenzita slunečního záření | L4: S | M4: Is | N4: [kWh/m2] | O4: 8.2 | P4: 13.4 | Q4: 25.3 | R4: 36 | S4: 49.1 | T4: 51.8 | U4: 51.3 | V4: 42.4 | W4: 28.8 | X4: 18.6 | Y4: 9.4 | Z4: 6 | AE4: 3 | AF4: Střecha/strop pod nevytápěným prostorem (tepelný tok zdola nahoru) | AG4: 0.1 | AH4: 0.04
A5: 3 | B5: Cihly plné 60 cm | C5: 1.03 | D5: 0.3 | E5: 0.25 | F5: 0.18 | G5: 0.12 | H5: 0.6 | K5: intenzita slunečního záření | L5: J | M5: Is | N5: [kWh/m2] | O5: 34.2 | P5: 51.1 | Q5: 74.4 | R5: 85.7 | S5: 87 | T5: 75.6 | U5: 78.1 | V5: 96 | W5: 77.8 | X5: 74.4 | Y5: 45.4 | Z5: 29 | AE5: 4 | AF5: Podlaha nad volným prostorem nebo sklepem (tepelný tok shora dolů) | AG5: 0.17 | AH5: 0.04
A6: 4 | B6: Zdivo smíšené 30 cm | C6: 2.91 | D6: 0.3 | E6: 0.25 | F6: 0.18 | G6: 0.12 | H6: 0.3 | K6: intenzita slunečního záření | L6: V | M6: Is | N6: [kWh/m2] | O6: 14.1 | P6: 25.5 | Q6: 46.9 | R6: 74.2 | S6: 87 | T6: 90 | U6: 84.1 | V6: 80.4 | W6: 53.3 | X6: 38.7 | Y6: 18 | Z6: 11.2 | AE6: 5 | AF6: Podlaha na zemině (tepelný tok shora dolů) | AG6: 0.17 | AH6: 0
A7: 5 | B7: Zdivo smíšené 45 cm | C7: 2.48 | D7: 0.3 | E7: 0.25 | F7: 0.18 | G7: 0.12 | H7: 0.45 | K7: intenzita slunečního záření | L7: Z | M7: Is | N7: [kWh/m2] | O7: 14.1 | P7: 25.5 | Q7: 46.9 | R7: 74.2 | S7: 87 | T7: 90 | U7: 84.1 | V7: 80.4 | W7: 53.3 | X7: 38.7 | Y7: 18 | Z7: 11.2 | AE7: =VLOOKUP(AD2,AE2:AH6,1) -> 1 | AF7: =VLOOKUP(AD2,AE2:AH6,2) -> Stěna (tepelný tok vodorovně) | AG7: =VLOOKUP(AD2,AE2:AH6,3) -> 0.13 | AH7: =VLOOKUP(AD2,AE2:AH6,4) -> 0.04
A8: 6 | B8: Zdivo smíšené 60 cm | C8: 2.16 | D8: 0.3 | E8: 0.25 | F8: 0.18 | G8: 0.12 | H8: 0.6 | K8: intenzita slunečního záření | L8: H | M8: Is | N8: [kWh/m2] | O8: 20.8 | P8: 37 | Q8: 72.2 | R8: 113.8 | S8: 148.8 | T8: 146.2 | U8: 144.3 | V8: 136.2 | W8: 87.1 | X8: 56.5 | Y8: 25.2 | Z8: 14.9
A9: 7 | B9: Vyztužený beton 15 cm | C9: 3.77 | D9: 0.3 | E9: 0.25 | F9: 0.18 | G9: 0.12 | H9: 0.15 | K9: intenzita slunečního záření | L9: SV | M9: Is | N9: [kWh/m2] | O9: 8.2 | P9: 14.8 | Q9: 29.8 | R9: 50.4 | S9: 65.5 | T9: 70.6 | U9: 66.2 | V9: 56.5 | W9: 35.3 | X9: 21.6 | Y9: 9.4 | Z9: 6
A10: 8 | B10: Vyztužený beton 30 cm | C10: 2.78 | D10: 0.3 | E10: 0.25 | F10: 0.18 | G10: 0.12 | H10: 0.3 | K10: intenzita slunečního záření | L10: SZ | M10: Is | N10: [kWh/m2] | O10: 8.2 | P10: 14.8 | Q10: 29.8 | R10: 50.4 | S10: 65.5 | T10: 70.6 | U10: 66.2 | V10: 56.5 | W10: 35.3 | X10: 21.6 | Y10: 9.4 | Z10: 6 | AF10: Konstrukce 1 PS
A11: 9 | B11: Vyztužený beton 45 cm | C11: 2.2 | D11: 0.3 | E11: 0.25 | F11: 0.18 | G11: 0.12 | H11: 0.45 | K11: intenzita slunečního záření | L11: JV | M11: Is | N11: [kWh/m2] | O11: 26.8 | P11: 41 | Q11: 64.7 | R11: 86.4 | S11: 92.3 | T11: 87.8 | U11: 85.6 | V11: 94.5 | W11: 69.1 | X11: 60.3 | Y11: 33.8 | Z11: 23.1 | AF11: Materiál | AG11: d [mm] | AH11: λ [W/(m.K)] | AK11: Rsi | AL11: Rse
A12: 10 | B12: Děrované cihly 30 cm | C12: 1.56 | D12: 0.3 | E12: 0.25 | F12: 0.18 | G12: 0.12 | H12: 0.3 | K12: intenzita slunečního záření | L12: JZ | M12: Is | N12: [kWh/m2] | O12: 26.8 | P12: 41 | Q12: 64.7 | R12: 86.4 | S12: 92.3 | T12: 87.8 | U12: 85.6 | V12: 94.5 | W12: 69.1 | X12: 60.3 | Y12: 33.8 | Z12: 23.1 | AF12: ='Kalkulačka na U'!C10 -> 0 | AG12: ='Kalkulačka na U'!D10 -> 0 | AH12: ='Kalkulačka na U'!E10 -> 0 | AI12: =IF(AG12=0,0,IF(AND(ISBLANK(AG12),ISBLANK(AG12)),0,AG12/AH12/1000)) -> 0 | AK12: =AG7 -> 0.13 | AL12: =AH7 -> 0.04
A13: 11 | B13: Děrované cihly 45 cm | C13: 1.18 | D13: 0.3 | E13: 0.25 | F13: 0.18 | G13: 0.12 | H13: 0.45 | AF13: ='Kalkulačka na U'!C11 -> 0 | AG13: ='Kalkulačka na U'!D11 -> 0 | AH13: ='Kalkulačka na U'!E11 -> 0 | AI13: 0
A14: 12 | B14: Děrované cihly 60 cm | C14: 0.95 | D14: 0.3 | E14: 0.25 | F14: 0.18 | G14: 0.12 | H14: 0.6 | AF14: ='Kalkulačka na U'!C12 -> 0 | AG14: ='Kalkulačka na U'!D12 -> 0 | AH14: ='Kalkulačka na U'!E12 -> 0 | AI14: 0
A15: 13 | B15: Tvárnice šedé 30 cm | C15: 1.59 | D15: 0.3 | E15: 0.25 | F15: 0.18 | G15: 0.12 | H15: 0.3 | AF15: ='Kalkulačka na U'!C13 -> 0 | AG15: ='Kalkulačka na U'!D13 -> 0 | AH15: ='Kalkulačka na U'!E13 -> 0 | AI15: =IF(AG15=0,0,IF(AND(ISBLANK(AG15),ISBLANK(AG15)),0,AG15/AH15/1000)) -> 0
A16: 14 | B16: Tvárnice šedé 45 cm | C16: 1.2 | D16: 0.3 | E16: 0.25 | F16: 0.18 | G16: 0.12 | H16: 0.45 | K16: Energonositelé dle vyhlášky č.78/2013 Sb. | P16: Faktor celkové primární energie | T16: Faktor neobnovitelné primární energie | X16: Součinitel emisí CO2 | Y16: dle MDVRR SR č. 364/2012 Z.z. | AF16: ='Kalkulačka na U'!C14 -> 0 | AG16: ='Kalkulačka na U'!D14 -> 0 | AH16: ='Kalkulačka na U'!E14 -> 0 | AI16: =IF(AG16=0,0,IF(AND(ISBLANK(AG16),ISBLANK(AG16)),0,AG16/AH16/1000)) -> 0
A17: 15 | B17: Tvárnice šedé 60 cm | C17: 0.97 | D17: 0.3 | E17: 0.25 | F17: 0.18 | G17: 0.12 | H17: 0.6 | P17: (-) | T17: (-) | X17: (kg/kWh) | AF17: ='Kalkulačka na U'!C15 -> 0 | AG17: ='Kalkulačka na U'!D15 -> 0 | AH17: ='Kalkulačka na U'!E15 -> 0 | AI17: 0
A18: 16 | B18: Moderní děrované cihly 30 cm | C18: 0.7 | D18: 0.3 | E18: 0.25 | F18: 0.18 | G18: 0.12 | H18: 0.3 | K18: Zemní plyn | P18: 1.1 | T18: 1.1 | X18: 0.277 | AF18: ='Kalkulačka na U'!C16 -> 0 | AG18: ='Kalkulačka na U'!D16 -> 0 | AH18: ='Kalkulačka na U'!E16 -> 0 | AI18: 0
A19: 17 | B19: Moderní děrované cihly 45 cm | C19: 0.49 | D19: 0.3 | E19: 0.25 | F19: 0.18 | G19: 0.12 | H19: 0.45 | K19: Černé uhlí | P19: 1.1 | T19: 1.1 | X19: 0.394 | AF19: ='Kalkulačka na U'!C17 -> 0 | AG19: ='Kalkulačka na U'!D17 -> 0 | AH19: ='Kalkulačka na U'!E17 -> 0 | AI19: 0
A20: 18 | B20: Moderní děrované cihly 60 cm | C20: 0.38 | D20: 0.3 | E20: 0.25 | F20: 0.18 | G20: 0.12 | H20: 0.6 | K20: Hnědé uhlí | P20: 1.1 | T20: 1.1 | X20: 0.433 | AF20: ='Kalkulačka na U'!C18 -> 0 | AG20: ='Kalkulačka na U'!D18 -> 0 | AH20: ='Kalkulačka na U'!E18 -> 0 | AI20: 0
A21: 19 | B21: Moderní pórobeton 30 cm | C21: 0.58 | D21: 0.3 | E21: 0.25 | F21: 0.18 | G21: 0.12 | H21: 0.3 | K21: Propan-butan/LPG | P21: 1.2 | T21: 1.2 | X21: 0.248 | AF21: ='Kalkulačka na U'!C19 -> 0 | AG21: ='Kalkulačka na U'!D19 -> 0 | AH21: ='Kalkulačka na U'!E19 -> 0 | AI21: 0
A22: 20 | B22: Moderní pórobeton 45 cm | C22: 0.4 | D22: 0.3 | E22: 0.25 | F22: 0.18 | G22: 0.12 | H22: 0.45 | K22: Topný olej | P22: 1.2 | T22: 1.2 | X22: 0.33
A23: 21 | B23: Moderní pórobeton 60 cm | C23: 0.31 | D23: 0.3 | E23: 0.25 | F23: 0.18 | G23: 0.12 | H23: 0.6 | K23: Elektřina ze sítě | P23: 3.2 | T23: 3 | X23: 0.293 | AH23: U | AI23: =ROUND(1/(AK12+AL12+SUM(AI12:AI21)),2) -> 5.88
A24: 22 | B24: Vápenopískové cihly 30 cm | C24: 1.75 | D24: 0.3 | E24: 0.25 | F24: 0.18 | G24: 0.12 | H24: 0.3 | K24: Dřevěné peletky | P24: 1.2 | T24: 0.2 | X24: 0.02
A25: 23 | B25: Vápenopískové cihly 45 cm | C25: 1.34 | D25: 0.3 | E25: 0.25 | F25: 0.18 | G25: 0.12 | H25: 0.45 | K25: Kusové dřevo, dřevní štěpky | P25: 1.1 | T25: 0.1 | X25: 0.02
A26: 24 | B26: Vápenopískové cihly 60 cm | C26: 1.09 | D26: 0.3 | E26: 0.25 | F26: 0.18 | G26: 0.12 | H26: 0.6 | K26: Energie okolního prostředí (elektřina a teplo) | P26: 1 | T26: 0 | X26: 0 | AD26: 1 | AE26: 1 | AF26: Stěna (tepelný tok vodorovně) | AG26: 0.13 | AH26: 0.04
A27: 25 | B27: Porotherm 30 P+D - běžná malta | C27: 0.74 | D27: 0.3 | E27: 0.25 | F27: 0.18 | G27: 0.12 | H27: 0.3 | K27: Elektřína - dodávka mimo budovu | P27: -3.2 | T27: -3 | X27: 0 | AE27: 2 | AF27: Stěna přilehlá k zemině (tepelný tok vodorovně) | AG27: 0.13 | AH27: 0
A28: 26 | B28: Porotherm 30 Profi - tenké spáry | C28: 0.54 | D28: 0.3 | E28: 0.25 | F28: 0.18 | G28: 0.12 | H28: 0.3 | K28: Teplo - dodávka mimo budovu | P28: -1.1 | T28: -0.1 | X28: 0 | AE28: 3 | AF28: Střecha/strop pod nevytápěným prostorem (tepelný tok zdola nahoru) | AG28: 0.1 | AH28: 0.04
A29: 27 | B29: Porotherm 36,5 P+D - běžná malta | C29: 0.43 | D29: 0.3 | E29: 0.25 | F29: 0.18 | G29: 0.12 | H29: 0.365 | K29: Soustava s vyšším než 80% podílem obnovitelných zdrojů | P29: 1.1 | T29: 0.1 | X29: 0 | AE29: 4 | AF29: Podlaha nad volným prostorem nebo sklepem (tepelný tok shora dolů) | AG29: 0.17 | AH29: 0.04
A30: 28 | B30: Porotherm 36,5 Profi - tenké spáry | C30: 0.36 | D30: 0.3 | E30: 0.25 | F30: 0.18 | G30: 0.12 | H30: 0.365 | K30: Soustava s vyšším než 50% a nejvýše 80% podílem obnovitelných zdrojů | P30: 1.1 | T30: 0.3 | X30: 0 | AE30: 5 | AF30: Podlaha na zemině (tepelný tok shora dolů) | AG30: 0.17 | AH30: 0
A31: 29 | B31: Porotherm 44 P+D - běžná malta | C31: 0.39 | D31: 0.3 | E31: 0.25 | F31: 0.18 | G31: 0.12 | H31: 0.44 | K31: Soustava s 50% a nižším podílem obnovitelných zdrojů | P31: 1.1 | T31: 1 | X31: 0 | AE31: =VLOOKUP(AD26,AE26:AH30,1) -> 1 | AF31: =VLOOKUP(AD26,AE26:AH30,2) -> Stěna (tepelný tok vodorovně) | AG31: =VLOOKUP(AD26,AE26:AH30,3) -> 0.13 | AH31: =VLOOKUP(AD26,AE26:AH30,4) -> 0.04
A32: 30 | B32: Porotherm 44 Profi - tenké spáry | C32: 0.29 | D32: 0.3 | E32: 0.25 | F32: 0.18 | G32: 0.12 | H32: 0.44 | K32: Ostatní neuvedené energonositele | P32: 1.2 | T32: 1.2 | X32: 0
A33: 31 | B33: Porotherm 50 Hi CB - tenké spáry | C33: 0.17 | D33: 0.3 | E33: 0.25 | F33: 0.18 | G33: 0.12 | H33: 0.5
A34: 32 | B34: Požadavek na stěny od roku 1979 | C34: 0.89 | D34: 0.3 | E34: 0.25 | F34: 0.18 | G34: 0.12 | H34: 0.6 | AF34: Konstrukce 1 NS
A35: 33 | B35: Požadavek na stěny od roku 1992 | C35: 0.46 | D35: 0.3 | E35: 0.25 | F35: 0.18 | G35: 0.12 | H35: 0.6 | AF35: Materiál | AG35: d [mm] | AH35: λ [W/(m.K)] | AK35: Rsi | AL35: Rse
A36: 34 | B36: Požadavek na těžké stěny od roku 2002 | C36: 0.38 | D36: 0.3 | E36: 0.25 | F36: 0.18 | G36: 0.12 | H36: 0.45 | AF36: ='Kalkulačka na U'!H10 -> 0 | AG36: ='Kalkulačka na U'!I10 -> 0 | AH36: ='Kalkulačka na U'!J10 -> 0 | AI36: =IF(AG36=0,0,IF(AND(ISBLANK(AG36),ISBLANK(AG36)),0,AG36/AH36/1000)) -> 0 | AK36: =AG31 -> 0.13 | AL36: =AH31 -> 0.04
A37: 35 | B37: Požadavek na lehké stěny od roku 2002 | C37: 0.3 | D37: 0.3 | E37: 0.25 | F37: 0.18 | G37: 0.12 | H37: 0.4 | AF37: ='Kalkulačka na U'!H11 -> 0 | AG37: ='Kalkulačka na U'!I11 -> 0 | AH37: ='Kalkulačka na U'!J11 -> 0 | AI37: 0
A38: 36 | B38: Požadavek na stěny od roku 2011 | C38: 0.3 | D38: 0.3 | E38: 0.25 | F38: 0.18 | G38: 0.12 | H38: 0.45
A39: 37 | B39: Stěna pro nízkoenergetický dům | C39: 0.25 | D39: 0.3 | E39: 0.25 | F39: 0.18 | G39: 0.12 | H39: 0.4
B40: v případě přidávání dalších konstrukcí- nutné propojit s výpočtem objemu !!
AF43: ='Kalkulačka na U'!H12 -> 0 | AG43: ='Kalkulačka na U'!I12 -> 0 | AH43: ='Kalkulačka na U'!J12 -> 0 | AI43: 0
B44: strop a střecha | AF44: ='Kalkulačka na U'!H13 -> 0 | AG44: ='Kalkulačka na U'!I13 -> 0 | AH44: ='Kalkulačka na U'!J13 -> 0 | AI44: =IF(AG44=0,0,IF(AND(ISBLANK(AG44),ISBLANK(AG44)),0,AG44/AH44/1000)) -> 0
B45: konstrukce | AF45: ='Kalkulačka na U'!H14 -> 0 | AG45: ='Kalkulačka na U'!I14 -> 0 | AH45: ='Kalkulačka na U'!J14 -> 0 | AI45: =IF(AG45=0,0,IF(AND(ISBLANK(AG45),ISBLANK(AG45)),0,AG45/AH45/1000)) -> 0
A46: 1 | B46: Střecha plochá - s železobetonovou deskou | C46: 0.5 | D46: 0.24 | E46: 0.16 | F46: 0.15 | G46: 0.1 | H46: 0.38 | I46: do 45° | AF46: ='Kalkulačka na U'!H15 -> 0 | AG46: ='Kalkulačka na U'!I15 -> 0 | AH46: ='Kalkulačka na U'!J15 -> 0 | AI46: 0
A47: 2 | B47: Střecha plochá - dutinový panel (bez izolace) | C47: 2.64 | D47: 0.24 | E47: 0.16 | F47: 0.15 | G47: 0.1 | H47: 0.25 | I47: do 45° | AF47: ='Kalkulačka na U'!H16 -> 0 | AG47: ='Kalkulačka na U'!I16 -> 0 | AH47: ='Kalkulačka na U'!J16 -> 0 | AI47: 0
A48: 3 | B48: Střecha plochá - s keramickými vložkam | C48: 1.34 | D48: 0.24 | E48: 0.16 | F48: 0.15 | G48: 0.1 | H48: 0.26 | I48: do 45° | AF48: ='Kalkulačka na U'!H17 -> 0 | AG48: ='Kalkulačka na U'!I17 -> 0 | AH48: ='Kalkulačka na U'!J17 -> 0 | AI48: 0
A49: 4 | B49: Střecha plochá - novější (zateplená) | C49: 0.25 | D49: 0.24 | E49: 0.16 | F49: 0.15 | G49: 0.1 | H49: 0.38 | I49: do 45° | AF49: ='Kalkulačka na U'!H18 -> 0 | AG49: ='Kalkulačka na U'!I18 -> 0 | AH49: ='Kalkulačka na U'!J18 -> 0 | AI49: 0
A50: 5 | B50: Střecha plochá - U doporučené | C50: 0.16 | D50: 0.24 | E50: 0.16 | F50: 0.15 | G50: 0.1 | H50: 0.45 | I50: do 45° | AF50: ='Kalkulačka na U'!H19 -> 0 | AG50: ='Kalkulačka na U'!I19 -> 0 | AH50: ='Kalkulačka na U'!J19 -> 0 | AI50: 0
A51: 6 | B51: Střecha plochá - pasivní standard | C51: 0.14 | D51: 0.24 | E51: 0.16 | F51: 0.15 | G51: 0.1 | H51: 0.5 | I51: do 45°
A52: 7 | B52: Střecha šikmá - tenká vrstva izolace (zastaralá) | C52: 0.66 | D52: 0.24 | E52: 0.16 | F52: 0.15 | G52: 0.1 | H52: 0.215 | I52: do 45° | AH52: U | AI52: =ROUND(1/(AK36+AL36+SUM(AI36:AI50)),2) -> 5.88
A53: 8 | B53: Střecha šikmá - izolace mezi krokvemi | C53: 0.28 | D53: 0.24 | E53: 0.16 | F53: 0.15 | G53: 0.1 | H53: 0.215 | I53: do 45°
A54: 9 | B54: Střecha šikmá - izolace i pod krokvemi | C54: 0.22 | D54: 0.24 | E54: 0.16 | F54: 0.15 | G54: 0.1 | H54: 0.255 | I54: do 45° | AD54: 4 | AE54: 1 | AF54: Stěna (tepelný tok vodorovně) | AG54: 0.13 | AH54: 0.04
A55: 10 | B55: Střecha šikmá - novější (zateplená) | C55: 0.19 | D55: 0.24 | E55: 0.16 | F55: 0.15 | G55: 0.1 | H55: 0.3 | I55: do 45° | AE55: 2 | AF55: Stěna přilehlá k zemině (tepelný tok vodorovně) | AG55: 0.13 | AH55: 0
A56: 11 | B56: Střecha šikmá - U doporučené | C56: 0.16 | D56: 0.24 | E56: 0.16 | F56: 0.15 | G56: 0.1 | H56: 0.34 | I56: do 45° | AE56: 3 | AF56: Střecha/strop pod nevytápěným prostorem (tepelný tok zdola nahoru) | AG56: 0.1 | AH56: 0.04
A57: 12 | B57: Střecha šikmá - pasivní standard | C57: 0.14 | D57: 0.24 | E57: 0.16 | F57: 0.15 | G57: 0.1 | H57: 0.38 | I57: do 45° | AE57: 4 | AF57: Podlaha nad volným prostorem nebo sklepem (tepelný tok shora dolů) | AG57: 0.17 | AH57: 0.04
A58: 1 | B58: Střecha šikmá - tenká vrstva izolace (zastaralá) | C58: 0.66 | D58: 0.24 | E58: 0.16 | F58: 0.15 | G58: 0.1 | H58: 0.215 | I58: nad 45° | AE58: 5 | AF58: Podlaha na zemině (tepelný tok shora dolů) | AG58: 0.17 | AH58: 0
A59: 2 | B59: Střecha šikmá - izolace mezi krokvemi | C59: 0.28 | D59: 0.3 | E59: 0.2 | F59: 0.18 | G59: 0.12 | H59: 0.215 | I59: nad 45° | AE59: =VLOOKUP(AD54,AE54:AH58,1) -> 4 | AF59: =VLOOKUP(AD54,AE54:AH58,2) -> Podlaha nad volným prostorem nebo sklepem (tepelný tok shora dolů) | AG59: =VLOOKUP(AD54,AE54:AH58,3) -> 0.17 | AH59: =VLOOKUP(AD54,AE54:AH58,4) -> 0.04
A60: 3 | B60: Střecha šikmá - izolace i pod krokvemi | C60: 0.22 | D60: 0.3 | E60: 0.2 | F60: 0.18 | G60: 0.12 | H60: 0.255 | I60: nad 45°
A61: 4 | B61: Střecha šikmá - novější (zateplená) | C61: 0.19 | D61: 0.3 | E61: 0.2 | F61: 0.18 | G61: 0.12 | H61: 0.3 | I61: nad 45°
A62: 5 | B62: Střecha šikmá - U doporučené | C62: 0.16 | D62: 0.3 | E62: 0.2 | F62: 0.18 | G62: 0.12 | H62: 0.34 | I62: nad 45° | AF62: Konstrukce 2 PS
A63: 6 | B63: Střecha šikmá - pasivní standard | C63: 0.14 | D63: 0.3 | E63: 0.2 | F63: 0.18 | G63: 0.12 | H63: 0.38 | I63: nad 45° | AF63: Materiál | AG63: d [mm] | AH63: λ [W/(m.K)] | AK63: Rsi | AL63: Rse
A64: 1 | B64: Strop - dřevěný,trámový | C64: 0.99 | D64: 0.3 | E64: 0.2 | F64: 0.15 | G64: 0.1 | H64: 0.4 | I64: podlaha půdy | AF64: ='Kalkulačka na U'!C35 -> 0 | AG64: ='Kalkulačka na U'!D35 -> 0 | AH64: ='Kalkulačka na U'!E35 -> 0 | AI64: =IF(AG64=0,0,IF(AND(ISBLANK(AG64),ISBLANK(AG64)),0,AG64/AH64/1000)) -> 0 | AK64: =AG59 -> 0.17 | AL64: =AH59 -> 0.04
A65: 2 | B65: Strop - s nosnou keramickou vložkou | C65: 1.5 | D65: 0.3 | E65: 0.2 | F65: 0.15 | G65: 0.1 | H65: 0.265 | I65: podlaha půdy | AF65: ='Kalkulačka na U'!C36 -> 0 | AG65: ='Kalkulačka na U'!D36 -> 0 | AH65: ='Kalkulačka na U'!E36 -> 0 | AI65: 0
A66: 3 | B66: Strop - železobetonový strop (bez izolace) | C66: 3.82 | D66: 0.3 | E66: 0.2 | F66: 0.15 | G66: 0.1 | H66: 0.18 | I66: podlaha půdy | AF66: ='Kalkulačka na U'!C37 -> 0 | AG66: ='Kalkulačka na U'!D37 -> 0 | AH66: ='Kalkulačka na U'!E37 -> 0 | AI66: 0
A67: 4 | B67: Strop - dutinové panely (bez izolace) | C67: 3.06 | D67: 0.3 | E67: 0.2 | F67: 0.15 | G67: 0.1 | H67: 0.22 | I67: podlaha půdy | AF67: ='Kalkulačka na U'!C38 -> 0 | AG67: ='Kalkulačka na U'!D38 -> 0 | AH67: ='Kalkulačka na U'!E38 -> 0 | AI67: =IF(AG67=0,0,IF(AND(ISBLANK(AG67),ISBLANK(AG67)),0,AG67/AH67/1000)) -> 0
A68: 5 | B68: Strop - U požadované | C68: 0.3 | D68: 0.3 | E68: 0.2 | F68: 0.15 | G68: 0.1 | H68: 0.37 | I68: podlaha půdy | AF68: ='Kalkulačka na U'!C39 -> 0 | AG68: ='Kalkulačka na U'!D39 -> 0 | AH68: ='Kalkulačka na U'!E39 -> 0 | AI68: =IF(AG68=0,0,IF(AND(ISBLANK(AG68),ISBLANK(AG68)),0,AG68/AH68/1000)) -> 0
A69: 6 | B69: Strop - U doporučené | C69: 0.2 | D69: 0.3 | E69: 0.2 | F69: 0.15 | G69: 0.1 | H69: 0.43 | I69: podlaha půdy | AF69: ='Kalkulačka na U'!C40 -> 0 | AG69: ='Kalkulačka na U'!D40 -> 0 | AH69: ='Kalkulačka na U'!E40 -> 0 | AI69: 0
A70: 7 | B70: Strop - pasivní standard | C70: 0.14 | D70: 0.3 | E70: 0.2 | F70: 0.15 | G70: 0.1 | H70: 0.51 | I70: podlaha půdy | AF70: ='Kalkulačka na U'!C41 -> 0 | AG70: ='Kalkulačka na U'!D41 -> 0 | AH70: ='Kalkulačka na U'!E41 -> 0 | AI70: 0
B71: v případě přidávání dalších konstrukcí- nutné propojit s výpočtem objemu !! | AF71: ='Kalkulačka na U'!C42 -> 0 | AG71: ='Kalkulačka na U'!D42 -> 0 | AH71: ='Kalkulačka na U'!E42 -> 0 | AI71: 0
AF75: ='Kalkulačka na U'!C43 -> 0 | AG75: ='Kalkulačka na U'!D43 -> 0 | AH75: ='Kalkulačka na U'!E43 -> 0 | AI75: 0
B76: podlaha | AF76: ='Kalkulačka na U'!C44 -> 0 | AG76: ='Kalkulačka na U'!D44 -> 0 | AH76: ='Kalkulačka na U'!E44 -> 0 | AI76: 0
A77: 1 | B77: Podl. na terénu - zastaralá (bez izolace) | C77: 1.7 | D77: 0.45 | E77: 0.3 | F77: 0.22 | G77: 0.15 | H77: 0.2
A78: 2 | B78: Podl. na terénu - zastaralá (s izolací) | C78: 0.97 | D78: 0.45 | E78: 0.3 | F78: 0.22 | G78: 0.15 | H78: 0.23 | AH78: U | AI78: =ROUND(1/(AK64+AL64+SUM(AI64:AI76)),2) -> 4.76
A79: 3 | B79: Podl. na terénu - težká s parketami (bez izolace) | C79: 3.24 | D79: 0.45 | E79: 0.3 | F79: 0.22 | G79: 0.15 | H79: 0.07
A80: 4 | B80: Podl. na terénu - lehká s parketami (bez izolace) | C80: 1.8 | D80: 0.45 | E80: 0.3 | F80: 0.22 | G80: 0.15 | H80: 0.05
A81: 5 | B81: Podl. na terénu - težká s dlažbou (bez izolace) | C81: 4.35 | D81: 0.45 | E81: 0.3 | F81: 0.22 | G81: 0.15 | H81: 0.07 | AD81: 3 | AE81: 1 | AF81: Stěna (tepelný tok vodorovně) | AG81: 0.13 | AH81: 0.04
A82: 6 | B82: Podl. na terénu - lehká s dlažbou (bez izolace) | C82: 2.33 | D82: 0.45 | E82: 0.3 | F82: 0.22 | G82: 0.15 | H82: 0.05 | AE82: 2 | AF82: Stěna přilehlá k zemině (tepelný tok vodorovně) | AG82: 0.13 | AH82: 0
A83: 7 | B83: Podl. na terénu - U požadované | C83: 0.45 | D83: 0.45 | E83: 0.3 | F83: 0.22 | G83: 0.15 | H83: 0.15 | AE83: 3 | AF83: Střecha/strop pod nevytápěným prostorem (tepelný tok zdola nahoru) | AG83: 0.1 | AH83: 0.04
A84: 8 | B84: Podl. na terénu - U doporučené | C84: 0.3 | D84: 0.45 | E84: 0.3 | F84: 0.22 | G84: 0.15 | H84: 0.18 | AE84: 4 | AF84: Podlaha nad volným prostorem nebo sklepem (tepelný tok shora dolů) | AG84: 0.17 | AH84: 0.04
A85: 9 | B85: Podl. na terénu - pasivní standard | C85: 0.2 | D85: 0.45 | E85: 0.3 | F85: 0.22 | G85: 0.15 | H85: 0.25 | AE85: 5 | AF85: Podlaha na zemině (tepelný tok shora dolů) | AG85: 0.17 | AH85: 0
A86: 10 | AE86: =VLOOKUP(AD81,AE81:AH85,1) -> 3 | AF86: =VLOOKUP(AD81,AE81:AH85,2) -> Střecha/strop pod nevytápěným prostorem (tepelný tok zdola nahoru) | AG86: =VLOOKUP(AD81,AE81:AH85,3) -> 0.1 | AH86: =VLOOKUP(AD81,AE81:AH85,4) -> 0.04
A87: 1 | B87: Podl. nad suterénem - bez tep. izolace (zastaralá) | C87: 1.53 | D87: 0.6 | E87: 0.4 | F87: 0.3 | G87: 0.2 | H87: 0.35
A88: 2 | B88: Podl. nad suterénem - s tep. izolací (zastaralá) | C88: 0.82 | D88: 0.6 | E88: 0.4 | F88: 0.3 | G88: 0.2 | H88: 0.33
A89: 3 | B89: Podl. nad suterénem - težká s parketami (bez izolace) | C89: 1.72 | D89: 0.6 | E89: 0.4 | F89: 0.3 | G89: 0.2 | H89: 0.34 | AF89: Konstrukce 2 NS
A90: 4 | B90: Podl. nad suterénem - lehká s parketami (bez izolace) | C90: 1.18 | D90: 0.6 | E90: 0.4 | F90: 0.3 | G90: 0.2 | H90: 0.32 | AF90: Materiál | AG90: d [mm] | AH90: λ [W/(m.K)] | AK90: Rsi | AL90: Rse
A91: 5 | B91: Podl. nad suterénem - težká s dlažbou (bez izolace) | C91: 1.8 | D91: 0.6 | E91: 0.4 | F91: 0.3 | G91: 0.2 | H91: 0.385 | AF91: ='Kalkulačka na U'!H35 -> 0 | AG91: ='Kalkulačka na U'!I35 -> 0 | AH91: ='Kalkulačka na U'!J35 -> 0 | AI91: =IF(AG91=0,0,IF(AND(ISBLANK(AG91),ISBLANK(AG91)),0,AG91/AH91/1000)) -> 0 | AK91: =AG86 -> 0.1 | AL91: =AH86 -> 0.04
A92: 6 | B92: Podl. nad suterénem - lehká s dlažbou (bez izolace) | C92: 1.33 | D92: 0.6 | E92: 0.4 | F92: 0.3 | G92: 0.2 | H92: 0.33 | AF92: ='Kalkulačka na U'!H36 -> 0 | AG92: ='Kalkulačka na U'!I36 -> 0 | AH92: ='Kalkulačka na U'!J36 -> 0 | AI92: 0
A93: 7 | B93: Podl. nad suterénem - U požadované | C93: 0.6 | D93: 0.6 | E93: 0.4 | F93: 0.3 | G93: 0.2 | H93: 0.38 | AF93: ='Kalkulačka na U'!H37 -> 0 | AG93: ='Kalkulačka na U'!I37 -> 0 | AH93: ='Kalkulačka na U'!J37 -> 0 | AI93: 0
A94: 8 | B94: Podl. nad suterénem - U doporučené | C94: 0.4 | D94: 0.6 | E94: 0.4 | F94: 0.3 | G94: 0.2 | H94: 0.42 | AF94: ='Kalkulačka na U'!H38 -> 0 | AG94: ='Kalkulačka na U'!I38 -> 0 | AH94: ='Kalkulačka na U'!J38 -> 0 | AI94: =IF(AG94=0,0,IF(AND(ISBLANK(AG94),ISBLANK(AG94)),0,AG94/AH94/1000)) -> 0
A95: 9 | B95: Podl. nad suterénem - pasivní standard | C95: 0.28 | D95: 0.6 | E95: 0.4 | F95: 0.3 | G95: 0.2 | H95: 0.46 | AF95: ='Kalkulačka na U'!H39 -> 0 | AG95: ='Kalkulačka na U'!I39 -> 0 | AH95: ='Kalkulačka na U'!J39 -> 0 | AI95: =IF(AG95=0,0,IF(AND(ISBLANK(AG95),ISBLANK(AG95)),0,AG95/AH95/1000)) -> 0
A96: 10 | AF96: ='Kalkulačka na U'!H40 -> 0 | AG96: ='Kalkulačka na U'!I40 -> 0 | AH96: ='Kalkulačka na U'!J40 -> 0 | AI96: 0
A97: 11 | AF97: ='Kalkulačka na U'!H41 -> 0 | AG97: ='Kalkulačka na U'!I41 -> 0 | AH97: ='Kalkulačka na U'!J41 -> 0 | AI97: 0
B98: v případě přidávání dalších konstrukcí- nutné propojit s výpočtem objemu !! | AF98: ='Kalkulačka na U'!H42 -> 0 | AG98: ='Kalkulačka na U'!I42 -> 0 | AH98: ='Kalkulačka na U'!J42 -> 0 | AI98: 0
AF99: ='Kalkulačka na U'!H43 -> 0 | AG99: ='Kalkulačka na U'!I43 -> 0 | AH99: ='Kalkulačka na U'!J43 -> 0 | AI99: 0
AF100: ='Kalkulačka na U'!H44 -> 0 | AG100: ='Kalkulačka na U'!I44 -> 0 | AH100: ='Kalkulačka na U'!J44 -> 0 | AI100: 0
B101: okna | H101: g - součinitel propustnosti sol. záření
A102: 1 | B102: okno jednoduché s jedním sklem | C102: 4.5 | D102: 1.5 | E102: 1.2 | F102: 0.8 | G102: 0.6 | H102: 0.85 | AH102: U | AI102: =ROUND(1/(AK91+AL91+SUM(AI91:AI100)),2) -> 7.14
A103: 2 | B103: okno jednoduché s dvojsklem (starší) | C103: 2.5 | D103: 1.5 | E103: 1.2 | F103: 0.8 | G103: 0.6 | H103: 0.75
A104: 3 | B104: okno zdvojené (sešroub. rámy) s dvěma skly | C104: 2.4 | D104: 1.5 | E104: 1.2 | F104: 0.8 | G104: 0.6 | H104: 0.75
A105: 4 | B105: okno špaletové | C105: 2.35 | D105: 1.5 | E105: 1.2 | F105: 0.8 | G105: 0.6 | H105: 0.75
A106: 5 | B106: okno s kovovým rámem a drátosklem | C106: 3.5 | D106: 1.5 | E106: 1.2 | F106: 0.8 | G106: 0.6 | H106: 0.6
A107: 6 | B107: luxfery | C107: 4 | D107: 1.5 | E107: 1.2 | F107: 0.8 | G107: 0.6 | H107: 0.3
A108: 7 | B108: okno starší s dvojsklem | C108: 1.5 | D108: 1.5 | E108: 1.2 | F108: 0.8 | G108: 0.6 | H108: 0.75
A109: 8 | B109: okno novější s dvojsklem | C109: 1.2 | D109: 1.5 | E109: 1.2 | F109: 0.8 | G109: 0.6 | H109: 0.67
A110: 9 | B110: okno s trojsklem | C110: 0.7 | D110: 1.5 | E110: 1.2 | F110: 0.8 | G110: 0.6 | H110: 0.5
A111: 10 | B111: dveře dřevěné vchodové plné | C111: 2.3 | D111: 1.7 | E111: 1.2 | F111: 0.8 | G111: 0.6 | H111: 0
A112: 11 | B112: dveře dřevěné vchodové s prosklením | C112: 4 | D112: 1.7 | E112: 1.2 | F112: 0.8 | G112: 0.6 | H112: 0.75
A113: 12 | B113: dveře balkonové dřevěné | C113: 2.4 | D113: 1.7 | E113: 1.2 | F113: 0.8 | G113: 0.6 | H113: 0.75
A114: 13 | B114: dveře vchodové novější s prosklením | C114: 1.2 | D114: 1.7 | E114: 1.2 | F114: 0.8 | G114: 0.9 | H114: 0.67
A115: 14 | B115: dveře vchodové novější plné | C115: 1.2 | D115: 1.7 | E115: 1.2 | F115: 0.8 | G115: 0.9 | H115: 0
A116: 15 | B116: dveře vchodové trojsklo s prosklením | C116: 0.8 | D116: 1.7 | E116: 1.2 | F116: 0.8 | G116: 0.9 | H116: 0.5
A117: 16 | B117: garážová vrata | C117: 1.3 | D117: 1.7 | E117: 1.2 | F117: 0.8 | G117: 0.9 | H117: 0
A120: 1 | B120: okno střešní jednoduché s jedním sklem | C120: 4.5 | D120: 1.4 | E120: 1.1 | F120: 0.9 | G120: 0.9 | H120: 0.85
A121: 2 | B121: okno střešní starší jednoduché s dvojsklem | C121: 2.5 | D121: 1.4 | E121: 1.1 | F121: 0.9 | G121: 0.9 | H121: 0.75
A122: 3 | B122: okno střešní zdvojené s dvěma skly | C122: 2.4 | D122: 1.4 | E122: 1.1 | F122: 0.9 | G122: 0.9 | H122: 0.75
A123: 4 | B123: okno střešní novější s dvojsklem | C123: 1.2 | D123: 1.4 | E123: 1.1 | F123: 0.9 | G123: 0.9 | H123: 0.67
A124: 5 | B124: okno střešní s trojsklem | C124: 0.9 | D124: 1.4 | E124: 1.1 | F124: 0.9 | G124: 0.9 | H124: 0.5
A125: 6 | C125: 1
A126: 7 | C126: 1
B128: vnitřní stěny
A129: 1 | B129: Cihly plné 10 cm | C129: 2.87 | D129: 0.6 | E129: 0.4 | F129: 0.3 | G129: 0.2 | H129: 0.1
A130: 2 | B130: Cihly plné 20 cm | C130: 2.11 | D130: 0.6 | E130: 0.4 | F130: 0.3 | G130: 0.2 | H130: 0.2
A131: 3 | B131: Cihly plné 30 cm | C131: 1.67 | D131: 0.6 | E131: 0.4 | F131: 0.3 | G131: 0.2 | H131: 0.3
A132: 4 | B132: Zdivo smíšené 10 cm | C132: 3.8 | D132: 0.6 | E132: 0.4 | F132: 0.3 | G132: 0.2 | H132: 0.1
A133: 5 | B133: Zdivo smíšené 20 cm | C133: 3.3 | D133: 0.6 | E133: 0.4 | F133: 0.3 | G133: 0.2 | H133: 0.2
A134: 6 | B134: Zdivo smíšené 30 cm | C134: 2.91 | D134: 0.6 | E134: 0.4 | F134: 0.3 | G134: 0.2 | H134: 0.3
A135: 7 | B135: Vyztužený beton 15 cm | C135: 3.77 | D135: 0.6 | E135: 0.4 | F135: 0.3 | G135: 0.2 | H135: 0.15
A136: 8 | B136: Vyztužený beton 30 cm | C136: 2.78 | D136: 0.6 | E136: 0.4 | F136: 0.3 | G136: 0.2 | H136: 0.3
A137: 9 | B137: Vyztužený beton 45 cm | C137: 2.2 | D137: 0.6 | E137: 0.4 | F137: 0.3 | G137: 0.2 | H137: 0.45
A138: 10 | B138: Děrované cihly 10 cm | C138: 2.76 | D138: 0.6 | E138: 0.4 | F138: 0.3 | G138: 0.2 | H138: 0.1
A139: 11 | B139: Děrované cihly 20 cm | C139: 2 | D139: 0.6 | E139: 0.4 | F139: 0.3 | G139: 0.2 | H139: 0.2
A140: 12 | B140: Děrované cihly 30 cm | C140: 1.56 | D140: 0.6 | E140: 0.4 | F140: 0.3 | G140: 0.2 | H140: 0.3
A141: 13 | B141: Tvárnice šedé 10 cm | C141: 2.79 | D141: 0.6 | E141: 0.4 | F141: 0.3 | G141: 0.2 | H141: 0.1
A142: 14 | B142: Tvárnice šedé 20 cm | C142: 2.03 | D142: 0.6 | E142: 0.4 | F142: 0.3 | G142: 0.2 | H142: 0.2
A143: 15 | B143: Tvárnice šedé 30 cm | C143: 1.59 | D143: 0.6 | E143: 0.4 | F143: 0.3 | G143: 0.2 | H143: 0.3
A144: 16 | B144: Moderní děrované cihly 10 cm | C144: 1.6 | D144: 0.6 | E144: 0.4 | F144: 0.3 | G144: 0.2 | H144: 0.1
A145: 17 | B145: Moderní děrované cihly 20 cm | C145: 0.98 | D145: 0.6 | E145: 0.4 | F145: 0.3 | G145: 0.2 | H145: 0.2
A146: 18 | B146: Moderní děrované cihly 30 cm | C146: 0.7 | D146: 0.6 | E146: 0.4 | F146: 0.3 | G146: 0.2 | H146: 0.3
A147: 19 | B147: Moderní pórobeton 10 cm | C147: 1.38 | D147: 0.6 | E147: 0.4 | F147: 0.3 | G147: 0.2 | H147: 0.1
A148: 20 | B148: Moderní pórobeton 20 cm | C148: 0.82 | D148: 0.6 | E148: 0.4 | F148: 0.3 | G148: 0.2 | H148: 0.2
A149: 21 | B149: Moderní pórobeton 30 cm | C149: 0.58 | D149: 0.6 | E149: 0.4 | F149: 0.3 | G149: 0.2 | H149: 0.3
A150: 22 | B150: Vápenopískové cihly 10 cm | C150: 2.94 | D150: 0.6 | E150: 0.4 | F150: 0.3 | G150: 0.2 | H150: 0.1
A151: 23 | B151: Vápenopískové cihly 20 cm | C151: 2.19 | D151: 0.6 | E151: 0.4 | F151: 0.3 | G151: 0.2 | H151: 0.2
A152: 24 | B152: Vápenopískové cihly 30 cm | C152: 1.75 | D152: 0.6 | E152: 0.4 | F152: 0.3 | G152: 0.2 | H152: 0.3
B153: v případě přidávání dalších konstrukcí- nutné propojit s výpočtem objemu !!
A154: 1 | B154: Dveře vnitřní plné | C154: 2 | D154: 3.5 | E154: 2.3 | F154: 1.7 | G154: 1.7
A155: 2 | B155: Dveře vnitřní 2/3 prosklené | C155: 3 | D155: 3.5 | E155: 2.3 | F155: 1.7 | G155: 1.7
B174: A.1 Zdroje tepla
B176: Hodnoty pro technické systémy dle TNI 73 0331
B177: Základní rozdělení zdrojů tepla | H177: 1 | I177: =IF($H$177=2,A192,IF($H$177=3,A202,IF($H$177=4,A213,IF($H$177=5,A224,IF($H$177=6,A235,IF($H$177=7,A247,"chyba")))))) -> chyba | J177: =IF($H$177=2,B192,IF($H$177=3,B202,IF($H$177=4,B213,IF($H$177=5,B224,IF($H$177=6,B235,IF($H$177=7,B247,"-")))))) -> - | K177: =IF($H$177=2,F192,IF($H$177=3,F202,IF($H$177=4,F213,IF($H$177=5,F224,IF($H$177=6,F235,IF($H$177=7,F247)))))) -> FALSE | M177: =$I$186 -> 10 | N177: =IF($M$177=21,H192,IF($M$177=22,H200,IF($M$177=23,H208,IF($M$177=31,H218,IF($M$177=32,H228,IF($M$177=61,H240,IF($M$177=62,H248,IF($M$177=63,H256,"chyba")))))))) -> chyba | O177: =IF($M$177=21,I192,IF($M$177=22,I200,IF($M$177=23,I208,IF($M$177=31,I218,IF($M$177=32,I228,IF($M$177=61,I240,IF($M$177=62,I248,IF($M$177=63,I256,"-")))))))) -> - | P177: =IF($M$177=21,V192,IF($M$177=22,V200,IF($M$177=23,V208,IF($M$177=31,V218,IF($M$177=32,V228,IF($M$177=61,V240,IF($M$177=62,V248,IF($M$177=63,V256,"chyba")))))))) -> chyba | Y177: 1 | Z177: =IF($Y$177=2,A192,IF($Y$177=3,A202,IF($Y$177=4,A213,IF($Y$177=5,A224,IF($Y$177=6,A235,IF($Y$177=7,A247,"chyba")))))) -> chyba | AA177: =IF($Y$177=2,B192,IF($Y$177=3,B202,IF($Y$177=4,B213,IF($Y$177=5,B224,IF($Y$177=6,B235,IF($Y$177=7,B247,"-")))))) -> - | AB177: =IF($Y$177=2,F192,IF($Y$177=3,F202,IF($Y$177=4,F213,IF($Y$177=5,F224,IF($Y$177=6,F235,IF($Y$177=7,F247)))))) -> FALSE | AD177: =$Z$186 -> 10 | AE177: =IF($AD$177=21,H192,IF($AD$177=22,H200,IF($AD$177=23,H208,IF($AD$177=31,H218,IF($AD$177=32,H228,IF($AD$177=61,H240,IF($AD$177=62,H248,IF($AD$177=63,H256,"chyba")))))))) -> chyba | AF177: =IF($AD$177=21,I192,IF($AD$177=22,I200,IF($AD$177=23,I208,IF($AD$177=31,I218,IF($AD$177=32,I228,IF($AD$177=61,I240,IF($AD$177=62,I248,IF($AD$177=63,I256,"-")))))))) -> - | AG177: =IF($AD$177=21,V192,IF($AD$177=22,V200,IF($AD$177=23,V208,IF($AD$177=31,V218,IF($AD$177=32,V228,IF($AD$177=61,V240,IF($AD$177=62,V248,IF($AD$177=63,V256,"chyba")))))))) -> chyba | AO177: 1 | AP177: =IF($AO$177=2,A192,IF($AO$177=3,A202,IF($AO$177=4,A213,IF($AO$177=5,A224,IF($AO$177=6,A235,IF($AO$177=7,A247,"chyba")))))) -> chyba | AQ177: =IF($AO$177=2,B192,IF($AO$177=3,B202,IF($AO$177=4,B213,IF($AO$177=5,B224,IF($AO$177=6,B235,IF($AO$177=7,B247,"-")))))) -> - | AR177: =IF($AO$177=2,F192,IF($AO$177=3,F202,IF($AO$177=4,F213,IF($AO$177=5,F224,IF($AO$177=6,F235,IF($AO$177=7,F247,"-")))))) -> - | AT177: =$AP$186 -> 10 | AU177: =IF($AT$177=21,H192,IF($AT$177=22,H200,IF($AT$177=23,H208,IF($AT$177=31,H218,IF($AT$177=32,H228,IF($AT$177=61,H240,IF($AT$177=62,H248,IF($AT$177=63,H256,"chyba")))))))) -> chyba | AV177: =IF($AT$177=21,I192,IF($AT$177=22,I200,IF($AT$177=23,I208,IF($AT$177=31,I219,IF($AT$177=32,I228,IF($AT$177=61,I240,IF($AT$177=62,I248,IF($AT$177=63,I256,"-")))))))) -> - | AW177: =IF($AT$177=21,V192,IF($AT$177=22,V200,IF($AT$177=23,V208,IF($AT$177=31,V218,IF($AT$177=32,V228,IF($AT$177=61,V240,IF($AT$177=62,V248,IF($AT$177=63,V256,"chyba")))))))) -> chyba | BE177: 1 | BF177: =IF($BE$177=2,A192,IF($BE$177=3,A202,IF($BE$177=4,A213,IF($BE$177=5,A224,IF($BE$177=6,A235,IF($BE$177=7,A247,"chyba")))))) -> chyba | BG177: =IF($BE$177=2,B192,IF($BE$177=3,B202,IF($BE$177=4,B213,IF($BE$177=5,B224,IF($BE$177=6,B235,IF($BE$177=7,B247,"-")))))) -> - | BH177: =IF($BE$177=2,F192,IF($BE$177=3,F202,IF($BE$177=4,F213,IF($BE$177=5,F224,IF($BE$177=6,F235,IF($BE$177=7,F247,"-")))))) -> - | BJ177: =$BF$186 -> 10 | BK177: =IF($BJ$177=21,H192,IF($BJ$177=22,H200,IF($BJ$177=23,H208,IF($BJ$177=31,H218,IF($BJ$177=32,H228,IF($BJ$177=61,H240,IF($BJ$177=62,H248,IF($BJ$177=63,H256,"chyba")))))))) -> chyba | BL177: =IF($BJ$177=21,I192,IF($BJ$177=22,I200,IF($BJ$177=23,I208,IF($BJ$177=31,I218,IF($BJ$177=32,I228,IF($BJ$177=61,I240,IF($BJ$177=62,I248,IF($BJ$177=63,I256,"-")))))))) -> - | BM177: =IF($BJ$177=21,V192,IF($BJ$177=22,V200,IF($BJ$177=23,V208,IF($BJ$177=31,V218,IF($BJ$177=32,V228,IF($BJ$177=61,V240,IF($BJ$177=62,V248,IF($BJ$177=63,V256,"chyba")))))))) -> chyba | BU177: 1 | BV177: =IF($BU$177=2,A192,IF($BU$177=3,A202,IF($BU$177=4,A213,IF($BU$177=5,A224,IF($BU$177=6,A235,IF($BU$177=7,A247,"chyba")))))) -> chyba | BW177: =IF($BU$177=2,B192,IF($BU$177=3,B202,IF($BU$177=4,B213,IF($BU$177=5,B224,IF($BU$177=6,B235,IF($BU$177=7,B247,"-")))))) -> - | BX177: =IF($BU$177=2,F192,IF($BU$177=3,F202,IF($BU$177=4,F213,IF($BU$177=5,F224,IF($BU$177=6,F235,IF($BU$177=7,F247,"-")))))) -> - | BZ177: =$BV$186 -> 10 | CA177: =IF($BZ$177=21,H192,IF($BZ$177=22,H200,IF($BZ$177=23,H208,IF($BZ$177=31,H218,IF($BZ$177=32,H228,IF($BZ$177=61,H240,IF($BZ$177=62,H248,IF($BZ$177=63,H256,"chyba")))))))) -> chyba | CB177: =IF($BZ$177=21,I192,IF($BZ$177=22,I200,IF($BZ$177=23,I208,IF($BZ$177=31,I218,IF($BZ$177=32,I228,IF($BZ$177=61,I240,IF($BZ$177=62,I248,IF($BZ$177=63,I256,"-")))))))) -> - | CC177: =IF($BZ$177=21,V192,IF($BZ$177=22,V200,IF($BZ$177=23,V208,IF($BZ$177=31,V218,IF($BZ$177=32,V228,IF($BZ$177=61,V240,IF($BZ$177=62,V248,IF($BZ$177=63,V256,"chyba")))))))) -> chyba
A178: 1 | I178: chyba | J178: - | K178: FALSE | M178: 10 | N178: chyba | O178: - | P178: chyba | Z178: chyba | AA178: - | AB178: FALSE | AD178: =$Z$186 -> 10 | AE178: chyba | AF178: - | AG178: =IF($AD$177=21,V193,IF($AD$177=22,V201,IF($AD$177=23,V209,IF($AD$177=31,V219,IF($AD$177=32,V229,IF($AD$177=61,V241,IF($AD$177=62,V249,IF($AD$177=63,V257,"chyba")))))))) -> chyba | AP178: chyba | AQ178: - | AR178: - | AT178: 10 | AU178: chyba | AV178: - | AW178: =IF($AT$177=21,V193,IF($AT$177=22,V201,IF($AT$177=23,V209,IF($AT$177=31,V219,IF($AT$177=32,V229,IF($AT$177=61,V241,IF($AT$177=62,V249,IF($AT$177=63,V257,"chyba")))))))) -> chyba | BF178: =IF($BE$177=2,A193,IF($BE$177=3,A203,IF($BE$177=4,A214,IF($BE$177=5,A225,IF($BE$177=6,A236,IF($BE$177=7,A248,"chyba")))))) -> chyba | BG178: =IF($BE$177=2,B193,IF($BE$177=3,B203,IF($BE$177=4,B214,IF($BE$177=5,B225,IF($BE$177=6,B236,IF($BE$177=7,B248,"-")))))) -> - | BH178: =IF($BE$177=2,F193,IF($BE$177=3,F203,IF($BE$177=4,F214,IF($BE$177=5,F225,IF($BE$177=6,F236,IF($BE$177=7,F248,"-")))))) -> - | BJ178: =$BF$186 -> 10 | BK178: =IF($BJ$177=21,H193,IF($BJ$177=22,H201,IF($BJ$177=23,H209,IF($BJ$177=31,H219,IF($BJ$177=32,H229,IF($BJ$177=61,H241,IF($BJ$177=62,H249,IF($BJ$177=63,H257,"chyba")))))))) -> chyba | BL178: =IF($BJ$177=21,I193,IF($BJ$177=22,I201,IF($BJ$177=23,I209,IF($BJ$177=31,I219,IF($BJ$177=32,I229,IF($BJ$177=61,I241,IF($BJ$177=62,I249,IF($BJ$177=63,I257,"-")))))))) -> - | BM178: =IF($BJ$177=21,V193,IF($BJ$177=22,V201,IF($BJ$177=23,V209,IF($BJ$177=31,V219,IF($BJ$177=32,V229,IF($BJ$177=61,V241,IF($BJ$177=62,V249,IF($BJ$177=63,V257,"chyba")))))))) -> chyba | BV178: =IF($BU$177=2,A193,IF($BU$177=3,A203,IF($BU$177=4,A214,IF($BU$177=5,A225,IF($BU$177=6,A236,IF($BU$177=7,A248,"chyba")))))) -> chyba | BW178: =IF($BU$177=2,B193,IF($BU$177=3,B203,IF($BU$177=4,B214,IF($BU$177=5,B225,IF($BU$177=6,B236,IF($BU$177=7,B248,"-")))))) -> - | BX178: =IF($BU$177=2,F193,IF($BU$177=3,F203,IF($BU$177=4,F214,IF($BU$177=5,F225,IF($BU$177=6,F236,IF($BU$177=7,F248,"-")))))) -> - | BZ178: =$BV$186 -> 10 | CA178: =IF($BZ$177=21,H193,IF($BZ$177=22,H201,IF($BZ$177=23,H209,IF($BZ$177=31,H219,IF($BZ$177=32,H229,IF($BZ$177=61,H241,IF($BZ$177=62,H249,IF($BZ$177=63,H257,"chyba")))))))) -> chyba | CB178: =IF($BZ$177=21,I193,IF($BZ$177=22,I201,IF($BZ$177=23,I209,IF($BZ$177=31,I219,IF($BZ$177=32,I229,IF($BZ$177=61,I241,IF($BZ$177=62,I249,IF($BZ$177=63,I257,"-")))))))) -> - | CC178: =IF($BZ$177=21,V193,IF($BZ$177=22,V201,IF($BZ$177=23,V209,IF($BZ$177=31,V219,IF($BZ$177=32,V229,IF($BZ$177=61,V241,IF($BZ$177=62,V249,IF($BZ$177=63,V257,"chyba")))))))) -> chyba
A179: 2 | B179: Zdroj tepla na plynná a kapalná paliva | H179: 1 | I179: chyba | J179: - | K179: FALSE | M179: 10 | N179: chyba | O179: - | P179: chyba | Y179: 1 | Z179: chyba | AA179: - | AB179: FALSE | AD179: 10 | AE179: chyba | AF179: - | AG179: chyba | AO179: 1 | AP179: chyba | AQ179: - | AR179: - | AT179: 10 | AU179: chyba | AV179: - | AW179: chyba | BE179: 1 | BF179: chyba | BG179: - | BH179: - | BJ179: 10 | BK179: chyba | BL179: - | BM179: chyba | BU179: 1 | BV179: chyba | BW179: - | BX179: - | BZ179: 10 | CA179: chyba | CB179: - | CC179: chyba
A180: 3 | B180: Kotel na pevná paliva | I180: chyba | J180: - | K180: FALSE | M180: 10 | N180: chyba | O180: - | P180: chyba | Z180: chyba | AA180: - | AB180: FALSE | AD180: 10 | AE180: chyba | AF180: - | AG180: chyba | AP180: chyba | AQ180: - | AR180: - | AT180: 10 | AU180: chyba | AV180: - | AW180: chyba | BF180: chyba | BG180: - | BH180: - | BJ180: 10 | BK180: chyba | BL180: - | BM180: chyba | BV180: chyba | BW180: - | BX180: - | BZ180: 10 | CA180: chyba | CB180: - | CC180: chyba
A181: 4 | B181: Elektrokotel | H181: 1 | I181: chyba | J181: - | K181: FALSE | M181: 10 | N181: chyba | O181: - | P181: chyba | Y181: 1 | Z181: chyba | AA181: - | AB181: FALSE | AD181: 10 | AE181: chyba | AF181: - | AG181: chyba | AO181: 1 | AP181: chyba | AQ181: - | AR181: - | AT181: 10 | AU181: chyba | AV181: - | AW181: chyba | BE181: 1 | BF181: chyba | BG181: - | BH181: - | BJ181: 10 | BK181: chyba | BL181: - | BM181: chyba | BU181: 1 | BV181: chyba | BW181: - | BX181: - | BZ181: 10 | CA181: chyba | CB181: - | CC181: chyba
A182: 5 | B182: Objektová předávací stanice | I182: chyba | J182: - | K182: FALSE | M182: 10 | N182: chyba | O182: - | P182: chyba | Z182: chyba | AA182: - | AB182: FALSE | AD182: 10 | AE182: chyba | AF182: - | AG182: chyba | AP182: chyba | AQ182: - | AR182: - | AT182: 10 | AU182: chyba | AV182: - | AW182: chyba | BF182: chyba | BG182: - | BH182: - | BJ182: 10 | BK182: chyba | BL182: - | BM182: chyba | BV182: chyba | BW182: - | BX182: - | BZ182: 10 | CA182: chyba | CB182: - | CC182: chyba
A183: 6 | B183: Tepelné čerpadlo | I183: chyba | J183: - | K183: FALSE | M183: 10 | N183: chyba | O183: - | P183: chyba | Z183: chyba | AA183: - | AB183: FALSE | AD183: 10 | AE183: chyba | AF183: - | AG183: chyba | AP183: chyba | AQ183: - | AR183: - | AT183: 10 | AU183: chyba | AV183: - | AW183: chyba | BF183: chyba | BG183: - | BH183: - | BJ183: 10 | BK183: chyba | BL183: - | BM183: chyba | BV183: chyba | BW183: - | BX183: - | BZ183: 10 | CA183: chyba | CB183: - | CC183: chyba
A184: 7 | B184: Lokální topidlo na pevná a plynná paliva | I184: chyba | J184: - | K184: FALSE | M184: 10 | N184: chyba | O184: - | P184: chyba | Z184: chyba | AA184: - | AB184: FALSE | AD184: 10 | AE184: chyba | AF184: - | AG184: chyba | AP184: chyba | AQ184: - | AR184: - | AT184: 10 | AU184: chyba | AV184: - | AW184: chyba | BF184: chyba | BG184: - | BH184: - | BJ184: 10 | BK184: chyba | BL184: - | BM184: chyba | BV184: chyba | BW184: - | BX184: - | BZ184: 10 | CA184: chyba | CB184: - | CC184: chyba
A186: =H177 -> 1 | B186: =VLOOKUP(A186,A178:B184,2) -> 0 | I186: =(H177*10)+(H179-1) -> 10 | J186: =IF(I177="chyba","",VLOOKUP(I186,I177:K184,2)) ->  | K186: =IF(I177="chyba","",VLOOKUP(I186,I177:K184,3)) ->  | N186: =(H177*100)+((H179-1)*10)+(H181-1) -> 100 | O186: =VLOOKUP(N186,N177:P184,2) ->  | P186: =VLOOKUP(N186,N177:P184,3) ->  | S186: =IF(K186>0,K186,P186) ->  | W186: =Y177 -> 1 | X186: =VLOOKUP(W186,A178:B184,2) -> 0 | Z186: =(Y177*10)+(Y179-1) -> 10 | AA186: =IF(Z177="chyba","",VLOOKUP(Z186,Z177:AB184,2)) ->  | AB186: =IF(Z177="chyba","",VLOOKUP(Z186,Z177:AB184,3)) ->  | AE186: =(Y177*100)+((Y179-1)*10)+(Y181-1) -> 100 | AF186: =VLOOKUP(AE186,AE177:AG184,2) ->  | AG186: =VLOOKUP(AE186,AE177:AG184,3) ->  | AJ186: =IF(AB186>0,AB186,AG186) ->  | AM186: =AO177 -> 1 | AN186: =VLOOKUP(AM186,A178:B184,2) -> 0 | AP186: =(AO177*10)+(AO179-1) -> 10 | AQ186: =IF(AP177="chyba","",VLOOKUP(AP186,AP177:AR184,2)) ->  | AR186: =IF(AP177="chyba","",VLOOKUP(AP186,AP177:AR184,3)) ->  | AU186: =(AO177*100)+((AO179-1)*10)+(AO181-1) -> 100 | AV186: =VLOOKUP(AU186,AU177:AW184,2) ->  | AW186: =VLOOKUP(AU186,AU177:AW184,3) ->  | AZ186: =IF(AR186>0,AR186,AW186) ->  | BC186: =BE177 -> 1 | BD186: =VLOOKUP(BC186,A178:B184,2) -> 0 | BF186: =(BE177*10)+(BE179-1) -> 10 | BG186: =IF(BF177="chyba","",VLOOKUP(BF186,BF177:BH184,2)) ->  | BH186: =IF(BF177="chyba","",VLOOKUP(BF186,BF177:BH184,3)) ->  | BK186: =(BE177*100)+((BE179-1)*10)+(BE181-1) -> 100 | BL186: =VLOOKUP(BK186,BK177:BM184,2) ->  | BM186: =VLOOKUP(BK186,BK177:BM184,3) ->  | BP186: =IF(BH186>0,BH186,BM186) ->  | BS186: =BU177 -> 1 | BT186: =VLOOKUP(BS186,A178:B184,2) -> 0 | BV186: =(BU177*10)+(BU179-1) -> 10 | BW186: =IF(BV177="chyba","",VLOOKUP(BV186,BV177:BX184,2)) ->  | BX186: =IF(BV177="chyba","",VLOOKUP(BV186,BV177:BX184,3)) ->  | CA186: =(BU177*100)+((BU179-1)*10)+(BU181-1) -> 100 | CB186: =VLOOKUP(CA186,CA177:CC184,2) ->  | CC186: =VLOOKUP(CA186,CA177:CC184,3) ->  | CF186: =IF(BX186>0,BX186,CC186) -> 
R187: ηH,gen | S187: COPH,gen | AI187: ηH,gen | AJ187: COPH,gen | AY187: ηH,gen | AZ187: COPH,gen | BO187: ηH,gen | BP187: COPH,gen | CE187: ηH,gen | CF187: COPH,gen
R188: =IF(N186<600,S186,IF(N186>700,S186,"")) ->  | S188: =IF(N186<600,"",IF(N186>700,"",S186)) ->  | AI188: =IF(AE186<600,AJ186,IF(AE186>700,AJ186,"")) ->  | AJ188: =IF(AE186<600,"",IF(AE186>700,"",AJ186)) ->  | AY188: =IF(AU186<600,AZ186,IF(AU186>700,AZ186,"")) ->  | AZ188: =IF(AU186<600,"",IF(AU186>700,"",AZ186)) ->  | BO188: =IF(BK186<600,BP186,IF(BK186>700,BP186,"")) ->  | BP188: =IF(BK186<600,"",IF(BK186>700,"",BP186)) ->  | CE188: =IF(CA186<600,CF186,IF(CA186>700,CF186,"")) ->  | CF188: =IF(CA186<600,"",IF(CA186>700,"",CF186)) -> 
I189: A.2 Sezónní účinnost výroby tepla zdrojem tepla ηH,gen pro plynové kotle a kotle na kapalná paliva do 35 kW určené pouze pro vytápění | AN189: ENERGONOSITELE | AO189: =P16 -> Faktor celkové primární energie | AP189: =T16 -> Faktor neobnovitelné primární energie | AQ189: =X16 -> Součinitel emisí CO2
I190: A.3 Sezónní účinnost výroby tepla zdrojem tepla ηH,gen pro plynové kotle a kotle na kapalná paliva do 35 kW určené pro vytápění a přípravu teplé vody | AO190: =P17 -> (-) | AP190: =T17 -> (-) | AQ190: =X17 -> (kg/kWh)
B191: A.1.1.1 Zdroje tepla na plynná a kapalná paliva | I191: A.4 Sezónní účinnost výroby tepla zdrojem tepla ηH,gen pro plynové kotle nad 35 kW určené pro vytápění a/nebo přípravu teplé vody | V191: ηH,gen | AM191: 0
A192: 21 | B192: Kotel do 35 kW pouze pro vytápění | H192: 211 | I192: standardní - jednostupňový hořák | O192: Kotel do 35 kW pouze pro vytápění | V192: 0.76 | AM192: 1 | AN192: =$K$18 -> Zemní plyn | AO192: =$P$18 -> 1.1 | AP192: =$T$18 -> 1.1 | AQ192: =$X$18 -> 0.277
A193: 22 | B193: Kotel do 35 kW pro vytápění a přípravu TV | H193: 212 | I193: standardní - modulovaný hořák | O193: Kotel do 35 kW pouze pro vytápění | V193: 0.78 | AM193: 2 | AN193: =$K$19 -> Černé uhlí | AO193: =$P$19 -> 1.1 | AP193: =$T$19 -> 1.1 | AQ193: =$X$19 -> 0.394
A194: 23 | B194: Kotel nad 35 kW pro vytápění a/nebo přípravu TV | H194: 213 | I194: nízkoteplotní (s modulovaným hořákem) | O194: Kotel do 35 kW pouze pro vytápění | V194: 0.88 | AM194: 3 | AN194: =$K$20 -> Hnědé uhlí | AO194: =$P$20 -> 1.1 | AP194: =$T$20 -> 1.1 | AQ194: =$X$20 -> 0.433
A195: 24 | B195: - | H195: 214 | I195: kondenzační (s modulovaným hořákem) | O195: Kotel do 35 kW pouze pro vytápění | V195: 0.93 | AM195: 4 | AN195: =$K$21 -> Propan-butan/LPG | AO195: =$P$21 -> 1.2 | AP195: =$T$21 -> 1.2 | AQ195: =$X$21 -> 0.248
A196: 25 | B196: - | H196: 215 | I196: - | AM196: 5 | AN196: =$K$22 -> Topný olej | AO196: =$P$22 -> 1.2 | AP196: =$T$22 -> 1.2 | AQ196: =$X$22 -> 0.33
A197: 26 | B197: - | H197: 216 | I197: - | AM197: 6 | AN197: =$K$23 -> Elektřina ze sítě | AO197: =$P$23 -> 3.2 | AP197: =$T$23 -> 3 | AQ197: =$X$23 -> 0.293
A198: 27 | B198: - | H198: 217 | I198: - | AM198: 7 | AN198: =$K$24 -> Dřevěné peletky | AO198: =$P$24 -> 1.2 | AP198: =$T$24 -> 0.2 | AQ198: =$X$24 -> 0.02
A199: 28 | B199: - | H199: 218 | I199: - | AM199: 8 | AN199: =$K$25 -> Kusové dřevo, dřevní štěpky | AO199: =$P$25 -> 1.1 | AP199: =$T$25 -> 0.1 | AQ199: =$X$25 -> 0.02
H200: 221 | I200: standardní - jednostupňový hořák | O200: Kotel do 35 kW pro vytápění a přípravu TV | V200: 0.74 | AM200: 9 | AN200: =$K$26 -> Energie okolního prostředí (elektřina a teplo) | AO200: =$P$26 -> 1 | AP200: =$T$26 -> 0 | AQ200: =$X$26 -> 0
B201: A.1.1.2 Kotle na pevná paliva | H201: 222 | I201: standardní - modulovaný hořák | O201: Kotel do 35 kW pro vytápění a přípravu TV | V201: 0.77 | AM201: 10 | AN201: =$K$27 -> Elektřína - dodávka mimo budovu | AO201: =$P$27 -> -3.2 | AP201: =$T$27 -> -3 | AQ201: =$X$27 -> 0
A202: 31 | B202: Kotel do 50 kW | H202: 223 | I202: nízkoteplotní (s modulovaným hořákem) | O202: Kotel do 35 kW pro vytápění a přípravu TV | V202: 0.85 | AM202: 11 | AN202: =$K$28 -> Teplo - dodávka mimo budovu | AO202: =$P$28 -> -1.1 | AP202: =$T$28 -> -0.1 | AQ202: =$X$28 -> 0
A203: 32 | B203: Kotel 50 - 300 kW | H203: 224 | I203: kondenzační (s modulovaným hořákem) | O203: Kotel do 35 kW pro vytápění a přípravu TV | V203: 0.94 | AM203: 12 | AN203: =$K$29 -> Soustava s vyšším než 80% podílem obnovitelných zdrojů | AO203: =$P$29 -> 1.1 | AP203: =$T$29 -> 0.1 | AQ203: =$X$29 -> 0
A204: 33 | B204: - | H204: 225 | I204: - | AM204: 13 | AN204: =$K$30 -> Soustava s vyšším než 50% a nejvýše 80% podílem obnovitelných zdrojů | AO204: =$P$30 -> 1.1 | AP204: =$T$30 -> 0.3 | AQ204: =$X$30 -> 0
A205: 34 | B205: - | H205: 226 | I205: - | AM205: 14 | AN205: =$K$31 -> Soustava s 50% a nižším podílem obnovitelných zdrojů | AO205: =$P$31 -> 1.1 | AP205: =$T$31 -> 1 | AQ205: =$X$31 -> 0
A206: 35 | B206: - | H206: 227 | I206: - | AM206: 15 | AN206: =$K$32 -> Ostatní neuvedené energonositele | AO206: =$P$32 -> 1.2 | AP206: =$T$32 -> 1.2 | AQ206: =$X$32 -> 0
A207: 36 | B207: - | H207: 228 | I207: - | AL207: 1. Zdroj | AM207: 1 | AN207: =VLOOKUP((AM207-1),AM191:AP206,2) -> 0 | AO207: =VLOOKUP((AM207-1),AM191:AP206,3) -> 0 | AP207: =VLOOKUP((AM207-1),AM191:AP206,4) -> 0 | AQ207: =VLOOKUP((AM207-1),AM191:AQ206,5) -> 0
A208: 37 | B208: - | H208: 231 | I208: standardní - jednostupňový hořák | O208: Kotel nad 35 kW pro vytápění a/nebo přípravu TV | V208: 0.77 | AL208: 2. Zdroj | AM208: 1 | AN208: =VLOOKUP((AM208-1),AM191:AP206,2) -> 0 | AO208: =VLOOKUP((AM208-1),AM191:AP206,3) -> 0 | AP208: =VLOOKUP((AM208-1),AM191:AP206,4) -> 0 | AQ208: =VLOOKUP((AM208-1),AM191:AQ206,5) -> 0
A209: 38 | B209: - | H209: 232 | I209: standardní - modulovaný hořák | O209: Kotel nad 35 kW pro vytápění a/nebo přípravu TV | V209: 0.8 | AL209: 3. Zdroj | AM209: 1 | AN209: =VLOOKUP((AM209-1),AM191:AP206,2) -> 0 | AO209: =VLOOKUP((AM209-1),AM191:AP206,3) -> 0 | AP209: =VLOOKUP((AM209-1),AM191:AP206,4) -> 0 | AQ209: =VLOOKUP((AM209-1),AM191:AQ206,5) -> 0
H210: 233 | I210: nízkoteplotní (s modulovaným hořákem) | O210: Kotel nad 35 kW pro vytápění a/nebo přípravu TV | V210: 0.89 | AL210: 4. Zdroj | AM210: 1 | AN210: =VLOOKUP((AM210-1),AM191:AP206,2) -> 0 | AO210: =VLOOKUP((AM210-1),AM191:AP206,3) -> 0 | AP210: =VLOOKUP((AM210-1),AM191:AP206,4) -> 0 | AQ210: =VLOOKUP((AM210-1),AM191:AQ206,5) -> 0
B211: A.1.1.3 Elektrokotle | H211: 234 | I211: kondenzační (s modulovaným hořákem) | O211: Kotel nad 35 kW pro vytápění a/nebo přípravu TV | V211: 0.98 | AL211: 5. Zdroj | AM211: 1 | AN211: =VLOOKUP((AM211-1),AM191:AP206,2) -> 0 | AO211: =VLOOKUP((AM211-1),AM191:AP206,3) -> 0 | AP211: =VLOOKUP((AM211-1),AM191:AP206,4) -> 0 | AQ211: =VLOOKUP((AM211-1),AM191:AQ206,5) -> 0
B212: A.7 Sezónní účinnost výroby tepla zdrojem tepla ηH,gen pro elektrokotle | F212: ηH,gen | H212: 235 | I212: - | AL212: FV | AN212: Energie okolního prostředí (elektřina a teplo) | AO212: 1 | AP212: 0 | AQ212: 0
A213: 41 | B213: Výkonový rozsah 0 kW - 149 kW | F213: 0.94 | H213: 236 | I213: - | AL213: Kolektory | AN213: Energie okolního prostředí (elektřina a teplo) | AO213: 1 | AP213: 0 | AQ213: 0
A214: 42 | B214: Výkonový rozsah ≥ 150 kW | F214: 0.96 | H214: 237 | I214: -
A215: 43 | B215: - | H215: 238 | I215: -
A216: 44 | B216: -
A217: 45 | B217: - | I217: A.5 Sezónní účinnost výroby tepla zdrojem tepla ηH,gen pro kotle na pevná paliva do jmenovitého výkonu 50 kW určené pro vytápění a/nebo přípravu teplé vody | V217: ηH,gen
A218: 46 | B218: - | H218: 311 | I218: s ručním přikládáním splňující požadavky třídy I - bez akumulace | O218: Kotel do 50 kW | V218: 0.5
A219: 47 | B219: - | H219: 312 | I219: s ručním přikládáním splňující požadavky třídy I - s akumulací | O219: Kotel do 50 kW | V219: 0.56
A220: 48 | B220: - | H220: 313 | I220: s ručním přikládáním splňující požadavky třídy II - bez akumulace | O220: Kotel do 50 kW | V220: 0.59
H221: 314 | I221: s ručním přikládáním splňující požadavky třídy II - s akumulací | O221: Kotel do 50 kW | V221: 0.66
B222: A.1.1.4 Objektové předávací stanice | H222: 315 | I222: s ručním přikládáním splňující požadavky třídy III - bez akumulace | O222: Kotel do 50 kW | V222: 0.68
B223: A.8 Sezónní účinnost výroby tepla zdrojem tepla ηH,gen pro předávací stanici | F223: ηH,gen | H223: 316 | I223: s ručním přikládáním splňující požadavky třídy III - s akumulací | O223: Kotel do 50 kW | V223: 0.76
A224: 51 | B224: Výkonový rozsah 0 kW - 49 kW | F224: 0.98 | H224: 317 | I224: s automatickým přikládáním splňující požadavky třídy III - bez akumulace | O224: Kotel do 50 kW | V224: 0.71
A225: 52 | B225: Výkonový rozsah ≥ 50 kW | F225: 0.99 | H225: 318 | I225: s automatickým přikládáním splňující požadavky třídy III - s akumulací | O225: Kotel do 50 kW | V225: 0.79
A226: 53 | B226: -
A227: 54 | B227: - | I227: A.6 Sezónní účinnost výroby tepla zdrojem tepla ηH,gen pro kotle na pevná paliva o jmenovitém výkonu 50 -300 kW určené pro vytápění a/nebo přípravu teplé vody | V227: ηH,gen
A228: 55 | B228: - | H228: 321 | I228: s ručním přikládáním splňující požadavky třídy I - bez akumulace | O228: Kotel 50 - 300 kW | V228: 0.54
... 413 more rows

Sheet Vypocet (hidden)
A1: Bytové jednotky | U1: Schodišťový prostor | AO1: Technické podlaží
A2: výpočet Ht | C2: lambda původní izolace | E2: 0.04 | U2: výpočet Ht | W2: lambda původní izolace | Y2: 0.04 | AO2: výpočet Ht | AQ2: lambda původní izolace | AS2: 0.04
A3: Konstrukce | B3: kód | C3: popis | D3: Uzáklad | E3: zateplení | F3: Rsi | G3: Rse | H3: Rpův | I3: Ucelk | J3: A | K3: b | L3: Ucelk*A*b | M3: Tloušťka (m) | N3: Stěna+izolace (m) | O3: Plocha;delka | P3: m2;m | U3: Konstrukce | V3: kód | W3: popis | X3: Uzáklad | Y3: zateplení | Z3: Rsi | AA3: Rse | AB3: Rpův | AC3: Ucelk | AD3: A | AE3: b | AF3: Ucelk*A*b | AG3: Tloušťka (m) | AH3: Stěna+izolace (m) | AI3: Plocha;delka | AJ3: m2;m | AO3: Konstrukce | AP3: kód | AQ3: popis | AR3: Uzáklad | AS3: zateplení | AT3: Rsi | AU3: Rse | AV3: Rpův | AW3: Ucelk | AX3: A | AY3: b | AZ3: Ucelk*A*b | BA3: Tloušťka (m) | BB3: Stěna+izolace (m) | BC3: Plocha;delka | BD3: m2;m
A4: Severní stěna 1 | B4: 1 | C4: =VLOOKUP(Vypocet!B4,Data!$A$3:$B$39,2) -> Cihly plné 30 cm | D4: =VLOOKUP(B4,Data!$A$3:$C$39,3) -> 1.67 | E4: ='2. Bytové jednotky'!H6 -> 0 | F4: 0.13 | G4: 0.04 | H4: =1/D4-F4-G4 -> 0.4288023952 | I4: =1/(F4+G4+(E4/100)/$E$2+H4) -> 1.67 | J4: ='2. Bytové jednotky'!N6 -> 0 | K4: 1 | L4: =I4*J4*K4 -> 0 | M4: =VLOOKUP(B4,Data!$A$3:$H$39,8) -> 0.3 | N4: =M4+E4/100 -> 0.3 | U4: Severní stěna 1 | V4: 1 | W4: =VLOOKUP(Vypocet!V4,Data!$A$3:$B$39,2) -> Cihly plné 30 cm | X4: =VLOOKUP(V4,Data!$A$3:$C$39,3) -> 1.67 | Y4: ='3. Schodišťový prostor'!H6 -> 0 | Z4: 0.13 | AA4: 0.04 | AB4: =1/X4-Z4-AA4 -> 0.4288023952 | AC4: =1/(Z4+AA4+(Y4/100)/$E$2+AB4) -> 1.67 | AD4: ='3. Schodišťový prostor'!N6 -> 0 | AE4: 1 | AF4: =AC4*AD4*AE4 -> 0 | AG4: =VLOOKUP(V4,Data!$A$3:$H$39,8) -> 0.3 | AH4: =AG4+Y4/100 -> 0.3 | AO4: Severní stěna 1 | AP4: 1 | AQ4: =VLOOKUP(Vypocet!AP4,Data!$A$3:$B$39,2) -> Cihly plné 30 cm | AR4: =VLOOKUP(AP4,Data!$A$3:$C$39,3) -> 1.67 | AS4: ='4. Technické podlaží-garáže'!H6 -> 0 | AT4: 0.13 | AU4: 0.04 | AV4: =1/AR4-AT4-AU4 -> 0.4288023952 | AW4: =1/(AT4+AU4+(AS4/100)/$E$2+AV4) -> 1.67 | AX4: ='4. Technické podlaží-garáže'!N6 -> 0 | AY4: 1 | AZ4: =AW4*AX4*AY4 -> 0 | BA4: =VLOOKUP(AP4,Data!$A$3:$H$39,8) -> 0.3 | BB4: =BA4+AS4/100 -> 0.3
A5: Severní stěna 2 | B5: 1 | C5: =VLOOKUP(Vypocet!B5,Data!$A$3:$B$39,2) -> Cihly plné 30 cm | D5: =VLOOKUP(B5,Data!$A$3:$C$39,3) -> 1.67 | E5: ='2. Bytové jednotky'!H7 -> 0 | F5: 0.13 | G5: 0.04 | H5: =1/D5-F5-G5 -> 0.4288023952 | I5: =1/(F5+G5+(E5/100)/$E$2+H5) -> 1.67 | J5: ='2. Bytové jednotky'!N7 -> 0 | K5: 1 | L5: =I5*J5*K5 -> 0 | M5: =VLOOKUP(B5,Data!$A$3:$H$39,8) -> 0.3 | N5: =M5+E5/100 -> 0.3 | U5: Severní stěna 2 | V5: 1 | W5: =VLOOKUP(Vypocet!V5,Data!$A$3:$B$39,2) -> Cihly plné 30 cm | X5: =VLOOKUP(V5,Data!$A$3:$C$39,3) -> 1.67 | Y5: ='3. Schodišťový prostor'!H7 -> 0 | Z5: 0.13 | AA5: 0.04 | AB5: =1/X5-Z5-AA5 -> 0.4288023952 | AC5: =1/(Z5+AA5+(Y5/100)/$E$2+AB5) -> 1.67 | AD5: ='3. Schodišťový prostor'!N7 -> 0 | AE5: 1 | AF5: =AC5*AD5*AE5 -> 0 | AG5: =VLOOKUP(V5,Data!$A$3:$H$39,8) -> 0.3 | AH5: =AG5+Y5/100 -> 0.3 | AO5: Severní stěna 2 | AP5: 1 | AQ5: =VLOOKUP(Vypocet!AP5,Data!$A$3:$B$39,2) -> Cihly plné 30 cm | AR5: =VLOOKUP(AP5,Data!$A$3:$C$39,3) -> 1.67 | AS5: ='4. Technické podlaží-garáže'!H7 -> 0 | AT5: 0.13 | AU5: 0.04 | AV5: =1/AR5-AT5-AU5 -> 0.4288023952 | AW5: =1/(AT5+AU5+(AS5/100)/$E$2+AV5) -> 1.67 | AX5: ='4. Technické podlaží-garáže'!N7 -> 0 | AY5: 1 | AZ5: =AW5*AX5*AY5 -> 0 | BA5: =VLOOKUP(AP5,Data!$A$3:$H$39,8) -> 0.3 | BB5: =BA5+AS5/100 -> 0.3
A6: Severní stěna 3 | B6: 1 | C6: =VLOOKUP(Vypocet!B6,Data!$A$3:$B$39,2) -> Cihly plné 30 cm | D6: =VLOOKUP(B6,Data!$A$3:$C$39,3) -> 1.67 | E6: ='2. Bytové jednotky'!H8 -> 0 | F6: 0.13 | G6: 0.04 | H6: =1/D6-F6-G6 -> 0.4288023952 | I6: =1/(F6+G6+(E6/100)/$E$2+H6) -> 1.67 | J6: ='2. Bytové jednotky'!N8 -> 0 | K6: 1 | L6: 0 | M6: =VLOOKUP(B6,Data!$A$3:$H$39,8) -> 0.3 | N6: =M6+E6/100 -> 0.3 | U6: Severní stěna 3 | V6: 1 | W6: =VLOOKUP(Vypocet!V6,Data!$A$3:$B$39,2) -> Cihly plné 30 cm | X6: =VLOOKUP(V6,Data!$A$3:$C$39,3) -> 1.67 | Y6: ='3. Schodišťový prostor'!H8 -> 0 | Z6: 0.13 | AA6: 0.04 | AB6: =1/X6-Z6-AA6 -> 0.4288023952 | AC6: =1/(Z6+AA6+(Y6/100)/$E$2+AB6) -> 1.67 | AD6: ='3. Schodišťový prostor'!N8 -> 0 | AE6: 1 | AF6: 0 | AG6: =VLOOKUP(V6,Data!$A$3:$H$39,8) -> 0.3 | AH6: =AG6+Y6/100 -> 0.3 | AO6: Severní stěna 3 | AP6: 1 | AQ6: =VLOOKUP(Vypocet!AP6,Data!$A$3:$B$39,2) -> Cihly plné 30 cm | AR6: =VLOOKUP(AP6,Data!$A$3:$C$39,3) -> 1.67 | AS6: ='4. Technické podlaží-garáže'!H8 -> 0 | AT6: 0.13 | AU6: 0.04 | AV6: =1/AR6-AT6-AU6 -> 0.4288023952 | AW6: =1/(AT6+AU6+(AS6/100)/$E$2+AV6) -> 1.67 | AX6: ='4. Technické podlaží-garáže'!N8 -> 0 | AY6: 1 | AZ6: 0 | BA6: =VLOOKUP(AP6,Data!$A$3:$H$39,8) -> 0.3 | BB6: =BA6+AS6/100 -> 0.3
A7: Severní stěna 4 | B7: 1 | C7: =VLOOKUP(Vypocet!B7,Data!$A$3:$B$39,2) -> Cihly plné 30 cm | D7: =VLOOKUP(B7,Data!$A$3:$C$39,3) -> 1.67 | E7: ='2. Bytové jednotky'!H9 -> 0 | F7: 0.13 | G7: 0.04 | H7: =1/D7-F7-G7 -> 0.4288023952 | I7: =1/(F7+G7+(E7/100)/$E$2+H7) -> 1.67 | J7: ='2. Bytové jednotky'!N9 -> 0 | K7: 1 | L7: 0 | M7: =VLOOKUP(B7,Data!$A$3:$H$39,8) -> 0.3 | N7: =M7+E7/100 -> 0.3 | U7: Severní stěna 4 | V7: 1 | W7: =VLOOKUP(Vypocet!V7,Data!$A$3:$B$39,2) -> Cihly plné 30 cm | X7: =VLOOKUP(V7,Data!$A$3:$C$39,3) -> 1.67 | Y7: ='3. Schodišťový prostor'!H9 -> 0 | Z7: 0.13 | AA7: 0.04 | AB7: =1/X7-Z7-AA7 -> 0.4288023952 | AC7: =1/(Z7+AA7+(Y7/100)/$E$2+AB7) -> 1.67 | AD7: ='3. Schodišťový prostor'!N9 -> 0 | AE7: 1 | AF7: 0 | AG7: =VLOOKUP(V7,Data!$A$3:$H$39,8) -> 0.3 | AH7: =AG7+Y7/100 -> 0.3 | AO7: Severní stěna 4 | AP7: 1 | AQ7: =VLOOKUP(Vypocet!AP7,Data!$A$3:$B$39,2) -> Cihly plné 30 cm | AR7: =VLOOKUP(AP7,Data!$A$3:$C$39,3) -> 1.67 | AS7: ='4. Technické podlaží-garáže'!H9 -> 0 | AT7: 0.13 | AU7: 0.04 | AV7: =1/AR7-AT7-AU7 -> 0.4288023952 | AW7: =1/(AT7+AU7+(AS7/100)/$E$2+AV7) -> 1.67 | AX7: ='4. Technické podlaží-garáže'!N9 -> 0 | AY7: 1 | AZ7: 0 | BA7: =VLOOKUP(AP7,Data!$A$3:$H$39,8) -> 0.3 | BB7: =BA7+AS7/100 -> 0.3
A9: Jižní stěna 1 | B9: 1 | C9: =VLOOKUP(Vypocet!B9,Data!$A$3:$B$39,2) -> Cihly plné 30 cm | D9: =VLOOKUP(B9,Data!$A$3:$C$39,3) -> 1.67 | E9: ='2. Bytové jednotky'!H11 -> 0 | F9: 0.13 | G9: 0.04 | H9: =1/D9-F9-G9 -> 0.4288023952 | I9: =1/(F9+G9+(E9/100)/$E$2+H9) -> 1.67 | J9: ='2. Bytové jednotky'!N11 -> 0 | K9: 1 | L9: 0 | M9: =VLOOKUP(B9,Data!$A$3:$H$39,8) -> 0.3 | N9: =M9+E9/100 -> 0.3 | U9: Jižní stěna 1 | V9: 1 | W9: =VLOOKUP(Vypocet!V9,Data!$A$3:$B$39,2) -> Cihly plné 30 cm | X9: =VLOOKUP(V9,Data!$A$3:$C$39,3) -> 1.67 | Y9: ='3. Schodišťový prostor'!H11 -> 0 | Z9: 0.13 | AA9: 0.04 | AB9: =1/X9-Z9-AA9 -> 0.4288023952 | AC9: =1/(Z9+AA9+(Y9/100)/$E$2+AB9) -> 1.67 | AD9: ='3. Schodišťový prostor'!N11 -> 0 | AE9: 1 | AF9: =AC9*AD9*AE9 -> 0 | AG9: =VLOOKUP(V9,Data!$A$3:$H$39,8) -> 0.3 | AH9: =AG9+Y9/100 -> 0.3 | AO9: Jižní stěna 1 | AP9: 1 | AQ9: =VLOOKUP(Vypocet!AP9,Data!$A$3:$B$39,2) -> Cihly plné 30 cm | AR9: =VLOOKUP(AP9,Data!$A$3:$C$39,3) -> 1.67 | AS9: ='4. Technické podlaží-garáže'!H11 -> 0 | AT9: 0.13 | AU9: 0.04 | AV9: =1/AR9-AT9-AU9 -> 0.4288023952 | AW9: =1/(AT9+AU9+(AS9/100)/$E$2+AV9) -> 1.67 | AX9: ='4. Technické podlaží-garáže'!N11 -> 0 | AY9: 1 | AZ9: =AW9*AX9*AY9 -> 0 | BA9: =VLOOKUP(AP9,Data!$A$3:$H$39,8) -> 0.3 | BB9: =BA9+AS9/100 -> 0.3
A10: Jižní stěna 2 | B10: 1 | C10: =VLOOKUP(Vypocet!B10,Data!$A$3:$B$39,2) -> Cihly plné 30 cm | D10: =VLOOKUP(B10,Data!$A$3:$C$39,3) -> 1.67 | E10: ='2. Bytové jednotky'!H12 -> 0 | F10: 0.13 | G10: 0.04 | H10: =1/D10-F10-G10 -> 0.4288023952 | I10: =1/(F10+G10+(E10/100)/$E$2+H10) -> 1.67 | J10: ='2. Bytové jednotky'!N12 -> 0 | K10: 1 | L10: 0 | M10: =VLOOKUP(B10,Data!$A$3:$H$39,8) -> 0.3 | N10: =M10+E10/100 -> 0.3 | U10: Jižní stěna 2 | V10: 1 | W10: =VLOOKUP(Vypocet!V10,Data!$A$3:$B$39,2) -> Cihly plné 30 cm | X10: =VLOOKUP(V10,Data!$A$3:$C$39,3) -> 1.67 | Y10: ='3. Schodišťový prostor'!H12 -> 0 | Z10: 0.13 | AA10: 0.04 | AB10: =1/X10-Z10-AA10 -> 0.4288023952 | AC10: =1/(Z10+AA10+(Y10/100)/$E$2+AB10) -> 1.67 | AD10: ='3. Schodišťový prostor'!N12 -> 0 | AE10: 1 | AF10: 0 | AG10: =VLOOKUP(V10,Data!$A$3:$H$39,8) -> 0.3 | AH10: =AG10+Y10/100 -> 0.3 | AO10: Jižní stěna 2 | AP10: 1 | AQ10: =VLOOKUP(Vypocet!AP10,Data!$A$3:$B$39,2) -> Cihly plné 30 cm | AR10: =VLOOKUP(AP10,Data!$A$3:$C$39,3) -> 1.67 | AS10: ='4. Technické podlaží-garáže'!H12 -> 0 | AT10: 0.13 | AU10: 0.04 | AV10: =1/AR10-AT10-AU10 -> 0.4288023952 | AW10: =1/(AT10+AU10+(AS10/100)/$E$2+AV10) -> 1.67 | AX10: ='4. Technické podlaží-garáže'!N12 -> 0 | AY10: 1 | AZ10: 0 | BA10: =VLOOKUP(AP10,Data!$A$3:$H$39,8) -> 0.3 | BB10: =BA10+AS10/100 -> 0.3
A11: Jižní stěna 3 | B11: 1 | C11: =VLOOKUP(Vypocet!B11,Data!$A$3:$B$39,2) -> Cihly plné 30 cm | D11: =VLOOKUP(B11,Data!$A$3:$C$39,3) -> 1.67 | E11: ='2. Bytové jednotky'!H13 -> 0 | F11: 0.13 | G11: 0.04 | H11: =1/D11-F11-G11 -> 0.4288023952 | I11: =1/(F11+G11+(E11/100)/$E$2+H11) -> 1.67 | J11: ='2. Bytové jednotky'!N13 -> 0 | K11: 1 | L11: 0 | M11: =VLOOKUP(B11,Data!$A$3:$H$39,8) -> 0.3 | N11: =M11+E11/100 -> 0.3 | U11: Jižní stěna 3 | V11: 1 | W11: =VLOOKUP(Vypocet!V11,Data!$A$3:$B$39,2) -> Cihly plné 30 cm | X11: =VLOOKUP(V11,Data!$A$3:$C$39,3) -> 1.67 | Y11: ='3. Schodišťový prostor'!H13 -> 0 | Z11: 0.13 | AA11: 0.04 | AB11: =1/X11-Z11-AA11 -> 0.4288023952 | AC11: =1/(Z11+AA11+(Y11/100)/$E$2+AB11) -> 1.67 | AD11: ='3. Schodišťový prostor'!N13 -> 0 | AE11: 1 | AF11: 0 | AG11: =VLOOKUP(V11,Data!$A$3:$H$39,8) -> 0.3 | AH11: =AG11+Y11/100 -> 0.3 | AO11: Jižní stěna 3 | AP11: 1 | AQ11: =VLOOKUP(Vypocet!AP11,Data!$A$3:$B$39,2) -> Cihly plné 30 cm | AR11: =VLOOKUP(AP11,Data!$A$3:$C$39,3) -> 1.67 | AS11: ='4. Technické podlaží-garáže'!H13 -> 0 | AT11: 0.13 | AU11: 0.04 | AV11: =1/AR11-AT11-AU11 -> 0.4288023952 | AW11: =1/(AT11+AU11+(AS11/100)/$E$2+AV11) -> 1.67 | AX11: ='4. Technické podlaží-garáže'!N13 -> 0 | AY11: 1 | AZ11: 0 | BA11: =VLOOKUP(AP11,Data!$A$3:$H$39,8) -> 0.3 | BB11: =BA11+AS11/100 -> 0.3
A12: Jižní stěna 4 | B12: 1 | C12: =VLOOKUP(Vypocet!B12,Data!$A$3:$B$39,2) -> Cihly plné 30 cm | D12: =VLOOKUP(B12,Data!$A$3:$C$39,3) -> 1.67 | E12: ='2. Bytové jednotky'!H14 -> 0 | F12: 0.13 | G12: 0.04 | H12: =1/D12-F12-G12 -> 0.4288023952 | I12: =1/(F12+G12+(E12/100)/$E$2+H12) -> 1.67 | J12: ='2. Bytové jednotky'!N14 -> 0 | K12: 1 | L12: 0 | M12: =VLOOKUP(B12,Data!$A$3:$H$39,8) -> 0.3 | N12: =M12+E12/100 -> 0.3 | U12: Jižní stěna 4 | V12: 1 | W12: =VLOOKUP(Vypocet!V12,Data!$A$3:$B$39,2) -> Cihly plné 30 cm | X12: =VLOOKUP(V12,Data!$A$3:$C$39,3) -> 1.67 | Y12: ='3. Schodišťový prostor'!H14 -> 0 | Z12: 0.13 | AA12: 0.04 | AB12: =1/X12-Z12-AA12 -> 0.4288023952 | AC12: =1/(Z12+AA12+(Y12/100)/$E$2+AB12) -> 1.67 | AD12: ='3. Schodišťový prostor'!N14 -> 0 | AE12: 1 | AF12: 0 | AG12: =VLOOKUP(V12,Data!$A$3:$H$39,8) -> 0.3 | AH12: =AG12+Y12/100 -> 0.3 | AO12: Jižní stěna 4 | AP12: 1 | AQ12: =VLOOKUP(Vypocet!AP12,Data!$A$3:$B$39,2) -> Cihly plné 30 cm | AR12: =VLOOKUP(AP12,Data!$A$3:$C$39,3) -> 1.67 | AS12: ='4. Technické podlaží-garáže'!H14 -> 0 | AT12: 0.13 | AU12: 0.04 | AV12: =1/AR12-AT12-AU12 -> 0.4288023952 | AW12: =1/(AT12+AU12+(AS12/100)/$E$2+AV12) -> 1.67 | AX12: ='4. Technické podlaží-garáže'!N14 -> 0 | AY12: 1 | AZ12: 0 | BA12: =VLOOKUP(AP12,Data!$A$3:$H$39,8) -> 0.3 | BB12: =BA12+AS12/100 -> 0.3
A14: Východní stěna 1 | B14: 1 | C14: =VLOOKUP(Vypocet!B14,Data!$A$3:$B$39,2) -> Cihly plné 30 cm | D14: =VLOOKUP(B14,Data!$A$3:$C$39,3) -> 1.67 | E14: ='2. Bytové jednotky'!H16 -> 0 | F14: 0.13 | G14: 0.04 | H14: =1/D14-F14-G14 -> 0.4288023952 | I14: =1/(F14+G14+(E14/100)/$E$2+H14) -> 1.67 | J14: ='2. Bytové jednotky'!N16 -> 0 | K14: 1 | L14: 0 | M14: =VLOOKUP(B14,Data!$A$3:$H$39,8) -> 0.3 | N14: =M14+E14/100 -> 0.3 | U14: Východní stěna 1 | V14: 1 | W14: =VLOOKUP(Vypocet!V14,Data!$A$3:$B$39,2) -> Cihly plné 30 cm | X14: =VLOOKUP(V14,Data!$A$3:$C$39,3) -> 1.67 | Y14: ='3. Schodišťový prostor'!H16 -> 0 | Z14: 0.13 | AA14: 0.04 | AB14: =1/X14-Z14-AA14 -> 0.4288023952 | AC14: =1/(Z14+AA14+(Y14/100)/$E$2+AB14) -> 1.67 | AD14: ='3. Schodišťový prostor'!N16 -> 0 | AE14: 1 | AF14: =AC14*AD14*AE14 -> 0 | AG14: =VLOOKUP(V14,Data!$A$3:$H$39,8) -> 0.3 | AH14: =AG14+Y14/100 -> 0.3 | AO14: Východní stěna 1 | AP14: 1 | AQ14: =VLOOKUP(Vypocet!AP14,Data!$A$3:$B$39,2) -> Cihly plné 30 cm | AR14: =VLOOKUP(AP14,Data!$A$3:$C$39,3) -> 1.67 | AS14: ='4. Technické podlaží-garáže'!H16 -> 0 | AT14: 0.13 | AU14: 0.04 | AV14: =1/AR14-AT14-AU14 -> 0.4288023952 | AW14: =1/(AT14+AU14+(AS14/100)/$E$2+AV14) -> 1.67 | AX14: ='4. Technické podlaží-garáže'!N16 -> 0 | AY14: 1 | AZ14: =AW14*AX14*AY14 -> 0 | BA14: =VLOOKUP(AP14,Data!$A$3:$H$39,8) -> 0.3 | BB14: =BA14+AS14/100 -> 0.3
A15: Východní stěna 2 | B15: 1 | C15: =VLOOKUP(Vypocet!B15,Data!$A$3:$B$39,2) -> Cihly plné 30 cm | D15: =VLOOKUP(B15,Data!$A$3:$C$39,3) -> 1.67 | E15: ='2. Bytové jednotky'!H17 -> 0 | F15: 0.13 | G15: 0.04 | H15: =1/D15-F15-G15 -> 0.4288023952 | I15: =1/(F15+G15+(E15/100)/$E$2+H15) -> 1.67 | J15: ='2. Bytové jednotky'!N17 -> 0 | K15: 1 | L15: 0 | M15: =VLOOKUP(B15,Data!$A$3:$H$39,8) -> 0.3 | N15: =M15+E15/100 -> 0.3 | U15: Východní stěna 2 | V15: 1 | W15: =VLOOKUP(Vypocet!V15,Data!$A$3:$B$39,2) -> Cihly plné 30 cm | X15: =VLOOKUP(V15,Data!$A$3:$C$39,3) -> 1.67 | Y15: ='3. Schodišťový prostor'!H17 -> 0 | Z15: 0.13 | AA15: 0.04 | AB15: =1/X15-Z15-AA15 -> 0.4288023952 | AC15: =1/(Z15+AA15+(Y15/100)/$E$2+AB15) -> 1.67 | AD15: ='3. Schodišťový prostor'!N17 -> 0 | AE15: 1 | AF15: 0 | AG15: =VLOOKUP(V15,Data!$A$3:$H$39,8) -> 0.3 | AH15: =AG15+Y15/100 -> 0.3 | AO15: Východní stěna 2 | AP15: 1 | AQ15: =VLOOKUP(Vypocet!AP15,Data!$A$3:$B$39,2) -> Cihly plné 30 cm | AR15: =VLOOKUP(AP15,Data!$A$3:$C$39,3) -> 1.67 | AS15: ='4. Technické podlaží-garáže'!H17 -> 0 | AT15: 0.13 | AU15: 0.04 | AV15: =1/AR15-AT15-AU15 -> 0.4288023952 | AW15: =1/(AT15+AU15+(AS15/100)/$E$2+AV15) -> 1.67 | AX15: ='4. Technické podlaží-garáže'!N17 -> 0 | AY15: 1 | AZ15: 0 | BA15: =VLOOKUP(AP15,Data!$A$3:$H$39,8) -> 0.3 | BB15: =BA15+AS15/100 -> 0.3
A16: Východní stěna 3 | B16: 1 | C16: =VLOOKUP(Vypocet!B16,Data!$A$3:$B$39,2) -> Cihly plné 30 cm | D16: =VLOOKUP(B16,Data!$A$3:$C$39,3) -> 1.67 | E16: ='2. Bytové jednotky'!H18 -> 0 | F16: 0.13 | G16: 0.04 | H16: =1/D16-F16-G16 -> 0.4288023952 | I16: =1/(F16+G16+(E16/100)/$E$2+H16) -> 1.67 | J16: ='2. Bytové jednotky'!N18 -> 0 | K16: 1 | L16: 0 | M16: =VLOOKUP(B16,Data!$A$3:$H$39,8) -> 0.3 | N16: =M16+E16/100 -> 0.3 | U16: Východní stěna 3 | V16: 1 | W16: =VLOOKUP(Vypocet!V16,Data!$A$3:$B$39,2) -> Cihly plné 30 cm | X16: =VLOOKUP(V16,Data!$A$3:$C$39,3) -> 1.67 | Y16: ='3. Schodišťový prostor'!H18 -> 0 | Z16: 0.13 | AA16: 0.04 | AB16: =1/X16-Z16-AA16 -> 0.4288023952 | AC16: =1/(Z16+AA16+(Y16/100)/$E$2+AB16) -> 1.67 | AD16: ='3. Schodišťový prostor'!N18 -> 0 | AE16: 1 | AF16: 0 | AG16: =VLOOKUP(V16,Data!$A$3:$H$39,8) -> 0.3 | AH16: =AG16+Y16/100 -> 0.3 | AO16: Východní stěna 3 | AP16: 1 | AQ16: =VLOOKUP(Vypocet!AP16,Data!$A$3:$B$39,2) -> Cihly plné 30 cm | AR16: =VLOOKUP(AP16,Data!$A$3:$C$39,3) -> 1.67 | AS16: ='4. Technické podlaží-garáže'!H18 -> 0 | AT16: 0.13 | AU16: 0.04 | AV16: =1/AR16-AT16-AU16 -> 0.4288023952 | AW16: =1/(AT16+AU16+(AS16/100)/$E$2+AV16) -> 1.67 | AX16: ='4. Technické podlaží-garáže'!N18 -> 0 | AY16: 1 | AZ16: 0 | BA16: =VLOOKUP(AP16,Data!$A$3:$H$39,8) -> 0.3 | BB16: =BA16+AS16/100 -> 0.3
A17: Východní stěna 4 | B17: 1 | C17: =VLOOKUP(Vypocet!B17,Data!$A$3:$B$39,2) -> Cihly plné 30 cm | D17: =VLOOKUP(B17,Data!$A$3:$C$39,3) -> 1.67 | E17: ='2. Bytové jednotky'!H19 -> 0 | F17: 0.13 | G17: 0.04 | H17: =1/D17-F17-G17 -> 0.4288023952 | I17: =1/(F17+G17+(E17/100)/$E$2+H17) -> 1.67 | J17: ='2. Bytové jednotky'!N19 -> 0 | K17: 1 | L17: 0 | M17: =VLOOKUP(B17,Data!$A$3:$H$39,8) -> 0.3 | N17: =M17+E17/100 -> 0.3 | U17: Východní stěna 4 | V17: 1 | W17: =VLOOKUP(Vypocet!V17,Data!$A$3:$B$39,2) -> Cihly plné 30 cm | X17: =VLOOKUP(V17,Data!$A$3:$C$39,3) -> 1.67 | Y17: ='3. Schodišťový prostor'!H19 -> 0 | Z17: 0.13 | AA17: 0.04 | AB17: =1/X17-Z17-AA17 -> 0.4288023952 | AC17: =1/(Z17+AA17+(Y17/100)/$E$2+AB17) -> 1.67 | AD17: ='3. Schodišťový prostor'!N19 -> 0 | AE17: 1 | AF17: 0 | AG17: =VLOOKUP(V17,Data!$A$3:$H$39,8) -> 0.3 | AH17: =AG17+Y17/100 -> 0.3 | AO17: Východní stěna 4 | AP17: 1 | AQ17: =VLOOKUP(Vypocet!AP17,Data!$A$3:$B$39,2) -> Cihly plné 30 cm | AR17: =VLOOKUP(AP17,Data!$A$3:$C$39,3) -> 1.67 | AS17: ='4. Technické podlaží-garáže'!H19 -> 0 | AT17: 0.13 | AU17: 0.04 | AV17: =1/AR17-AT17-AU17 -> 0.4288023952 | AW17: =1/(AT17+AU17+(AS17/100)/$E$2+AV17) -> 1.67 | AX17: ='4. Technické podlaží-garáže'!N19 -> 0 | AY17: 1 | AZ17: 0 | BA17: =VLOOKUP(AP17,Data!$A$3:$H$39,8) -> 0.3 | BB17: =BA17+AS17/100 -> 0.3
A19: Západní stěna 1 | B19: 1 | C19: =VLOOKUP(Vypocet!B19,Data!$A$3:$B$39,2) -> Cihly plné 30 cm | D19: =VLOOKUP(B19,Data!$A$3:$C$39,3) -> 1.67 | E19: ='2. Bytové jednotky'!H21 -> 0 | F19: 0.13 | G19: 0.04 | H19: =1/D19-F19-G19 -> 0.4288023952 | I19: =1/(F19+G19+(E19/100)/$E$2+H19) -> 1.67 | J19: ='2. Bytové jednotky'!N21 -> 0 | K19: 1 | L19: 0 | M19: =VLOOKUP(B19,Data!$A$3:$H$39,8) -> 0.3 | N19: =M19+E19/100 -> 0.3 | U19: Západní stěna 1 | V19: 1 | W19: =VLOOKUP(Vypocet!V19,Data!$A$3:$B$39,2) -> Cihly plné 30 cm | X19: =VLOOKUP(V19,Data!$A$3:$C$39,3) -> 1.67 | Y19: ='3. Schodišťový prostor'!H21 -> 0 | Z19: 0.13 | AA19: 0.04 | AB19: =1/X19-Z19-AA19 -> 0.4288023952 | AC19: =1/(Z19+AA19+(Y19/100)/$E$2+AB19) -> 1.67 | AD19: ='3. Schodišťový prostor'!N21 -> 0 | AE19: 1 | AF19: =AC19*AD19*AE19 -> 0 | AG19: =VLOOKUP(V19,Data!$A$3:$H$39,8) -> 0.3 | AH19: =AG19+Y19/100 -> 0.3 | AO19: Západní stěna 1 | AP19: 1 | AQ19: =VLOOKUP(Vypocet!AP19,Data!$A$3:$B$39,2) -> Cihly plné 30 cm | AR19: =VLOOKUP(AP19,Data!$A$3:$C$39,3) -> 1.67 | AS19: ='4. Technické podlaží-garáže'!H21 -> 0 | AT19: 0.13 | AU19: 0.04 | AV19: =1/AR19-AT19-AU19 -> 0.4288023952 | AW19: =1/(AT19+AU19+(AS19/100)/$E$2+AV19) -> 1.67 | AX19: ='4. Technické podlaží-garáže'!N21 -> 0 | AY19: 1 | AZ19: =AW19*AX19*AY19 -> 0 | BA19: =VLOOKUP(AP19,Data!$A$3:$H$39,8) -> 0.3 | BB19: =BA19+AS19/100 -> 0.3
A20: Západní stěna 2 | B20: 1 | C20: =VLOOKUP(Vypocet!B20,Data!$A$3:$B$39,2) -> Cihly plné 30 cm | D20: =VLOOKUP(B20,Data!$A$3:$C$39,3) -> 1.67 | E20: ='2. Bytové jednotky'!H22 -> 0 | F20: 0.13 | G20: 0.04 | H20: =1/D20-F20-G20 -> 0.4288023952 | I20: =1/(F20+G20+(E20/100)/$E$2+H20) -> 1.67 | J20: ='2. Bytové jednotky'!N22 -> 0 | K20: 1 | L20: 0 | M20: =VLOOKUP(B20,Data!$A$3:$H$39,8) -> 0.3 | N20: =M20+E20/100 -> 0.3 | U20: Západní stěna 2 | V20: 1 | W20: =VLOOKUP(Vypocet!V20,Data!$A$3:$B$39,2) -> Cihly plné 30 cm | X20: =VLOOKUP(V20,Data!$A$3:$C$39,3) -> 1.67 | Y20: ='3. Schodišťový prostor'!H22 -> 0 | Z20: 0.13 | AA20: 0.04 | AB20: =1/X20-Z20-AA20 -> 0.4288023952 | AC20: =1/(Z20+AA20+(Y20/100)/$E$2+AB20) -> 1.67 | AD20: ='3. Schodišťový prostor'!N22 -> 0 | AE20: 1 | AF20: 0 | AG20: =VLOOKUP(V20,Data!$A$3:$H$39,8) -> 0.3 | AH20: =AG20+Y20/100 -> 0.3 | AO20: Západní stěna 2 | AP20: 1 | AQ20: =VLOOKUP(Vypocet!AP20,Data!$A$3:$B$39,2) -> Cihly plné 30 cm | AR20: =VLOOKUP(AP20,Data!$A$3:$C$39,3) -> 1.67 | AS20: ='4. Technické podlaží-garáže'!H22 -> 0 | AT20: 0.13 | AU20: 0.04 | AV20: =1/AR20-AT20-AU20 -> 0.4288023952 | AW20: =1/(AT20+AU20+(AS20/100)/$E$2+AV20) -> 1.67 | AX20: ='4. Technické podlaží-garáže'!N22 -> 0 | AY20: 1 | AZ20: 0 | BA20: =VLOOKUP(AP20,Data!$A$3:$H$39,8) -> 0.3 | BB20: =BA20+AS20/100 -> 0.3
A21: Západní stěna 3 | B21: 1 | C21: =VLOOKUP(Vypocet!B21,Data!$A$3:$B$39,2) -> Cihly plné 30 cm | D21: =VLOOKUP(B21,Data!$A$3:$C$39,3) -> 1.67 | E21: ='2. Bytové jednotky'!H23 -> 0 | F21: 0.13 | G21: 0.04 | H21: =1/D21-F21-G21 -> 0.4288023952 | I21: =1/(F21+G21+(E21/100)/$E$2+H21) -> 1.67 | J21: ='2. Bytové jednotky'!N23 -> 0 | K21: 1 | L21: 0 | M21: =VLOOKUP(B21,Data!$A$3:$H$39,8) -> 0.3 | N21: =M21+E21/100 -> 0.3 | U21: Západní stěna 3 | V21: 1 | W21: =VLOOKUP(Vypocet!V21,Data!$A$3:$B$39,2) -> Cihly plné 30 cm | X21: =VLOOKUP(V21,Data!$A$3:$C$39,3) -> 1.67 | Y21: ='3. Schodišťový prostor'!H23 -> 0 | Z21: 0.13 | AA21: 0.04 | AB21: =1/X21-Z21-AA21 -> 0.4288023952 | AC21: =1/(Z21+AA21+(Y21/100)/$E$2+AB21) -> 1.67 | AD21: ='3. Schodišťový prostor'!N23 -> 0 | AE21: 1 | AF21: 0 | AG21: =VLOOKUP(V21,Data!$A$3:$H$39,8) -> 0.3 | AH21: =AG21+Y21/100 -> 0.3 | AO21: Západní stěna 3 | AP21: 1 | AQ21: =VLOOKUP(Vypocet!AP21,Data!$A$3:$B$39,2) -> Cihly plné 30 cm | AR21: =VLOOKUP(AP21,Data!$A$3:$C$39,3) -> 1.67 | AS21: ='4. Technické podlaží-garáže'!H23 -> 0 | AT21: 0.13 | AU21: 0.04 | AV21: =1/AR21-AT21-AU21 -> 0.4288023952 | AW21: =1/(AT21+AU21+(AS21/100)/$E$2+AV21) -> 1.67 | AX21: ='4. Technické podlaží-garáže'!N23 -> 0 | AY21: 1 | AZ21: 0 | BA21: =VLOOKUP(AP21,Data!$A$3:$H$39,8) -> 0.3 | BB21: =BA21+AS21/100 -> 0.3
A22: Západní stěna 4 | B22: 1 | C22: =VLOOKUP(Vypocet!B22,Data!$A$3:$B$39,2) -> Cihly plné 30 cm | D22: =VLOOKUP(B22,Data!$A$3:$C$39,3) -> 1.67 | E22: ='2. Bytové jednotky'!H24 -> 0 | F22: 0.13 | G22: 0.04 | H22: =1/D22-F22-G22 -> 0.4288023952 | I22: =1/(F22+G22+(E22/100)/$E$2+H22) -> 1.67 | J22: ='2. Bytové jednotky'!N24 -> 0 | K22: 1 | L22: 0 | M22: =VLOOKUP(B22,Data!$A$3:$H$39,8) -> 0.3 | N22: =M22+E22/100 -> 0.3 | O22: Vážená tloušťka | U22: Západní stěna 4 | V22: 1 | W22: =VLOOKUP(Vypocet!V22,Data!$A$3:$B$39,2) -> Cihly plné 30 cm | X22: =VLOOKUP(V22,Data!$A$3:$C$39,3) -> 1.67 | Y22: ='3. Schodišťový prostor'!H24 -> 0 | Z22: 0.13 | AA22: 0.04 | AB22: =1/X22-Z22-AA22 -> 0.4288023952 | AC22: =1/(Z22+AA22+(Y22/100)/$E$2+AB22) -> 1.67 | AD22: ='3. Schodišťový prostor'!N24 -> 0 | AE22: 1 | AF22: 0 | AG22: =VLOOKUP(V22,Data!$A$3:$H$39,8) -> 0.3 | AH22: =AG22+Y22/100 -> 0.3 | AI22: Vážená tloušťka | AO22: Západní stěna 4 | AP22: 1 | AQ22: =VLOOKUP(Vypocet!AP22,Data!$A$3:$B$39,2) -> Cihly plné 30 cm | AR22: =VLOOKUP(AP22,Data!$A$3:$C$39,3) -> 1.67 | AS22: ='4. Technické podlaží-garáže'!H24 -> 0 | AT22: 0.13 | AU22: 0.04 | AV22: =1/AR22-AT22-AU22 -> 0.4288023952 | AW22: =1/(AT22+AU22+(AS22/100)/$E$2+AV22) -> 1.67 | AX22: ='4. Technické podlaží-garáže'!N24 -> 0 | AY22: 1 | AZ22: 0 | BA22: =VLOOKUP(AP22,Data!$A$3:$H$39,8) -> 0.3 | BB22: =BA22+AS22/100 -> 0.3 | BC22: Vážená tloušťka
N23: Σ | O23: =IF(SUM(J4:J22)=0,0,(N4*J4+N5*J5+N6*J6+N7*J7+N9*J9+N10*J10+N11*J11+N12*J12+N14*J14+N15*J15+N16*J16+N17*J17+N19*J19+N20*J20+N21*J21+N22*J22)/(SUM(J4:J22))) -> 0 | P23: m2 | AH23: Σ | AI23: =IF(SUM(AD4:AD22)=0,0,(AH4*AD4+AH5*AD5+AH6*AD6+AH7*AD7+AH9*AD9+AH10*AD10+AH11*AD11+AH12*AD12+AH14*AD14+AH15*AD15+AH16*AD16+AH17*AD17+AH19*AD19+AH20*AD20+AH21*AD21+AH22*AD22)/(SUM(AD4:AD22))) -> 0 | AJ23: m2 | BB23: Σ | BC23: =IF(SUM(AX4:AX22)=0,0,(BB4*AX4+BB5*AX5+BB6*AX6+BB7*AX7+BB9*AX9+BB10*AX10+BB11*AX11+BB12*AX12+BB14*AX14+BB15*AX15+BB16*AX16+BB17*AX17+BB19*AX19+BB20*AX20+BB21*AX21+BB22*AX22)/(SUM(AX4:AX22))) -> 0 | BD23: m2
A24: Podlahy | U24: Podlahy | AO24: Podlahy
A25: Podlaha na zemině 1 | B25: 1 | C25: =VLOOKUP(Vypocet!B25,Data!$A$77:$B$85,2) -> Podl. na terénu - zastaralá (bez izolace) | D25: =VLOOKUP(B25,Data!$A$77:$C$85,3) -> 1.7 | E25: ='2. Bytové jednotky'!H27 -> 0 | F25: 0.17 | H25: =1/D25-F25-G25 -> 0.4182352941 | I25: =1/(F25+G25+(E25/100)/$E$2+H25) -> 1.7 | J25: ='2. Bytové jednotky'!F27 -> 0 | K25: 0.5 | L25: 0 | M25: =VLOOKUP(B25,Data!$A$77:$H$85,8) -> 0.2 | N25: =M25+E25/100 -> 0.2 | O25: Vážená tloušťka | U25: Podlaha na zemině 1 | V25: 1 | W25: =VLOOKUP(Vypocet!V25,Data!$A$77:$B$85,2) -> Podl. na terénu - zastaralá (bez izolace) | X25: =VLOOKUP(V25,Data!$A$77:$C$85,3) -> 1.7 | Y25: ='3. Schodišťový prostor'!H27 -> 0 | Z25: 0.17 | AB25: =1/X25-Z25-AA25 -> 0.4182352941 | AC25: =1/(Z25+AA25+(Y25/100)/$E$2+AB25) -> 1.7 | AD25: ='3. Schodišťový prostor'!F27 -> 0 | AE25: 0.5 | AF25: =AC25*AD25*AE25 -> 0 | AG25: =VLOOKUP(V25,Data!$A$77:$H$85,8) -> 0.2 | AH25: =AG25+Y25/100 -> 0.2 | AI25: Vážená tloušťka | AO25: Podlaha na zemině 1 | AP25: 1 | AQ25: =VLOOKUP(Vypocet!AP25,Data!$A$77:$B$85,2) -> Podl. na terénu - zastaralá (bez izolace) | AR25: =VLOOKUP(AP25,Data!$A$77:$C$85,3) -> 1.7 | AS25: ='4. Technické podlaží-garáže'!H27 -> 0 | AT25: 0.17 | AV25: =1/AR25-AT25-AU25 -> 0.4182352941 | AW25: =1/(AT25+AU25+(AS25/100)/$E$2+AV25) -> 1.7 | AX25: ='4. Technické podlaží-garáže'!$F$27 -> 0 | AY25: 0.5 | AZ25: =AW25*AX25*AY25 -> 0 | BA25: =VLOOKUP(AP25,Data!$A$77:$H$85,8) -> 0.2 | BB25: =BA25+AS25/100 -> 0.2 | BC25: Vážená tloušťka
A26: Podlaha na zemině 2 | B26: 1 | C26: =VLOOKUP(Vypocet!B26,Data!$A$77:$B$85,2) -> Podl. na terénu - zastaralá (bez izolace) | D26: =VLOOKUP(B26,Data!$A$77:$C$85,3) -> 1.7 | E26: ='2. Bytové jednotky'!H28 -> 0 | F26: 0.17 | H26: =1/D26-F26-G26 -> 0.4182352941 | I26: =1/(F26+G26+(E26/100)/$E$2+H26) -> 1.7 | J26: ='2. Bytové jednotky'!F28 -> 0 | K26: 0.5 | L26: 0 | M26: =VLOOKUP(B26,Data!$A$77:$H$85,8) -> 0.2 | N26: =M26+E26/100 -> 0.2 | O26: =IF((J25+J26)=0,0,(N25*J25+N26*J26)/(J25+J26)) -> 0 | U26: Podlaha na zemině 2 | V26: 1 | W26: =VLOOKUP(Vypocet!V26,Data!$A$77:$B$85,2) -> Podl. na terénu - zastaralá (bez izolace) | X26: =VLOOKUP(V26,Data!$A$77:$C$85,3) -> 1.7 | Y26: ='3. Schodišťový prostor'!H28 -> 0 | Z26: 0.17 | AB26: =1/X26-Z26-AA26 -> 0.4182352941 | AC26: =1/(Z26+AA26+(Y26/100)/$E$2+AB26) -> 1.7 | AD26: ='3. Schodišťový prostor'!F28 -> 0 | AE26: 0.5 | AF26: 0 | AG26: =VLOOKUP(V26,Data!$A$77:$H$85,8) -> 0.2 | AH26: =AG26+Y26/100 -> 0.2 | AI26: =IF((AD25+AD26)=0,0,(AH25*AD25+AH26*AD26)/(AD25+AD26)) -> 0 | AO26: Podlaha na zemině 2 | AP26: 1 | AQ26: =VLOOKUP(Vypocet!AP26,Data!$A$77:$B$85,2) -> Podl. na terénu - zastaralá (bez izolace) | AR26: =VLOOKUP(AP26,Data!$A$77:$C$85,3) -> 1.7 | AS26: ='4. Technické podlaží-garáže'!H28 -> 0 | AT26: 0.17 | AV26: =1/AR26-AT26-AU26 -> 0.4182352941 | AW26: =1/(AT26+AU26+(AS26/100)/$E$2+AV26) -> 1.7 | AX26: ='4. Technické podlaží-garáže'!F28 -> 0 | AY26: 0.5 | AZ26: 0 | BA26: =VLOOKUP(AP26,Data!$A$77:$H$85,8) -> 0.2 | BB26: =BA26+AS26/100 -> 0.2 | BC26: =IF((AX25+AX26)=0,0,(BB25*AX25+BB26*AX26)/(AX25+AX26)) -> 0
A28: Podlaha nad nevytápěným sklepem 1 | B28: 1 | C28: =VLOOKUP(Vypocet!B28,Data!$A$87:$B$95,2) -> Podl. nad suterénem - bez tep. izolace (zastaralá) | D28: =VLOOKUP(B28,Data!$A$87:$C$95,3) -> 1.53 | E28: ='2. Bytové jednotky'!H30 -> 0 | F28: 0.17 | G28: 0.04 | H28: =1/D28-F28-G28 -> 0.4435947712 | I28: =1/(F28+G28+(E28/100)/$E$2+H28) -> 1.53 | J28: ='2. Bytové jednotky'!F30 -> 0 | K28: 0.43 | L28: 0 | M28: =VLOOKUP(B28,Data!$A$87:$H$95,8) -> 0.35 | N28: =M28+E28/100 -> 0.35 | O28: Vážená tloušťka | U28: Podlaha nad nevytápěným sklepem 1 | V28: 1 | W28: =VLOOKUP(Vypocet!V28,Data!$A$87:$B$95,2) -> Podl. nad suterénem - bez tep. izolace (zastaralá) | X28: =VLOOKUP(V28,Data!$A$87:$C$95,3) -> 1.53 | Y28: ='3. Schodišťový prostor'!H30 -> 0 | Z28: 0.17 | AA28: 0.04 | AB28: =1/X28-Z28-AA28 -> 0.4435947712 | AC28: =1/(Z28+AA28+(Y28/100)/$E$2+AB28) -> 1.53 | AD28: ='3. Schodišťový prostor'!F30 -> 0 | AE28: 0.43 | AF28: =AC28*AD28*AE28 -> 0 | AG28: =VLOOKUP(V28,Data!$A$87:$H$95,8) -> 0.35 | AH28: =AG28+Y28/100 -> 0.35 | AI28: Vážená tloušťka | AO28: Podlaha nad nevytápěným sklepem 1 | AP28: 1 | AQ28: =VLOOKUP(Vypocet!AP28,Data!$A$87:$B$95,2) -> Podl. nad suterénem - bez tep. izolace (zastaralá) | AR28: =VLOOKUP(AP28,Data!$A$87:$C$95,3) -> 1.53 | AS28: ='4. Technické podlaží-garáže'!H30 -> 0 | AT28: 0.17 | AU28: 0.04 | AV28: =1/AR28-AT28-AU28 -> 0.4435947712 | AW28: =1/(AT28+AU28+(AS28/100)/$E$2+AV28) -> 1.53 | AX28: ='4. Technické podlaží-garáže'!F30 -> 0 | AY28: 0.43 | AZ28: =AW28*AX28*AY28 -> 0 | BA28: =VLOOKUP(AP28,Data!$A$87:$H$95,8) -> 0.35 | BB28: =BA28+AS28/100 -> 0.35 | BC28: Vážená tloušťka
A29: Podlaha nad nevytápěným sklepem 2 | B29: 1 | C29: =VLOOKUP(Vypocet!B29,Data!$A$87:$B$95,2) -> Podl. nad suterénem - bez tep. izolace (zastaralá) | D29: =VLOOKUP(B29,Data!$A$87:$C$95,3) -> 1.53 | E29: ='2. Bytové jednotky'!H31 -> 0 | F29: 0.17 | G29: 0.04 | H29: =1/D29-F29-G29 -> 0.4435947712 | I29: =1/(F29+G29+(E29/100)/$E$2+H29) -> 1.53 | J29: ='2. Bytové jednotky'!F31 -> 0 | K29: 0.43 | L29: 0 | M29: =VLOOKUP(B29,Data!$A$87:$H$95,8) -> 0.35 | N29: =M29+E29/100 -> 0.35 | O29: =IF((J28+J29)=0,0,((N28*J28+N29*J29)/(J28+J29))) -> 0 | U29: Podlaha nad nevytápěným sklepem 2 | V29: 1 | W29: =VLOOKUP(Vypocet!V29,Data!$A$87:$B$95,2) -> Podl. nad suterénem - bez tep. izolace (zastaralá) | X29: =VLOOKUP(V29,Data!$A$87:$C$95,3) -> 1.53 | Y29: ='3. Schodišťový prostor'!H31 -> 0 | Z29: 0.17 | AA29: 0.04 | AB29: =1/X29-Z29-AA29 -> 0.4435947712 | AC29: =1/(Z29+AA29+(Y29/100)/$E$2+AB29) -> 1.53 | AD29: ='3. Schodišťový prostor'!F31 -> 0 | AE29: 0.43 | AF29: 0 | AG29: =VLOOKUP(V29,Data!$A$87:$H$95,8) -> 0.35 | AH29: =AG29+Y29/100 -> 0.35 | AI29: =IF((AD28+AD29)=0,0,((AH28*AD28+AH29*AD29)/(AD28+AD29))) -> 0 | AO29: Podlaha nad nevytápěným sklepem 2 | AP29: 1 | AQ29: =VLOOKUP(Vypocet!AP29,Data!$A$87:$B$95,2) -> Podl. nad suterénem - bez tep. izolace (zastaralá) | AR29: =VLOOKUP(AP29,Data!$A$87:$C$95,3) -> 1.53 | AS29: ='4. Technické podlaží-garáže'!H31 -> 0 | AT29: 0.17 | AU29: 0.04 | AV29: =1/AR29-AT29-AU29 -> 0.4435947712 | AW29: =1/(AT29+AU29+(AS29/100)/$E$2+AV29) -> 1.53 | AX29: ='4. Technické podlaží-garáže'!F31 -> 0 | AY29: 0.43 | AZ29: 0 | BA29: =VLOOKUP(AP29,Data!$A$87:$H$95,8) -> 0.35 | BB29: =BA29+AS29/100 -> 0.35 | BC29: =IF((AX28+AX29)=0,0,((BB28*AX28+BB29*AX29)/(AX28+AX29))) -> 0
N30: Σ | O30: =IF(O26=0,O29,IF(O29=0,O26,AVERAGE(O26,O29))) -> 0 | P30: m | AH30: Σ | AI30: =IF(AI26=0,AI29,IF(AI29=0,AI26,AVERAGE(AI26,AI29))) -> 0 | AJ30: m | BB30: Σ | BC30: =IF(BC26=0,BC29,IF(BC29=0,BC26,AVERAGE(BC26,BC29))) -> 0 | BD30: m
A31: Střechy a stropy | U31: Střechy a stropy | AO31: Střechy a stropy
A32: Střecha plochá nebo do 45 ° 1 | B32: 3 | C32: =VLOOKUP(Vypocet!B32,Data!$A$46:$G$57,2) -> Střecha plochá - s keramickými vložkam | D32: =VLOOKUP(B32,Data!$A$46:$G$57,3) -> 1.34 | E32: ='2. Bytové jednotky'!H34 -> 0 | F32: 0.1 | G32: 0.04 | H32: =1/D32-F32-G32 -> 0.6062686567 | I32: =1/(F32+G32+(E32/100)/$E$2+H32) -> 1.34 | J32: ='2. Bytové jednotky'!L34 -> 0 | K32: 1 | L32: 0 | M32: =VLOOKUP(B32,Data!$A$46:$H$57,8) -> 0.26 | N32: =M32+E32/100 -> 0.26 | O32: Vážená tloušťka | U32: Střecha plochá nebo do 45 ° 1 | V32: 1 | W32: =VLOOKUP(Vypocet!V32,Data!$A$46:$G$57,2) -> Střecha plochá - s železobetonovou deskou | X32: =VLOOKUP(V32,Data!$A$46:$G$57,3) -> 0.5 | Y32: ='3. Schodišťový prostor'!H34 -> 0 | Z32: 0.1 | AA32: 0.04 | AB32: =1/X32-Z32-AA32 -> 1.86 | AC32: =1/(Z32+AA32+(Y32/100)/$E$2+AB32) -> 0.5 | AD32: ='3. Schodišťový prostor'!L34 -> 0 | AE32: 1 | AF32: =AC32*AD32*AE32 -> 0 | AG32: =VLOOKUP(V32,Data!$A$46:$H$57,8) -> 0.38 | AH32: =AG32+Y32/100 -> 0.38 | AI32: Vážená tloušťka | AO32: Střecha plochá nebo do 45 ° 1 | AP32: 1 | AQ32: =VLOOKUP(Vypocet!AP32,Data!$A$46:$G$57,2) -> Střecha plochá - s železobetonovou deskou | AR32: =VLOOKUP(AP32,Data!$A$46:$G$57,3) -> 0.5 | AS32: ='4. Technické podlaží-garáže'!H34 -> 0 | AT32: 0.1 | AU32: 0.04 | AV32: =1/AR32-AT32-AU32 -> 1.86 | AW32: =1/(AT32+AU32+(AS32/100)/$E$2+AV32) -> 0.5 | AX32: ='4. Technické podlaží-garáže'!L34 -> 0 | AY32: 1 | AZ32: =AW32*AX32*AY32 -> 0 | BA32: =VLOOKUP(AP32,Data!$A$46:$H$57,8) -> 0.38 | BB32: =BA32+AS32/100 -> 0.38 | BC32: Vážená tloušťka
A33: Střecha plochá nebo do 45 ° 2 | B33: 3 | C33: =VLOOKUP(Vypocet!B33,Data!$A$46:$G$57,2) -> Střecha plochá - s keramickými vložkam | D33: =VLOOKUP(B33,Data!$A$46:$G$57,3) -> 1.34 | E33: ='2. Bytové jednotky'!H35 -> 0 | F33: 0.1 | G33: 0.04 | H33: =1/D33-F33-G33 -> 0.6062686567 | I33: =1/(F33+G33+(E33/100)/$E$2+H33) -> 1.34 | J33: ='2. Bytové jednotky'!L35 -> 0 | K33: 1 | L33: 0 | M33: =VLOOKUP(B33,Data!$A$46:$H$57,8) -> 0.26 | N33: =M33+E33/100 -> 0.26 | O33: =IF((J32+J33)=0,0,((N32*J32+N33*J33)/(J32+J33))) -> 0 | P33: m | U33: Střecha plochá nebo do 45 ° 2 | V33: 1 | W33: =VLOOKUP(Vypocet!V33,Data!$A$46:$G$57,2) -> Střecha plochá - s železobetonovou deskou | X33: =VLOOKUP(V33,Data!$A$46:$G$57,3) -> 0.5 | Y33: ='3. Schodišťový prostor'!H35 -> 0 | Z33: 0.1 | AA33: 0.04 | AB33: =1/X33-Z33-AA33 -> 1.86 | AC33: =1/(Z33+AA33+(Y33/100)/$E$2+AB33) -> 0.5 | AD33: ='3. Schodišťový prostor'!L35 -> 0 | AE33: 1 | AF33: 0 | AG33: =VLOOKUP(V33,Data!$A$46:$H$57,8) -> 0.38 | AH33: =AG33+Y33/100 -> 0.38 | AI33: =IF((AD32+AD33)=0,0,((AH32*AD32+AH33*AD33)/(AD32+AD33))) -> 0 | AJ33: m | AO33: Střecha plochá nebo do 45 ° 2 | AP33: 1 | AQ33: =VLOOKUP(Vypocet!AP33,Data!$A$46:$G$57,2) -> Střecha plochá - s železobetonovou deskou | AR33: =VLOOKUP(AP33,Data!$A$46:$G$57,3) -> 0.5 | AS33: ='4. Technické podlaží-garáže'!H35 -> 0 | AT33: 0.1 | AU33: 0.04 | AV33: =1/AR33-AT33-AU33 -> 1.86 | AW33: =1/(AT33+AU33+(AS33/100)/$E$2+AV33) -> 0.5 | AX33: ='4. Technické podlaží-garáže'!L35 -> 0 | AY33: 1 | AZ33: 0 | BA33: =VLOOKUP(AP33,Data!$A$46:$H$57,8) -> 0.38 | BB33: =BA33+AS33/100 -> 0.38 | BC33: =IF((AX32+AX33)=0,0,((BB32*AX32+BB33*AX33)/(AX32+AX33))) -> 0 | BD33: m
A35: Střecha šikmá nad 45 ° 1 | B35: 1 | C35: =VLOOKUP(Vypocet!B35,Data!$A$58:$G$63,2) -> Střecha šikmá - tenká vrstva izolace (zastaralá) | D35: =VLOOKUP(B35,Data!$A$58:$G$63,3) -> 0.66 | E35: ='2. Bytové jednotky'!H37 -> 0 | F35: 0.1 | G35: 0.04 | H35: =1/D35-F35-G35 -> 1.375151515 | I35: =1/(F35+G35+(E35/100)/$E$2+H35) -> 0.66 | J35: ='2. Bytové jednotky'!L37 -> 0 | K35: 1 | L35: 0 | M35: =VLOOKUP(B35,Data!$A$58:$H$63,8) -> 0.215 | N35: =M35+E35/100 -> 0.215 | O35: Vážená tloušťka | U35: Střecha šikmá nad 45 ° 1 | V35: 1 | W35: =VLOOKUP(Vypocet!V35,Data!$A$58:$G$63,2) -> Střecha šikmá - tenká vrstva izolace (zastaralá) | X35: =VLOOKUP(V35,Data!$A$58:$G$63,3) -> 0.66 | Y35: ='3. Schodišťový prostor'!H37 -> 0 | Z35: 0.1 | AA35: 0.04 | AB35: =1/X35-Z35-AA35 -> 1.375151515 | AC35: =1/(Z35+AA35+(Y35/100)/$E$2+AB35) -> 0.66 | AD35: ='3. Schodišťový prostor'!L37 -> 0 | AE35: 1 | AF35: =AC35*AD35*AE35 -> 0 | AG35: =VLOOKUP(V35,Data!$A$58:$H$63,8) -> 0.215 | AH35: =AG35+Y35/100 -> 0.215 | AI35: Vážená tloušťka | AO35: Střecha šikmá nad 45 ° 1 | AP35: 1 | AQ35: =VLOOKUP(Vypocet!AP35,Data!$A$58:$G$63,2) -> Střecha šikmá - tenká vrstva izolace (zastaralá) | AR35: =VLOOKUP(AP35,Data!$A$58:$G$63,3) -> 0.66 | AS35: ='4. Technické podlaží-garáže'!H37 -> 0 | AT35: 0.1 | AU35: 0.04 | AV35: =1/AR35-AT35-AU35 -> 1.375151515 | AW35: =1/(AT35+AU35+(AS35/100)/$E$2+AV35) -> 0.66 | AX35: ='4. Technické podlaží-garáže'!L37 -> 0 | AY35: 1 | AZ35: =AW35*AX35*AY35 -> 0 | BA35: =VLOOKUP(AP35,Data!$A$58:$H$63,8) -> 0.215 | BB35: =BA35+AS35/100 -> 0.215 | BC35: Vážená tloušťka
A36: Střecha šikmá nad 45 ° 1 | B36: 1 | C36: =VLOOKUP(Vypocet!B36,Data!$A$58:$G$63,2) -> Střecha šikmá - tenká vrstva izolace (zastaralá) | D36: =VLOOKUP(B36,Data!$A$58:$G$63,3) -> 0.66 | E36: ='2. Bytové jednotky'!H38 -> 0 | F36: 0.1 | G36: 0.04 | H36: =1/D36-F36-G36 -> 1.375151515 | I36: =1/(F36+G36+(E36/100)/$E$2+H36) -> 0.66 | J36: ='2. Bytové jednotky'!L38 -> 0 | K36: 1 | L36: 0 | M36: =VLOOKUP(B36,Data!$A$58:$H$63,8) -> 0.215 | N36: =M36+E36/100 -> 0.215 | O36: =IF((J35+J36)=0,0,((N35*J35+N36*J36)/(J35+J36))) -> 0 | P36: m | U36: Střecha šikmá nad 45 ° 1 | V36: 1 | W36: =VLOOKUP(Vypocet!V36,Data!$A$58:$G$63,2) -> Střecha šikmá - tenká vrstva izolace (zastaralá) | X36: =VLOOKUP(V36,Data!$A$58:$G$63,3) -> 0.66 | Y36: ='3. Schodišťový prostor'!H38 -> 0 | Z36: 0.1 | AA36: 0.04 | AB36: =1/X36-Z36-AA36 -> 1.375151515 | AC36: =1/(Z36+AA36+(Y36/100)/$E$2+AB36) -> 0.66 | AD36: ='3. Schodišťový prostor'!L38 -> 0 | AE36: 1 | AF36: 0 | AG36: =VLOOKUP(V36,Data!$A$58:$H$63,8) -> 0.215 | AH36: =AG36+Y36/100 -> 0.215 | AI36: =IF((AD35+AD36)=0,0,((AH35*AD35+AH36*AD36)/(AD35+AD36))) -> 0 | AJ36: m | AO36: Střecha šikmá nad 45 ° 1 | AP36: 1 | AQ36: =VLOOKUP(Vypocet!AP36,Data!$A$58:$G$63,2) -> Střecha šikmá - tenká vrstva izolace (zastaralá) | AR36: =VLOOKUP(AP36,Data!$A$58:$G$63,3) -> 0.66 | AS36: ='4. Technické podlaží-garáže'!H38 -> 0 | AT36: 0.1 | AU36: 0.04 | AV36: =1/AR36-AT36-AU36 -> 1.375151515 | AW36: =1/(AT36+AU36+(AS36/100)/$E$2+AV36) -> 0.66 | AX36: ='4. Technické podlaží-garáže'!L38 -> 0 | AY36: 1 | AZ36: 0 | BA36: =VLOOKUP(AP36,Data!$A$58:$H$63,8) -> 0.215 | BB36: =BA36+AS36/100 -> 0.215 | BC36: =IF((AX35+AX36)=0,0,((BB35*AX35+BB36*AX36)/(AX35+AX36))) -> 0 | BD36: m
A38: Strop pod půdou 1 | B38: 1 | C38: =VLOOKUP(Vypocet!B38,Data!$A$64:$G$70,2) -> Strop - dřevěný,trámový | D38: =VLOOKUP(B38,Data!$A$64:$G$70,3) -> 0.99 | E38: ='2. Bytové jednotky'!H40 -> 0 | F38: 0.1 | G38: 0.04 | H38: =1/D38-F38-G38 -> 0.8701010101 | I38: =1/(F38+G38+(E38/100)/$E$2+H38) -> 0.99 | J38: ='2. Bytové jednotky'!F40 -> 0 | K38: 0.83 | L38: 0 | M38: =VLOOKUP(B38,Data!$A$64:$H$70,8) -> 0.4 | N38: =M38+E38/100 -> 0.4 | O38: Vážená tloušťka | U38: Strop pod půdou 1 | V38: 1 | W38: =VLOOKUP(Vypocet!V38,Data!$A$64:$G$70,2) -> Strop - dřevěný,trámový | X38: =VLOOKUP(V38,Data!$A$64:$G$70,3) -> 0.99 | Y38: ='3. Schodišťový prostor'!H40 -> 0 | Z38: 0.1 | AA38: 0.04 | AB38: =1/X38-Z38-AA38 -> 0.8701010101 | AC38: =1/(Z38+AA38+(Y38/100)/$E$2+AB38) -> 0.99 | AD38: ='3. Schodišťový prostor'!F40 -> 0 | AE38: 0.83 | AF38: =AC38*AD38*AE38 -> 0 | AG38: =VLOOKUP(V38,Data!$A$64:$H$70,8) -> 0.4 | AH38: =AG38+Y38/100 -> 0.4 | AI38: Vážená tloušťka | AO38: Strop pod půdou 1 | AP38: 1 | AQ38: =VLOOKUP(Vypocet!AP38,Data!$A$64:$G$70,2) -> Strop - dřevěný,trámový | AR38: =VLOOKUP(AP38,Data!$A$64:$G$70,3) -> 0.99 | AS38: ='4. Technické podlaží-garáže'!H40 -> 0 | AT38: 0.1 | AU38: 0.04 | AV38: =1/AR38-AT38-AU38 -> 0.8701010101 | AW38: =1/(AT38+AU38+(AS38/100)/$E$2+AV38) -> 0.99 | AX38: ='4. Technické podlaží-garáže'!F40 -> 0 | AY38: 0.83 | AZ38: =AW38*AX38*AY38 -> 0 | BA38: =VLOOKUP(AP38,Data!$A$64:$H$70,8) -> 0.4 | BB38: =BA38+AS38/100 -> 0.4 | BC38: Vážená tloušťka
A39: Strop pod půdou 2 | B39: 1 | C39: =VLOOKUP(Vypocet!B39,Data!$A$64:$G$70,2) -> Strop - dřevěný,trámový | D39: =VLOOKUP(B39,Data!$A$64:$G$70,3) -> 0.99 | E39: ='2. Bytové jednotky'!H41 -> 0 | F39: 0.1 | G39: 0.04 | H39: =1/D39-F39-G39 -> 0.8701010101 | I39: =1/(F39+G39+(E39/100)/$E$2+H39) -> 0.99 | J39: ='2. Bytové jednotky'!F41 -> 0 | K39: 0.83 | L39: 0 | M39: =VLOOKUP(B39,Data!$A$64:$H$70,8) -> 0.4 | N39: =M39+E39/100 -> 0.4 | O39: =IF((J38+J39)=0,0,((N38*J38+N39*J39)/(J38+J39))) -> 0 | P39: m | U39: Strop pod půdou 2 | V39: 1 | W39: =VLOOKUP(Vypocet!V39,Data!$A$64:$G$70,2) -> Strop - dřevěný,trámový | X39: =VLOOKUP(V39,Data!$A$64:$G$70,3) -> 0.99 | Y39: ='3. Schodišťový prostor'!H41 -> 0 | Z39: 0.1 | AA39: 0.04 | AB39: =1/X39-Z39-AA39 -> 0.8701010101 | AC39: =1/(Z39+AA39+(Y39/100)/$E$2+AB39) -> 0.99 | AD39: ='3. Schodišťový prostor'!F41 -> 0 | AE39: 0.83 | AF39: 0 | AG39: =VLOOKUP(V39,Data!$A$64:$H$70,8) -> 0.4 | AH39: =AG39+Y39/100 -> 0.4 | AI39: =IF((AD38+AD39)=0,0,((AH38*AD38+AH39*AD39)/(AD38+AD39))) -> 0 | AJ39: m | AO39: Strop pod půdou 2 | AP39: 1 | AQ39: =VLOOKUP(Vypocet!AP39,Data!$A$64:$G$70,2) -> Strop - dřevěný,trámový | AR39: =VLOOKUP(AP39,Data!$A$64:$G$70,3) -> 0.99 | AS39: ='4. Technické podlaží-garáže'!H41 -> 0 | AT39: 0.1 | AU39: 0.04 | AV39: =1/AR39-AT39-AU39 -> 0.8701010101 | AW39: =1/(AT39+AU39+(AS39/100)/$E$2+AV39) -> 0.99 | AX39: ='4. Technické podlaží-garáže'!F41 -> 0 | AY39: 0.83 | AZ39: 0 | BA39: =VLOOKUP(AP39,Data!$A$64:$H$70,8) -> 0.4 | BB39: =BA39+AS39/100 -> 0.4 | BC39: =IF((AX38+AX39)=0,0,((BB38*AX38+BB39*AX39)/(AX38+AX39))) -> 0 | BD39: m
A41: Stěny k nevyt. prostoru | O41: Plocha | U41: Stěny k nevyt. prostoru | AI41: Plocha | AO41: Stěny k nevyt. prostoru | BC41: Plocha
A42: Stěna k nevytápěnému prostoru 1 | B42: 1 | C42: =VLOOKUP(Vypocet!B42,Data!$A$129:$B$152,2) -> Cihly plné 10 cm | D42: =VLOOKUP(B42,Data!$A$129:$C$152,3) -> 2.87 | E42: ='2. Bytové jednotky'!H44 -> 0 | F42: 0.13 | G42: 0.04 | H42: =1/D42-F42-G42 -> 0.1784320557 | I42: =1/(F42+G42+(E42/100)/$E$2+H42) -> 2.87 | J42: ='2. Bytové jednotky'!L44 -> 0 | K42: 0.49 | L42: 0 | M42: =VLOOKUP(B42,Data!$A$129:$H$152,8) -> 0.1 | O42: =M42*'2. Bytové jednotky'!E44 -> 0 | U42: Stěna k nevytápěnému prostoru 1 | V42: 1 | W42: =VLOOKUP(Vypocet!V42,Data!$A$129:$B$152,2) -> Cihly plné 10 cm | X42: =VLOOKUP(V42,Data!$A$129:$C$152,3) -> 2.87 | Y42: ='3. Schodišťový prostor'!H44 -> 0 | Z42: 0.13 | AA42: 0.04 | AB42: =1/X42-Z42-AA42 -> 0.1784320557 | AC42: =1/(Z42+AA42+(Y42/100)/$E$2+AB42) -> 2.87 | AD42: ='3. Schodišťový prostor'!L44 -> 0 | AE42: 0.49 | AF42: =AC42*AD42*AE42 -> 0 | AG42: =VLOOKUP(V42,Data!$A$129:$H$152,8) -> 0.1 | AI42: =AG42*'3. Schodišťový prostor'!E44 -> 0 | AO42: Stěna k nevytápěnému prostoru 1 | AP42: 1 | AQ42: =VLOOKUP(Vypocet!AP42,Data!$A$129:$B$152,2) -> Cihly plné 10 cm | AR42: =VLOOKUP(AP42,Data!$A$129:$C$152,3) -> 2.87 | AS42: ='4. Technické podlaží-garáže'!H44 -> 0 | AT42: 0.13 | AU42: 0.04 | AV42: =1/AR42-AT42-AU42 -> 0.1784320557 | AW42: =1/(AT42+AU42+(AS42/100)/$E$2+AV42) -> 2.87 | AX42: ='4. Technické podlaží-garáže'!L44 -> 0 | AY42: 0.49 | AZ42: =AW42*AX42*AY42 -> 0 | BA42: =VLOOKUP(AP42,Data!$A$129:$H$152,8) -> 0.1 | BC42: =BA42*'4. Technické podlaží-garáže'!E44 -> 0
A43: Stěna k nevytápěnému prostoru 2 | B43: 1 | C43: =VLOOKUP(Vypocet!B43,Data!$A$129:$B$152,2) -> Cihly plné 10 cm | D43: =VLOOKUP(B43,Data!$A$129:$C$152,3) -> 2.87 | E43: ='2. Bytové jednotky'!H45 -> 0 | F43: 0.13 | G43: 0.04 | H43: =1/D43-F43-G43 -> 0.1784320557 | I43: =1/(F43+G43+(E43/100)/$E$2+H43) -> 2.87 | J43: ='2. Bytové jednotky'!L45 -> 0 | K43: 0.49 | L43: 0 | M43: =VLOOKUP(B43,Data!$A$129:$H$152,8) -> 0.1 | O43: =M43*'2. Bytové jednotky'!E45 -> 0 | U43: Stěna k nevytápěnému prostoru 2 | V43: 1 | W43: =VLOOKUP(Vypocet!V43,Data!$A$129:$B$152,2) -> Cihly plné 10 cm | X43: =VLOOKUP(V43,Data!$A$129:$C$152,3) -> 2.87 | Y43: ='3. Schodišťový prostor'!H45 -> 0 | Z43: 0.13 | AA43: 0.04 | AB43: =1/X43-Z43-AA43 -> 0.1784320557 | AC43: =1/(Z43+AA43+(Y43/100)/$E$2+AB43) -> 2.87 | AD43: ='3. Schodišťový prostor'!L45 -> 0 | AE43: 0.49 | AF43: 0 | AG43: =VLOOKUP(V43,Data!$A$129:$H$152,8) -> 0.1 | AI43: =AG43*'2. Bytové jednotky'!E45 -> 0 | AO43: Stěna k nevytápěnému prostoru 2 | AP43: 1 | AQ43: =VLOOKUP(Vypocet!AP43,Data!$A$129:$B$152,2) -> Cihly plné 10 cm | AR43: =VLOOKUP(AP43,Data!$A$129:$C$152,3) -> 2.87 | AS43: ='4. Technické podlaží-garáže'!H45 -> 0 | AT43: 0.13 | AU43: 0.04 | AV43: =1/AR43-AT43-AU43 -> 0.1784320557 | AW43: =1/(AT43+AU43+(AS43/100)/$E$2+AV43) -> 2.87 | AX43: ='4. Technické podlaží-garáže'!L45 -> 0 | AY43: 0.49 | AZ43: 0 | BA43: =VLOOKUP(AP43,Data!$A$129:$H$152,8) -> 0.1 | BC43: =BA43*'4. Technické podlaží-garáže'!E45 -> 0
A44: Stěna ke stejně vytápěnému prostoru 1 | B44: 1 | C44: =VLOOKUP(Vypocet!B44,Data!$A$129:$B$152,2) -> Cihly plné 10 cm | D44: =VLOOKUP(B44,Data!$A$129:$C$152,3) -> 2.87 | F44: 0.13 | G44: 0.04 | H44: =1/D44-F44-G44 -> 0.1784320557 | I44: =1/(F44+G44+(E44/100)/$E$2+H44) -> 2.87 | J44: ='2. Bytové jednotky'!L46 -> 0 | K44: 0.03 | L44: 0 | M44: =VLOOKUP(B44,Data!$A$129:$H$152,8) -> 0.1 | O44: =M44*'2. Bytové jednotky'!E46 -> 0 | U44: Stěna ke stejně vytápěnému prostoru 1 | V44: 1 | W44: =VLOOKUP(Vypocet!V44,Data!$A$129:$B$152,2) -> Cihly plné 10 cm | X44: =VLOOKUP(V44,Data!$A$129:$C$152,3) -> 2.87 | Z44: 0.13 | AA44: 0.04 | AB44: =1/X44-Z44-AA44 -> 0.1784320557 | AC44: =1/(Z44+AA44+(Y44/100)/$E$2+AB44) -> 2.87 | AD44: ='3. Schodišťový prostor'!L46 -> 0 | AE44: 0.03 | AF44: 0 | AG44: =VLOOKUP(V44,Data!$A$129:$H$152,8) -> 0.1 | AI44: =AG44*'2. Bytové jednotky'!E46 -> 0 | AO44: Stěna ke stejně vytápěnému prostoru 1 | AP44: 1 | AQ44: =VLOOKUP(Vypocet!AP44,Data!$A$129:$B$152,2) -> Cihly plné 10 cm | AR44: =VLOOKUP(AP44,Data!$A$129:$C$152,3) -> 2.87 | AT44: 0.13 | AU44: 0.04 | AV44: =1/AR44-AT44-AU44 -> 0.1784320557 | AW44: =1/(AT44+AU44+(AS44/100)/$E$2+AV44) -> 2.87 | AX44: ='4. Technické podlaží-garáže'!L46 -> 0 | AY44: 0.03 | AZ44: 0 | BA44: =VLOOKUP(AP44,Data!$A$129:$H$152,8) -> 0.1 | BC44: =BA44*'4. Technické podlaží-garáže'!E46 -> 0
A45: Stěna ke stejně vytápěnému prostoru 2 | B45: 1 | C45: =VLOOKUP(Vypocet!B45,Data!$A$129:$B$152,2) -> Cihly plné 10 cm | D45: =VLOOKUP(B45,Data!$A$129:$C$152,3) -> 2.87 | F45: 0.13 | G45: 0.04 | H45: =1/D45-F45-G45 -> 0.1784320557 | I45: =1/(F45+G45+(E45/100)/$E$2+H45) -> 2.87 | J45: ='2. Bytové jednotky'!L47 -> 0 | K45: 0.03 | L45: 0 | M45: =VLOOKUP(B45,Data!$A$129:$H$152,8) -> 0.1 | O45: =M45*'2. Bytové jednotky'!E47 -> 0 | U45: Stěna ke stejně vytápěnému prostoru 2 | V45: 1 | W45: =VLOOKUP(Vypocet!V45,Data!$A$129:$B$152,2) -> Cihly plné 10 cm | X45: =VLOOKUP(V45,Data!$A$129:$C$152,3) -> 2.87 | Z45: 0.13 | AA45: 0.04 | AB45: =1/X45-Z45-AA45 -> 0.1784320557 | AC45: =1/(Z45+AA45+(Y45/100)/$E$2+AB45) -> 2.87 | AD45: ='3. Schodišťový prostor'!L47 -> 0 | AE45: 0.03 | AF45: 0 | AG45: =VLOOKUP(V45,Data!$A$129:$H$152,8) -> 0.1 | AI45: =AG45*'2. Bytové jednotky'!E47 -> 0 | AO45: Stěna ke stejně vytápěnému prostoru 2 | AP45: 1 | AQ45: =VLOOKUP(Vypocet!AP45,Data!$A$129:$B$152,2) -> Cihly plné 10 cm | AR45: =VLOOKUP(AP45,Data!$A$129:$C$152,3) -> 2.87 | AT45: 0.13 | AU45: 0.04 | AV45: =1/AR45-AT45-AU45 -> 0.1784320557 | AW45: =1/(AT45+AU45+(AS45/100)/$E$2+AV45) -> 2.87 | AX45: ='4. Technické podlaží-garáže'!L47 -> 0 | AY45: 0.03 | AZ45: 0 | BA45: =VLOOKUP(AP45,Data!$A$129:$H$152,8) -> 0.1 | BC45: =BA45*'4. Technické podlaží-garáže'!E47 -> 0
M46: korekce dveře | N46: Σ | O46: =SUM(O42:O45) -> 0 | P46: m2 | AG46: korekce dveře | AH46: Σ | AI46: =SUM(AI42:AI45) -> 0 | AJ46: m2 | BA46: korekce dveře | BB46: Σ | BC46: =SUM(BC42:BC45) -> 0 | BD46: m2
A47: Sever okno 11 | B47: 1 | C47: =VLOOKUP(Vypocet!B47,Data!$A$102:$B$117,2) -> okno jednoduché s jedním sklem | D47: =VLOOKUP(B47,Data!$A$102:$C$117,3) -> 4.5 | I47: =D47 -> 4.5 | J47: ='2. Bytové jednotky'!J6 -> 0 | K47: 1 | L47: 0 | M47: =IF(OR(B47=10,B47=14,B47=16),-J47,0) -> 0 | N47: =VLOOKUP(B47,Data!$A$102:$H$117,8) -> 0.85 | O47: <-g - souč. prop. sol. záření | U47: Sever okno 11 | V47: 1 | W47: =VLOOKUP(Vypocet!V47,Data!$A$102:$B$117,2) -> okno jednoduché s jedním sklem | X47: =VLOOKUP(V47,Data!$A$102:$C$117,3) -> 4.5 | AC47: =X47 -> 4.5 | AD47: ='3. Schodišťový prostor'!J6 -> 0 | AE47: 1 | AF47: =AC47*AD47*AE47 -> 0 | AG47: =IF(OR(V47=10,V47=14,V47=16),-AD47,0) -> 0 | AH47: =VLOOKUP(V47,Data!$A$102:$H$117,8) -> 0.85 | AI47: <-g - souč. prop. sol. záření | AO47: Sever okno 11 | AP47: 1 | AQ47: =VLOOKUP(Vypocet!AP47,Data!$A$102:$B$117,2) -> okno jednoduché s jedním sklem | AR47: =VLOOKUP(AP47,Data!$A$102:$C$117,3) -> 4.5 | AW47: =AR47 -> 4.5 | AX47: ='4. Technické podlaží-garáže'!J6 -> 0 | AY47: 1 | AZ47: =AW47*AX47*AY47 -> 0 | BA47: =IF(OR(AP47=10,AP47=14,AP47=16),-AX47,0) -> 0 | BB47: =VLOOKUP(AP47,Data!$A$102:$H$117,8) -> 0.85 | BC47: <-g - souč. prop. sol. záření
A48: Sever okno 12 | B48: 1 | C48: =VLOOKUP(Vypocet!B48,Data!$A$102:$B$117,2) -> okno jednoduché s jedním sklem | D48: =VLOOKUP(B48,Data!$A$102:$C$117,3) -> 4.5 | I48: 4.5 | J48: ='2. Bytové jednotky'!L6 -> 0 | K48: 1 | L48: 0 | M48: =IF(OR(B48=10,B48=14,B48=16),-J48,0) -> 0 | N48: =VLOOKUP(B48,Data!$A$102:$H$117,8) -> 0.85 | U48: Sever okno 12 | V48: 1 | W48: =VLOOKUP(Vypocet!V48,Data!$A$102:$B$117,2) -> okno jednoduché s jedním sklem | X48: =VLOOKUP(V48,Data!$A$102:$C$117,3) -> 4.5 | AC48: 4.5 | AD48: ='3. Schodišťový prostor'!L6 -> 0 | AE48: 1 | AF48: 0 | AG48: =IF(OR(V48=10,V48=14,V48=16),-AD48,0) -> 0 | AH48: =VLOOKUP(V48,Data!$A$102:$H$117,8) -> 0.85 | AO48: Sever okno 12 | AP48: 1 | AQ48: =VLOOKUP(Vypocet!AP48,Data!$A$102:$B$117,2) -> okno jednoduché s jedním sklem | AR48: =VLOOKUP(AP48,Data!$A$102:$C$117,3) -> 4.5 | AW48: 4.5 | AX48: ='4. Technické podlaží-garáže'!L6 -> 0 | AY48: 1 | AZ48: 0 | BA48: =IF(OR(AP48=10,AP48=14,AP48=16),-AX48,0) -> 0 | BB48: =VLOOKUP(AP48,Data!$A$102:$H$117,8) -> 0.85
A49: Sever okno 21 | B49: 1 | C49: =VLOOKUP(Vypocet!B49,Data!$A$102:$B$117,2) -> okno jednoduché s jedním sklem | D49: =VLOOKUP(B49,Data!$A$102:$C$117,3) -> 4.5 | I49: 4.5 | J49: ='2. Bytové jednotky'!J7 -> 0 | K49: 1 | L49: 0 | M49: 0 | N49: =VLOOKUP(B49,Data!$A$102:$H$117,8) -> 0.85 | U49: Sever okno 21 | V49: 1 | W49: =VLOOKUP(Vypocet!V49,Data!$A$102:$B$117,2) -> okno jednoduché s jedním sklem | X49: =VLOOKUP(V49,Data!$A$102:$C$117,3) -> 4.5 | AC49: 4.5 | AD49: ='3. Schodišťový prostor'!J7 -> 0 | AE49: 1 | AF49: 0 | AG49: 0 | AH49: =VLOOKUP(V49,Data!$A$102:$H$117,8) -> 0.85 | AO49: Sever okno 21 | AP49: 1 | AQ49: =VLOOKUP(Vypocet!AP49,Data!$A$102:$B$117,2) -> okno jednoduché s jedním sklem | AR49: =VLOOKUP(AP49,Data!$A$102:$C$117,3) -> 4.5 | AW49: 4.5 | AX49: ='4. Technické podlaží-garáže'!J7 -> 0 | AY49: 1 | AZ49: 0 | BA49: 0 | BB49: =VLOOKUP(AP49,Data!$A$102:$H$117,8) -> 0.85
A50: Sever okno 22 | B50: 1 | C50: =VLOOKUP(Vypocet!B50,Data!$A$102:$B$117,2) -> okno jednoduché s jedním sklem | D50: =VLOOKUP(B50,Data!$A$102:$C$117,3) -> 4.5 | I50: 4.5 | J50: ='2. Bytové jednotky'!L7 -> 0 | K50: 1 | L50: 0 | M50: 0 | N50: =VLOOKUP(B50,Data!$A$102:$H$117,8) -> 0.85 | U50: Sever okno 22 | V50: 1 | W50: =VLOOKUP(Vypocet!V50,Data!$A$102:$B$117,2) -> okno jednoduché s jedním sklem | X50: =VLOOKUP(V50,Data!$A$102:$C$117,3) -> 4.5 | AC50: 4.5 | AD50: ='3. Schodišťový prostor'!L7 -> 0 | AE50: 1 | AF50: 0 | AG50: 0 | AH50: =VLOOKUP(V50,Data!$A$102:$H$117,8) -> 0.85 | AO50: Sever okno 22 | AP50: 1 | AQ50: =VLOOKUP(Vypocet!AP50,Data!$A$102:$B$117,2) -> okno jednoduché s jedním sklem | AR50: =VLOOKUP(AP50,Data!$A$102:$C$117,3) -> 4.5 | AW50: 4.5 | AX50: ='4. Technické podlaží-garáže'!L7 -> 0 | AY50: 1 | AZ50: 0 | BA50: 0 | BB50: =VLOOKUP(AP50,Data!$A$102:$H$117,8) -> 0.85
A51: Sever okno 31 | B51: 1 | C51: =VLOOKUP(Vypocet!B51,Data!$A$102:$B$117,2) -> okno jednoduché s jedním sklem | D51: =VLOOKUP(B51,Data!$A$102:$C$117,3) -> 4.5 | I51: 4.5 | J51: ='2. Bytové jednotky'!J8 -> 0 | K51: 1 | L51: 0 | M51: 0 | N51: =VLOOKUP(B51,Data!$A$102:$H$117,8) -> 0.85 | U51: Sever okno 31 | V51: 1 | W51: =VLOOKUP(Vypocet!V51,Data!$A$102:$B$117,2) -> okno jednoduché s jedním sklem | X51: =VLOOKUP(V51,Data!$A$102:$C$117,3) -> 4.5 | AC51: 4.5 | AD51: ='3. Schodišťový prostor'!J8 -> 0 | AE51: 1 | AF51: 0 | AG51: 0 | AH51: =VLOOKUP(V51,Data!$A$102:$H$117,8) -> 0.85 | AO51: Sever okno 31 | AP51: 1 | AQ51: =VLOOKUP(Vypocet!AP51,Data!$A$102:$B$117,2) -> okno jednoduché s jedním sklem | AR51: =VLOOKUP(AP51,Data!$A$102:$C$117,3) -> 4.5 | AW51: 4.5 | AX51: ='4. Technické podlaží-garáže'!J8 -> 0 | AY51: 1 | AZ51: 0 | BA51: 0 | BB51: =VLOOKUP(AP51,Data!$A$102:$H$117,8) -> 0.85
A52: Sever okno 32 | B52: 1 | C52: =VLOOKUP(Vypocet!B52,Data!$A$102:$B$117,2) -> okno jednoduché s jedním sklem | D52: =VLOOKUP(B52,Data!$A$102:$C$117,3) -> 4.5 | I52: 4.5 | J52: ='2. Bytové jednotky'!L8 -> 0 | K52: 1 | L52: 0 | M52: 0 | N52: =VLOOKUP(B52,Data!$A$102:$H$117,8) -> 0.85 | U52: Sever okno 32 | V52: 1 | W52: =VLOOKUP(Vypocet!V52,Data!$A$102:$B$117,2) -> okno jednoduché s jedním sklem | X52: =VLOOKUP(V52,Data!$A$102:$C$117,3) -> 4.5 | AC52: 4.5 | AD52: ='3. Schodišťový prostor'!L8 -> 0 | AE52: 1 | AF52: 0 | AG52: 0 | AH52: =VLOOKUP(V52,Data!$A$102:$H$117,8) -> 0.85 | AO52: Sever okno 32 | AP52: 1 | AQ52: =VLOOKUP(Vypocet!AP52,Data!$A$102:$B$117,2) -> okno jednoduché s jedním sklem | AR52: =VLOOKUP(AP52,Data!$A$102:$C$117,3) -> 4.5 | AW52: 4.5 | AX52: ='4. Technické podlaží-garáže'!L8 -> 0 | AY52: 1 | AZ52: 0 | BA52: 0 | BB52: =VLOOKUP(AP52,Data!$A$102:$H$117,8) -> 0.85
A53: Sever okno 41 | B53: 1 | C53: =VLOOKUP(Vypocet!B53,Data!$A$102:$B$117,2) -> okno jednoduché s jedním sklem | D53: =VLOOKUP(B53,Data!$A$102:$C$117,3) -> 4.5 | I53: 4.5 | J53: ='2. Bytové jednotky'!J9 -> 0 | K53: 1 | L53: 0 | M53: 0 | N53: =VLOOKUP(B53,Data!$A$102:$H$117,8) -> 0.85 | U53: Sever okno 41 | V53: 1 | W53: =VLOOKUP(Vypocet!V53,Data!$A$102:$B$117,2) -> okno jednoduché s jedním sklem | X53: =VLOOKUP(V53,Data!$A$102:$C$117,3) -> 4.5 | AC53: 4.5 | AD53: ='3. Schodišťový prostor'!J9 -> 0 | AE53: 1 | AF53: 0 | AG53: 0 | AH53: =VLOOKUP(V53,Data!$A$102:$H$117,8) -> 0.85 | AO53: Sever okno 41 | AP53: 1 | AQ53: =VLOOKUP(Vypocet!AP53,Data!$A$102:$B$117,2) -> okno jednoduché s jedním sklem | AR53: =VLOOKUP(AP53,Data!$A$102:$C$117,3) -> 4.5 | AW53: 4.5 | AX53: ='4. Technické podlaží-garáže'!J9 -> 0 | AY53: 1 | AZ53: 0 | BA53: 0 | BB53: =VLOOKUP(AP53,Data!$A$102:$H$117,8) -> 0.85
A54: Sever okno 42 | B54: 1 | C54: =VLOOKUP(Vypocet!B54,Data!$A$102:$B$117,2) -> okno jednoduché s jedním sklem | D54: =VLOOKUP(B54,Data!$A$102:$C$117,3) -> 4.5 | I54: 4.5 | J54: ='2. Bytové jednotky'!L9 -> 0 | K54: 1 | L54: 0 | M54: 0 | N54: =VLOOKUP(B54,Data!$A$102:$H$117,8) -> 0.85 | U54: Sever okno 42 | V54: 1 | W54: =VLOOKUP(Vypocet!V54,Data!$A$102:$B$117,2) -> okno jednoduché s jedním sklem | X54: =VLOOKUP(V54,Data!$A$102:$C$117,3) -> 4.5 | AC54: 4.5 | AD54: ='3. Schodišťový prostor'!L9 -> 0 | AE54: 1 | AF54: 0 | AG54: =IF(OR(V54=10,V54=14,V54=16),-AD54,0) -> 0 | AH54: =VLOOKUP(V54,Data!$A$102:$H$117,8) -> 0.85 | AO54: Sever okno 42 | AP54: 1 | AQ54: =VLOOKUP(Vypocet!AP54,Data!$A$102:$B$117,2) -> okno jednoduché s jedním sklem | AR54: =VLOOKUP(AP54,Data!$A$102:$C$117,3) -> 4.5 | AW54: 4.5 | AX54: ='4. Technické podlaží-garáže'!L9 -> 0 | AY54: 1 | AZ54: 0 | BA54: 0 | BB54: =VLOOKUP(AP54,Data!$A$102:$H$117,8) -> 0.85
A56: Jih okno 11 | B56: 1 | C56: =VLOOKUP(Vypocet!B56,Data!$A$102:$B$117,2) -> okno jednoduché s jedním sklem | D56: =VLOOKUP(B56,Data!$A$102:$C$117,3) -> 4.5 | I56: =D56 -> 4.5 | J56: ='2. Bytové jednotky'!J11 -> 0 | K56: 1 | L56: 0 | M56: 0 | N56: =VLOOKUP(B56,Data!$A$102:$H$117,8) -> 0.85 | U56: Jih okno 11 | V56: 1 | W56: =VLOOKUP(Vypocet!V56,Data!$A$102:$B$117,2) -> okno jednoduché s jedním sklem | X56: =VLOOKUP(V56,Data!$A$102:$C$117,3) -> 4.5 | AC56: =X56 -> 4.5 | AD56: ='3. Schodišťový prostor'!J11 -> 0 | AE56: 1 | AF56: =AC56*AD56*AE56 -> 0 | AG56: =IF(OR(V56=10,V56=14,V56=16),-AD56,0) -> 0 | AH56: =VLOOKUP(V56,Data!$A$102:$H$117,8) -> 0.85 | AO56: Jih okno 11 | AP56: 1 | AQ56: =VLOOKUP(Vypocet!AP56,Data!$A$102:$B$117,2) -> okno jednoduché s jedním sklem | AR56: =VLOOKUP(AP56,Data!$A$102:$C$117,3) -> 4.5 | AW56: =AR56 -> 4.5 | AX56: ='4. Technické podlaží-garáže'!J11 -> 0 | AY56: 1 | AZ56: =AW56*AX56*AY56 -> 0 | BA56: 0 | BB56: =VLOOKUP(AP56,Data!$A$102:$H$117,8) -> 0.85
A57: Jih okno 12 | B57: 1 | C57: =VLOOKUP(Vypocet!B57,Data!$A$102:$B$117,2) -> okno jednoduché s jedním sklem | D57: =VLOOKUP(B57,Data!$A$102:$C$117,3) -> 4.5 | I57: 4.5 | J57: ='2. Bytové jednotky'!L11 -> 0 | K57: 1 | L57: 0 | M57: 0 | N57: =VLOOKUP(B57,Data!$A$102:$H$117,8) -> 0.85 | U57: Jih okno 12 | V57: 1 | W57: =VLOOKUP(Vypocet!V57,Data!$A$102:$B$117,2) -> okno jednoduché s jedním sklem | X57: =VLOOKUP(V57,Data!$A$102:$C$117,3) -> 4.5 | AC57: 4.5 | AD57: ='3. Schodišťový prostor'!L11 -> 0 | AE57: 1 | AF57: 0 | AG57: =IF(OR(V57=10,V57=14,V57=16),-AD57,0) -> 0 | AH57: =VLOOKUP(V57,Data!$A$102:$H$117,8) -> 0.85 | AO57: Jih okno 12 | AP57: 1 | AQ57: =VLOOKUP(Vypocet!AP57,Data!$A$102:$B$117,2) -> okno jednoduché s jedním sklem | AR57: =VLOOKUP(AP57,Data!$A$102:$C$117,3) -> 4.5 | AW57: 4.5 | AX57: ='4. Technické podlaží-garáže'!L11 -> 0 | AY57: 1 | AZ57: 0 | BA57: 0 | BB57: =VLOOKUP(AP57,Data!$A$102:$H$117,8) -> 0.85
A58: Jih okno 21 | B58: 1 | C58: =VLOOKUP(Vypocet!B58,Data!$A$102:$B$117,2) -> okno jednoduché s jedním sklem | D58: =VLOOKUP(B58,Data!$A$102:$C$117,3) -> 4.5 | I58: 4.5 | J58: ='2. Bytové jednotky'!J12 -> 0 | K58: 1 | L58: 0 | M58: 0 | N58: =VLOOKUP(B58,Data!$A$102:$H$117,8) -> 0.85 | U58: Jih okno 21 | V58: 1 | W58: =VLOOKUP(Vypocet!V58,Data!$A$102:$B$117,2) -> okno jednoduché s jedním sklem | X58: =VLOOKUP(V58,Data!$A$102:$C$117,3) -> 4.5 | AC58: 4.5 | AD58: ='3. Schodišťový prostor'!J12 -> 0 | AE58: 1 | AF58: 0 | AG58: 0 | AH58: =VLOOKUP(V58,Data!$A$102:$H$117,8) -> 0.85 | AO58: Jih okno 21 | AP58: 1 | AQ58: =VLOOKUP(Vypocet!AP58,Data!$A$102:$B$117,2) -> okno jednoduché s jedním sklem | AR58: =VLOOKUP(AP58,Data!$A$102:$C$117,3) -> 4.5 | AW58: 4.5 | AX58: ='4. Technické podlaží-garáže'!J12 -> 0 | AY58: 1 | AZ58: 0 | BA58: 0 | BB58: =VLOOKUP(AP58,Data!$A$102:$H$117,8) -> 0.85
A59: Jih okno 22 | B59: 1 | C59: =VLOOKUP(Vypocet!B59,Data!$A$102:$B$117,2) -> okno jednoduché s jedním sklem | D59: =VLOOKUP(B59,Data!$A$102:$C$117,3) -> 4.5 | I59: 4.5 | J59: ='2. Bytové jednotky'!L12 -> 0 | K59: 1 | L59: 0 | M59: 0 | N59: =VLOOKUP(B59,Data!$A$102:$H$117,8) -> 0.85 | U59: Jih okno 22 | V59: 1 | W59: =VLOOKUP(Vypocet!V59,Data!$A$102:$B$117,2) -> okno jednoduché s jedním sklem | X59: =VLOOKUP(V59,Data!$A$102:$C$117,3) -> 4.5 | AC59: 4.5 | AD59: ='3. Schodišťový prostor'!L12 -> 0 | AE59: 1 | AF59: 0 | AG59: 0 | AH59: =VLOOKUP(V59,Data!$A$102:$H$117,8) -> 0.85 | AO59: Jih okno 22 | AP59: 1 | AQ59: =VLOOKUP(Vypocet!AP59,Data!$A$102:$B$117,2) -> okno jednoduché s jedním sklem | AR59: =VLOOKUP(AP59,Data!$A$102:$C$117,3) -> 4.5 | AW59: 4.5 | AX59: ='4. Technické podlaží-garáže'!L12 -> 0 | AY59: 1 | AZ59: 0 | BA59: 0 | BB59: =VLOOKUP(AP59,Data!$A$102:$H$117,8) -> 0.85
A60: Jih okno 31 | B60: 1 | C60: =VLOOKUP(Vypocet!B60,Data!$A$102:$B$117,2) -> okno jednoduché s jedním sklem | D60: =VLOOKUP(B60,Data!$A$102:$C$117,3) -> 4.5 | I60: 4.5 | J60: ='2. Bytové jednotky'!J13 -> 0 | K60: 1 | L60: 0 | M60: 0 | N60: =VLOOKUP(B60,Data!$A$102:$H$117,8) -> 0.85 | U60: Jih okno 31 | V60: 1 | W60: =VLOOKUP(Vypocet!V60,Data!$A$102:$B$117,2) -> okno jednoduché s jedním sklem | X60: =VLOOKUP(V60,Data!$A$102:$C$117,3) -> 4.5 | AC60: 4.5 | AD60: ='3. Schodišťový prostor'!J13 -> 0 | AE60: 1 | AF60: 0 | AG60: 0 | AH60: =VLOOKUP(V60,Data!$A$102:$H$117,8) -> 0.85 | AO60: Jih okno 31 | AP60: 1 | AQ60: =VLOOKUP(Vypocet!AP60,Data!$A$102:$B$117,2) -> okno jednoduché s jedním sklem | AR60: =VLOOKUP(AP60,Data!$A$102:$C$117,3) -> 4.5 | AW60: 4.5 | AX60: ='4. Technické podlaží-garáže'!J13 -> 0 | AY60: 1 | AZ60: 0 | BA60: 0 | BB60: =VLOOKUP(AP60,Data!$A$102:$H$117,8) -> 0.85
A61: Jih okno 32 | B61: 1 | C61: =VLOOKUP(Vypocet!B61,Data!$A$102:$B$117,2) -> okno jednoduché s jedním sklem | D61: =VLOOKUP(B61,Data!$A$102:$C$117,3) -> 4.5 | I61: 4.5 | J61: ='2. Bytové jednotky'!L13 -> 0 | K61: 1 | L61: 0 | M61: 0 | N61: =VLOOKUP(B61,Data!$A$102:$H$117,8) -> 0.85 | U61: Jih okno 32 | V61: 1 | W61: =VLOOKUP(Vypocet!V61,Data!$A$102:$B$117,2) -> okno jednoduché s jedním sklem | X61: =VLOOKUP(V61,Data!$A$102:$C$117,3) -> 4.5 | AC61: 4.5 | AD61: ='3. Schodišťový prostor'!L13 -> 0 | AE61: 1 | AF61: 0 | AG61: 0 | AH61: =VLOOKUP(V61,Data!$A$102:$H$117,8) -> 0.85 | AO61: Jih okno 32 | AP61: 1 | AQ61: =VLOOKUP(Vypocet!AP61,Data!$A$102:$B$117,2) -> okno jednoduché s jedním sklem | AR61: =VLOOKUP(AP61,Data!$A$102:$C$117,3) -> 4.5 | AW61: 4.5 | AX61: ='4. Technické podlaží-garáže'!L13 -> 0 | AY61: 1 | AZ61: 0 | BA61: 0 | BB61: =VLOOKUP(AP61,Data!$A$102:$H$117,8) -> 0.85
A62: Jih okno 41 | B62: 1 | C62: =VLOOKUP(Vypocet!B62,Data!$A$102:$B$117,2) -> okno jednoduché s jedním sklem | D62: =VLOOKUP(B62,Data!$A$102:$C$117,3) -> 4.5 | I62: 4.5 | J62: ='2. Bytové jednotky'!J14 -> 0 | K62: 1 | L62: 0 | M62: 0 | N62: =VLOOKUP(B62,Data!$A$102:$H$117,8) -> 0.85 | U62: Jih okno 41 | V62: 1 | W62: =VLOOKUP(Vypocet!V62,Data!$A$102:$B$117,2) -> okno jednoduché s jedním sklem | X62: =VLOOKUP(V62,Data!$A$102:$C$117,3) -> 4.5 | AC62: 4.5 | AD62: ='3. Schodišťový prostor'!J14 -> 0 | AE62: 1 | AF62: 0 | AG62: 0 | AH62: =VLOOKUP(V62,Data!$A$102:$H$117,8) -> 0.85 | AO62: Jih okno 41 | AP62: 1 | AQ62: =VLOOKUP(Vypocet!AP62,Data!$A$102:$B$117,2) -> okno jednoduché s jedním sklem | AR62: =VLOOKUP(AP62,Data!$A$102:$C$117,3) -> 4.5 | AW62: 4.5 | AX62: ='4. Technické podlaží-garáže'!J14 -> 0 | AY62: 1 | AZ62: 0 | BA62: 0 | BB62: =VLOOKUP(AP62,Data!$A$102:$H$117,8) -> 0.85
A63: Jih okno 42 | B63: 1 | C63: =VLOOKUP(Vypocet!B63,Data!$A$102:$B$117,2) -> okno jednoduché s jedním sklem | D63: =VLOOKUP(B63,Data!$A$102:$C$117,3) -> 4.5 | I63: 4.5 | J63: ='2. Bytové jednotky'!L14 -> 0 | K63: 1 | L63: 0 | M63: 0 | N63: =VLOOKUP(B63,Data!$A$102:$H$117,8) -> 0.85 | U63: Jih okno 42 | V63: 1 | W63: =VLOOKUP(Vypocet!V63,Data!$A$102:$B$117,2) -> okno jednoduché s jedním sklem | X63: =VLOOKUP(V63,Data!$A$102:$C$117,3) -> 4.5 | AC63: 4.5 | AD63: ='3. Schodišťový prostor'!L14 -> 0 | AE63: 1 | AF63: 0 | AG63: 0 | AH63: =VLOOKUP(V63,Data!$A$102:$H$117,8) -> 0.85 | AO63: Jih okno 42 | AP63: 1 | AQ63: =VLOOKUP(Vypocet!AP63,Data!$A$102:$B$117,2) -> okno jednoduché s jedním sklem | AR63: =VLOOKUP(AP63,Data!$A$102:$C$117,3) -> 4.5 | AW63: 4.5 | AX63: ='4. Technické podlaží-garáže'!L14 -> 0 | AY63: 1 | AZ63: 0 | BA63: 0 | BB63: =VLOOKUP(AP63,Data!$A$102:$H$117,8) -> 0.85
A65: Východ okno 11 | B65: 1 | C65: =VLOOKUP(Vypocet!B65,Data!$A$102:$B$117,2) -> okno jednoduché s jedním sklem | D65: =VLOOKUP(B65,Data!$A$102:$C$117,3) -> 4.5 | I65: =D65 -> 4.5 | J65: ='2. Bytové jednotky'!J16 -> 0 | K65: 1 | L65: 0 | M65: 0 | N65: =VLOOKUP(B65,Data!$A$102:$H$117,8) -> 0.85 | U65: Východ okno 11 | V65: 1 | W65: =VLOOKUP(Vypocet!V65,Data!$A$102:$B$117,2) -> okno jednoduché s jedním sklem | X65: =VLOOKUP(V65,Data!$A$102:$C$117,3) -> 4.5 | AC65: =X65 -> 4.5 | AD65: ='3. Schodišťový prostor'!J16 -> 0 | AE65: 1 | AF65: =AC65*AD65*AE65 -> 0 | AG65: 0 | AH65: =VLOOKUP(V65,Data!$A$102:$H$117,8) -> 0.85 | AO65: Východ okno 11 | AP65: 1 | AQ65: =VLOOKUP(Vypocet!AP65,Data!$A$102:$B$117,2) -> okno jednoduché s jedním sklem | AR65: =VLOOKUP(AP65,Data!$A$102:$C$117,3) -> 4.5 | AW65: =AR65 -> 4.5 | AX65: ='4. Technické podlaží-garáže'!J16 -> 0 | AY65: 1 | AZ65: =AW65*AX65*AY65 -> 0 | BA65: 0 | BB65: =VLOOKUP(AP65,Data!$A$102:$H$117,8) -> 0.85
A66: Východ okno 12 | B66: 1 | C66: =VLOOKUP(Vypocet!B66,Data!$A$102:$B$117,2) -> okno jednoduché s jedním sklem | D66: =VLOOKUP(B66,Data!$A$102:$C$117,3) -> 4.5 | I66: 4.5 | J66: ='2. Bytové jednotky'!L16 -> 0 | K66: 1 | L66: 0 | M66: 0 | N66: =VLOOKUP(B66,Data!$A$102:$H$117,8) -> 0.85 | U66: Východ okno 12 | V66: 1 | W66: =VLOOKUP(Vypocet!V66,Data!$A$102:$B$117,2) -> okno jednoduché s jedním sklem | X66: =VLOOKUP(V66,Data!$A$102:$C$117,3) -> 4.5 | AC66: 4.5 | AD66: ='3. Schodišťový prostor'!L16 -> 0 | AE66: 1 | AF66: 0 | AG66: 0 | AH66: =VLOOKUP(V66,Data!$A$102:$H$117,8) -> 0.85 | AO66: Východ okno 12 | AP66: 1 | AQ66: =VLOOKUP(Vypocet!AP66,Data!$A$102:$B$117,2) -> okno jednoduché s jedním sklem | AR66: =VLOOKUP(AP66,Data!$A$102:$C$117,3) -> 4.5 | AW66: 4.5 | AX66: ='4. Technické podlaží-garáže'!L16 -> 0 | AY66: 1 | AZ66: 0 | BA66: 0 | BB66: =VLOOKUP(AP66,Data!$A$102:$H$117,8) -> 0.85
A67: Východ okno 21 | B67: 1 | C67: =VLOOKUP(Vypocet!B67,Data!$A$102:$B$117,2) -> okno jednoduché s jedním sklem | D67: =VLOOKUP(B67,Data!$A$102:$C$117,3) -> 4.5 | I67: 4.5 | J67: ='2. Bytové jednotky'!J17 -> 0 | K67: 1 | L67: 0 | M67: 0 | N67: =VLOOKUP(B67,Data!$A$102:$H$117,8) -> 0.85 | U67: Východ okno 21 | V67: 1 | W67: =VLOOKUP(Vypocet!V67,Data!$A$102:$B$117,2) -> okno jednoduché s jedním sklem | X67: =VLOOKUP(V67,Data!$A$102:$C$117,3) -> 4.5 | AC67: 4.5 | AD67: ='3. Schodišťový prostor'!J17 -> 0 | AE67: 1 | AF67: 0 | AG67: 0 | AH67: =VLOOKUP(V67,Data!$A$102:$H$117,8) -> 0.85 | AO67: Východ okno 21 | AP67: 1 | AQ67: =VLOOKUP(Vypocet!AP67,Data!$A$102:$B$117,2) -> okno jednoduché s jedním sklem | AR67: =VLOOKUP(AP67,Data!$A$102:$C$117,3) -> 4.5 | AW67: 4.5 | AX67: ='4. Technické podlaží-garáže'!J17 -> 0 | AY67: 1 | AZ67: 0 | BA67: 0 | BB67: =VLOOKUP(AP67,Data!$A$102:$H$117,8) -> 0.85
A68: Východ okno 22 | B68: 1 | C68: =VLOOKUP(Vypocet!B68,Data!$A$102:$B$117,2) -> okno jednoduché s jedním sklem | D68: =VLOOKUP(B68,Data!$A$102:$C$117,3) -> 4.5 | I68: 4.5 | J68: ='2. Bytové jednotky'!L17 -> 0 | K68: 1 | L68: 0 | M68: 0 | N68: =VLOOKUP(B68,Data!$A$102:$H$117,8) -> 0.85 | U68: Východ okno 22 | V68: 1 | W68: =VLOOKUP(Vypocet!V68,Data!$A$102:$B$117,2) -> okno jednoduché s jedním sklem | X68: =VLOOKUP(V68,Data!$A$102:$C$117,3) -> 4.5 | AC68: 4.5 | AD68: ='3. Schodišťový prostor'!L17 -> 0 | AE68: 1 | AF68: 0 | AG68: 0 | AH68: =VLOOKUP(V68,Data!$A$102:$H$117,8) -> 0.85 | AO68: Východ okno 22 | AP68: 1 | AQ68: =VLOOKUP(Vypocet!AP68,Data!$A$102:$B$117,2) -> okno jednoduché s jedním sklem | AR68: =VLOOKUP(AP68,Data!$A$102:$C$117,3) -> 4.5 | AW68: 4.5 | AX68: ='4. Technické podlaží-garáže'!L17 -> 0 | AY68: 1 | AZ68: 0 | BA68: 0 | BB68: =VLOOKUP(AP68,Data!$A$102:$H$117,8) -> 0.85
A69: Východ okno 31 | B69: 1 | C69: =VLOOKUP(Vypocet!B69,Data!$A$102:$B$117,2) -> okno jednoduché s jedním sklem | D69: =VLOOKUP(B69,Data!$A$102:$C$117,3) -> 4.5 | I69: 4.5 | J69: ='2. Bytové jednotky'!J18 -> 0 | K69: 1 | L69: 0 | M69: 0 | N69: =VLOOKUP(B69,Data!$A$102:$H$117,8) -> 0.85 | U69: Východ okno 31 | V69: 1 | W69: =VLOOKUP(Vypocet!V69,Data!$A$102:$B$117,2) -> okno jednoduché s jedním sklem | X69: =VLOOKUP(V69,Data!$A$102:$C$117,3) -> 4.5 | AC69: 4.5 | AD69: ='3. Schodišťový prostor'!J18 -> 0 | AE69: 1 | AF69: 0 | AG69: 0 | AH69: =VLOOKUP(V69,Data!$A$102:$H$117,8) -> 0.85 | AO69: Východ okno 31 | AP69: 1 | AQ69: =VLOOKUP(Vypocet!AP69,Data!$A$102:$B$117,2) -> okno jednoduché s jedním sklem | AR69: =VLOOKUP(AP69,Data!$A$102:$C$117,3) -> 4.5 | AW69: 4.5 | AX69: ='4. Technické podlaží-garáže'!J18 -> 0 | AY69: 1 | AZ69: 0 | BA69: 0 | BB69: =VLOOKUP(AP69,Data!$A$102:$H$117,8) -> 0.85
A70: Východ okno 32 | B70: 1 | C70: =VLOOKUP(Vypocet!B70,Data!$A$102:$B$117,2) -> okno jednoduché s jedním sklem | D70: =VLOOKUP(B70,Data!$A$102:$C$117,3) -> 4.5 | I70: 4.5 | J70: ='2. Bytové jednotky'!L18 -> 0 | K70: 1 | L70: 0 | M70: 0 | N70: =VLOOKUP(B70,Data!$A$102:$H$117,8) -> 0.85 | U70: Východ okno 32 | V70: 1 | W70: =VLOOKUP(Vypocet!V70,Data!$A$102:$B$117,2) -> okno jednoduché s jedním sklem | X70: =VLOOKUP(V70,Data!$A$102:$C$117,3) -> 4.5 | AC70: 4.5 | AD70: ='3. Schodišťový prostor'!L18 -> 0 | AE70: 1 | AF70: 0 | AG70: 0 | AH70: =VLOOKUP(V70,Data!$A$102:$H$117,8) -> 0.85 | AO70: Východ okno 32 | AP70: 1 | AQ70: =VLOOKUP(Vypocet!AP70,Data!$A$102:$B$117,2) -> okno jednoduché s jedním sklem | AR70: =VLOOKUP(AP70,Data!$A$102:$C$117,3) -> 4.5 | AW70: 4.5 | AX70: ='4. Technické podlaží-garáže'!L18 -> 0 | AY70: 1 | AZ70: 0 | BA70: 0 | BB70: =VLOOKUP(AP70,Data!$A$102:$H$117,8) -> 0.85
A71: Východ okno 41 | B71: 1 | C71: =VLOOKUP(Vypocet!B71,Data!$A$102:$B$117,2) -> okno jednoduché s jedním sklem | D71: =VLOOKUP(B71,Data!$A$102:$C$117,3) -> 4.5 | I71: 4.5 | J71: ='2. Bytové jednotky'!J19 -> 0 | K71: 1 | L71: 0 | M71: 0 | N71: =VLOOKUP(B71,Data!$A$102:$H$117,8) -> 0.85 | U71: Východ okno 41 | V71: 1 | W71: =VLOOKUP(Vypocet!V71,Data!$A$102:$B$117,2) -> okno jednoduché s jedním sklem | X71: =VLOOKUP(V71,Data!$A$102:$C$117,3) -> 4.5 | AC71: 4.5 | AD71: ='3. Schodišťový prostor'!J19 -> 0 | AE71: 1 | AF71: 0 | AG71: 0 | AH71: =VLOOKUP(V71,Data!$A$102:$H$117,8) -> 0.85 | AO71: Východ okno 41 | AP71: 1 | AQ71: =VLOOKUP(Vypocet!AP71,Data!$A$102:$B$117,2) -> okno jednoduché s jedním sklem | AR71: =VLOOKUP(AP71,Data!$A$102:$C$117,3) -> 4.5 | AW71: 4.5 | AX71: ='4. Technické podlaží-garáže'!J19 -> 0 | AY71: 1 | AZ71: 0 | BA71: 0 | BB71: =VLOOKUP(AP71,Data!$A$102:$H$117,8) -> 0.85
A72: Východ okno 42 | B72: 1 | C72: =VLOOKUP(Vypocet!B72,Data!$A$102:$B$117,2) -> okno jednoduché s jedním sklem | D72: =VLOOKUP(B72,Data!$A$102:$C$117,3) -> 4.5 | I72: 4.5 | J72: ='2. Bytové jednotky'!L19 -> 0 | K72: 1 | L72: 0 | M72: 0 | N72: =VLOOKUP(B72,Data!$A$102:$H$117,8) -> 0.85 | U72: Východ okno 42 | V72: 1 | W72: =VLOOKUP(Vypocet!V72,Data!$A$102:$B$117,2) -> okno jednoduché s jedním sklem | X72: =VLOOKUP(V72,Data!$A$102:$C$117,3) -> 4.5 | AC72: 4.5 | AD72: ='3. Schodišťový prostor'!L19 -> 0 | AE72: 1 | AF72: 0 | AG72: 0 | AH72: =VLOOKUP(V72,Data!$A$102:$H$117,8) -> 0.85 | AO72: Východ okno 42 | AP72: 1 | AQ72: =VLOOKUP(Vypocet!AP72,Data!$A$102:$B$117,2) -> okno jednoduché s jedním sklem | AR72: =VLOOKUP(AP72,Data!$A$102:$C$117,3) -> 4.5 | AW72: 4.5 | AX72: ='4. Technické podlaží-garáže'!L19 -> 0 | AY72: 1 | AZ72: 0 | BA72: 0 | BB72: =VLOOKUP(AP72,Data!$A$102:$H$117,8) -> 0.85
A74: Západ okno 11 | B74: 1 | C74: =VLOOKUP(Vypocet!B74,Data!$A$102:$B$117,2) -> okno jednoduché s jedním sklem | D74: =VLOOKUP(B74,Data!$A$102:$C$117,3) -> 4.5 | I74: =D74 -> 4.5 | J74: ='2. Bytové jednotky'!$J$21 -> 0 | K74: 1 | L74: 0 | M74: 0 | N74: =VLOOKUP(B74,Data!$A$102:$H$117,8) -> 0.85 | U74: Západ okno 11 | V74: 1 | W74: =VLOOKUP(Vypocet!V74,Data!$A$102:$B$117,2) -> okno jednoduché s jedním sklem | X74: =VLOOKUP(V74,Data!$A$102:$C$117,3) -> 4.5 | AC74: =X74 -> 4.5 | AD74: ='3. Schodišťový prostor'!J21 -> 0 | AE74: 1 | AF74: =AC74*AD74*AE74 -> 0 | AG74: 0 | AH74: =VLOOKUP(V74,Data!$A$102:$H$117,8) -> 0.85 | AO74: Západ okno 11 | AP74: 1 | AQ74: =VLOOKUP(Vypocet!AP74,Data!$A$102:$B$117,2) -> okno jednoduché s jedním sklem | AR74: =VLOOKUP(AP74,Data!$A$102:$C$117,3) -> 4.5 | AW74: =AR74 -> 4.5 | AX74: ='4. Technické podlaží-garáže'!J21 -> 0 | AY74: 1 | AZ74: =AW74*AX74*AY74 -> 0 | BA74: 0 | BB74: =VLOOKUP(AP74,Data!$A$102:$H$117,8) -> 0.85
A75: Západ okno 12 | B75: 1 | C75: =VLOOKUP(Vypocet!B75,Data!$A$102:$B$117,2) -> okno jednoduché s jedním sklem | D75: =VLOOKUP(B75,Data!$A$102:$C$117,3) -> 4.5 | I75: =D75 -> 4.5 | J75: ='2. Bytové jednotky'!$L$21 -> 0 | K75: 1 | L75: 0 | M75: 0 | N75: =VLOOKUP(B75,Data!$A$102:$H$117,8) -> 0.85 | U75: Západ okno 12 | V75: 1 | W75: =VLOOKUP(Vypocet!V75,Data!$A$102:$B$117,2) -> okno jednoduché s jedním sklem | X75: =VLOOKUP(V75,Data!$A$102:$C$117,3) -> 4.5 | AC75: =X75 -> 4.5 | AD75: ='3. Schodišťový prostor'!L21 -> 0 | AE75: 1 | AF75: 0 | AG75: 0 | AH75: =VLOOKUP(V75,Data!$A$102:$H$117,8) -> 0.85 | AO75: Západ okno 12 | AP75: 1 | AQ75: =VLOOKUP(Vypocet!AP75,Data!$A$102:$B$117,2) -> okno jednoduché s jedním sklem | AR75: =VLOOKUP(AP75,Data!$A$102:$C$117,3) -> 4.5 | AW75: =AR75 -> 4.5 | AX75: ='4. Technické podlaží-garáže'!L21 -> 0 | AY75: 1 | AZ75: 0 | BA75: 0 | BB75: =VLOOKUP(AP75,Data!$A$102:$H$117,8) -> 0.85
A76: Západ okno 21 | B76: 1 | C76: =VLOOKUP(Vypocet!B76,Data!$A$102:$B$117,2) -> okno jednoduché s jedním sklem | D76: =VLOOKUP(B76,Data!$A$102:$C$117,3) -> 4.5 | I76: 4.5 | J76: ='2. Bytové jednotky'!$J$22 -> 0 | K76: 1 | L76: 0 | M76: 0 | N76: =VLOOKUP(B76,Data!$A$102:$H$117,8) -> 0.85 | U76: Západ okno 21 | V76: 1 | W76: =VLOOKUP(Vypocet!V76,Data!$A$102:$B$117,2) -> okno jednoduché s jedním sklem | X76: =VLOOKUP(V76,Data!$A$102:$C$117,3) -> 4.5 | AC76: 4.5 | AD76: ='3. Schodišťový prostor'!J22 -> 0 | AE76: 1 | AF76: 0 | AG76: 0 | AH76: =VLOOKUP(V76,Data!$A$102:$H$117,8) -> 0.85 | AO76: Západ okno 21 | AP76: 1 | AQ76: =VLOOKUP(Vypocet!AP76,Data!$A$102:$B$117,2) -> okno jednoduché s jedním sklem | AR76: =VLOOKUP(AP76,Data!$A$102:$C$117,3) -> 4.5 | AW76: 4.5 | AX76: ='4. Technické podlaží-garáže'!J22 -> 0 | AY76: 1 | AZ76: 0 | BA76: 0 | BB76: =VLOOKUP(AP76,Data!$A$102:$H$117,8) -> 0.85
A77: Západ okno 22 | B77: 1 | C77: =VLOOKUP(Vypocet!B77,Data!$A$102:$B$117,2) -> okno jednoduché s jedním sklem | D77: =VLOOKUP(B77,Data!$A$102:$C$117,3) -> 4.5 | I77: 4.5 | J77: ='2. Bytové jednotky'!$L$22 -> 0 | K77: 1 | L77: ='2. Bytové jednotky'!$L$22 -> 0 | M77: 0 | N77: =VLOOKUP(B77,Data!$A$102:$H$117,8) -> 0.85 | U77: Západ okno 22 | V77: 1 | W77: =VLOOKUP(Vypocet!V77,Data!$A$102:$B$117,2) -> okno jednoduché s jedním sklem | X77: =VLOOKUP(V77,Data!$A$102:$C$117,3) -> 4.5 | AC77: 4.5 | AD77: ='3. Schodišťový prostor'!L22 -> 0 | AE77: 1 | AF77: ='2. Bytové jednotky'!$L$22 -> 0 | AG77: 0 | AH77: =VLOOKUP(V77,Data!$A$102:$H$117,8) -> 0.85 | AO77: Západ okno 22 | AP77: 1 | AQ77: =VLOOKUP(Vypocet!AP77,Data!$A$102:$B$117,2) -> okno jednoduché s jedním sklem | AR77: =VLOOKUP(AP77,Data!$A$102:$C$117,3) -> 4.5 | AW77: 4.5 | AX77: ='4. Technické podlaží-garáže'!L22 -> 0 | AY77: 1 | AZ77: ='2. Bytové jednotky'!$L$22 -> 0 | BA77: 0 | BB77: =VLOOKUP(AP77,Data!$A$102:$H$117,8) -> 0.85
A78: Západ okno 31 | B78: 1 | C78: =VLOOKUP(Vypocet!B78,Data!$A$102:$B$117,2) -> okno jednoduché s jedním sklem | D78: =VLOOKUP(B78,Data!$A$102:$C$117,3) -> 4.5 | I78: 4.5 | J78: ='2. Bytové jednotky'!$J$23 -> 0 | K78: 1 | L78: ='2. Bytové jednotky'!$L$22 -> 0 | M78: 0 | N78: =VLOOKUP(B78,Data!$A$102:$H$117,8) -> 0.85 | U78: Západ okno 31 | V78: 1 | W78: =VLOOKUP(Vypocet!V78,Data!$A$102:$B$117,2) -> okno jednoduché s jedním sklem | X78: =VLOOKUP(V78,Data!$A$102:$C$117,3) -> 4.5 | AC78: 4.5 | AD78: ='3. Schodišťový prostor'!J23 -> 0 | AE78: 1 | AF78: ='2. Bytové jednotky'!$L$22 -> 0 | AG78: 0 | AH78: =VLOOKUP(V78,Data!$A$102:$H$117,8) -> 0.85 | AO78: Západ okno 31 | AP78: 1 | AQ78: =VLOOKUP(Vypocet!AP78,Data!$A$102:$B$117,2) -> okno jednoduché s jedním sklem | AR78: =VLOOKUP(AP78,Data!$A$102:$C$117,3) -> 4.5 | AW78: 4.5 | AX78: ='4. Technické podlaží-garáže'!J23 -> 0 | AY78: 1 | AZ78: ='2. Bytové jednotky'!$L$22 -> 0 | BA78: 0 | BB78: =VLOOKUP(AP78,Data!$A$102:$H$117,8) -> 0.85
A79: Západ okno 32 | B79: 1 | C79: =VLOOKUP(Vypocet!B79,Data!$A$102:$B$117,2) -> okno jednoduché s jedním sklem | D79: =VLOOKUP(B79,Data!$A$102:$C$117,3) -> 4.5 | I79: 4.5 | J79: ='2. Bytové jednotky'!$L$23 -> 0 | K79: 1 | L79: ='2. Bytové jednotky'!$L$22 -> 0 | M79: 0 | N79: =VLOOKUP(B79,Data!$A$102:$H$117,8) -> 0.85 | U79: Západ okno 32 | V79: 1 | W79: =VLOOKUP(Vypocet!V79,Data!$A$102:$B$117,2) -> okno jednoduché s jedním sklem | X79: =VLOOKUP(V79,Data!$A$102:$C$117,3) -> 4.5 | AC79: 4.5 | AD79: ='3. Schodišťový prostor'!L23 -> 0 | AE79: 1 | AF79: ='2. Bytové jednotky'!$L$22 -> 0 | AG79: 0 | AH79: =VLOOKUP(V79,Data!$A$102:$H$117,8) -> 0.85 | AO79: Západ okno 32 | AP79: 1 | AQ79: =VLOOKUP(Vypocet!AP79,Data!$A$102:$B$117,2) -> okno jednoduché s jedním sklem | AR79: =VLOOKUP(AP79,Data!$A$102:$C$117,3) -> 4.5 | AW79: 4.5 | AX79: ='4. Technické podlaží-garáže'!L23 -> 0 | AY79: 1 | AZ79: ='2. Bytové jednotky'!$L$22 -> 0 | BA79: 0 | BB79: =VLOOKUP(AP79,Data!$A$102:$H$117,8) -> 0.85
A80: Západ okno 41 | B80: 1 | C80: =VLOOKUP(Vypocet!B80,Data!$A$102:$B$117,2) -> okno jednoduché s jedním sklem | D80: =VLOOKUP(B80,Data!$A$102:$C$117,3) -> 4.5 | I80: 4.5 | J80: ='2. Bytové jednotky'!$J$24 -> 0 | K80: 1 | L80: ='2. Bytové jednotky'!$L$22 -> 0 | M80: 0 | N80: =VLOOKUP(B80,Data!$A$102:$H$117,8) -> 0.85 | U80: Západ okno 41 | V80: 1 | W80: =VLOOKUP(Vypocet!V80,Data!$A$102:$B$117,2) -> okno jednoduché s jedním sklem | X80: =VLOOKUP(V80,Data!$A$102:$C$117,3) -> 4.5 | AC80: 4.5 | AD80: ='3. Schodišťový prostor'!J24 -> 0 | AE80: 1 | AF80: ='2. Bytové jednotky'!$L$22 -> 0 | AG80: 0 | AH80: =VLOOKUP(V80,Data!$A$102:$H$117,8) -> 0.85 | AO80: Západ okno 41 | AP80: 1 | AQ80: =VLOOKUP(Vypocet!AP80,Data!$A$102:$B$117,2) -> okno jednoduché s jedním sklem | AR80: =VLOOKUP(AP80,Data!$A$102:$C$117,3) -> 4.5 | AW80: 4.5 | AX80: ='4. Technické podlaží-garáže'!J24 -> 0 | AY80: 1 | AZ80: ='2. Bytové jednotky'!$L$22 -> 0 | BA80: 0 | BB80: =VLOOKUP(AP80,Data!$A$102:$H$117,8) -> 0.85
A81: Západ okno 42 | B81: 1 | C81: =VLOOKUP(Vypocet!B81,Data!$A$102:$B$117,2) -> okno jednoduché s jedním sklem | D81: =VLOOKUP(B81,Data!$A$102:$C$117,3) -> 4.5 | I81: 4.5 | J81: ='2. Bytové jednotky'!$L$24 -> 0 | K81: 1 | L81: ='2. Bytové jednotky'!$L$22 -> 0 | M81: 0 | N81: =VLOOKUP(B81,Data!$A$102:$H$117,8) -> 0.85 | U81: Západ okno 42 | V81: 1 | W81: =VLOOKUP(Vypocet!V81,Data!$A$102:$B$117,2) -> okno jednoduché s jedním sklem | X81: =VLOOKUP(V81,Data!$A$102:$C$117,3) -> 4.5 | AC81: 4.5 | AD81: ='3. Schodišťový prostor'!L24 -> 0 | AE81: 1 | AF81: ='2. Bytové jednotky'!$L$22 -> 0 | AG81: 0 | AH81: =VLOOKUP(V81,Data!$A$102:$H$117,8) -> 0.85 | AO81: Západ okno 42 | AP81: 1 | AQ81: =VLOOKUP(Vypocet!AP81,Data!$A$102:$B$117,2) -> okno jednoduché s jedním sklem | AR81: =VLOOKUP(AP81,Data!$A$102:$C$116,3) -> 4.5 | AW81: 4.5 | AX81: ='4. Technické podlaží-garáže'!L24 -> 0 | AY81: 1 | AZ81: ='2. Bytové jednotky'!$L$22 -> 0 | BA81: 0 | BB81: =VLOOKUP(AP81,Data!$A$102:$H$117,8) -> 0.85
A83: Střešní okno do 45 1 | B83: 1 | C83: =VLOOKUP(Vypocet!B83,Data!$A$120:$B$124,2) -> okno střešní jednoduché s jedním sklem | D83: =VLOOKUP(B83,Data!$A$120:$C$124,3) -> 4.5 | I83: 4.5 | J83: ='2. Bytové jednotky'!J34 -> 0 | K83: 1 | L83: 0 | N83: =VLOOKUP(B83,Data!$A$120:$H$124,8) -> 0.85 | U83: Střešní okno do 45 1 | V83: 1 | W83: =VLOOKUP(Vypocet!V83,Data!$A$120:$B$123,2) -> okno střešní jednoduché s jedním sklem | X83: =VLOOKUP(V83,Data!$A$120:$C$124,3) -> 4.5 | AC83: =X83 -> 4.5 | AD83: ='3. Schodišťový prostor'!J34 -> 0 | AE83: 1 | AF83: =AC83*AD83*AE83 -> 0 | AH83: =VLOOKUP(V83,Data!$A$120:$H$123,8) -> 0.85 | AO83: Střešní okno do 45 1 | AP83: 1 | AQ83: =VLOOKUP(Vypocet!AP83,Data!$A$120:$B$123,2) -> okno střešní jednoduché s jedním sklem | AR83: =VLOOKUP(AP83,Data!$A$120:$C$124,3) -> 4.5 | AW83: =AR83 -> 4.5 | AX83: ='4. Technické podlaží-garáže'!J34 -> 0 | AY83: 1 | AZ83: =AW83*AX83*AY83 -> 0 | BB83: =VLOOKUP(AP83,Data!$A$120:$H$123,8) -> 0.85
A84: Střešní okno do 45 2 | B84: 1 | C84: =VLOOKUP(Vypocet!B84,Data!$A$120:$B$124,2) -> okno střešní jednoduché s jedním sklem | D84: =VLOOKUP(B84,Data!$A$120:$C$124,3) -> 4.5 | I84: 4.5 | J84: ='2. Bytové jednotky'!J35 -> 0 | K84: 1 | L84: 0 | N84: =VLOOKUP(B84,Data!$A$120:$H$124,8) -> 0.85 | U84: Střešní okno do 45 2 | V84: 1 | W84: =VLOOKUP(Vypocet!V84,Data!$A$120:$B$123,2) -> okno střešní jednoduché s jedním sklem | X84: =VLOOKUP(V84,Data!$A$120:$C$124,3) -> 4.5 | AC84: 4.5 | AD84: ='3. Schodišťový prostor'!J35 -> 0 | AE84: 1 | AF84: 0 | AH84: =VLOOKUP(V84,Data!$A$120:$H$123,8) -> 0.85 | AO84: Střešní okno do 45 2 | AP84: 1 | AQ84: =VLOOKUP(Vypocet!AP84,Data!$A$120:$B$123,2) -> okno střešní jednoduché s jedním sklem | AR84: =VLOOKUP(AP84,Data!$A$120:$C$124,3) -> 4.5 | AW84: 4.5 | AX84: ='4. Technické podlaží-garáže'!J35 -> 0 | AY84: 1 | AZ84: 0 | BB84: =VLOOKUP(AP84,Data!$A$120:$H$123,8) -> 0.85
A85: Střešní okno nad 45 1 | B85: 1 | C85: =VLOOKUP(Vypocet!B85,Data!$A$120:$B$124,2) -> okno střešní jednoduché s jedním sklem | D85: =VLOOKUP(B85,Data!$A$120:$C$124,3) -> 4.5 | I85: 4.5 | J85: ='2. Bytové jednotky'!J37 -> 0 | K85: 1 | L85: 0 | N85: =VLOOKUP(B85,Data!$A$120:$H$124,8) -> 0.85 | U85: Střešní okno nad 45 1 | V85: 1 | W85: =VLOOKUP(Vypocet!V85,Data!$A$120:$B$123,2) -> okno střešní jednoduché s jedním sklem | X85: =VLOOKUP(V85,Data!$A$120:$C$124,3) -> 4.5 | AC85: 4.5 | AD85: ='3. Schodišťový prostor'!J37 -> 0 | AE85: 1 | AF85: 0 | AH85: =VLOOKUP(V85,Data!$A$120:$H$123,8) -> 0.85 | AO85: Střešní okno nad 45 1 | AP85: 1 | AQ85: =VLOOKUP(Vypocet!AP85,Data!$A$120:$B$123,2) -> okno střešní jednoduché s jedním sklem | AR85: =VLOOKUP(AP85,Data!$A$120:$C$124,3) -> 4.5 | AW85: 4.5 | AX85: ='4. Technické podlaží-garáže'!J37 -> 0 | AY85: 1 | AZ85: 0 | BB85: =VLOOKUP(AP85,Data!$A$120:$H$123,8) -> 0.85
A86: Střešní okno nad 45 2 | B86: 1 | C86: =VLOOKUP(Vypocet!B86,Data!$A$120:$B$124,2) -> okno střešní jednoduché s jedním sklem | D86: =VLOOKUP(B86,Data!$A$120:$C$124,3) -> 4.5 | I86: 4.5 | J86: ='2. Bytové jednotky'!J38 -> 0 | K86: 1 | L86: 0 | N86: =VLOOKUP(B86,Data!$A$120:$H$124,8) -> 0.85 | U86: Střešní okno nad 45 2 | V86: 1 | W86: =VLOOKUP(Vypocet!V86,Data!$A$120:$B$123,2) -> okno střešní jednoduché s jedním sklem | X86: =VLOOKUP(V86,Data!$A$120:$C$124,3) -> 4.5 | AC86: 4.5 | AD86: ='3. Schodišťový prostor'!J38 -> 0 | AE86: 1 | AF86: 0 | AH86: =VLOOKUP(V86,Data!$A$120:$H$123,8) -> 0.85 | AO86: Střešní okno nad 45 2 | AP86: 1 | AQ86: =VLOOKUP(Vypocet!AP86,Data!$A$120:$B$123,2) -> okno střešní jednoduché s jedním sklem | AR86: =VLOOKUP(AP86,Data!$A$120:$C$124,3) -> 4.5 | AW86: 4.5 | AX86: ='4. Technické podlaží-garáže'!J38 -> 0 | AY86: 1 | AZ86: 0 | BB86: =VLOOKUP(AP86,Data!$A$120:$H$123,8) -> 0.85
A87: Dveře do nevyt. prostoru 1 | B87: 1 | C87: =VLOOKUP(Vypocet!B87,Data!$A$154:$B$155,2) -> Dveře vnitřní plné | D87: =VLOOKUP(B87,Data!$A$154:$C$155,3) -> 2 | I87: 2 | J87: ='2. Bytové jednotky'!J44 -> 0 | K87: 0.6 | L87: 0 | U87: Dveře do nevyt. prostoru 1 | V87: 1 | W87: =VLOOKUP(Vypocet!V87,Data!$A$154:$B$155,2) -> Dveře vnitřní plné | X87: =VLOOKUP(V87,Data!$A$154:$C$155,3) -> 2 | AC87: 2 | AD87: ='3. Schodišťový prostor'!J44 -> 0 | AE87: 0.6 | AF87: 0 | AO87: Dveře do nevyt. prostoru 1 | AP87: 1 | AQ87: =VLOOKUP(Vypocet!AP87,Data!$A$154:$B$155,2) -> Dveře vnitřní plné | AR87: =VLOOKUP(AP87,Data!$A$154:$C$155,3) -> 2 | AW87: 2 | AX87: ='4. Technické podlaží-garáže'!J44 -> 0 | AY87: 0.6 | AZ87: 0
A88: Dveře do nevyt. prostoru 2 | B88: 1 | C88: =VLOOKUP(Vypocet!B88,Data!$A$154:$B$155,2) -> Dveře vnitřní plné | D88: =VLOOKUP(B88,Data!$A$154:$C$155,3) -> 2 | I88: 2 | J88: ='2. Bytové jednotky'!J45 -> 0 | K88: 0.6 | L88: 0 | U88: Dveře do nevyt. prostoru 2 | V88: 1 | W88: =VLOOKUP(Vypocet!V88,Data!$A$154:$B$155,2) -> Dveře vnitřní plné | X88: =VLOOKUP(V88,Data!$A$154:$C$155,3) -> 2 | AC88: 2 | AD88: ='3. Schodišťový prostor'!J45 -> 0 | AE88: 0.6 | AF88: 0 | AO88: Dveře do nevyt. prostoru 2 | AP88: 1 | AQ88: =VLOOKUP(Vypocet!AP88,Data!$A$154:$B$155,2) -> Dveře vnitřní plné | AR88: =VLOOKUP(AP88,Data!$A$154:$C$155,3) -> 2 | AW88: 2 | AX88: ='4. Technické podlaží-garáže'!J45 -> 0 | AY88: 0.6 | AZ88: 0
A89: suma A | J89: =SUM(J4:J88) -> 0 | U89: suma A | AD89: =SUM(AD4:AD88) -> 0 | AO89: suma A | AX89: =SUM(AX4:AX88) -> 0
A90: tepelné mosty | E90: delta U | I90: =IF(D95=1,0.02,IF((D137+D180)<=3,0.02,IF((D137+D180)<=5,0.05,IF((D137+D180)>5,0.1,"chyba")))) -> 0.02 | J90: =SUM(J4:J88) -> 0 | L90: =I90*J90 -> 0 | U90: tepelné mosty | Y90: delta U | AC90: =IF(D95=1,0.02,IF((X137+X180)<=3,0.02,IF((X137+X180)<=5,0.05,IF((X137+X180)>5,0.1,"chyba")))) -> 0.02 | AD90: =SUM(AD4:AD88) -> 0 | AF90: =AC90*AD90 -> 0 | AO90: tepelné mosty | AS90: delta U | AW90: =IF(D95=1,0.02,IF((AR137+AR180)<=3,0.02,IF((AR137+AR180)<=5,0.05,IF((AR137+AR180)>5,0.1,"chyba")))) -> 0.02 | AX90: =SUM(AX4:AX88) -> 0 | AZ90: =AW90*AX90 -> 0
A91: HT | L91: =SUM(L4:L90) -> 0 | U91: HT | AF91: =SUM(AF4:AF90) -> 0 | AO91: HT | AZ91: =SUM(AZ4:AZ90) -> 0
A92: Ht | B92: =L91 -> 0 | C92: W/K | U92: Ht | V92: =AF91 -> 0 | W92: W/K | AO92: Ht | AP92: =AZ91 -> 0 | AQ92: W/K
A94: Účel zpracování průkazu | C94: Konstrukce zadána
A95: Nová budova | B95: FALSE | D95: =IF(B95=TRUE,1,0) -> 0
A96: Prodej budovy nebo její části | B96: FALSE | D96: =IF(B96=TRUE,2,0) -> 0
A97: Větší změna dokončené budovy | B97: FALSE | D97: =IF(B97=TRUE,2,0) -> 0
A98: Budova užívaná orgánem veřejné moci | B98: FALSE | D98: =IF(B98=TRUE,2,0) -> 0
A99: Pronájem budovy nebo její části | B99: FALSE | D99: =IF(B99=TRUE,2,0) -> 0
A100: Zateplena stěna SEVER 1 | B100: =IF(I4<=0.25,"ANO","NE") -> NE | C100: =IF(J4>0,"ANO","NE") -> NE | D100: =IF(C100="NE",0,IF(B100="ANO",0,1)) -> 0 | U100: Zateplena stěna SEVER 1 | V100: =IF(AC4<=0.25,"ANO","NE") -> NE | W100: =IF(AD4>0,"ANO","NE") -> NE | X100: =IF(W100="NE",0,IF(V100="ANO",0,1)) -> 0 | AO100: Zateplena stěna SEVER 1 | AP100: =IF(AW4<=0.25,"ANO","NE") -> NE | AQ100: =IF(AX4>0,"ANO","NE") -> NE | AR100: =IF(AQ100="NE",0,IF(AP100="ANO",0,1)) -> 0
A101: Zateplena stěna SEVER 2 | B101: =IF(I5<=0.25,"ANO","NE") -> NE | C101: =IF(J5>0,"ANO","NE") -> NE | D101: =IF(C101="NE",0,IF(B101="ANO",0,1)) -> 0 | U101: Zateplena stěna SEVER 2 | V101: =IF(AC5<=0.25,"ANO","NE") -> NE | W101: =IF(AD5>0,"ANO","NE") -> NE | X101: =IF(W101="NE",0,IF(V101="ANO",0,1)) -> 0 | AO101: Zateplena stěna SEVER 2 | AP101: =IF(AW5<=0.25,"ANO","NE") -> NE | AQ101: =IF(AX5>0,"ANO","NE") -> NE | AR101: =IF(AQ101="NE",0,IF(AP101="ANO",0,1)) -> 0
A102: Zateplena stěna SEVER 3 | B102: =IF(I6<=0.25,"ANO","NE") -> NE | C102: =IF(J6>0,"ANO","NE") -> NE | D102: =IF(C102="NE",0,IF(B102="ANO",0,1)) -> 0 | U102: Zateplena stěna SEVER 3 | V102: =IF(AC6<=0.25,"ANO","NE") -> NE | W102: =IF(AD6>0,"ANO","NE") -> NE | X102: =IF(W102="NE",0,IF(V102="ANO",0,1)) -> 0 | AO102: Zateplena stěna SEVER 3 | AP102: =IF(AW6<=0.25,"ANO","NE") -> NE | AQ102: =IF(AX6>0,"ANO","NE") -> NE | AR102: =IF(AQ102="NE",0,IF(AP102="ANO",0,1)) -> 0
A103: Zateplena stěna SEVER 4 | B103: =IF(I7<=0.25,"ANO","NE") -> NE | C103: =IF(J7>0,"ANO","NE") -> NE | D103: =IF(C103="NE",0,IF(B103="ANO",0,1)) -> 0 | U103: Zateplena stěna SEVER 4 | V103: =IF(AC7<=0.25,"ANO","NE") -> NE | W103: =IF(AD7>0,"ANO","NE") -> NE | X103: =IF(W103="NE",0,IF(V103="ANO",0,1)) -> 0 | AO103: Zateplena stěna SEVER 4 | AP103: =IF(AW7<=0.25,"ANO","NE") -> NE | AQ103: =IF(AX7>0,"ANO","NE") -> NE | AR103: =IF(AQ103="NE",0,IF(AP103="ANO",0,1)) -> 0
A105: Zateplena stěna JIH 1 | B105: =IF(I9<=0.25,"ANO","NE") -> NE | C105: =IF(J9>0,"ANO","NE") -> NE | D105: 0 | U105: Zateplena stěna JIH 1 | V105: =IF(AC9<=0.25,"ANO","NE") -> NE | W105: =IF(AD9>0,"ANO","NE") -> NE | X105: =IF(W105="NE",0,IF(V105="ANO",0,1)) -> 0 | AO105: Zateplena stěna JIH 1 | AP105: =IF(AW9<=0.25,"ANO","NE") -> NE | AQ105: =IF(AX9>0,"ANO","NE") -> NE | AR105: =IF(AQ105="NE",0,IF(AP105="ANO",0,1)) -> 0
A106: Zateplena stěna JIH 2 | B106: =IF(I10<=0.25,"ANO","NE") -> NE | C106: =IF(J10>0,"ANO","NE") -> NE | D106: 0 | U106: Zateplena stěna JIH 2 | V106: =IF(AC10<=0.25,"ANO","NE") -> NE | W106: =IF(AD10>0,"ANO","NE") -> NE | X106: 0 | AO106: Zateplena stěna JIH 2 | AP106: =IF(AW10<=0.25,"ANO","NE") -> NE | AQ106: =IF(AX10>0,"ANO","NE") -> NE | AR106: 0
A107: Zateplena stěna JIH 3 | B107: =IF(I11<=0.25,"ANO","NE") -> NE | C107: =IF(J11>0,"ANO","NE") -> NE | D107: 0 | U107: Zateplena stěna JIH 3 | V107: =IF(AC11<=0.25,"ANO","NE") -> NE | W107: =IF(AD11>0,"ANO","NE") -> NE | X107: 0 | AO107: Zateplena stěna JIH 3 | AP107: =IF(AW11<=0.25,"ANO","NE") -> NE | AQ107: =IF(AX11>0,"ANO","NE") -> NE | AR107: 0
A108: Zateplena stěna JIH 4 | B108: =IF(I12<=0.25,"ANO","NE") -> NE | C108: =IF(J12>0,"ANO","NE") -> NE | D108: 0 | U108: Zateplena stěna JIH 4 | V108: =IF(AC12<=0.25,"ANO","NE") -> NE | W108: =IF(AD12>0,"ANO","NE") -> NE | X108: 0 | AO108: Zateplena stěna JIH 4 | AP108: =IF(AW12<=0.25,"ANO","NE") -> NE | AQ108: =IF(AX12>0,"ANO","NE") -> NE | AR108: 0
A110: Zateplena stěna VÝCHOD 1 | B110: =IF(I14<=0.25,"ANO","NE") -> NE | C110: =IF(J14>0,"ANO","NE") -> NE | D110: 0 | U110: Zateplena stěna VÝCHOD 1 | V110: =IF(AC14<=0.25,"ANO","NE") -> NE | W110: =IF(AD14>0,"ANO","NE") -> NE | X110: =IF(W110="NE",0,IF(V110="ANO",0,1)) -> 0 | AO110: Zateplena stěna VÝCHOD 1 | AP110: =IF(AW14<=0.25,"ANO","NE") -> NE | AQ110: =IF(AX14>0,"ANO","NE") -> NE | AR110: =IF(AQ110="NE",0,IF(AP110="ANO",0,1)) -> 0
A111: Zateplena stěna VÝCHOD 2 | B111: =IF(I15<=0.25,"ANO","NE") -> NE | C111: =IF(J15>0,"ANO","NE") -> NE | D111: 0 | U111: Zateplena stěna VÝCHOD 2 | V111: =IF(AC15<=0.25,"ANO","NE") -> NE | W111: =IF(AD15>0,"ANO","NE") -> NE | X111: 0 | AO111: Zateplena stěna VÝCHOD 2 | AP111: =IF(AW15<=0.25,"ANO","NE") -> NE | AQ111: =IF(AX15>0,"ANO","NE") -> NE | AR111: 0
A112: Zateplena stěna VÝCHOD 3 | B112: =IF(I16<=0.25,"ANO","NE") -> NE | C112: =IF(J16>0,"ANO","NE") -> NE | D112: 0 | U112: Zateplena stěna VÝCHOD 3 | V112: =IF(AC16<=0.25,"ANO","NE") -> NE | W112: =IF(AD16>0,"ANO","NE") -> NE | X112: 0 | AO112: Zateplena stěna VÝCHOD 3 | AP112: =IF(AW16<=0.25,"ANO","NE") -> NE | AQ112: =IF(AX16>0,"ANO","NE") -> NE | AR112: 0
A113: Zateplena stěna VÝCHOD 4 | B113: =IF(I17<=0.25,"ANO","NE") -> NE | C113: =IF(J17>0,"ANO","NE") -> NE | D113: 0 | U113: Zateplena stěna VÝCHOD 4 | V113: =IF(AC17<=0.25,"ANO","NE") -> NE | W113: =IF(AD17>0,"ANO","NE") -> NE | X113: 0 | AO113: Zateplena stěna VÝCHOD 4 | AP113: =IF(AW17<=0.25,"ANO","NE") -> NE | AQ113: =IF(AX17>0,"ANO","NE") -> NE | AR113: 0
A115: Zateplena stěna ZÁPAD 1 | B115: =IF(I19<=0.25,"ANO","NE") -> NE | C115: =IF(J19>0,"ANO","NE") -> NE | D115: 0 | U115: Zateplena stěna ZÁPAD 1 | V115: =IF(AC19<=0.25,"ANO","NE") -> NE | W115: =IF(AD19>0,"ANO","NE") -> NE | X115: =IF(W115="NE",0,IF(V115="ANO",0,1)) -> 0 | AO115: Zateplena stěna ZÁPAD 1 | AP115: =IF(AW19<=0.25,"ANO","NE") -> NE | AQ115: =IF(AX19>0,"ANO","NE") -> NE | AR115: =IF(AQ115="NE",0,IF(AP115="ANO",0,1)) -> 0
A116: Zateplena stěna ZÁPAD 2 | B116: =IF(I20<=0.25,"ANO","NE") -> NE | C116: =IF(J20>0,"ANO","NE") -> NE | D116: 0 | U116: Zateplena stěna ZÁPAD 2 | V116: =IF(AC20<=0.25,"ANO","NE") -> NE | W116: =IF(AD20>0,"ANO","NE") -> NE | X116: 0 | AO116: Zateplena stěna ZÁPAD 2 | AP116: =IF(AW20<=0.25,"ANO","NE") -> NE | AQ116: =IF(AX20>0,"ANO","NE") -> NE | AR116: 0
A117: Zateplena stěna ZÁPAD 3 | B117: =IF(I21<=0.25,"ANO","NE") -> NE | C117: =IF(J21>0,"ANO","NE") -> NE | D117: 0 | U117: Zateplena stěna ZÁPAD 3 | V117: =IF(AC21<=0.25,"ANO","NE") -> NE | W117: =IF(AD21>0,"ANO","NE") -> NE | X117: 0 | AO117: Zateplena stěna ZÁPAD 3 | AP117: =IF(AW21<=0.25,"ANO","NE") -> NE | AQ117: =IF(AX21>0,"ANO","NE") -> NE | AR117: 0
A118: Zateplena stěna ZÁPAD 4 | B118: =IF(I22<=0.25,"ANO","NE") -> NE | C118: =IF(J22>0,"ANO","NE") -> NE | D118: 0 | U118: Zateplena stěna ZÁPAD 4 | V118: =IF(AC22<=0.25,"ANO","NE") -> NE | W118: =IF(AD22>0,"ANO","NE") -> NE | X118: 0 | AO118: Zateplena stěna ZÁPAD 4 | AP118: =IF(AW22<=0.25,"ANO","NE") -> NE | AQ118: =IF(AX22>0,"ANO","NE") -> NE | AR118: 0
A120: Podlaha na zemině 1 | B120: =IF(I25<=0.3,"ANO","NE") -> NE | C120: =IF(J25>0,"ANO","NE") -> NE | D120: 0 | U120: Podlaha na zemině 1 | V120: =IF(AC25<=0.3,"ANO","NE") -> NE | W120: =IF(AD25>0,"ANO","NE") -> NE | X120: =IF(W120="NE",0,IF(V120="ANO",0,1)) -> 0 | AO120: Podlaha na zemině 1 | AP120: =IF(AW25<=0.3,"ANO","NE") -> NE | AQ120: =IF(AX25>0,"ANO","NE") -> NE | AR120: =IF(AQ120="NE",0,IF(AP120="ANO",0,1)) -> 0
A121: Podlaha na zemině 2 | B121: =IF(I26<=0.3,"ANO","NE") -> NE | C121: =IF(J26>0,"ANO","NE") -> NE | D121: 0 | U121: Podlaha na zemině 2 | V121: =IF(AC26<=0.3,"ANO","NE") -> NE | W121: =IF(AD26>0,"ANO","NE") -> NE | X121: 0 | AO121: Podlaha na zemině 2 | AP121: =IF(AW26<=0.3,"ANO","NE") -> NE | AQ121: =IF(AX26>0,"ANO","NE") -> NE | AR121: 0
A123: Podlaha nad nevytápěným sklepem 1 | B123: =IF(I28<=0.4,"ANO","NE") -> NE | C123: =IF(J28>0,"ANO","NE") -> NE | D123: 0 | U123: Podlaha nad nevytápěným sklepem 1 | V123: =IF(AC28<=0.4,"ANO","NE") -> NE | W123: =IF(AD28>0,"ANO","NE") -> NE | X123: =IF(W123="NE",0,IF(V123="ANO",0,1)) -> 0 | AO123: Podlaha nad nevytápěným sklepem 1 | AP123: =IF(AW28<=0.4,"ANO","NE") -> NE | AQ123: =IF(AX28>0,"ANO","NE") -> NE | AR123: =IF(AQ123="NE",0,IF(AP123="ANO",0,1)) -> 0
A124: Podlaha nad nevytápěným sklepem 2 | B124: =IF(I29<=0.4,"ANO","NE") -> NE | C124: =IF(J29>0,"ANO","NE") -> NE | D124: 0 | U124: Podlaha nad nevytápěným sklepem 2 | V124: =IF(AC29<=0.4,"ANO","NE") -> NE | W124: =IF(AD29>0,"ANO","NE") -> NE | X124: 0 | AO124: Podlaha nad nevytápěným sklepem 2 | AP124: =IF(AW29<=0.4,"ANO","NE") -> NE | AQ124: =IF(AX29>0,"ANO","NE") -> NE | AR124: 0
A126: Střecha plochá nebo do 45 ° 1 | B126: =IF(I32<=0.16,"ANO","NE") -> NE | C126: =IF(J32>0,"ANO","NE") -> NE | D126: 0 | U126: Střecha plochá nebo do 45 ° 1 | V126: =IF(AC32<=0.16,"ANO","NE") -> NE | W126: =IF(AD32>0,"ANO","NE") -> NE | X126: =IF(W126="NE",0,IF(V126="ANO",0,1)) -> 0 | AO126: Střecha plochá nebo do 45 ° 1 | AP126: =IF(AW32<=0.16,"ANO","NE") -> NE | AQ126: =IF(AX32>0,"ANO","NE") -> NE | AR126: =IF(AQ126="NE",0,IF(AP126="ANO",0,1)) -> 0
A127: Střecha plochá nebo do 45 ° 2 | B127: =IF(I33<=0.16,"ANO","NE") -> NE | C127: =IF(J33>0,"ANO","NE") -> NE | D127: 0 | U127: Střecha plochá nebo do 45 ° 2 | V127: =IF(AC33<=0.16,"ANO","NE") -> NE | W127: =IF(AD33>0,"ANO","NE") -> NE | X127: 0 | AO127: Střecha plochá nebo do 45 ° 2 | AP127: =IF(AW33<=0.16,"ANO","NE") -> NE | AQ127: =IF(AX33>0,"ANO","NE") -> NE | AR127: 0
A129: Střecha šikmá nad 45 ° 1 | B129: =IF(I35<=0.2,"ANO","NE") -> NE | C129: =IF(J35>0,"ANO","NE") -> NE | D129: 0 | U129: Střecha šikmá nad 45 ° 1 | V129: =IF(AC35<=0.2,"ANO","NE") -> NE | W129: =IF(AD35>0,"ANO","NE") -> NE | X129: =IF(W129="NE",0,IF(V129="ANO",0,1)) -> 0 | AO129: Střecha šikmá nad 45 ° 1 | AP129: =IF(AW35<=0.2,"ANO","NE") -> NE | AQ129: =IF(AX35>0,"ANO","NE") -> NE | AR129: =IF(AQ129="NE",0,IF(AP129="ANO",0,1)) -> 0
A130: Střecha šikmá nad 45 ° 1 | B130: =IF(I36<=0.2,"ANO","NE") -> NE | C130: =IF(J36>0,"ANO","NE") -> NE | D130: 0 | U130: Střecha šikmá nad 45 ° 1 | V130: =IF(AC36<=0.2,"ANO","NE") -> NE | W130: =IF(AD36>0,"ANO","NE") -> NE | X130: 0 | AO130: Střecha šikmá nad 45 ° 1 | AP130: =IF(AW36<=0.2,"ANO","NE") -> NE | AQ130: =IF(AX36>0,"ANO","NE") -> NE | AR130: 0
A132: Strop pod půdou 1 | B132: =IF(I38<=0.2,"ANO","NE") -> NE | C132: =IF(J38>0,"ANO","NE") -> NE | D132: 0 | U132: Strop pod půdou 1 | V132: =IF(AC38<=0.2,"ANO","NE") -> NE | W132: =IF(AD38>0,"ANO","NE") -> NE | X132: =IF(W132="NE",0,IF(V132="ANO",0,1)) -> 0 | AO132: Strop pod půdou 1 | AP132: =IF(AW38<=0.2,"ANO","NE") -> NE | AQ132: =IF(AX38>0,"ANO","NE") -> NE | AR132: =IF(AQ132="NE",0,IF(AP132="ANO",0,1)) -> 0
A133: Strop pod půdou 2 | B133: =IF(I39<=0.2,"ANO","NE") -> NE | C133: =IF(J39>0,"ANO","NE") -> NE | D133: 0 | U133: Strop pod půdou 2 | V133: =IF(AC39<=0.2,"ANO","NE") -> NE | W133: =IF(AD39>0,"ANO","NE") -> NE | X133: 0 | AO133: Strop pod půdou 2 | AP133: =IF(AW39<=0.2,"ANO","NE") -> NE | AQ133: =IF(AX39>0,"ANO","NE") -> NE | AR133: 0
A135: Stěna k nevytápěnému prostoru 1 | B135: =IF(I42<=0.4,"ANO","NE") -> NE | C135: =IF(J42>0,"ANO","NE") -> NE | D135: 0 | U135: Stěna k nevytápěnému prostoru 1 | V135: =IF(AC42<=0.4,"ANO","NE") -> NE | W135: =IF(AD42>0,"ANO","NE") -> NE | X135: 0 | AO135: Stěna k nevytápěnému prostoru 1 | AP135: =IF(AW42<=0.4,"ANO","NE") -> NE | AQ135: =IF(AX42>0,"ANO","NE") -> NE | AR135: 0
A136: Stěna k nevytápěnému prostoru 2 | B136: =IF(I43<=0.4,"ANO","NE") -> NE | C136: =IF(J43>0,"ANO","NE") -> NE | D136: 0 | U136: Stěna k nevytápěnému prostoru 2 | V136: =IF(AC43<=0.4,"ANO","NE") -> NE | W136: =IF(AD43>0,"ANO","NE") -> NE | X136: 0 | AO136: Stěna k nevytápěnému prostoru 2 | AP136: =IF(AW43<=0.4,"ANO","NE") -> NE | AQ136: =IF(AX43>0,"ANO","NE") -> NE | AR136: 0
D137: =SUM(D95:D136) -> 0 | X137: =SUM(X95:X136) -> 0 | AR137: =SUM(AR95:AR136) -> 0
A139: OKNA | B139: Uw≤1,2 | C139: Okno zadáno | U139: OKNA | V139: Uw≤1,2 | W139: Okno zadáno | AO139: OKNA | AP139: Uw≤1,2 | AQ139: Okno zadáno
A140: Sever okno 11 | B140: =IF(I47<=1.2,"ANO","NE") -> NE | C140: =IF(J47>0,"ANO","NE") -> NE | D140: =IF(C140="NE",0,IF(B140="ANO",0,1)) -> 0 | U140: Sever okno 11 | V140: =IF(AC47<=1.2,"ANO","NE") -> NE | W140: =IF(AD47>0,"ANO","NE") -> NE | X140: =IF(W140="NE",0,IF(V140="ANO",0,1)) -> 0 | AO140: Sever okno 11 | AP140: =IF(AW47<=1.2,"ANO","NE") -> NE | AQ140: =IF(AX47>0,"ANO","NE") -> NE | AR140: =IF(AQ140="NE",0,IF(AP140="ANO",0,1)) -> 0
A141: Sever okno 12 | B141: NE | C141: NE | D141: =IF(C141="NE",0,IF(B141="ANO",0,1)) -> 0 | U141: Sever okno 12 | V141: NE | W141: NE | X141: =IF(W141="NE",0,IF(V141="ANO",0,1)) -> 0 | AO141: Sever okno 12 | AP141: NE | AQ141: NE | AR141: =IF(AQ141="NE",0,IF(AP141="ANO",0,1)) -> 0
A142: Sever okno 21 | B142: NE | C142: NE | D142: 0 | U142: Sever okno 21 | V142: NE | W142: NE | X142: 0 | AO142: Sever okno 21 | AP142: NE | AQ142: NE | AR142: 0
A143: Sever okno 22 | B143: NE | C143: NE | D143: 0 | U143: Sever okno 22 | V143: NE | W143: NE | X143: 0 | AO143: Sever okno 22 | AP143: NE | AQ143: NE | AR143: 0
A144: Sever okno 31 | B144: NE | C144: NE | U144: Sever okno 31 | V144: NE | W144: NE | AO144: Sever okno 31 | AP144: NE | AQ144: NE
A145: Sever okno 32 | B145: NE | C145: NE | U145: Sever okno 32 | V145: NE | W145: NE | AO145: Sever okno 32 | AP145: NE | AQ145: NE
A146: Sever okno 41 | B146: NE | C146: NE | U146: Sever okno 41 | V146: NE | W146: NE | AO146: Sever okno 41 | AP146: NE | AQ146: NE
A147: Sever okno 42 | B147: NE | C147: NE | U147: Sever okno 42 | V147: NE | W147: NE | AO147: Sever okno 42 | AP147: NE | AQ147: NE
A149: Jih okno 11 | B149: =IF(I56<=1.2,"ANO","NE") -> NE | C149: =IF(J56>0,"ANO","NE") -> NE | D149: 0 | U149: Jih okno 11 | V149: =IF(AC56<=1.2,"ANO","NE") -> NE | W149: =IF(AD56>0,"ANO","NE") -> NE | X149: =IF(W149="NE",0,IF(V149="ANO",0,1)) -> 0 | AO149: Jih okno 11 | AP149: =IF(AW56<=1.2,"ANO","NE") -> NE | AQ149: =IF(AX56>0,"ANO","NE") -> NE | AR149: =IF(AQ149="NE",0,IF(AP149="ANO",0,1)) -> 0
A150: Jih okno 12 | B150: NE | C150: NE | D150: 0 | U150: Jih okno 12 | V150: NE | W150: NE | X150: 0 | AO150: Jih okno 12 | AP150: NE | AQ150: NE | AR150: 0
A151: Jih okno 21 | B151: NE | C151: NE | D151: 0 | U151: Jih okno 21 | V151: NE | W151: NE | X151: 0 | AO151: Jih okno 21 | AP151: NE | AQ151: NE | AR151: 0
A152: Jih okno 22 | B152: NE | C152: NE | D152: 0 | U152: Jih okno 22 | V152: NE | W152: NE | X152: 0 | AO152: Jih okno 22 | AP152: NE | AQ152: NE | AR152: 0
A153: Jih okno 31 | B153: NE | C153: NE | U153: Jih okno 31 | V153: NE | W153: NE | AO153: Jih okno 31 | AP153: NE | AQ153: NE
A154: Jih okno 32 | B154: NE | C154: NE | U154: Jih okno 32 | V154: NE | W154: NE | AO154: Jih okno 32 | AP154: NE | AQ154: NE
A155: Jih okno 41 | B155: NE | C155: NE | U155: Jih okno 41 | V155: NE | W155: NE | AO155: Jih okno 41 | AP155: NE | AQ155: NE
A156: Jih okno 42 | B156: NE | C156: NE | U156: Jih okno 42 | V156: NE | W156: NE | AO156: Jih okno 42 | AP156: NE | AQ156: NE
A158: Východ okno 11 | B158: =IF(I65<=1.2,"ANO","NE") -> NE | C158: =IF(J65>0,"ANO","NE") -> NE | D158: 0 | U158: Východ okno 11 | V158: =IF(AC65<=1.2,"ANO","NE") -> NE | W158: =IF(AD65>0,"ANO","NE") -> NE | X158: =IF(W158="NE",0,IF(V158="ANO",0,1)) -> 0 | AO158: Východ okno 11 | AP158: =IF(AW65<=1.2,"ANO","NE") -> NE | AQ158: =IF(AX65>0,"ANO","NE") -> NE | AR158: =IF(AQ158="NE",0,IF(AP158="ANO",0,1)) -> 0
A159: Východ okno 12 | B159: NE | C159: NE | D159: 0 | U159: Východ okno 12 | V159: NE | W159: NE | X159: 0 | AO159: Východ okno 12 | AP159: NE | AQ159: NE | AR159: 0
A160: Východ okno 21 | B160: NE | C160: NE | D160: 0 | U160: Východ okno 21 | V160: NE | W160: NE | X160: 0 | AO160: Východ okno 21 | AP160: NE | AQ160: NE | AR160: 0
A161: Východ okno 22 | B161: NE | C161: NE | D161: 0 | U161: Východ okno 22 | V161: NE | W161: NE | X161: 0 | AO161: Východ okno 22 | AP161: NE | AQ161: NE | AR161: 0
A162: Východ okno 31 | B162: NE | C162: NE | U162: Východ okno 31 | V162: NE | W162: NE | AO162: Východ okno 31 | AP162: NE | AQ162: NE
A163: Východ okno 32 | B163: NE | C163: NE | U163: Východ okno 32 | V163: NE | W163: NE | AO163: Východ okno 32 | AP163: NE | AQ163: NE
A164: Východ okno 41 | B164: NE | C164: NE | U164: Východ okno 41 | V164: NE | W164: NE | AO164: Východ okno 41 | AP164: NE | AQ164: NE
A165: Východ okno 42 | B165: NE | C165: NE | U165: Východ okno 42 | V165: NE | W165: NE | AO165: Východ okno 42 | AP165: NE | AQ165: NE
A167: Západ okno 11 | B167: =IF(I74<=1.2,"ANO","NE") -> NE | C167: =IF(J74>0,"ANO","NE") -> NE | D167: 0 | U167: Západ okno 11 | V167: =IF(AC74<=1.2,"ANO","NE") -> NE | W167: =IF(AD74>0,"ANO","NE") -> NE | X167: =IF(W167="NE",0,IF(V167="ANO",0,1)) -> 0 | AO167: Západ okno 11 | AP167: =IF(AW74<=1.2,"ANO","NE") -> NE | AQ167: =IF(AX74>0,"ANO","NE") -> NE | AR167: =IF(AQ167="NE",0,IF(AP167="ANO",0,1)) -> 0
A168: Západ okno 12 | B168: NE | C168: NE | D168: 0 | U168: Západ okno 12 | V168: NE | W168: NE | X168: 0 | AO168: Západ okno 12 | AP168: NE | AQ168: NE | AR168: 0
A169: Západ okno 21 | B169: NE | C169: NE | D169: 0 | U169: Západ okno 21 | V169: NE | W169: NE | X169: 0 | AO169: Západ okno 21 | AP169: NE | AQ169: NE | AR169: 0
A170: Západ okno 22 | B170: NE | C170: NE | D170: 0 | U170: Západ okno 22 | V170: NE | W170: NE | X170: 0 | AO170: Západ okno 22 | AP170: NE | AQ170: NE | AR170: 0
A171: Západ okno 31 | B171: NE | C171: NE | U171: Západ okno 31 | V171: NE | W171: NE | AO171: Západ okno 31 | AP171: NE | AQ171: NE
A172: Západ okno 32 | B172: NE | C172: NE | U172: Západ okno 32 | V172: NE | W172: NE | AO172: Západ okno 32 | AP172: NE | AQ172: NE
A173: Západ okno 41 | B173: NE | C173: NE | U173: Západ okno 41 | V173: NE | W173: NE | AO173: Západ okno 41 | AP173: NE | AQ173: NE
A174: Západ okno 42 | B174: NE | C174: NE | U174: Západ okno 42 | V174: NE | W174: NE | AO174: Západ okno 42 | AP174: NE | AQ174: NE
A176: Střešní okno do 45 1 | B176: =IF(I83<=1.2,"ANO","NE") -> NE | C176: =IF(J83>0,"ANO","NE") -> NE | D176: 0 | U176: Střešní okno do 45 1 | V176: =IF(AC83<=1.2,"ANO","NE") -> NE | W176: =IF(AD83>0,"ANO","NE") -> NE | X176: =IF(W176="NE",0,IF(V176="ANO",0,1)) -> 0 | AO176: Střešní okno do 45 1 | AP176: =IF(AW83<=1.2,"ANO","NE") -> NE | AQ176: =IF(AX83>0,"ANO","NE") -> NE | AR176: =IF(AQ176="NE",0,IF(AP176="ANO",0,1)) -> 0
A177: Střešní okno do 45 2 | B177: =IF(I84<=1.2,"ANO","NE") -> NE | C177: =IF(J84>0,"ANO","NE") -> NE | D177: 0 | U177: Střešní okno do 45 2 | V177: =IF(AC84<=1.2,"ANO","NE") -> NE | W177: =IF(AD84>0,"ANO","NE") -> NE | X177: 0 | AO177: Střešní okno do 45 2 | AP177: =IF(AW84<=1.2,"ANO","NE") -> NE | AQ177: =IF(AX84>0,"ANO","NE") -> NE | AR177: 0
A178: Střešní okno nad 45 1 | B178: =IF(I85<=1.2,"ANO","NE") -> NE | C178: =IF(J85>0,"ANO","NE") -> NE | D178: 0 | U178: Střešní okno nad 45 1 | V178: =IF(AC85<=1.2,"ANO","NE") -> NE | W178: =IF(AD85>0,"ANO","NE") -> NE | X178: 0 | AO178: Střešní okno nad 45 1 | AP178: =IF(AW85<=1.2,"ANO","NE") -> NE | AQ178: =IF(AX85>0,"ANO","NE") -> NE | AR178: 0
A179: Střešní okno nad 45 2 | B179: =IF(I86<=1.2,"ANO","NE") -> NE | C179: =IF(J86>0,"ANO","NE") -> NE | D179: 0 | U179: Střešní okno nad 45 2 | V179: =IF(AC86<=1.2,"ANO","NE") -> NE | W179: =IF(AD86>0,"ANO","NE") -> NE | X179: 0 | AO179: Střešní okno nad 45 2 | AP179: =IF(AW86<=1.2,"ANO","NE") -> NE | AQ179: =IF(AX86>0,"ANO","NE") -> NE | AR179: 0
D180: =SUM(D140:D179) -> 0 | G180: =IF(D95=1,1,IF((D137+D180)<=2,2,IF(D180=0,3,IF((D137+D180)>2,4)))) -> 2 | X180: =SUM(X140:X179) -> 0 | AA180: =IF(D95=1,1,IF((X137+X180)<=2,2,IF(X180=0,3,IF((X137+X180)>2,4)))) -> 2 | AR180: =SUM(AR140:AR179) -> 0 | AU180: =IF(D95=1,1,IF((AR137+AR180)<=2,2,IF(AR180=0,3,IF((AR137+AR180)>2,4)))) -> 2
A183: Bytové jendnotky | C183: Podlahová plocha z vnitřních rozměrů | G183: Bytové jednotky | M183: koeficient pro pricky | N183: 0.95 | S183: Schodišťový prostor | U183: Podlahová plocha z vnitřních rozměrů | X183: Schodiště | AM183: Technické podlaží/garáže | AO183: Podlahová plocha z vnitřních rozměrů | AR183: Tech.podlaží/garáže
A184: a | B184: ='5. Geometrie - Byty'!F10 -> 0 | C184: počet podlaží | G184: ='5. Geometrie - Byty'!F7 -> 0 | S184: a | T184: ='6. Geometrie - Sch'!F10 -> 0 | U184: počet podlaží | X184: ='6. Geometrie - Sch'!$F$7 -> 0 | AM184: a | AN184: ='7. Geometrie - Tech'!$F$10 -> 0 | AO184: počet podlaží | AR184: ='7. Geometrie - Tech'!$F$7 -> 0
A185: b | B185: ='5. Geometrie - Byty'!F11 -> 0 | C185: plocha podlah | G185: =J25+J26+J28+J29 -> 0 | H185: m2 | M185: Koeficient pro vnitřní podlahovou plochu podle kontrolní budovy | P185: Vnitřní podlahová plocha pro PENB | S185: b | T185: ='6. Geometrie - Sch'!F11 -> 0 | U185: plocha podlah | X185: =$AD$25+$AD$26+$AD$28+$AD$29 -> 0 | Y185: m2 | AM185: b | AN185: ='7. Geometrie - Tech'!$F$11 -> 0 | AO185: plocha podlah | AR185: =$AX$25+$AX$26+$AX$28+$AX$29 -> 0 | AS185: m2
A186: c | B186: ='5. Geometrie - Byty'!$F$12 -> 0 | C186: průměrná tloušťka obv. zdí | G186: =O23 -> 0 | H186: m2 | M186: =(G187+X187+AR187)/((G185*G184+X185*X184+AR185*AR184)) ->  | P186: ='1. PENB'!I20*Vypocet!M186 ->  | Q186: m2 | S186: c | T186: ='6. Geometrie - Sch'!F12 -> 0 | U186: průměrná tloušťka obv. zdí | X186: =AI23 -> 0 | Y186: m2 | AM186: c | AN186: ='7. Geometrie - Tech'!$F$12 -> 0 | AO186: průměrná tloušťka obv. zdí | AR186: =BC23 -> 0 | AS186: m2
A187: d | B187: ='5. Geometrie - Byty'!$F$13 -> 0 | C187: Vnitřní podlahová plocha | G187: =IF(B194=1,(G185-B198*G186)*G184*N183,((G184-1)*(B197-B198*G186)+(B199-B200*G186))*N183) -> 0 | H187: m2 | S187: d | T187: ='6. Geometrie - Sch'!F13 -> 0 | U187: Vnitřní podlahová plocha | W187: A,int= | X187: =IF(X185=0,0,($X$185-$X$186*S193)*$N$183*$X$184) -> 0 | Y187: m2 | AM187: d | AN187: ='7. Geometrie - Tech'!$F$13 -> 0 | AO187: Vnitřní podlahová plocha | AQ187: A,int= | AR187: =IF(AR185=0,0,($AR$185-$AR$186*AM193)*$N$183*$AR$184) -> 0 | AS187: m2
A188: e | B188: ='5. Geometrie - Byty'!$F$14 -> 0 | S188: e | T188: ='6. Geometrie - Sch'!F14 -> 0 | AM188: e | AN188: ='7. Geometrie - Tech'!$F$14 -> 0
L189: Suma ploch | M189: =G187+X187+AR187 -> 0
A190: a2 | B190: 0 | C190: Vnitřní objem prostoru pod střechou | U190: Vnitřní objem prostoru pod střechou | AO190: Vnitřní objem prostoru pod střechou
A191: c1 | B191: 0 | C191: Vnitřní podlahová plocha | G191: =(G185-B198*G186)*N183 -> 0 | H191: m2 | M191: Byty | N191: Schodiště | O191: Technické podlaží/Garáže | U191: Vnitřní podlahová plocha | X191: =(X185-X186*S193)*$N$183 -> 0 | Y191: m2 | AO191: Vnitřní podlahová plocha | AR191: =(AR185-AR186*AM193)*$N$183 -> 0 | AS191: m2
C192: Výška objektu | G192: =B185 -> 0 | H192: m2 | L192: koeficient | M192: =G187/M189 ->  | N192: =X187/M189 ->  | O192: =AR187/M189 ->  | S192: Délka z geometrie | U192: Výška objektu | X192: =$T$185 -> 0 | Y192: m2 | AM192: Délka z geometrie | AO192: Výška objektu | AR192: =$AN$185 -> 0 | AS192: m2
A193: Stejná podlaží ? | C193: Tloušťka vnitřního stropu | G193: 0.3 | H193: m | S193: =2*(T184+T186) -> 0 | T193: m | U193: Tloušťka vnitřního stropu | X193: 0.3 | Y193: m | AM193: =2*(AN184+AN186) -> 0 | AN193: m | AO193: Tloušťka vnitřního stropu | AR193: 0.3 | AS193: m
A194: Ne | B194: 1 | C194: Tloušťka podlahy | G194: =O30 -> 0 | H194: m | L194: plocha z PENBu | M194: =M192*P186 ->  | N194: =N192*P186 ->  | O194: =O192*P186 ->  | U194: Tloušťka podlahy | X194: =$AI$30 -> 0 | Y194: m | AO194: Tloušťka podlahy | AR194: =$BC$30 -> 0 | AS194: m
A195: Ano | F195: V,int,1= | G195: =IF(B194=1,(G191*G192)-(G191*G194)-(G193*G191*G184),B202*(((B185/G184)*(G184-1))-G194-G193*(G184-1))+B203*((B185/G184)-G193)) -> 0 | H195: m3 | W195: V,int,1= | X195: =($X$191*$X$192)-($X$191*$X$194)-($X$193*$X$191*($X$184-1)) -> 0 | Y195: m3 | AQ195: V,int,1= | AR195: =($AR$191*$AR$192)-($AR$191*$AR$194)-($AR$193*$AR$191*($AR$184-1)) -> 0 | AS195: m3
A197: Plocha 1.NP | B197: =J25+J26+J28+J29 -> 0
A198: Obvod 1.NP | B198: =2*('5. Geometrie - Byty'!F10+'5. Geometrie - Byty'!F12) -> 0 | C198: Vnitřní podlahová plocha | F198: =IF(B194=1,B202,B203) -> 0 | G198: m2
A199: Plocha 2.NP | B199: =B197*(B200/B198) -> 
A200: Obvod 2.NP | B200: =IF(B194=1,0,2*('5. Geometrie - Byty'!F16+'5. Geometrie - Byty'!F17)) -> 0
C201: Bytové jendnotky | U201: Schodišťový prostor | AO201: Technické podlaží/garáže
A202: Vnitřní 1.NP | B202: =(B197-B198*G186)*N183 -> 0 | C202: Plochá střecha | H202: tl. plochá 1 | I202: tl. plochá 2 | J202: vážená hodnota | U202: Plochá střecha | Z202: tl. plochá 1 | AA202: tl. plochá 2 | AB202: vážená hodnota | AO202: Plochá střecha | AT202: tl. plochá 1 | AU202: tl. plochá 2 | AV202: vážená hodnota
A203: Vnitřní 2.NP | B203: =(B199-B200*G186)*N183 ->  | D203: V,st,1= | E203: =F198*J203 -> 0 | F203: m3 | H203: =IF(B32<=6,N32,0) -> 0.26 | I203: =IF(B33<=6,N33,0) -> 0.26 | J203: =IF((J32+J33)=0,0,((H203*J32+I203*J33)/(J32+J33))) -> 0 | V203: V,st,1= | W203: =X187*AB203 -> 0 | X203: m3 | Z203: =IF(V32<=6,AH32,0) -> 0.38 | AA203: =IF(V33<=6,AH33,0) -> 0.38 | AB203: =IF((AD32+AD33)=0,0,((Z203*AD32+AA203*AD33)/(AD32+AD33))) -> 0 | AP203: V,st,1= | AQ203: =AR187*AV203 -> 0 | AR203: m3 | AT203: =IF(AP32<=6,BB32,0) -> 0.38 | AU203: =IF(AP33<=6,BB33,0) -> 0.38 | AV203: =IF((AX32+AX33)=0,0,((AT203*AX32+AU203*AX33)/(AX32+AX33))) -> 0
C205: Střecha bez půdy | H205: tl.do 45° | I205: tl.nad 45° | U205: Střecha bez půdy | Z205: tl.do 45° | AA205: tl.nad 45° | AO205: Střecha bez půdy | AT205: tl.do 45° | AU205: tl.nad 45°
D206: V,st,2= | E206: =IF(B194=1,(((B186-(2*J206))*(B188-J206))/2)*B184,(((B191-(2*J206))*(B188-J206))/2)*B190) -> 0 | F206: m3 | H206: =O33 -> 0 | I206: =O36 -> 0 | J206: =IF(H206=0,I206,H206) -> 0 | V206: V,st,2= | W206: =(((T186-(2*AB206))*(T188-AB206))/2)*T184 -> 0 | X206: m3 | Z206: =AI33 -> 0 | AA206: =AI36 -> 0 | AB206: =IF(Z206=0,AA206,Z206) -> 0 | AP206: V,st,2= | AQ206: =(((AN186-(2*AV206))*(AN188-AV206))/2)*AN184 -> 0 | AR206: m3 | AT206: =BC33 -> 0 | AU206: =BC36 -> 0 | AV206: =IF(AT206=0,AU206,Z206) -> 0
C208: Střecha s půdou | H208: tl. strecha | I208: tl. str. půda | U208: Střecha s půdou | Z208: tl. strecha | AA208: tl. str. půda | AO208: Střecha s půdou | AT208: tl. strecha | AU208: tl. str. půda
D209: V,st,3= | E209: =IF(B194=1,(((B186-(2*H209))+(B187-(2*H209))*(B188-I209))/2)*B184,(((B191-(2*H209))+(B188-(2*H209))*(B188-I209))/2)*B190) -> 0 | F209: m3 | H209: =J206 -> 0 | I209: =O39 -> 0 | V209: V,st,3= | W209: =(((T186-(2*Z209))+(T187-(2*Z209))*(T188-AA209))/2)*T184 -> 0 | X209: m3 | Z209: =AB206 -> 0 | AA209: =AI39 -> 0 | AP209: V,st,3= | AQ209: =(((AN186-(2*AT209))+(AN187-(2*AT209))*(AN188-AU209))/2)*AN184 -> 0 | AR209: m3 | AT209: =AV206 -> 0 | AU209: =BC39 -> 0
C211: Objem vnitřních prostor | U211: Objem vnitřních prostor | AO211: Objem vnitřních prostor
D212: V,int,2= | E212: =IF(J203>0,G195,IF(I209=0,G195+E206,G195+E209)) -> 0 | F212: m3 | V212: V,int,2= | W212: =IF((AB203+AB206+AA209)=0,X187,IF(AB203>0,((X191*(X192-X194-(X184-1)*X193))-W203),IF(AA209=0,X195+W206,X195+W209))) -> 0 | X212: m3 | AP212: V,int,2= | AQ212: =IF((AV203+AV206+AU209)=0,AR195,IF(AV203>0,((AR191*(AR192-AR194-(AR184-1)*AR193))-AQ203),IF(AU209=0,AR195+AQ206,AR195+AQ209))) -> 0 | AR212: m3
C214: Objem | D214: NE | F214: ='5. Geometrie - Byty'!F10*'5. Geometrie - Byty'!F11*'5. Geometrie - Byty'!F12+'5. Geometrie - Byty'!F13*'5. Geometrie - Byty'!F14*'5. Geometrie - Byty'!F10+(('5. Geometrie - Byty'!F12-'5. Geometrie - Byty'!F13)/2)*'5. Geometrie - Byty'!F10*'5. Geometrie - Byty'!F14 -> 0
D215: ANO - bez půdy | F215: ='5. Geometrie - Byty'!F10*'5. Geometrie - Byty'!F12*(('5. Geometrie - Byty'!F11/'5. Geometrie - Byty'!F7)*('5. Geometrie - Byty'!F7-1))+'5. Geometrie - Byty'!F16*'5. Geometrie - Byty'!F17*('5. Geometrie - Byty'!F11/'5. Geometrie - Byty'!F7) ->  | G215: =IF('5. Geometrie - Byty'!F13=0,Vypocet!F215,Vypocet!F216) -> 
D216: ANO - půda | F216: ='5. Geometrie - Byty'!F10*'5. Geometrie - Byty'!F12*(('5. Geometrie - Byty'!F11/('5. Geometrie - Byty'!F7-1))*('5. Geometrie - Byty'!F7-2))+'5. Geometrie - Byty'!F16*'5. Geometrie - Byty'!F17*('5. Geometrie - Byty'!F11/('5. Geometrie - Byty'!F7-1))+'5. Geometrie - Byty'!F13*'5. Geometrie - Byty'!F14*'5. Geometrie - Byty'!F16+(('5. Geometrie - Byty'!F17-'5. Geometrie - Byty'!F13)/2)*'5. Geometrie - Byty'!F14*'5. Geometrie - Byty'!F16 -> 0 | I216: ='5. Geometrie - Byty'!F7 -> 0
A220: Objem z vnitřních rozměrů | D220: V,int | E220: [m3] | G220: =E212 -> 0 | U220: Objem z vnitřních rozměrů | X220: V,int | Y220: [m3] | AA220: =W212 -> 0 | AO220: Objem z vnitřních rozměrů | AR220: V,int | AS220: [m3] | AU220: =AQ212 -> 0
A224: Měrné tepelné ztráty | U224: Měrné tepelné ztráty | AO224: Měrné tepelné ztráty
A225: Obálkou - Ht | U225: Obálkou - Ht | AO225: Obálkou - Ht
A226: Měrný tepelný tok obálkou budovy | D226: Ht | E226: [W/K] | G226: =B92 -> 0 | U226: Měrný tepelný tok obálkou budovy | X226: Ht | Y226: [W/K] | AA226: =V92 -> 0 | AO226: Měrný tepelný tok obálkou budovy | AR226: Ht | AS226: [W/K] | AU226: =AP92 -> 0
A228: Přirozené větráním - Hv | U228: Přirozené větráním - Hv | AO228: Přirozené větráním - Hv
A229: Podíl vzduchu z objemu zóny | D229: V | E229: [m3] | G229: =E212 -> 0 | U229: Podíl vzduchu z objemu zóny | X229: V | Y229: [m3] | AA229: =W212 -> 0 | AO229: Podíl vzduchu z objemu zóny | AR229: V | AS229: [m3] | AU229: =AQ212 -> 0
A230: Násobnost výměny vzduchu | E230: [h-1] | G230: 0.3 | U230: Násobnost výměny vzduchu | Y230: [h-1] | AA230: 0.1 | AO230: Násobnost výměny vzduchu | AS230: [h-1] | AU230: 0.1
A231: Větrací tok | E231: [m3/h] | G231: =G229*G230 -> 0 | U231: Větrací tok | Y231: [m3/h] | AA231: =AA229*AA230 -> 0 | AO231: Větrací tok | AS231: [m3/h] | AU231: =AU229*AU230 -> 0
A232: Měrný tepelný tok větráním | D232: Hv | E232: [W/K] | G232: =0.34*G231 -> 0 | U232: Měrný tepelný tok větráním | X232: Hv | Y232: [W/K] | AA232: =0.34*AA231 -> 0 | AO232: Měrný tepelný tok větráním | AR232: Hv | AS232: [W/K] | AU232: =0.34*AU231 -> 0
A234: Nucené větráním - Hv | U234: Nucené větráním - Hv | AO234: Nucené větráním - Hv
A235: Nucené větrání | U235: Nucené větrání | AO235: Nucené větrání
A237: Potřeba větracího vzduchu na jednu osobu | D237: V1 | E237: m3/(os.hod) | G237: 25 | U237: Potřeba větracího vzduchu na jednu osobu | X237: V1 | Y237: m3/(os.hod) | AA237: 25 | AO237: Potřeba větracího vzduchu na jednu osobu | AR237: V1 | AS237: m3/(os.hod) | AU237: 25
A238: Součinitel přítomnosti osob | D238: pi vent | E238: - | G238: 0.7 | U238: Součinitel přítomnosti osob | X238: pi vent | Y238: - | AA238: 0.7 | AO238: Součinitel přítomnosti osob | AR238: pi vent | AS238: - | AU238: 0.7
A239: Množství přiváděného čerstvého vzduchu | D239: Vf | E239: m3/hod | G239: =SUM('9. Technické systémy'!S57:T59) -> 0 | U239: Množství přiváděného čerstvého vzduchu | X239: Vf | Y239: m3/hod | AA239: =SUM('9. Technické systémy'!AM45:AN47) -> 0 | AO239: Množství přiváděného čerstvého vzduchu | AR239: Vf | AS239: m3/hod | AU239: =SUM('9. Technické systémy'!BG45:BH47) -> 0
A240: Násobnost výměny vzduchu při 50 Pa | D240: n50 | E240: 1/h | G240: =IF(G180=1,2,IF(G180=2,2,IF(G180=3,2.5,IF(G180=4,4.5,"chyba")))) -> 2 | H240: , oprava TNI 730330 komplexní sanace 2.0, výměna oken 2.5, výměna pouze některých oken 2.5-4.5 měření Dektrade 0.36, Svoboda Software vícepodlažní těsné domy 0.5, předpoklad vyměněných oken | U240: Násobnost výměny vzduchu při 50 Pa | X240: n50 | Y240: 1/h | AA240: =IF(AA180=1,2,IF(AA180=2,2,IF(AA180=3,2.5,IF(AA180=4,4.5,"chyba")))) -> 2 | AO240: Násobnost výměny vzduchu při 50 Pa | AR240: n50 | AS240: 1/h | AU240: =IF(AU180=1,2,IF(AU180=2,2,IF(AU180=3,2.5,IF(AU180=4,4.5,"chyba")))) -> 2
A241: Součinitel větrné expozice - e (0.01-0.1) | D241: e | E241: - | G241: 0.01 | U241: Součinitel větrné expozice - e (0.01-0.1) | X241: e | Y241: - | AA241: 0.01 | AO241: Součinitel větrné expozice - e (0.01-0.1) | AR241: e | AS241: - | AU241: 0.01
A242: Součinitel větrné expozice - f (15,20) | D242: f | E242: - | G242: 20 | U242: Součinitel větrné expozice - f (15,20) | X242: f | Y242: - | AA242: 20 | AO242: Součinitel větrné expozice - f (15,20) | AR242: f | AS242: - | AU242: 20
... 313 more rows

Sheet Citlivostni analyza 1) (hidden)
B2: Geometrické charakteristiky budovy
C3: 0.7 | D3: 0.9 | E3: 1 | F3: 1.1 | G3: 1.3
B4: Objem budovy V | C4: =$E$4*C3 -> 0 | D4: =$E$4*D3 -> 0 | E4: =SUM('1. PENB'!I13:I15) -> 0 | F4: =$E$4*F3 -> 0 | G4: =$E$4*G3 -> 0
C6: 0.7 | D6: 0.9 | E6: 1 | F6: 1.1 | G6: 1.3
B7: Celková plocha obálky budovy A | C7: =$E$7*C6 -> 0 | D7: =$E$7*D6 -> 0 | E7: =SUM('1. PENB'!I16:I18) -> 0 | F7: =$E$7*F6 -> 0 | G7: =$E$7*G6 -> 0
C9: 0.7 | D9: 0.9 | E9: 1 | F9: 1.1 | G9: 1.3
B10: Objemový faktor tvaru budovy A/V | C10: =$E$10*C9 ->  | D10: =$E$10*D9 ->  | E10: ='1. PENB'!I19 ->  | F10: =$E$10*F9 ->  | G10: =$E$10*G9 -> 
C12: 0.7 | D12: 0.9 | E12: 1 | F12: 1.1 | G12: 1.3
B13: Celková energeticky vztažná plocha budovy Ac | C13: =$E$13*C12 -> 0 | D13: =$E$13*D12 -> 0 | E13: ='1. PENB'!I20 -> 0 | F13: =$E$13*F12 -> 0 | G13: =$E$13*G12 -> 0
C15: 0.7 | D15: 0.9 | E15: 1 | F15: 1.1 | G15: 1.3
B16: Ht | C16: =$E$16*C15 -> 0 | D16: =$E$16*D15 -> 0 | E16: ='1. PENB'!I63 -> 0 | F16: =$E$16*F15 -> 0 | G16: =$E$16*G15 -> 0
C18: 0.7 | D18: 0.9 | E18: 1 | F18: 1.1 | G18: 1.3
B19: Uem | C19: =$E$19*C18 -> 0 | D19: =$E$19*D18 -> 0 | E19: =SUM('8. Tepelně tech. parametry'!G62:G63) -> 0 | F19: =$E$19*F18 -> 0 | G19: =$E$19*G18 -> 0

Sheet Citlivostni analyza 2) (hidden)
A2: TZB systémy
A3: b.1.a) vytápění
B5: 0.7 | C5: 0.9 | D5: 1 | E5: 1.1 | F5: 1.3
A6: 1.zdroj - ηH,gen | B6: =$D$6*B5 -> 0 | C6: =$D$6*C5 -> 0 | D6: =SUM('10. Vyhodnocení'!N12:O12) -> 0 | E6: =$D$6*E5 -> 0 | F6: =$D$6*F5 -> 0
B8: 0.7 | C8: 0.9 | D8: 1 | E8: 1.1 | F8: 1.3
A9: 1.zdroj - COP | B9: =$D$9*B8 -> 0 | C9: =$D$9*C8 -> 0 | D9: =SUM('10. Vyhodnocení'!P12) -> 0 | E9: =$D$9*E8 -> 0 | F9: =$D$9*F8 -> 0
B11: 0.7 | C11: 0.9 | D11: 1 | E11: 1.1 | F11: 1.3
A12: 2.zdroj - ηH,gen | B12: =$D$12*B11 -> 0 | C12: =$D$12*C11 -> 0 | D12: =SUM('10. Vyhodnocení'!N13:O13) -> 0 | E12: =$D$12*E11 -> 0 | F12: =$D$12*F11 -> 0
B14: 0.7 | C14: 0.9 | D14: 1 | E14: 1.1 | F14: 1.3
A15: 2.zdroj - COP | B15: =$D$15*B14 -> 0 | C15: =$D$15*C14 -> 0 | D15: =SUM('10. Vyhodnocení'!P13) -> 0 | E15: =$D$15*E14 -> 0 | F15: =$D$15*F14 -> 0
B17: 0.7 | C17: 0.9 | D17: 1 | E17: 1.1 | F17: 1.3
A18: 3.zdroj - ηH,gen | B18: =$D$18*B17 -> 0 | C18: =$D$18*C17 -> 0 | D18: =SUM('10. Vyhodnocení'!N14:O14) -> 0 | E18: =$D$18*E17 -> 0 | F18: =$D$18*F17 -> 0
B20: 0.7 | C20: 0.9 | D20: 1 | E20: 1.1 | F20: 1.3
A21: 3.zdroj - COP | B21: =$D$21*B20 -> 0 | C21: =$D$21*C20 -> 0 | D21: =SUM('10. Vyhodnocení'!P14) -> 0 | E21: =$D$21*E20 -> 0 | F21: =$D$21*F20 -> 0
B23: 0.7 | C23: 0.9 | D23: 1 | E23: 1.1 | F23: 1.3
A24: 4.zdroj - ηH,gen | B24: =$D$24*B23 -> 0 | C24: =$D$24*C23 -> 0 | D24: =SUM('10. Vyhodnocení'!N15:O15) -> 0 | E24: =$D$24*E23 -> 0 | F24: =$D$24*F23 -> 0
B26: 0.7 | C26: 0.9 | D26: 1 | E26: 1.1 | F26: 1.3
A27: 4.zdroj - COP | B27: =$D$27*B26 -> 0 | C27: =$D$27*C26 -> 0 | D27: =SUM('10. Vyhodnocení'!P15) -> 0 | E27: =$D$27*E26 -> 0 | F27: =$D$27*F26 -> 0
B29: 0.7 | C29: 0.9 | D29: 1 | E29: 1.1 | F29: 1.3
A30: 5.zdroj - ηH,gen | B30: =$D$30*B29 -> 0 | C30: =$D$30*C29 -> 0 | D30: =SUM('10. Vyhodnocení'!N16:O16) -> 0 | E30: =$D$30*E29 -> 0 | F30: =$D$30*F29 -> 0
B32: 0.7 | C32: 0.9 | D32: 1 | E32: 1.1 | F32: 1.3
A33: 5.zdroj - COP | B33: =$D$33*B32 -> 0 | C33: =$D$33*C32 -> 0 | D33: =SUM('10. Vyhodnocení'!P16) -> 0 | E33: =$D$33*E32 -> 0 | F33: =$D$33*F32 -> 0
B35: 0.7 | C35: 0.9 | D35: 1 | E35: 1.1 | F35: 1.3
A36: 1.zdroj - účinnost distribuce | B36: =$D$36*B35 -> 0 | C36: =$D$36*C35 -> 0 | D36: =SUM('10. Vyhodnocení'!Q12:R12) -> 0 | E36: =$D$36*E35 -> 0 | F36: =$D$36*F35 -> 0
B38: 0.7 | C38: 0.9 | D38: 1 | E38: 1.1 | F38: 1.3
A39: 2.zdroj - účinnost distribuce | B39: =$D$39*B38 -> 0 | C39: =$D$39*C38 -> 0 | D39: =SUM('10. Vyhodnocení'!Q13:R13) -> 0 | E39: =$D$39*E38 -> 0 | F39: =$D$39*F38 -> 0
B41: 0.7 | C41: 0.9 | D41: 1 | E41: 1.1 | F41: 1.3
A42: 3.zdroj - účinnost distribuce | B42: =$D$42*B41 -> 0 | C42: =$D$42*C41 -> 0 | D42: =SUM('10. Vyhodnocení'!Q14:R14) -> 0 | E42: =$D$42*E41 -> 0 | F42: =$D$42*F41 -> 0
B44: 0.7 | C44: 0.9 | D44: 1 | E44: 1.1 | F44: 1.3
A45: 4.zdroj - účinnost distribuce | B45: =$D$45*B44 -> 0 | C45: =$D$45*C44 -> 0 | D45: =SUM('10. Vyhodnocení'!Q15:R15) -> 0 | E45: =$D$45*E44 -> 0 | F45: =$D$45*F44 -> 0
B47: 0.7 | C47: 0.9 | D47: 1 | E47: 1.1 | F47: 1.3
A48: 5.zdroj - účinnost distribuce | B48: =$D$48*B47 -> 0 | C48: =$D$48*C47 -> 0 | D48: =SUM('10. Vyhodnocení'!Q16:R16) -> 0 | E48: =$D$48*E47 -> 0 | F48: =$D$48*F47 -> 0
B50: 0.7 | C50: 0.9 | D50: 1 | E50: 1.1 | F50: 1.3
A51: 1.zdroj - účinnost sdílení | B51: =$D$51*B50 -> 0 | C51: =$D$51*C50 -> 0 | D51: =SUM('10. Vyhodnocení'!S12:T12) -> 0 | E51: =$D$51*E50 -> 0 | F51: =$D$51*F50 -> 0
B53: 0.7 | C53: 0.9 | D53: 1 | E53: 1.1 | F53: 1.3
A54: 2.zdroj - účinnost sdílení | B54: =$D$54*B53 -> 0 | C54: =$D$54*C53 -> 0 | D54: =SUM('10. Vyhodnocení'!S13:T13) -> 0 | E54: =$D$54*E53 -> 0 | F54: =$D$54*F53 -> 0
B56: 0.7 | C56: 0.9 | D56: 1 | E56: 1.1 | F56: 1.3
A57: 3.zdroj - účinnost sdílení | B57: =$D$57*B56 -> 0 | C57: =$D$57*C56 -> 0 | D57: =SUM('10. Vyhodnocení'!S14:T14) -> 0 | E57: =$D$57*E56 -> 0 | F57: =$D$57*F56 -> 0
B59: 0.7 | C59: 0.9 | D59: 1 | E59: 1.1 | F59: 1.3
A60: 4.zdroj - účinnost sdílení | B60: =$D$60*B59 -> 0 | C60: =$D$60*C59 -> 0 | D60: =SUM('10. Vyhodnocení'!S15:T15) -> 0 | E60: =$D$60*E59 -> 0 | F60: =$D$60*F59 -> 0
B62: 0.7 | C62: 0.9 | D62: 1 | E62: 1.1 | F62: 1.3
A63: 5.zdroj - účinnost sdílení | B63: =$D$63*B62 -> 0 | C63: =$D$63*C62 -> 0 | D63: =SUM('10. Vyhodnocení'!S16:T16) -> 0 | E63: =$D$63*E62 -> 0 | F63: =$D$63*F62 -> 0 | P63: kwh/(m2.rok)
B65: 0.7 | C65: 0.9 | D65: 1 | E65: 1.1 | F65: 1.3 | N65: 0.7 | O65: 0.9 | P65: 1 | Q65: 1.1 | R65: 1.3
A66: Potřeba energie na vytápění hodnocené budovy | B66: =$D$66*B65 -> 0 | C66: =$D$66*C65 -> 0 | D66: =SUM('10. Vyhodnocení'!Q21:R21) -> 0 | E66: =$D$66*E65 -> 0 | F66: =$D$66*F65 -> 0 | M66: Potřeba energie na vytápění hodnocené budovy | N66: =$P$66*N65 -> 0 | O66: =$P$66*O65 -> 0 | P66: =SUM('10. Vyhodnocení'!L21:M21) -> 0 | Q66: =$P$66*Q65 -> 0 | R66: =$P$66*R65 -> 0
B68: 0.7 | C68: 0.9 | D68: 1 | E68: 1.1 | F68: 1.3 | N68: 0.7 | O68: 0.9 | P68: 1 | Q68: 1.1 | R68: 1.3
A69: Vypočtená spotřeba energie na vytápění hodnocené budovy | B69: =$D$69*B68 -> 0 | C69: =$D$69*C68 -> 0 | D69: =SUM('10. Vyhodnocení'!Q23:R23) -> 0 | E69: =$D$69*E68 -> 0 | F69: =$D$69*F68 -> 0 | M69: Vypočtená spotřeba energie na vytápění hodnocené budovy | N69: =$P$69*N68 -> 0 | O69: =$P$69*O68 -> 0 | P69: =SUM('10. Vyhodnocení'!L23:M23) -> 0 | Q69: =$P$69*Q68 -> 0 | R69: =$P$69*R68 -> 0
A71: b.2.a) chlazení
B72: 0.7 | C72: 0.9 | D72: 1 | E72: 1.1 | F72: 1.3
A73: EERC,gen | B73: =$D$73*B72 -> 0 | C73: =$D$73*C72 -> 0 | D73: =SUM('10. Vyhodnocení'!N31:P31) -> 0 | E73: =$D$73*E72 -> 0 | F73: =$D$73*F72 -> 0
B75: 0.7 | C75: 0.9 | D75: 1 | E75: 1.1 | F75: 1.3
A76: účinnost distribuce | B76: =$D$76*B75 -> 0 | C76: =$D$76*C75 -> 0 | D76: =SUM('10. Vyhodnocení'!Q31:R31) -> 0 | E76: =$D$76*E75 -> 0 | F76: =$D$76*F75 -> 0
B78: 0.7 | C78: 0.9 | D78: 1 | E78: 1.1 | F78: 1.3
A79: účinnost sdílení | B79: =$D$79*B78 -> 0 | C79: =$D$79*C78 -> 0 | D79: =SUM('10. Vyhodnocení'!S31:T31) -> 0 | E79: =$D$79*E78 -> 0 | F79: =$D$79*F78 -> 0 | P79: kwh/(m2.rok)
B81: 0.7 | C81: 0.9 | D81: 1 | E81: 1.1 | F81: 1.3 | N81: 0.7 | O81: 0.9 | P81: 1 | Q81: 1.1 | R81: 1.3
A82: Potřeba energie na chlazení hodnocené budovy | B82: =$D$82*B81 -> 0 | C82: =$D$82*C81 -> 0 | D82: =SUM('10. Vyhodnocení'!Q33:R33) -> 0 | E82: =$D$82*E81 -> 0 | F82: =$D$82*F81 -> 0 | M82: Potřeba energie na chlazení hodnocené budovy | N82: =$P$82*N81 -> 0 | O82: =$P$82*O81 -> 0 | P82: =SUM('10. Vyhodnocení'!L33:M33) -> 0 | Q82: =$P$82*Q81 -> 0 | R82: =$P$82*R81 -> 0
B83: 0.7 | C83: 0.9 | D83: 1 | E83: 1.1 | F83: 1.3 | N83: 0.7 | O83: 0.9 | P83: 1 | Q83: 1.1 | R83: 1.3
A84: Vypočtená spotřeba energie na chlazení hodnocené budovy | B84: =$D$84*B83 -> 0 | C84: =$D$84*C83 -> 0 | D84: =SUM('10. Vyhodnocení'!Q35:R35) -> 0 | E84: =$D$84*E83 -> 0 | F84: =$D$84*F83 -> 0 | M84: Vypočtená spotřeba energie na chlazení hodnocené budovy | N84: =$P$84*N83 -> 0 | O84: =$P$84*O83 -> 0 | P84: =SUM('10. Vyhodnocení'!L35:M35) -> 0 | Q84: =$P$84*Q83 -> 0 | R84: =$P$84*R83 -> 0
A87: b.3) větrání
B88: 0.7 | C88: 0.9 | D88: 1 | E88: 1.1 | F88: 1.3
A89: Měrný příkon ventilátorů | B89: =$D$89*B88 -> 0 | C89: =$D$89*C88 -> 0 | D89: =SUM('10. Vyhodnocení'!S43:T43) -> 0 | E89: =$D$89*E88 -> 0 | F89: =$D$89*F88 -> 0 | P89: kwh/(m2.rok)
B91: 0.7 | C91: 0.9 | D91: 1 | E91: 1.1 | F91: 1.3 | N91: 0.7 | O91: 0.9 | P91: 1 | Q91: 1.1 | R91: 1.3
A92: Vypočtená spotřeba energie na nucené větrání | B92: =$D$92*B91 -> 0 | C92: =$D$92*C91 -> 0 | D92: =SUM('10. Vyhodnocení'!Q45:R45) -> 0 | E92: =$D$92*E91 -> 0 | F92: =$D$92*F91 -> 0 | M92: Vypočtená spotřeba energie na nucené větrání | N92: =$P$92*N91 -> 0 | O92: =$P$92*O91 -> 0 | P92: =SUM('10. Vyhodnocení'!L45:M45) -> 0 | Q92: =$P$92*Q91 -> 0 | R92: =$P$92*R91 -> 0
A95: b.5.a) příprava teplé vody (TV)
B96: 0.7 | C96: 0.9 | D96: 1 | E96: 1.1 | F96: 1.3
A97: 1.zdroj - ηH,gen | B97: =$D$97*B96 -> 0 | C97: =$D$97*C96 -> 0 | D97: =SUM('10. Vyhodnocení'!N64:O64) -> 0 | E97: =$D$97*E96 -> 0 | F97: =$D$97*F96 -> 0
B99: 0.7 | C99: 0.9 | D99: 1 | E99: 1.1 | F99: 1.3
A100: 1.zdroj - COP | B100: =$D$100*B99 -> 0 | C100: =$D$100*C99 -> 0 | D100: =SUM('10. Vyhodnocení'!P64) -> 0 | E100: =$D$100*E99 -> 0 | F100: =$D$100*F99 -> 0
B102: 0.7 | C102: 0.9 | D102: 1 | E102: 1.1 | F102: 1.3
A103: 2.zdroj - ηH,gen | B103: =$D$103*B102 -> 0 | C103: =$D$103*C102 -> 0 | D103: =SUM('10. Vyhodnocení'!N65:O65) -> 0 | E103: =$D$103*E102 -> 0 | F103: =$D$103*F102 -> 0
B105: 0.7 | C105: 0.9 | D105: 1 | E105: 1.1 | F105: 1.3
A106: 2.zdroj - COP | B106: =$D$106*B105 -> 0 | C106: =$D$106*C105 -> 0 | D106: =SUM('10. Vyhodnocení'!P65) -> 0 | E106: =$D$106*E105 -> 0 | F106: =$D$106*F105 -> 0
B108: 0.7 | C108: 0.9 | D108: 1 | E108: 1.1 | F108: 1.3
A109: 3.zdroj - ηH,gen | B109: =$D$109*B108 -> 0 | C109: =$D$109*C108 -> 0 | D109: =SUM('10. Vyhodnocení'!N66:O66) -> 0 | E109: =$D$109*E108 -> 0 | F109: =$D$109*F108 -> 0
B111: 0.7 | C111: 0.9 | D111: 1 | E111: 1.1 | F111: 1.3
A112: 3.zdroj - COP | B112: =$D$112*B111 -> 0 | C112: =$D$112*C111 -> 0 | D112: =SUM('10. Vyhodnocení'!P66) -> 0 | E112: =$D$112*E111 -> 0 | F112: =$D$112*F111 -> 0
B114: 0.7 | C114: 0.9 | D114: 1 | E114: 1.1 | F114: 1.3
A115: 1.zdroj - Měrná ztráta zásobníku | B115: =$D$115*B114 -> 0 | C115: =$D$115*C114 -> 0 | D115: =SUM('10. Vyhodnocení'!Q64:R64) -> 0 | E115: =$D$115*E114 -> 0 | F115: =$D$115*F114 -> 0
B117: 0.7 | C117: 0.9 | D117: 1 | E117: 1.1 | F117: 1.3
A118: 2.zdroj - Měrná ztráta zásobníku | B118: =$D$118*B117 -> 0 | C118: =$D$118*C117 -> 0 | D118: =SUM('10. Vyhodnocení'!Q65:R65) -> 0 | E118: =$D$118*E117 -> 0 | F118: =$D$118*F117 -> 0
B120: 0.7 | C120: 0.9 | D120: 1 | E120: 1.1 | F120: 1.3
A121: 3.zdroj - Měrná ztráta zásobníku | B121: =$D$121*B120 -> 0 | C121: =$D$121*C120 -> 0 | D121: =SUM('10. Vyhodnocení'!Q66:R66) -> 0 | E121: =$D$121*E120 -> 0 | F121: =$D$121*F120 -> 0 | P121: kwh/(m2.rok)
B123: 0.7 | C123: 0.9 | D123: 1 | E123: 1.1 | F123: 1.3 | N123: 0.7 | O123: 0.9 | P123: 1 | Q123: 1.1 | R123: 1.3
A124: Potřeba energie na přípravu teplé vody | B124: =$D$124*B123 -> 0 | C124: =$D$124*C123 -> 0 | D124: =SUM('10. Vyhodnocení'!Q69:R69) -> 0 | E124: =$D$124*E123 -> 0 | F124: =$D$124*F123 -> 0 | M124: Potřeba energie na přípravu teplé vody | N124: =$P$124*N123 -> 0 | O124: =$P$124*O123 -> 0 | P124: =SUM('10. Vyhodnocení'!L69:M69) -> 0 | Q124: =$P$124*Q123 -> 0 | R124: =$P$124*R123 -> 0
B126: 0.7 | C126: 0.9 | D126: 1 | E126: 1.1 | F126: 1.3 | N126: 0.7 | O126: 0.9 | P126: 1 | Q126: 1.1 | R126: 1.3
A127: Vypočtená spotřeba energie na přípravu teplé vody | B127: =$D$127*B126 -> 0 | C127: =$D$127*C126 -> 0 | D127: =SUM('10. Vyhodnocení'!Q71:R71) -> 0 | E127: =$D$127*E126 -> 0 | F127: =$D$127*F126 -> 0 | M127: Vypočtená spotřeba energie na přípravu teplé vody | N127: =$P$127*N126 -> 0 | O127: =$P$127*O126 -> 0 | P127: =SUM('10. Vyhodnocení'!L71:M71) -> 0 | Q127: =$P$127*Q126 -> 0 | R127: =$P$127*R126 -> 0
A130: b.6) osvětlení
B131: 0.7 | C131: 0.9 | D131: 1 | E131: 1.1 | F131: 1.3
A132: Průměrný příkon osvětlení | B132: =$D$132*B131 ->  | C132: =$D$132*C131 ->  | D132: =SUM('10. Vyhodnocení'!#REF!) ->  | E132: =$D$132*E131 ->  | F132: =$D$132*F131 -> 
B134: 0.7 | C134: 0.9 | D134: 1 | E134: 1.1 | F134: 1.3
A135: Závěrečná tabulka | B135: =$D$135*B134 ->  | C135: =$D$135*C134 ->  | D135: =SUM('10. Vyhodnocení'!#REF!) ->  | E135: =$D$135*E134 ->  | F135: =$D$135*F134 -> 
A137: d) rozdělení dílčích dodaných energií, celkové primární energie a neobnovitelné primární energie podle energonositelů | P137: kwh/(m2.rok)
B138: 0.7 | C138: 0.9 | D138: 1 | E138: 1.1 | F138: 1.3 | N138: 0.7 | O138: 0.9 | P138: 1 | Q138: 1.1 | R138: 1.3
A139: Celková dodaná energie | B139: =$D$139*B138 -> 0 | C139: =$D$139*C138 -> 0 | D139: =SUM('10. Vyhodnocení'!Q74:R74) -> 0 | E139: =$D$139*E138 -> 0 | F139: =$D$139*F138 -> 0 | M139: Celková dodaná energie | N139: =$P$139*N138 -> 0 | O139: =$P$139*O138 -> 0 | P139: =SUM('10. Vyhodnocení'!L74:M74) -> 0 | Q139: =$P$139*Q138 -> 0 | R139: =$P$139*R138 -> 0
B141: 0.7 | C141: 0.9 | D141: 1 | E141: 1.1 | F141: 1.3 | N141: 0.7 | O141: 0.9 | P141: 1 | Q141: 1.1 | R141: 1.3
A142: Celková primární energie | B142: =$D$142*B141 -> 0 | C142: =$D$142*C141 -> 0 | D142: =SUM('10. Vyhodnocení'!Q75:R75) -> 0 | E142: =$D$142*E141 -> 0 | F142: =$D$142*F141 -> 0 | M142: Celková primární energie | N142: =$P$142*N141 -> 0 | O142: =$P$142*O141 -> 0 | P142: =SUM('10. Vyhodnocení'!L75:M75) -> 0 | Q142: =$P$142*Q141 -> 0 | R142: =$P$142*R141 -> 0
B144: 0.7 | C144: 0.9 | D144: 1 | E144: 1.1 | F144: 1.3 | N144: 0.7 | O144: 0.9 | P144: 1 | Q144: 1.1 | R144: 1.3
A145: Neobnovitelná primární energie | B145: =$D$145*B144 -> 0 | C145: =$D$145*C144 -> 0 | D145: =SUM('10. Vyhodnocení'!Q76:R76) -> 0 | E145: =$D$145*E144 -> 0 | F145: =$D$145*F144 -> 0 | M145: Neobnovitelná primární energie | N145: =$P$145*N144 -> 0 | O145: =$P$145*O144 -> 0 | P145: =SUM('10. Vyhodnocení'!L76:M76) -> 0 | Q145: =$P$145*Q144 -> 0 | R145: =$P$145*R144 -> 0
B147: 0.7 | C147: 0.9 | D147: 1 | E147: 1.1 | F147: 1.3
A148: Využití obnovitelných zdrojů energie z hlediska primární energie | B148: =$D$148*B147 -> 0 | C148: =$D$148*C147 -> 0 | D148: =SUM('10. Vyhodnocení'!Q77:R77) -> 0 | E148: =$D$148*E147 -> 0 | F148: =$D$148*F147 -> 0
